{"text_format":"1","workbook":"xlsx","n_sheets":1,"sheets":["Прайс-лист АГРООПТ"],"not_rendered":{"charts":0,"images":0,"macros":1,"external_links":1,"defined_names":41,"comments":0,"pivot_tables":0},"unopened":[],"bounds":{"document_bytes":16777216,"sheet_cells":100000,"rows_first":2000,"rows_last":500,"rows_between":2000,"halvings":0,"cell_chars":16384,"cell_head_chars":4096},"cells_cut":0,"cells_raw":0,"read":"whole","date_system":"1900"}

{"sheet":"Прайс-лист АГРООПТ","index":0,"n_rows":2160,"n_cols":7,"rows_kept":2160,"cut":false,"hidden":false,"merged":[[0,0,0,4]]}
["Компания \"АГРООПТ\"\nг. Москва, 123242, Малая Грузинская 20/13 стр.1 пом 20\nТел.:+7 495 088-65-39, +7 925 000-97-80, +7 985 012-17-15\nagroopt24.ru - сайт для оптовиков\nwww.agroopt-market.ru"]
["Культура, наименование, упаковка, производитель","Цена","Кол-во","Стоимость","Описание","Ссылка","Номер"]
["Арбуз","@",null,"@","@","@","@"]
["Семена арбуза Амфион F1, 1000 шт., Takii",3700,null,{"$f":"B4*C4","v":0},{"$f":"HYPERLINK(F4,\"Фото\")","v":"Фото"},"http://agroopt-market.ru/collection/arbuz/product/amfion-f1-cemena-arbuza-takii-taki",147100987]
["Семена арбуза Арашан F1, 1000 шт., Syngenta",3747,null,0,{"$f":"HYPERLINK(F5,\"Фото\")","v":"Фото"},"http://agroopt-market.ru/collection/arbuz/product/arashan-f1-cemena-arbuza-syngenta-singenta",147100971]
["Семена арбуза Асван F1, 1000 шт., Sakata",2900,null,0,"Фото","http://agroopt-market.ru/collection/arbuz/product/asvan-f1-cemena-arbuza-sakata-sakata",147100954]
["Семена арбуза Атаман F1, 1000 шт., Hazera",3600,null,0,"Фото","http://agroopt-market.ru/collection/arbuz/product/ataman-f1-cemena-arbuza-hazera-hazera",147100946]
["Семена арбуза Барака F1, 1000 шт., Syngenta","по запросу",null,null,"Фото","http://agroopt-market.ru/collection/pekinskaya/product/enduro-f1-semena-pekinskoy-kapusty-takii-taki",147137204]
["Семена арбуза Бархан F1, 1000 шт., Syngenta","по запросу",null,null,"Фото","http://agroopt-market.ru/collection/tsvetnaya/product/brunel-f1-semena-tsvetnoy-kapusty-syngenta-singenta",147137254]
["Семена арбуза Баскетбол, 1 кг, Гавриш",3250,null,0,"Фото","http://agroopt-market.ru/collection/arbuz/product/semena-arbuza-basketbol-gavrish",158070898]
["Семена арбуза Бедуин F1, 200 шт., Bejo",600,null,0,"Фото","http://agroopt-market.ru/collection/arbuz/product/beduin-f1-cemena-arbuza-bejo-beyo",147100938]
["Семена арбуза Бонта F1, 1000 шт., Seminis",3465,null,0,"Фото","http://agroopt-market.ru/collection/arbuz/product/bonta-f1-cemena-arbuza-seminis-seminis",147100967]
["Семена арбуза Бостана F1, 1000 шт., Syngenta",3080,null,0,"Фото","http://agroopt-market.ru/collection/arbuz/product/bostana-f1-cemena-arbuza-syngenta-singenta",147100975]
["Семена арбуза Варда F1, 1000 шт., Hazera",3500,null,0,"Фото","http://agroopt-market.ru/collection/arbuz/product/varda-f1-cemena-arbuza-hazera-hazera",147100947]
["Семена арбуза Васко F1, 1000 шт., Hazera",3500,null,0,"Фото","http://agroopt-market.ru/collection/arbuz/product/vasko-f1-cemena-arbuza-hazera-hazera",147100948]
["Семена арбуза Дайтона F1, 1000 шт., Sakata",2900,null,0,"Фото","http://agroopt-market.ru/collection/arbuz/product/daytona-f1-cemena-arbuza-sakata-sakata",147100955]
["Семена арбуза Дулзор F1, 1000 шт., Takii",3700,null,0,"Фото","http://agroopt-market.ru/collection/arbuz/product/dulzor-f1-cemena-arbuza-takii-taki",147100988]
["Семена арбуза Е-48 F1, 1000 шт., Takii",3700,null,0,"Фото","http://agroopt-market.ru/collection/arbuz/product/e-48-f1-cemena-arbuza-takii-taki",147100989]
["Семена арбуза Елоу Баттеркап F1, 1 000 шт, Sakata",14000,null,0,"Фото","-","ПРН"]
["Семена арбуза Каристан F1, 1000 шт., Syngenta",3847,null,0,"Фото","http://agroopt-market.ru/collection/arbuz/product/karistan-f1-cemena-arbuza-syngenta-singenta",147100977]
["Семена арбуза Коламбия F1, 1000 шт., Rijk Zwaan",5700,null,0,"Фото","http://agroopt-market.ru/collection/arbuz/product/kolambiya-f1-cemena-arbuza-rijk-zwaan-rayk-tsvaan",147100953]
["Семена арбуза Коламбия F1, 500 шт., Rijk Zwaan",2850,null,0,"Фото","http://agroopt-market.ru/collection/arbuz/product/kolambiya-f1-cemena-arbuza-rijk-zwaan-rayk-tsvaan",147100952]
["Семена арбуза Колоссео F1, 1000 шт., Seminis",3465,null,0,"Фото","http://agroopt-market.ru/collection/arbuz/product/kolosseo-f1-cemena-arbuza-seminis-seminis",147100968]
["Семена арбуза Кримсон Руби F1, 1000 шт., Sakata",3300,null,0,"Фото","http://agroopt-market.ru/collection/arbuz/product/krimson-rubi-f1-cemena-arbuza-sakata-sakata",147100956]
["Семена арбуза Кримсон Свит, 1 кг, Гавриш",3250,null,0,"Фото","http://agroopt-market.ru/collection/arbuz/product/semena-arbuza-krimson-svit-gavrish",158070897]
["Семена арбуза Кримсон Свит, 10 000 шт, Syngenta",2265,null,0,"Фото","-","ПРН"]
["Семена арбуза Кримсон Свит, 500 гр, Hazera",2500,null,0,"Фото","http://agroopt-market.ru/collection/arbuz/product/krimson-svit-cemena-arbuza-hazera-hazera",147100949]
["Семена арбуза Кримстар F1, 1000 шт., Sakata",3000,null,0,"Фото","http://agroopt-market.ru/collection/arbuz/product/krimstar-f1-cemena-arbuza-sakata-sakata",147100957]
["Семена арбуза Криспид F1, 1000 шт., Sakata",3000,null,0,"Фото","http://agroopt-market.ru/collection/arbuz/product/krispid-f1-cemena-arbuza-sakata-sakata",147100958]
["Семена арбуза Леди F1, 1000 шт., Nunhems",4125,null,0,"Фото","http://agroopt-market.ru/collection/arbuz/product/semena-arbuza-ledi-f1-nunhems-nyunems",158070891]
["Семена арбуза Маристо F1, 1000 шт., Enza Zaden",3510,null,0,"Фото","http://agroopt-market.ru/collection/arbuz/product/maristo-f1-cemena-arbuza-enza-zaden-enza-zaden",147100944]
["Семена арбуза Мастер F1, 1000 шт., Syngenta","по запросу",null,null,"Фото","http://agroopt-market.ru/collection/tsvetnaya/product/gohan-f1-semena-tsvetnoy-kapusty-syngenta-singenta",147137264]
["Семена арбуза Мелания F1, 1000 шт., Seminis",3496,null,0,"Фото","http://agroopt-market.ru/collection/arbuz/product/melaniya-f1-cemena-arbuza-seminis-seminis",147100969]
["Семена арбуза Одиссей F1, 1000 шт., Sakata",2900,null,0,"Фото","http://agroopt-market.ru/collection/arbuz/product/odissey-f1-cemena-arbuza-sakata-sakata",147100960]
["Семена арбуза Паладин F1, 1000 шт., Sakata",2900,null,0,"Фото","http://agroopt-market.ru/collection/arbuz/product/paladin-f1-cemena-arbuza-sakata-sakata",147100962]
["Семена арбуза Регус F1, 1 000 шт, Sakata",14000,null,0,"Фото","-","ПРН"]
["Семена арбуза Романза F1, 1000 шт., Syngenta",3852,null,0,"Фото","http://agroopt-market.ru/collection/arbuz/product/romanza-f1-cemena-arbuza-syngenta-singenta",147100981]
["Семена арбуза Соренто F1, 1000 шт., Syngenta",3852,null,0,"Фото","http://agroopt-market.ru/collection/arbuz/product/sorento-f1-cemena-arbuza-syngenta-singenta",147100982]
["Семена арбуза Тамерлан F1, 1000 шт., Nunhems",3661,null,0,"Фото","http://agroopt-market.ru/collection/arbuz/product/semena-arbuza-tamerlan-f1-nunhems-nyunems",158070892]
["Семена арбуза Тамтам F1, 1000 шт., Enza Zaden",3510,null,0,"Фото","http://agroopt-market.ru/collection/arbuz/product/tamtam-f1-cemena-arbuza-enza-zaden-enza-zaden",147100945]
["Семена арбуза Топ ган F1, 1000 шт., Syngenta",3852,null,0,"Фото","http://agroopt-market.ru/collection/arbuz/product/top-gan-f1-cemena-arbuza-syngenta-singenta",147100983]
["Семена арбуза Трофи F1, 1000 шт., Nunhems",3237,null,0,"Фото","http://agroopt-market.ru/collection/arbuz/product/semena-arbuza-trofi-f1-nunhems-nyunems",158070893]
["Семена арбуза Фарао F1, 1000 шт., Syngenta",4181,null,0,"Фото","http://agroopt-market.ru/collection/arbuz/product/farao-f1-cemena-arbuza-syngenta-singenta",147100984]
["Семена арбуза Фростик F1, 1000 шт., Syngenta","по запросу",null,null,"Фото","http://agroopt-market.ru/collection/tsvetnaya/product/kabral-f1-semena-tsvetnoy-kapusty-syngenta-singenta",147137271]
["Семена арбуза Шампань F1, 1000 шт., Takii",3700,null,0,"Фото","http://agroopt-market.ru/collection/arbuz/product/shampan-f1-cemena-arbuza-takii-taki",147100990]
["Семена арбуза Шуга Дэликата F1, 1000 шт., Sakata",2900,null,0,"Фото","http://agroopt-market.ru/collection/arbuz/product/shuga-delikata-f1-cemena-arbuza-sakata-sakata",147100965]
["Семена арбуза Юлия F1, 1000 шт., Nunhems",3630,null,0,"Фото","http://agroopt-market.ru/collection/arbuz/product/semena-arbuza-yuliya-f1-nunhems-nyunems",158070895]
["Базилик","@",null,"@","@"]
["Семена базилика Василиск, 1 кг, Гавриш",5700,null,0,"Фото","http://agroopt-market.ru/collection/bazilik/product/semena-bazilika-vasilisk-gavrish",158070901]
["Семена базилика Жиголо, 1 кг, Гавриш",13000,null,0,"Фото","http://agroopt-market.ru/collection/bazilik/product/semena-bazilika-zhigolo-gavrish",158070899]
["Семена базилика Лемона, 100 гр, Enza Zaden",1030,null,0,"Фото","http://agroopt-market.ru/collection/bazilik/product/lemona-semena-bazilika-enza-zaden-enza-zaden",148769226]
["Семена базилика Мариан, 100 гр, Enza Zaden",825,null,0,"Фото","http://agroopt-market.ru/collection/bazilik/product/marian-semena-bazilika-enza-zaden-enza-zaden",148769230]
["Семена базилика Рози, 250 гр, Enza Zaden",2575,null,0,"Фото","http://agroopt-market.ru/collection/bazilik/product/rozi-semena-bazilika-enza-zaden-enza-zaden",148769234]
["Семена базилика Философ, 1 кг, Гавриш",11500,null,0,"Фото","http://agroopt-market.ru/collection/bazilik/product/semena-bazilika-filosof-gavrish",158070900]
["Семена базилика Эдвина, 100 гр, Enza Zaden",785,null,0,"Фото","http://agroopt-market.ru/collection/bazilik/product/edvina-semena-bazilika-enza-zaden-enza-zaden",148769237]
["Семена базилика Эмили, 100 гр, Enza Zaden",785,null,0,"Фото","http://agroopt-market.ru/collection/bazilik/product/emili-semena-bazilika-enza-zaden-enza-zaden",148769240]
["Баклажан","@",null,"@","@"]
["Семена баклажана Альмалик F1, 100 гр, Гавриш",2050,null,0,"Фото","http://agroopt-market.ru/collection/baklazhan/product/semena-baklazhana-almalik-f1-gavrish",158070910]
["Семена баклажана Анамур F1, 1000 шт., Rijk Zwaan",6650,null,0,"Фото","http://agroopt-market.ru/collection/baklazhan/product/anamur-f1-semena-baklazhana-rijk-zwaan-rayk-tsvaan",147640121]
["Семена баклажана Анамур F1, 500 шт., Rijk Zwaan",3330,null,0,"Фото","http://agroopt-market.ru/collection/baklazhan/product/anamur-f1-semena-baklazhana-rijk-zwaan-rayk-tsvaan",147640120]
["Семена баклажана Анет F1, 1000 шт., Nunhems",3164,null,0,"Фото","http://agroopt-market.ru/collection/baklazhan/product/semena-baklazhana-anet-f1-nunhems-nyunems",158070903]
["Семена баклажана Багира F1, 1000 шт., Гавриш",4050,null,0,"Фото","http://agroopt-market.ru/collection/baklazhan/product/semena-baklazhana-bagira-f1-gavrish",158070905]
["Семена баклажана Барон F1, 1000 шт., Гавриш",650,null,0,"Фото","http://agroopt-market.ru/collection/baklazhan/product/semena-baklazhana-baron-f1-gavrish",158070909]
["Семена баклажана Бейонсе F1, 100 шт., Rijk Zwaan (ЗГ)",4430,null,0,"Фото","http://agroopt-market.ru/collection/baklazhan/product/beyonse-f1-semena-baklazhana-rijk-zwaan-rayk-tsvaan",147640106]
["Семена баклажана Бейонсе F1, 1000 шт., Rijk Zwaan (ЗГ)",44300,null,0,"Фото","http://agroopt-market.ru/collection/baklazhan/product/beyonse-f1-semena-baklazhana-rijk-zwaan-rayk-tsvaan",147640108]
["Семена баклажана Бейонсе F1, 500 шт., Rijk Zwaan (ЗГ)",22150,null,0,"Фото","http://agroopt-market.ru/collection/baklazhan/product/beyonse-f1-semena-baklazhana-rijk-zwaan-rayk-tsvaan",147640107]
["Семена баклажана Бенеция F1, 250 шт., Enza Zaden",2350,null,0,"Фото","http://agroopt-market.ru/collection/baklazhan/product/benetsiya-f1-semena-baklazhana-enza-zaden-enza-zaden",147640087]
["Семена баклажана Бенеция F1, 5 гр, Enza Zaden",1060,null,0,"Фото","http://agroopt-market.ru/collection/baklazhan/product/benetsiya-f1-semena-baklazhana-enza-zaden-enza-zaden",147640088]
["Семена баклажана Бернар F1, 1000 шт., Гавриш",980,null,0,"Фото","http://agroopt-market.ru/collection/baklazhan/product/semena-baklazhana-bernar-f1-gavrish",158070907]
["Семена баклажана Бибо F1, 1000 шт., Seminis",1097,null,{"$f":"B70*C70","v":0},"Фото","http://agroopt-market.ru/collection/baklazhan/product/bibo-f1-semena-baklazhana-seminis-seminis",147640086]
["Семена баклажана Блек перл F1, 250 шт., Enza Zaden",2350,null,0,{"$f":"HYPERLINK(F71,\"Фото\")","v":"Фото"},"http://agroopt-market.ru/collection/baklazhan/product/blek-perl-f1-semena-baklazhana-enza-zaden-enza-zaden",147640089]
["Семена баклажана Валентина F1, 1000 шт., Seminis",1051,null,0,"Фото","http://agroopt-market.ru/collection/baklazhan/product/valentina-f1-semena-baklazhana-seminis-seminis",147640100]
["Семена баклажана Галинэ F1, 5 гр, Clause",576,null,0,"Фото","http://agroopt-market.ru/collection/baklazhan/product/galine-f1-semena-baklazhana-clause-klos",147640112]
["Семена баклажана Дестан F1, 5 гр, Enza Zaden",1060,null,0,"Фото","http://agroopt-market.ru/collection/baklazhan/product/destan-f1-semena-baklazhana-enza-zaden-enza-zaden",147640129]
["Семена баклажана Джейло F1, 100 шт., Rijk Zwaan (ЗГ)",4330,null,0,"Фото","http://agroopt-market.ru/collection/baklazhan/product/dzheylo-f1-semena-baklazhana-rijk-zwaan-rayk-tsvaan",147640102]
["Семена баклажана Джейло F1, 1000 шт., Rijk Zwaan (ЗГ)",43320,null,0,"Фото","http://agroopt-market.ru/collection/baklazhan/product/dzheylo-f1-semena-baklazhana-rijk-zwaan-rayk-tsvaan",147640104]
["Семена баклажана Джейло F1, 500 шт., Rijk Zwaan (ЗГ)",21660,null,0,"Фото","http://agroopt-market.ru/collection/baklazhan/product/dzheylo-f1-semena-baklazhana-rijk-zwaan-rayk-tsvaan",147640103]
["Семена баклажана Кайли F1, 1000 шт., Rijk Zwaan (ЗГ)","под заказ",null,null,"Фото","http://agroopt-market.ru/collection/baklazhan/product/kayli-f1-semena-baklazhana-rijk-zwaan-rayk-tsvaan",147640097]
["Семена баклажана Кайли F1, 500 шт., Rijk Zwaan (ЗГ)","под заказ",null,null,"Фото","http://agroopt-market.ru/collection/baklazhan/product/kayli-f1-semena-baklazhana-rijk-zwaan-rayk-tsvaan",147640096]
["Семена баклажана Каратая F1, 1000 шт., Vilmorin",1156,null,0,"Фото","http://agroopt-market.ru/collection/baklazhan/product/karataya-f1-semena-baklazhana-vilmorin-vilmorin",147640111]
["Семена баклажана Классик F1, 5 гр, Clause",576,null,0,"Фото","http://agroopt-market.ru/collection/baklazhan/product/klassik-f1-semena-baklazhana-clause-klos",147640101]
["Семена баклажана Клоринда F1, 1000 шт., Seminis",1051,null,0,"Фото","http://agroopt-market.ru/collection/baklazhan/product/klorinda-f1-semena-baklazhana-seminis-seminis",147640098]
["Семена баклажана Мабел F1, 250 шт., Enza Zaden",2350,null,0,"Фото","http://agroopt-market.ru/collection/baklazhan/product/mabel-f1-semena-baklazhana-enza-zaden-enza-zaden",147640118]
["Семена баклажана Мирвал F1, 1000 шт., Vilmorin",1380,null,0,"Фото","http://agroopt-market.ru/collection/baklazhan/product/mirval-f1-semena-baklazhana-vilmorin-vilmorin",147640109]
["Семена баклажана Рома F1, 1000 шт., Sakata",1100,null,0,"Фото","http://agroopt-market.ru/collection/baklazhan/product/roma-f1-semena-baklazhana-sakata-sakata",147640122]
["Семена баклажана Самар F1, 1000 шт., Гавриш",650,null,0,"Фото","http://agroopt-market.ru/collection/baklazhan/product/semena-baklazhana-samar-f1-gavrish",158070908]
["Семена баклажана Скорпио F1, 1000 шт., De Ruiter Seeds",35868,null,0,"Фото","http://agroopt-market.ru/collection/baklazhan/product/skorpio-f1-semena-baklazhana-de-ruiter-seeds",147640132]
["Семена баклажана Фабина F1, 5 гр., Tezier",565,null,0,"Фото","http://agroopt-market.ru/collection/baklazhan/product/fabina-f1-semena-baklazhana-tezier-tizer",147640114]
["Семена баклажана Фарама F1, 5 гр, Tezier",576,null,0,"Фото","http://agroopt-market.ru/collection/baklazhan/product/farama-f1-semena-baklazhana-clause-klos",147640115]
["Семена баклажана Шарапова F1, 1000 шт., Rijk Zwaan",3470,null,0,"Фото","http://agroopt-market.ru/collection/baklazhan/product/sharapova-f1-semena-baklazhana-rijk-zwaan-rayk-tsvaan",147640093]
["Семена баклажана Шарапова F1, 500 шт., Rijk Zwaan",1730,null,0,"Фото","http://agroopt-market.ru/collection/baklazhan/product/sharapova-f1-semena-baklazhana-rijk-zwaan-rayk-tsvaan",147640092]
["Семена баклажана Эпик F1, 1000 шт., Seminis",875,null,0,"Фото","http://agroopt-market.ru/collection/baklazhan/product/epik-f1-semena-baklazhana-seminis-seminis",147640084]
["Горох","@",null,"@","@"]
["Семена гороха Бинго, 100 тыс. шт., Syngenta","по запросу",null,null,"Фото","http://agroopt-market.ru/collection/tsvetnaya/product/klarifay-f1-semena-tsvetnoy-kapusty-syngenta-singenta",147137285]
["Семена гороха Бобслей, 1 кг, Гавриш",1050,null,0,"Фото","http://agroopt-market.ru/collection/ovoschnoy/product/semena-goroha-bobsley-gavrish",158070911]
["Семена гороха Грюнди, 100 тыс. шт., Syngenta",4128,null,0,"Фото","http://agroopt-market.ru/collection/ovoschnoy/product/gryundi-semena-goroha-ovoschnogo-syngenta-singenta",148669687]
["Семена гороха Джоф, 100 тыс. шт., Syngenta",4323,null,0,"Фото","http://agroopt-market.ru/collection/ovoschnoy/product/dzhof-semena-goroha-ovoschnogo-syngenta-singenta",148669695]
["Семена гороха Джоф, Syngenta кг",800,null,0,"Фото","-","ПРН"]
["Семена гороха Муцио, 100 тыс. шт., Syngenta",4128,null,0,"Фото","http://agroopt-market.ru/collection/ovoschnoy/product/mutsio-semena-goroha-ovoschnogo-syngenta-singenta",148669703]
["Семена гороха Преладо, 100 тыс. шт., Syngenta","по запросу",null,null,"Фото","http://agroopt-market.ru/collection/tsvetnaya/product/korlanu-f1-semena-tsvetnoy-kapusty-syngenta-singenta",147137292]
["Семена гороха Сомервуд, 100 тыс. шт., Syngenta","по запросу",null,null,"Фото","http://agroopt-market.ru/collection/tsvetnaya/product/kul-f1-semena-tsvetnoy-kapusty-syngenta-singenta",147137296]
["Семена гороха Шугар Флэш, 100 000 шт, Syngenta",11255,null,0,"Фото","-","ПРН"]
["Дайкон","@",null,"@","@"]
["Семена дайкона Бейсбол F1, 1 кг, Гавриш",570,null,0,"Фото","http://agroopt-market.ru/collection/daykon/product/semena-daykona-beysbol-f1-gavrish",158070912]
["Семена дайкона Джапэн Бол Рабу, 500 гр, Sakata",3500,null,0,"Фото","http://agroopt-market.ru/collection/daykon/product/dzhapen-bol-rabu-semena-daykona-sakata-sakata",148669732]
["Семена дайкона Майноваз саммер крос no.3 F1, 500 гр, Takii",23500,null,0,"Фото","http://agroopt-market.ru/collection/daykon/product/maynovaz-sammer-kros-no3-f1-semena-daykona-takii-taki",148669738]
["Семена дайкона Мино самэ крос F1, 10 тыс. шт., Sakata",3500,null,0,"Фото","http://agroopt-market.ru/collection/daykon/product/mino-same-kros-f1-semena-daykona-sakata-sakata",148669744]
["Семена дайкона Мисато Ред, 500 гр, Sakata",3500,null,0,"Фото","http://agroopt-market.ru/collection/daykon/product/misato-red-semena-daykona-sakata-sakata",148669750]
["Семена дайкона Мисато Роуз Флэш, 500 гр, Sakata",3500,null,0,"Фото","http://agroopt-market.ru/collection/daykon/product/misato-rouz-flesh-semena-daykona-sakata-sakata",148669758]
["Семена дайкона Окура Кросс F1, 10 тыс. шт., Sakata",3500,null,0,"Фото","http://agroopt-market.ru/collection/daykon/product/semena-daykona-okura-kross-f1-sakata-sakata",158070802]
["Семена дайкона Рэд мит, 500 гр, Takii",6650,null,0,"Фото","http://agroopt-market.ru/collection/daykon/product/red-mit-semena-daykona-takii-taki",148669763]
["Семена дайкона Старберст F1, 100 тыс. шт., Sakata",15000,null,0,"Фото","http://agroopt-market.ru/collection/daykon/product/starberst-f1-semena-daykona-sakata-sakata",148669769]
["Семена дайкона Эприл Крос F1, 500 гр, Takii",23500,null,0,"Фото","http://agroopt-market.ru/collection/daykon/product/epril-kros-f1-semena-daykona-takii-taki",148669774]
["Дыня","@",null,"@","@"]
["Семена дыни Айкидо F1, 1000 шт., Sakata",4600,null,0,"Фото","http://agroopt-market.ru/collection/galiya/product/aykido-f1-semena-dyni-sortoip-galiya-sakata-sakata",148106775]
["Семена дыни Алтын F1, 1000 шт., Гавриш",2050,null,0,"Фото","http://agroopt-market.ru/collection/dynya/product/semena-dyni-altyn-f1-gavrish",158070917]
["Семена дыни Амал F1, 1000 шт., Clause",4728,null,0,"Фото","http://agroopt-market.ru/collection/ananas/product/amal-f1-semena-dyni-sortoip-ananas-clause-klos",148106776]
["Семена дыни Бабор F1, 1000 шт., Clause",5558,null,0,"Фото","http://agroopt-market.ru/collection/zheltaya-kanarskaya/product/babor-f1-semena-dyni-sortoip-zheltaya-kanarskaya-clause-klos",148106778]
["Семена дыни Биджоур F1, 1000 шт., Vilmorin",4760,null,0,"Фото","http://agroopt-market.ru/collection/ananas/product/bidzhour-f1-semena-dyni-sortoip-ananas-vilmorin-vilmorin",148106780]
["Семена дыни Бизан F1, 500 шт., Enza Zaden",1870,null,0,"Фото","http://agroopt-market.ru/collection/ananas/product/bizan-f1-semena-dyni-sortoip-ananas-enza-zaden-enza-zaden",148106782]
["Семена дыни Бравура F1, 100 шт., Rijk Zwaan",1040,null,0,"Фото","http://agroopt-market.ru/collection/piel-de-sapo/product/bravura-f1-semena-dyni-sortoip-piel-de-sapo-rijk-zwaan-rayk-tsvaan",148106784]
["Семена дыни Бравура F1, 1000 шт., Rijk Zwaan",10370,null,0,"Фото","http://agroopt-market.ru/collection/piel-de-sapo/product/bravura-f1-semena-dyni-sortoip-piel-de-sapo-rijk-zwaan-rayk-tsvaan",148106786]
["Семена дыни Бравура F1, 500 шт., Rijk Zwaan",5190,null,0,"Фото","http://agroopt-market.ru/collection/piel-de-sapo/product/bravura-f1-semena-dyni-sortoip-piel-de-sapo-rijk-zwaan-rayk-tsvaan",148106785]
["Семена дыни Воллер F1, 1000 шт., Nunhems",5948,null,0,"Фото","http://agroopt-market.ru/collection/dynya/product/semena-dyni-voller-f1-nunhems-nyunems",158070913]
["Семена дыни Гордес F1, 1000 шт., Sakata",4600,null,0,"Фото","http://agroopt-market.ru/collection/kantalupa/product/gordes-f1-semena-dyni-sortoip-kantalupa-sakata-sakata",148106787]
["Семена дыни Дакаро F1, 500 шт., Enza Zaden",2000,null,0,"Фото","http://agroopt-market.ru/collection/ananas/product/dakaro-f1-semena-dyni-sortoip-ananas-enza-zaden-enza-zaden",148106788]
["Семена дыни Делано F1, 1000 шт., Nunhems",5110,null,0,"Фото","http://agroopt-market.ru/collection/dynya/product/semena-dyni-delano-f1-nunhems-nyunems",158070916]
["Семена дыни Дон Кихот F1, 1000 шт., Sakata",21500,null,0,"Фото","http://agroopt-market.ru/collection/piel-de-sapo/product/don-kihot-f1-semena-dyni-sortoip-pil-de-sapo-sakata-sakata",148106789]
["Семена дыни Игназио F1, 500 шт., Enza Zaden",2700,null,0,"Фото","http://agroopt-market.ru/collection/zheltaya-kanarskaya/product/ignazio-f1-semena-dyni-sortoip-zheltaya-kanarskaya-enza-zaden-enza-zaden",148106792]
["Семена дыни Карамель F1, 1000 шт., Clause",4635,null,0,"Фото","http://agroopt-market.ru/collection/ananas/product/karamel-f1-semena-dyni-sortoip-ananas-clause-klos",148106794]
["Семена дыни Кредо F1, 1000 шт., Tezier",4815,null,0,"Фото","http://agroopt-market.ru/collection/ananas/product/kredo-f1-semena-dyni-sortoip-ananas-tezier-tizer",148106801]
["Семена дыни Кьяно F1, 1 000 шт, Sakata",4600,null,0,"Фото","-","ПРН"]
["Семена дыни Мирон F1, 1000 шт., Hazera",4820,null,0,"Фото","http://agroopt-market.ru/collection/ananas/product/miron-f1-semena-dyni-sortoip-ananas-hazera-hazera",148106804]
["Семена дыни Оксана F1, 500 шт., Enza Zaden",1870,null,0,"Фото","http://agroopt-market.ru/collection/ananas/product/oksana-f1-semena-dyni-sortoip-ananas-enza-zaden-enza-zaden",148106806]
["Семена дыни Портоальто F1, 100 шт., Rijk Zwaan",810,null,0,"Фото","http://agroopt-market.ru/collection/branko/product/portoalto-f1-semena-dyni-sortoip-branko-rijk-zwaan-rayk-tsvaan",158101971]
["Семена дыни Портоальто F1, 1000 шт., Rijk Zwaan",8020,null,0,"Фото","http://agroopt-market.ru/collection/branko/product/portoalto-f1-semena-dyni-sortoip-branko-rijk-zwaan-rayk-tsvaan",148106808]
["Семена дыни Портоальто F1, 500 шт., Rijk Zwaan",4010,null,{"$f":"B137*C137","v":0},"Фото","http://agroopt-market.ru/collection/branko/product/portoalto-f1-semena-dyni-sortoip-branko-rijk-zwaan-rayk-tsvaan",158101953]
["Семена дыни Раймонд F1, 1000 шт., Hazera",4500,null,0,{"$f":"HYPERLINK(F138,\"Фото\")","v":"Фото"},"http://agroopt-market.ru/collection/ananas/product/raymond-f1-semena-dyni-sortoip-ananas-hazera-hazera",148106810]
["Семена дыни Реймель F1, 1000 шт., Rijk Zwaan",4850,null,0,"Фото","http://agroopt-market.ru/collection/piel-de-sapo/product/reymel-f1-semena-dyni-sortoip-piel-de-sapo-rijk-zwaan-rayk-tsvaan",148106814]
["Семена дыни Реймель F1, 500 шт., Rijk Zwaan",2430,null,0,"Фото","http://agroopt-market.ru/collection/piel-de-sapo/product/reymel-f1-semena-dyni-sortoip-piel-de-sapo-rijk-zwaan-rayk-tsvaan",148106813]
["Семена дыни Рикура F1, 100 шт., Rijk Zwaan",800,null,0,"Фото","http://agroopt-market.ru/collection/piel-de-sapo/product/rikura-f1-semena-dyni-sortoip-piel-de-sapo-rijk-zwaan-rayk-tsvaan",148106816]
["Семена дыни Рикура F1, 1000 шт., Rijk Zwaan",8020,null,0,"Фото","http://agroopt-market.ru/collection/piel-de-sapo/product/rikura-f1-semena-dyni-sortoip-piel-de-sapo-rijk-zwaan-rayk-tsvaan",148106818]
["Семена дыни Рикура F1, 500 шт., Rijk Zwaan",4010,null,0,"Фото","http://agroopt-market.ru/collection/piel-de-sapo/product/rikura-f1-semena-dyni-sortoip-piel-de-sapo-rijk-zwaan-rayk-tsvaan",148106817]
["Семена дыни Саммит F1, 1000 шт., Seminis",3753,null,0,"Фото","http://agroopt-market.ru/collection/ananas/product/sammit-f1-semena-dyni-sortoip-ananas-seminis-seminis",148106819]
["Семена дыни Сембол F1, 500 шт., Enza Zaden",1870,null,0,"Фото","http://agroopt-market.ru/collection/dynya/product/semena-dyni-sembol-f1-enza-zaden-enza-zaden",158070804]
["Семена дыни Сисапо F1, 500 шт., Enza Zaden",3490,null,0,"Фото","http://agroopt-market.ru/collection/dynya/product/semena-dyni-sisapo-f1-enza-zaden-enza-zaden",158070806]
["Семена дыни Трейси F1, 500 шт., Enza Zaden",1630,null,0,"Фото","http://agroopt-market.ru/collection/dynya/product/semena-dyni-treysi-f1-enza-zaden-enza-zaden",158070803]
["Семена дыни Форбан F1, 1000 шт., Clause",5558,null,0,"Фото","http://agroopt-market.ru/collection/zheltaya-kanarskaya/product/forban-f1-semena-dyni-sortoip-zheltaya-kanarskaya-clause-klos",148106822]
["Семена дыни Хабалон F1, 500 шт., Enza Zaden",3490,null,0,"Фото","http://agroopt-market.ru/collection/piel-de-sapo/product/habalon-f1-semena-dyni-sortoip-pil-de-sapo-enza-zaden-enza-zaden",148106824]
["Семена дыни Эльдорадо F1, 1000 шт., Гавриш",2050,null,0,"Фото","http://agroopt-market.ru/collection/dynya/product/semena-dyni-eldorado-f1-gavrish",158070918]
["Семена дыни Юкар F1, 1000 шт., Rijk Zwaan",3800,null,0,"Фото","http://agroopt-market.ru/collection/galiya/product/yukar-f1-semena-dyni-sortoip-galiya-rijk-zwaan-rayk-tsvaan",148106827]
["Семена дыни Юкар F1, 500 шт., Rijk Zwaan",1900,null,0,"Фото","http://agroopt-market.ru/collection/galiya/product/yukar-f1-semena-dyni-sortoip-galiya-rijk-zwaan-rayk-tsvaan",148106826]
["Кабачок","@",null,"@","@"]
["Семена кабачка Аделия F1, 500 шт., Enza Zaden",1410,null,0,"Фото","http://agroopt-market.ru/collection/kabachok/product/adeliya-f1-semena-kabachka-enza-zaden",148113242]
["Семена кабачка Адриелле F1, 1000 шт., Vilmorin",3118,null,0,"Фото","http://agroopt-market.ru/collection/kabachok/product/adrielle-f1-semena-kabachka-vilmorin-vilmorin",148113244]
["Семена кабачка Алия F1, 500 шт., Clause",1545,null,0,"Фото","http://agroopt-market.ru/collection/kabachok/product/aliya-f1-semena-kabachka-clause-klos",148113247]
["Семена кабачка Амджад F1, 500 шт., Seminis",2047,null,0,"Фото","http://agroopt-market.ru/collection/kabachok/product/amdzhad-f1-semena-kabachka-seminis-seminis",148113249]
["Семена кабачка Ангелина F1, 500 шт., Syngenta",1534,null,0,"Фото","http://agroopt-market.ru/collection/kabachok/product/angelina-f1-semena-kabachka-syngenta-singenta",148113252]
["Семена кабачка Арал F1, 1000 шт., Sakata",2750,null,0,"Фото","http://agroopt-market.ru/collection/kabachok/product/aral-f1-semena-kabachka-sakata-sakata",148113254]
["Семена кабачка Арал/КНР F1, 1 000 шт, Sakata",3000,null,0,"Фото","-","ПРН"]
["Семена кабачка Ардендо 174 F1, 500 шт., Enza Zaden",1410,null,0,"Фото","http://agroopt-market.ru/collection/kabachok/product/ardendo-174-f1-semena-kabachka-enza-zaden",148113256]
["Семена кабачка Асма F1, 500 шт., Clause",1576,null,0,"Фото","http://agroopt-market.ru/collection/kabachok/product/asma-f1-semena-kabachka-clause-klos",148113258]
["Семена кабачка Вележ F1, 1000 шт., Гавриш",2050,null,0,"Фото","http://agroopt-market.ru/collection/kabachok/product/semena-kabachka-velezh-f1-gavrish",158070921]
["Семена кабачка Голд Раш F1, 1000 шт., Seminis",1000,null,0,"Фото","http://agroopt-market.ru/collection/kabachok/product/gold-rash-f1-semena-kabachka-seminis-seminis",148113260]
["Семена кабачка Джетта F1, 1000 шт., Vilmorin",3181,null,0,"Фото","http://agroopt-market.ru/collection/kabachok/product/dzhetta-f1-semena-kabachka-vilmorin-vilmorin",148113264]
["Семена кабачка Диамант F1, 500 шт., Seminis",1843,null,0,"Фото","http://agroopt-market.ru/collection/kabachok/product/diamant-f1-semena-kabachka-seminis-seminis",148113267]
["Семена кабачка Искандер F1, 1000 шт., Seminis",2500,null,0,"Фото","http://agroopt-market.ru/collection/kabachok/product/iskander-f1-semena-kabachka-seminis-seminis",148113273]
["Семена кабачка Искандер F1, 500 шт., Seminis",1250,null,0,"Фото","http://agroopt-market.ru/collection/kabachok/product/iskander-f1-semena-kabachka-seminis-seminis",148113272]
["Семена кабачка Кавили F1, 1000 шт., Nunhems",3833,null,0,"Фото","http://agroopt-market.ru/collection/kabachok/product/semena-kabachka-kavili-f1-nunhems-nyunems",158070919]
["Семена кабачка Кандела F1, 1000 шт., Sakata",3000,null,0,"Фото","http://agroopt-market.ru/collection/kabachok/product/kandela-f1-semena-kabachka-sakata-sakata",148113275]
["Семена кабачка Каризма F1, 500 шт., Syngenta",1982,null,0,"Фото","http://agroopt-market.ru/collection/kabachok/product/karizma-f1-semena-kabachka-syngenta-singenta",148113277]
["Семена кабачка Лена F1, 1000 шт., Vilmorin",3043,null,0,"Фото","http://agroopt-market.ru/collection/kabachok/product/lena-f1-semena-kabachka-vilmorin-vilmorin",148113279]
["Семена кабачка Марзука F1, 500 шт., Seminis",2047,null,0,"Фото","http://agroopt-market.ru/collection/kabachok/product/marzuka-f1-semena-kabachka-seminis-seminis",148113284]
["Семена кабачка Марселла F1, 1000 шт., Enza Zaden",1410,null,0,"Фото","http://agroopt-market.ru/collection/kabachok/product/marsella-f1-semena-kabachka-enza-zaden",148113286]
["Семена кабачка Мостра F1, 500 шт., Tezier",1591,null,0,"Фото","http://agroopt-market.ru/collection/kabachok/product/mostra-f1-semena-kabachka-tezier-tizer",148113289]
["Семена кабачка Невира F1, 1000 шт., Vilmorin",3304,null,0,"Фото","http://agroopt-market.ru/collection/kabachok/product/nevira-f1-semena-kabachka-vilmorin-vilmorin",148113292]
["Семена кабачка Отто F1, 500 шт., Syngenta","по запросу",null,null,"Фото","http://agroopt-market.ru/collection/tsvetnaya/product/smilla-f1-semena-tsvetnoy-kapusty-syngenta-singenta",147137325]
["Семена кабачка Сальвадор F1, 100 гр, Enza Zaden",1290,null,0,"Фото","http://agroopt-market.ru/collection/kabachok/product/salvador-f1-semena-kabachka-enza-zaden",148113295]
["Семена кабачка Сама F1, 1000 шт., Sakata",3000,null,0,"Фото","http://agroopt-market.ru/collection/kabachok/product/sama-f1-semena-kabachka-sakata-sakata",148113297]
["Семена кабачка Сангрум F1, 1000 шт., Nunhems",3009,null,0,"Фото","http://agroopt-market.ru/collection/kabachok/product/semena-kabachka-sangrum-f1-nunhems-nyunems",158070920]
["Семена кабачка СВ 8575 ЯЛ F1, 500 шт., Seminis",2047,null,0,"Фото","http://agroopt-market.ru/collection/kabachok/product/sv-8575-yal-f1-semena-kabachka-seminis-seminis",148113299]
["Семена кабачка Суха F1, 1000 шт., Sakata",3000,null,0,"Фото","http://agroopt-market.ru/collection/kabachok/product/suha-f1-semena-kabachka-sakata-sakata",148113302]
["Семена кабачка Сцилли F1, 500 шт., Seminis",2047,null,0,"Фото","http://agroopt-market.ru/collection/kabachok/product/stsilli-f1-semena-kabachka-seminis-seminis",148113304]
["Семена кабачка Эзра F1, 500 гр, Hazera",5370,null,0,"Фото","http://agroopt-market.ru/collection/kabachok/product/ezra-f1-semena-kabachka-hazera-hazera",148113306]
["Семена кабачка Ясмин F1, 1000 шт., Sakata",3000,null,0,"Фото","http://agroopt-market.ru/collection/kabachok/product/yasmin-f1-semena-kabachka-sakata-sakata",148113307]
["Капуста белокочанная","@",null,"@","@"]
["Семена капусты б/к 3388ЖЛ F1, 2500 шт., Seminis",1868,null,0,"Фото","http://agroopt-market.ru/collection/belokachannaya/product/3388zhl-f1-semena-kapusty-belokachannoy-seminis-seminis",147136645]
["Семена капусты б/к 3404ЖЛ F1, 2500 шт., Seminis",1868,null,0,"Фото","http://agroopt-market.ru/collection/belokachannaya/product/3404zhl-f1-semena-kapusty-belokachannoy-seminis-seminis",147136646]
["Семена капусты б/к CV3336JB F1, 2500 шт., Seminis",2344,null,0,"Фото","http://agroopt-market.ru/collection/belokachannaya/product/cv3336jb-f1-semena-kapusty-belokachannoy-seminis-seminis",147136648]
["Семена капусты б/к №883 F1, 2500 шт., Sakata",1850,null,0,"Фото","http://agroopt-market.ru/collection/belokachannaya/product/883-f1-semena-kapusty-belokachannoy-sakata-sakata",147136649]
["Семена капусты б/к Агрессор F1, 10 000 шт, Syngenta",8764,null,0,"Фото","-","ПРН"]
["Семена капусты б/к Агрессор F1, 2500 шт., Syngenta",2191,null,0,"Фото","http://agroopt-market.ru/collection/belokachannaya/product/agressor-f1-semena-kapusty-belokachannoy-syngenta-singenta",147136651]
["Семена капусты б/к Адаптор F1, 2500 шт., Syngenta",2093,null,0,"Фото","http://agroopt-market.ru/collection/belokachannaya/product/adaptor-f1-semena-kapusty-belokachannoy-syngenta-singenta",147136653]
["Семена капусты б/к Адема F1, 10 тыс. шт. (GD), Rijk Zwaan",6480,null,0,"Фото","http://agroopt-market.ru/collection/belokachannaya/product/adema-rz-f1-semena-kapusty-belokachannoy-rijk-zwaan-rayk-tsvaan",147136657]
["Семена капусты б/к Адема F1, 2500 шт. (GD), Rijk Zwaan",1620,null,0,"Фото","http://agroopt-market.ru/collection/belokachannaya/product/adema-rz-f1-semena-kapusty-belokachannoy-rijk-zwaan-rayk-tsvaan",147136656]
["Семена капусты б/к Аланек F1, 2500 шт., Enza Zaden",1730,null,0,"Фото","http://agroopt-market.ru/collection/belokachannaya/product/alanek-f1-semena-kapusty-belokachannoy-enza-zaden-enza-zaden",147136659]
["Семена капусты б/к Альфредо F1, 2500 шт. (калибр.), Bejo",2340,null,0,"Фото","http://agroopt-market.ru/collection/belokachannaya/product/alfredo-f1-semena-kapusty-belokachannoy-bejo-beyo",147136660]
["Семена капусты б/к Амазон F1, 2500 шт. (калибр.), Bejo",2340,null,0,"Фото","http://agroopt-market.ru/collection/belokachannaya/product/amazon-f1-semena-kapusty-belokachannoy-bejo-beyo",147136662]
["Семена капусты б/к Аммон F1, 2500 шт., Seminis",1603,null,0,"Фото","http://agroopt-market.ru/collection/belokachannaya/product/ammon-f1-semena-kapusty-belokachannoy-seminis-seminis",147136663]
["Семена капусты б/к Амтрак F1, 100 тыс. шт. (калибр.), Bejo",83720,null,0,"Фото","http://agroopt-market.ru/collection/belokachannaya/product/amtrak-f1-semena-kapusty-belokachannoy-bejo-beyo",147136665]
["Семена капусты б/к Амтрак F1, 2500 шт. (калибр.), Bejo",2180,null,0,"Фото","http://agroopt-market.ru/collection/belokachannaya/product/amtrak-f1-semena-kapusty-belokachannoy-bejo-beyo",147136666]
["Семена капусты б/к Анкома F1, 10 тыс. шт. (GD), Rijk Zwaan",6480,null,0,"Фото","http://agroopt-market.ru/collection/belokachannaya/product/ankoma-rz-f1-semena-kapusty-belokachannoy-rijk-zwaan-rayk-tsvaan",147136670]
["Семена капусты б/к Анкома F1, 1000 шт. (GD), Rijk Zwaan",650,null,{"$f":"B203*C203","v":0},"Фото","http://agroopt-market.ru/collection/belokachannaya/product/ankoma-rz-f1-semena-kapusty-belokachannoy-rijk-zwaan-rayk-tsvaan",147136668]
["Семена капусты б/к Анкома F1, 2500 шт. (GD), Rijk Zwaan",1620,null,0,{"$f":"HYPERLINK(F204,\"Фото\")","v":"Фото"},"http://agroopt-market.ru/collection/belokachannaya/product/ankoma-rz-f1-semena-kapusty-belokachannoy-rijk-zwaan-rayk-tsvaan",147136669]
["Семена капусты б/к Арривист F1, 2500 шт., Seminis",1754,null,0,"Фото","http://agroopt-market.ru/collection/belokachannaya/product/arrivist-f1-semena-kapusty-belokachannoy-seminis-seminis",147136672]
["Семена капусты б/к Артост F1, 2500 шт. (калибр.), Bejo",1860,null,0,"Фото","http://agroopt-market.ru/collection/belokachannaya/product/artost-f1-semena-kapusty-belokachannoy-bejo-beyo",147136673]
["Семена капусты б/к Атрия F1, 10 тыс. шт., Seminis",6420,null,0,"Фото","http://agroopt-market.ru/collection/belokachannaya/product/atriya-f1-semena-kapusty-belokachannoy-seminis-seminis",147136675]
["Семена капусты б/к Атрия F1, 100 тыс. шт., Seminis",64120,null,0,"Фото","http://agroopt-market.ru/collection/belokachannaya/product/atriya-f1-semena-kapusty-belokachannoy-seminis-seminis",147136676]
["Семена капусты б/к Атрия F1, 2500 шт., Seminis",1603,null,0,"Фото","http://agroopt-market.ru/collection/belokachannaya/product/atriya-f1-semena-kapusty-belokachannoy-seminis-seminis",147136677]
["Семена капусты б/к Байонет F1, 2500 шт. (калибр.), Bejo",2340,null,0,"Фото","http://agroopt-market.ru/collection/belokachannaya/product/bayonet-f1-semena-kapusty-belokachannoy-bejo-beyo",147136679]
["Семена капусты б/к Бартон F1, 2500 шт., Hazera",1775,null,0,"Фото","http://agroopt-market.ru/collection/belokachannaya/product/barton-f1-semena-kapusty-belokachannoy-hazera-hazera",147136681]
["Семена капусты б/к Блоктор F1, 2500 шт., Syngenta",1982,null,0,"Фото","http://agroopt-market.ru/collection/belokachannaya/product/bloktor-f1-semena-kapusty-belokachannoy-syngenta-singenta",147136682]
["Семена капусты б/к Боликор F1, 2500 шт., Syngenta",2036,null,0,"Фото","http://agroopt-market.ru/collection/belokachannaya/product/bolikor-f1-semena-kapusty-belokachannoy-syngenta-singenta",147136684]
["Семена капусты б/к Браксан F1, 2500 шт., Syngenta",2191,null,0,"Фото","http://agroopt-market.ru/collection/belokachannaya/product/braksan-f1-semena-kapusty-belokachannoy-syngenta-singenta",147136685]
["Семена капусты б/к Бригадир F1, 2500 шт., Clause",1899,null,0,"Фото","http://agroopt-market.ru/collection/belokachannaya/product/brigadir-f1-semena-kapusty-belokachannoy-clause-klos",147136687]
["Семена капусты б/к Бронко F1, 2500 шт. (калибр.), Bejo",1800,null,0,"Фото","http://agroopt-market.ru/collection/belokachannaya/product/bronko-f1-semena-kapusty-belokachannoy-bejo-beyo",147136688]
["Семена капусты б/к Бруно F1, 2500 шт. (калибр.), Bejo",1990,null,0,"Фото","http://agroopt-market.ru/collection/belokachannaya/product/bruno-f1-semena-kapusty-belokachannoy-bejo-beyo",147136690]
["Семена капусты б/к Бузони F1, 2 500 шт, Hazera (прецизионные)",2650,null,0,"Фото","-","ПРН"]
["Семена капусты б/к Бузони F1, 2500 шт., Hazera",1775,null,0,"Фото","http://agroopt-market.ru/collection/belokachannaya/product/buzoni-f1-semena-kapusty-belokachannoy-hazera-hazera",147136692]
["Семена капусты б/к Булат F1, 2500 шт., Гавриш",1100,null,0,"Фото","http://agroopt-market.ru/collection/belokachannaya/product/semena-kapusty-belokachannoy-bulat-f1-gavrish",158070932]
["Семена капусты б/к Бурбон F1, 2500 шт., Hazera",1775,null,0,"Фото","http://agroopt-market.ru/collection/belokachannaya/product/burbon-f1-semena-kapusty-belokachannoy-hazera-hazera",147136694]
["Семена капусты б/к Бухарест F1, 2500 шт., Seminis",1618,null,0,"Фото","http://agroopt-market.ru/collection/belokachannaya/product/buharest-f1-semena-kapusty-belokachannoy-seminis-seminis",147136695]
["Семена капусты б/к Валентина F1, 100 гр, Гавриш",4050,null,0,"Фото","http://agroopt-market.ru/collection/belokachannaya/product/semena-kapusty-belokachannoy-valentina-f1-gavrish",158070934]
["Семена капусты б/к Вердеко F1, 2500 шт., Takii",1820,null,0,"Фото","http://agroopt-market.ru/collection/belokachannaya/product/verdeko-f1-semena-kapusty-belokachannoy-takii-taki",147136697]
["Семена капусты б/к Вестри F1, 2500 шт., Seminis",1603,null,0,"Фото","http://agroopt-market.ru/collection/belokachannaya/product/vestri-f1-semena-kapusty-belokachannoy-seminis-seminis",147136698]
["Семена капусты б/к Газель F1, 2500 шт. (калибр.), Bejo",1860,null,0,"Фото","http://agroopt-market.ru/collection/belokachannaya/product/gazel-f1-semena-kapusty-belokachannoy-bejo-beyo",147136700]
["Семена капусты б/к Галакси F1, 2500 шт., Seminis",1618,null,0,"Фото","http://agroopt-market.ru/collection/belokachannaya/product/galaksi-f1-semena-kapusty-belokachannoy-seminis-seminis",147136702]
["Семена капусты б/к Гермес F1, 2500 шт., Seminis",1537,null,0,"Фото","http://agroopt-market.ru/collection/belokachannaya/product/germes-f1-semena-kapusty-belokachannoy-seminis-seminis",147136704]
["Семена капусты б/к Гилсон F1, 2500 шт., Hazera",1775,null,0,"Фото","http://agroopt-market.ru/collection/belokachannaya/product/gilson-f1-semena-kapusty-belokachannoy-hazera-hazera",147136705]
["Семена капусты б/к Глория F1, 2500 шт., Syngenta",1431,null,0,"Фото","http://agroopt-market.ru/collection/belokachannaya/product/gloriya-f1-semena-kapusty-belokachannoy-syngenta-singenta",147136707]
["Семена капусты б/к Грандслам F1, 2500 шт., Sakata",1800,null,0,"Фото","http://agroopt-market.ru/collection/belokachannaya/product/grandslam-f1-semena-kapusty-belokachannoy-sakata-sakata",147136708]
["Семена капусты б/к Грегориан F1, 2500 шт., Syngenta",1982,null,0,"Фото","http://agroopt-market.ru/collection/belokachannaya/product/gregorian-f1-semena-kapusty-belokachannoy-syngenta-singenta",147136710]
["Семена капусты б/к Грепала F1, 2500 шт., Syngenta","по запросу",null,null,"Фото","http://agroopt-market.ru/collection/tsvetnaya/product/faradey-f1-semena-tsvetnoy-kapusty-syngenta-singenta",147137340]
["Семена капусты б/к Грин Бой F1, 2500 шт., Sakata",1700,null,0,"Фото","http://agroopt-market.ru/collection/belokachannaya/product/grin-boy-f1-semena-kapusty-belokachannoy-sakata-sakata",147136712]
["Семена капусты б/к Грин лунар F1, 2500 шт., Takii",1820,null,0,"Фото","http://agroopt-market.ru/collection/belokachannaya/product/grin-lunar-f1-semena-kapusty-belokachannoy-takii-taki",147136714]
["Семена капусты б/к Грин рич F1, 2500 шт., Takii",1820,null,0,"Фото","http://agroopt-market.ru/collection/belokachannaya/product/grin-rich-f1-semena-kapusty-belokachannoy-takii-taki",147136716]
["Семена капусты б/к Грин Флэш F1, 2500 шт., Seminis",1618,null,0,"Фото","http://agroopt-market.ru/collection/belokachannaya/product/grin-flesh-f1-semena-kapusty-belokachannoy-seminis-seminis",147136717]
["Семена капусты б/к Девотор F1, 2500 шт., Syngenta",1761,null,0,"Фото","http://agroopt-market.ru/collection/belokachannaya/product/devotor-f1-semena-kapusty-belokachannoy-syngenta-singenta",147136719]
["Семена капусты б/к Джетодор F1, 2500 шт., Syngenta",2036,null,0,"Фото","http://agroopt-market.ru/collection/belokachannaya/product/dzhetodor-f1-semena-kapusty-belokachannoy-syngenta-singenta",147136722]
["Семена капусты б/к Джигит F1, 2500 шт., Гавриш",1500,null,0,"Фото","http://agroopt-market.ru/collection/belokachannaya/product/semena-kapusty-belokachannoy-dzhigit-f1-gavrish",158070928]
["Семена капусты б/к Джинтама F1, 10 тыс. шт. (GD), Rijk Zwaan",7238,null,0,"Фото","http://agroopt-market.ru/collection/belokachannaya/product/dzhintama-f1-semena-kapusty-belokachannoy-rijk-zwaan-rayk-tsvaan",147136729]
["Семена капусты б/к Джинтама F1, 10 тыс. шт. (NS), Rijk Zwaan",7560,null,0,"Фото","http://agroopt-market.ru/collection/belokachannaya/product/dzhintama-f1-semena-kapusty-belokachannoy-rijk-zwaan-rayk-tsvaan",147136726]
["Семена капусты б/к Джинтама F1, 1000 шт. (GD), Rijk Zwaan",724,null,0,"Фото","http://agroopt-market.ru/collection/belokachannaya/product/dzhintama-f1-semena-kapusty-belokachannoy-rijk-zwaan-rayk-tsvaan",147136727]
["Семена капусты б/к Джинтама F1, 1000 шт. (NS), Rijk Zwaan",760,null,0,"Фото","http://agroopt-market.ru/collection/belokachannaya/product/dzhintama-f1-semena-kapusty-belokachannoy-rijk-zwaan-rayk-tsvaan",147136724]
["Семена капусты б/к Джинтама F1, 2500 шт. (GD), Rijk Zwaan",1810,null,0,"Фото","http://agroopt-market.ru/collection/belokachannaya/product/dzhintama-f1-semena-kapusty-belokachannoy-rijk-zwaan-rayk-tsvaan",147136728]
["Семена капусты б/к Джинтама F1, 2500 шт. (NS), Rijk Zwaan",1890,null,0,"Фото","http://agroopt-market.ru/collection/belokachannaya/product/dzhintama-f1-semena-kapusty-belokachannoy-rijk-zwaan-rayk-tsvaan",147136725]
["Семена капусты б/к Дискавер F1, 2500 шт. (калибр.), Bejo",2340,null,0,"Фото","http://agroopt-market.ru/collection/belokachannaya/product/diskaver-f1-semena-kapusty-belokachannoy-bejo-beyo",147136731]
["Семена капусты б/к Етма F1, 10 тыс. шт. (GD), Rijk Zwaan",6480,null,0,"Фото","http://agroopt-market.ru/collection/belokachannaya/product/etma-f1-semena-kapusty-belokachannoy-rijk-zwaan-rayk-tsvaan",147136736]
["Семена капусты б/к Етма F1, 1000 шт. (GD), Rijk Zwaan",650,null,0,"Фото","http://agroopt-market.ru/collection/belokachannaya/product/etma-f1-semena-kapusty-belokachannoy-rijk-zwaan-rayk-tsvaan",147136733]
["Семена капусты б/к Етма F1, 2500 шт. (GD), Rijk Zwaan",1620,null,0,"Фото","http://agroopt-market.ru/collection/belokachannaya/product/etma-f1-semena-kapusty-belokachannoy-rijk-zwaan-rayk-tsvaan",147136735]
["Семена капусты б/к Заказ F1, 2500 шт., Seminis",1537,null,0,"Фото","http://agroopt-market.ru/collection/belokachannaya/product/zakaz-f1-semena-kapusty-belokachannoy-seminis-seminis",147136739]
["Семена капусты б/к Зенит F1, 2500 шт., Seminis",157,null,0,"Фото","http://agroopt-market.ru/collection/belokachannaya/product/zenit-f1-semena-kapusty-belokachannoy-seminis-seminis",147136741]
["Семена капусты б/к Зенон F1, 2500 шт., Syngenta",1500,null,0,"Фото","http://agroopt-market.ru/collection/belokachannaya/product/zenon-f1-semena-kapusty-belokachannoy-syngenta-singenta",147136743]
["Семена капусты б/к Зиелонор F1, 2500 шт., Syngenta","по запросу",null,null,"Фото","http://agroopt-market.ru/collection/saharnaya/product/bentam-f1-semena-kukuruzy-saharnoy-sakata-sakata",148669781]
["Семена капусты б/к Золтан F1, 2500 шт. (прециз.), Hazera",2750,null,0,"Фото","http://agroopt-market.ru/collection/belokachannaya/product/semena-kapusty-belokachannoy-zoltan-f1-hazera",158070922]
["Семена капусты б/к Золтан F1, 2500 шт., Hazera",1775,null,0,"Фото","http://agroopt-market.ru/collection/belokachannaya/product/zoltan-f1-semena-kapusty-belokachannoy-hazera-hazera",147136745]
["Семена капусты б/к Итон F1, 2500 шт. (калибр.), Bejo",2340,null,0,"Фото","http://agroopt-market.ru/collection/belokachannaya/product/iton-f1-semena-kapusty-belokachannoy-bejo-beyo",147136746]
["Семена капусты б/к Кабтон F1, 2500 шт. (калибр.), Bejo",2530,null,0,"Фото","http://agroopt-market.ru/collection/belokachannaya/product/kabton-f1-semena-kapusty-belokachannoy-bejo-beyo",147136747]
["Семена капусты б/к Калорама F1, 10 тыс. шт. (GD), Rijk Zwaan",7560,null,0,"Фото","http://agroopt-market.ru/collection/belokachannaya/product/kalorama-f1-semena-kapusty-belokachannoy-rijk-zwaan-rayk-tsvaan",147136751]
["Семена капусты б/к Калорама F1, 1000 шт. (GD), Rijk Zwaan",760,null,0,"Фото","http://agroopt-market.ru/collection/belokachannaya/product/kalorama-f1-semena-kapusty-belokachannoy-rijk-zwaan-rayk-tsvaan",147136749]
["Семена капусты б/к Калорама F1, 2500 шт. (GD), Rijk Zwaan",1890,null,0,"Фото","http://agroopt-market.ru/collection/belokachannaya/product/kalorama-f1-semena-kapusty-belokachannoy-rijk-zwaan-rayk-tsvaan",147136750]
["Семена капусты б/к Камбрия F1, 2500 шт. (калибр.), Bejo",1860,null,0,"Фото","http://agroopt-market.ru/collection/belokachannaya/product/kambriya-f1-semena-kapusty-belokachannoy-bejo-beyo",147136753]
["Семена капусты б/к Кандела F1, 2500 шт. (калибр.), Bejo",2340,null,0,"Фото","http://agroopt-market.ru/collection/belokachannaya/product/kandela-f1-semena-kapusty-belokachannoy-bejo-beyo",147136754]
["Семена капусты б/к Кандиса F1, 2500 шт., Sakata",1700,null,0,"Фото","http://agroopt-market.ru/collection/belokachannaya/product/kandisa-f1-semena-kapusty-belokachannoy-sakata-sakata",147136756]
["Семена капусты б/к Капорал F1, 2500 шт., Clause",1900,null,0,"Фото","-","ПРН"]
["Семена капусты б/к Каптур F1, 2500 шт. (калибр.), Bejo",1990,null,0,"Фото","http://agroopt-market.ru/collection/belokachannaya/product/kaptur-f1-semena-kapusty-belokachannoy-bejo-beyo",147136758]
["Семена капусты б/к Карафлекс F1, 2500 шт. (калибр.), Bejo",3190,null,{"$f":"B267*C267","v":0},"Фото","http://agroopt-market.ru/collection/belokachannaya/product/karafleks-f1-semena-kapusty-belokachannoy-bejo-beyo",147136760]
["Семена капусты б/к Кастелло F1, 2500 шт., Hazera",1775,null,0,{"$f":"HYPERLINK(F268,\"Фото\")","v":"Фото"},"http://agroopt-market.ru/collection/belokachannaya/product/kastello-f1-semena-kapusty-belokachannoy-hazera-hazera",147136762]
["Семена капусты б/к Катарина F1, 2500 шт. (калибр.), Bejo",1860,null,0,"Фото","http://agroopt-market.ru/collection/belokachannaya/product/katarina-f1-semena-kapusty-belokachannoy-bejo-beyo",147136763]
["Семена капусты б/к Каунтер F1, 100 тыс. шт. (калибр.), Bejo",88260,null,0,"Фото","http://agroopt-market.ru/collection/belokachannaya/product/kaunter-f1-semena-kapusty-belokachannoy-bejo-beyo",147136765]
["Семена капусты б/к Каунтер F1, 2500 шт. (калибр.), Bejo",2340,null,0,"Фото","http://agroopt-market.ru/collection/belokachannaya/product/kaunter-f1-semena-kapusty-belokachannoy-bejo-beyo",147136766]
["Семена капусты б/к Каяк F1, 2 500 шт, Sakata",1900,null,0,"Фото","-","ПРН"]
["Семена капусты б/к Кевин F1, 2500 шт., Syngenta",1982,null,0,"Фото","http://agroopt-market.ru/collection/belokachannaya/product/kevin-f1-semena-kapusty-belokachannoy-syngenta-singenta",147136768]
["Семена капусты б/к Килагерб F1, 2500 шт., Syngenta",2742,null,0,"Фото","http://agroopt-market.ru/collection/belokachannaya/product/kilagerb-f1-semena-kapusty-belokachannoy-syngenta-singenta",147136769]
["Семена капусты б/к Килагрег F1, 2500 шт., Syngenta",2742,null,0,"Фото","http://agroopt-market.ru/collection/belokachannaya/product/kilagreg-f1-semena-kapusty-belokachannoy-syngenta-singenta",147136771]
["Семена капусты б/к Килатон F1, 2500 шт., Syngenta",2742,null,0,"Фото","http://agroopt-market.ru/collection/belokachannaya/product/kilaton-f1-semena-kapusty-belokachannoy-syngenta-singenta",147136773]
["Семена капусты б/к Коля F1, 2500 шт., Seminis",1773,null,0,"Фото","http://agroopt-market.ru/collection/belokachannaya/product/kolya-f1-semena-kapusty-belokachannoy-seminis-seminis",147136775]
["Семена капусты б/к Компас F1, 2500 шт., Takii",1820,null,0,"Фото","http://agroopt-market.ru/collection/belokachannaya/product/kompas-f1-semena-kapusty-belokachannoy-takii-taki",147136776]
["Семена капусты б/к Коронет F1, 2500 шт., Sakata",1850,null,0,"Фото","http://agroopt-market.ru/collection/belokachannaya/product/koronet-f1-semena-kapusty-belokachannoy-sakata-sakata",147136779]
["Семена капусты б/к Крауткайзер F1, 2500 шт. (калибр.), Bejo",2180,null,0,"Фото","http://agroopt-market.ru/collection/belokachannaya/product/krautkayzer-f1-semena-kapusty-belokachannoy-bejo-beyo",147136782]
["Семена капусты б/к Краутман F1, 100 тыс. шт. (калибр.), Bejo",83720,null,0,"Фото","http://agroopt-market.ru/collection/belokachannaya/product/krautman-f1-semena-kapusty-belokachannoy-bejo-beyo",147136783]
["Семена капусты б/к Краутман F1, 2500 шт. (калибр.), Bejo",2180,null,0,"Фото","http://agroopt-market.ru/collection/belokachannaya/product/krautman-f1-semena-kapusty-belokachannoy-bejo-beyo",147136784]
["Семена капусты б/к Куизор F1, 2500 шт., Syngenta",1761,null,0,"Фото","http://agroopt-market.ru/collection/belokachannaya/product/kuizor-f1-semena-kapusty-belokachannoy-syngenta-singenta",147136787]
["Семена капусты б/к Лагрима F1, 10 тыс. шт. (GD), Rijk Zwaan",7560,null,0,"Фото","http://agroopt-market.ru/collection/belokachannaya/product/lagrima-f1-semena-kapusty-belokachannoy-rijk-zwaan-rayk-tsvaan",147136792]
["Семена капусты б/к Лагрима F1, 1000 шт. (GD), Rijk Zwaan",760,null,0,"Фото","http://agroopt-market.ru/collection/belokachannaya/product/lagrima-f1-semena-kapusty-belokachannoy-rijk-zwaan-rayk-tsvaan",147136789]
["Семена капусты б/к Лагрима F1, 2500 шт. (GD), Rijk Zwaan",1890,null,0,"Фото","http://agroopt-market.ru/collection/belokachannaya/product/lagrima-f1-semena-kapusty-belokachannoy-rijk-zwaan-rayk-tsvaan",147136791]
["Семена капусты б/к Ландини F1, 2500 шт., Hazera",1775,null,0,"Фото","http://agroopt-market.ru/collection/belokachannaya/product/landini-f1-semena-kapusty-belokachannoy-hazera-hazera",147136793]
["Семена капусты б/к Ларсия F1, 2500 шт., Seminis",1773,null,0,"Фото","http://agroopt-market.ru/collection/belokachannaya/product/larsiya-f1-semena-kapusty-belokachannoy-seminis-seminis",147136795]
["Семена капусты б/к Легат F1, 2500 шт., Clause",1951,null,0,"Фото","http://agroopt-market.ru/collection/belokachannaya/product/legat-f1-semena-kapusty-belokachannoy-clause-klos",147136797]
["Семена капусты б/к Лемма F1, 10 тыс. шт. (GD), Rijk Zwaan",7070,null,0,"Фото","http://agroopt-market.ru/collection/belokachannaya/product/lemma-f1-semena-kapusty-belokachannoy-rijk-zwaan-rayk-tsvaan",147136803]
["Семена капусты б/к Лемма F1, 1000 шт. (GD), Rijk Zwaan",710,null,0,"Фото","http://agroopt-market.ru/collection/belokachannaya/product/lemma-f1-semena-kapusty-belokachannoy-rijk-zwaan-rayk-tsvaan",147136800]
["Семена капусты б/к Лемма F1, 2500 шт. (GD), Rijk Zwaan",1770,null,0,"Фото","http://agroopt-market.ru/collection/belokachannaya/product/lemma-f1-semena-kapusty-belokachannoy-rijk-zwaan-rayk-tsvaan",147136802]
["Семена капусты б/к Леннокс F1, 100 тыс. шт. (калибр.), Bejo",88260,null,0,"Фото","http://agroopt-market.ru/collection/belokachannaya/product/lennoks-f1-semena-kapusty-belokachannoy-bejo-beyo",147136805]
["Семена капусты б/к Леннокс F1, 2500 шт. (калибр.), Bejo",2340,null,0,"Фото","http://agroopt-market.ru/collection/belokachannaya/product/lennoks-f1-semena-kapusty-belokachannoy-bejo-beyo",147136806]
["Семена капусты б/к Леопольд F1, 2500 шт. (калибр.), Bejo",2340,null,0,"Фото","http://agroopt-market.ru/collection/belokachannaya/product/leopold-f1-semena-kapusty-belokachannoy-bejo-beyo",147136808]
["Семена капусты б/к Лион F1, 2500 шт., Hazera",1775,null,0,"Фото","http://agroopt-market.ru/collection/belokachannaya/product/lion-f1-semena-kapusty-belokachannoy-hazera-hazera",147136810]
["Семена капусты б/к Магнус F1, 2500 шт., Hazera",1775,null,0,"Фото","http://agroopt-market.ru/collection/belokachannaya/product/magnus-f1-semena-kapusty-belokachannoy-hazera-hazera",147136813]
["Семена капусты б/к Марчелло F1, 10 тыс. шт. (GD), Rijk Zwaan",6460,null,0,"Фото","http://agroopt-market.ru/collection/belokachannaya/product/marchello-f1-semena-kapusty-belokachannoy-rijk-zwaan-rayk-tsvaan",147136821]
["Семена капусты б/к Марчелло F1, 1000 шт. (GD), Rijk Zwaan",650,null,0,"Фото","http://agroopt-market.ru/collection/belokachannaya/product/marchello-f1-semena-kapusty-belokachannoy-rijk-zwaan-rayk-tsvaan",147136817]
["Семена капусты б/к Марчелло F1, 2500 шт. (GD), Rijk Zwaan",1610,null,0,"Фото","http://agroopt-market.ru/collection/belokachannaya/product/marchello-f1-semena-kapusty-belokachannoy-rijk-zwaan-rayk-tsvaan",147136819]
["Семена капусты б/к Мегатон F1, 2500 шт. (калибр.), Bejo",2340,null,0,"Фото","http://agroopt-market.ru/collection/belokachannaya/product/megaton-f1-semena-kapusty-belokachannoy-bejo-beyo",147136826]
["Семена капусты б/к Менди F1, 2500 шт. (калибр.), Bejo",2340,null,0,"Фото","http://agroopt-market.ru/collection/belokachannaya/product/mendi-f1-semena-kapusty-belokachannoy-bejo-beyo",147136831]
["Семена капусты б/к Мензания F1, 2500 шт., Seminis",1678,null,0,"Фото","http://agroopt-market.ru/collection/belokachannaya/product/menzaniya-f1-semena-kapusty-belokachannoy-seminis-seminis",147136835]
["Семена капусты б/к Миррор F1, 2500 шт., Syngenta",1982,null,0,"Фото","http://agroopt-market.ru/collection/belokachannaya/product/mirror-f1-semena-kapusty-belokachannoy-syngenta-singenta",147136842]
["Семена капусты б/к Монализа F1, 2500 шт., Sakata",1700,null,0,"Фото","http://agroopt-market.ru/collection/belokachannaya/product/monaliza-f1-semena-kapusty-belokachannoy-sakata-sakata",147136845]
["Семена капусты б/к Муксума F1, 10 тыс. шт. (GD), Rijk Zwaan",7560,null,0,"Фото","http://agroopt-market.ru/collection/belokachannaya/product/muksuma-f1-semena-kapusty-belokachannoy-rijk-zwaan-rayk-tsvaan",147136855]
["Семена капусты б/к Муксума F1, 1000 шт. (GD), Rijk Zwaan",760,null,0,"Фото","http://agroopt-market.ru/collection/belokachannaya/product/muksuma-f1-semena-kapusty-belokachannoy-rijk-zwaan-rayk-tsvaan",147136851]
["Семена капусты б/к Муксума F1, 2500 шт. (GD), Rijk Zwaan",1890,null,0,"Фото","http://agroopt-market.ru/collection/belokachannaya/product/muksuma-f1-semena-kapusty-belokachannoy-rijk-zwaan-rayk-tsvaan",147136853]
["Семена капусты б/к Нахаленок F1, 2500 шт., Гавриш",1500,null,0,"Фото","http://agroopt-market.ru/collection/belokachannaya/product/semena-kapusty-belokachannoy-nahalenok-f1-gavrish",158070924]
["Семена капусты б/к Новатор F1, 2500 шт., Syngenta",1500,null,0,"Фото","http://agroopt-market.ru/collection/belokachannaya/product/novator-f1-semena-kapusty-belokachannoy-syngenta-singenta",147136860]
["Семена капусты б/к Нозоми F1, 2500 шт., Sakata",1850,null,0,"Фото","http://agroopt-market.ru/collection/belokachannaya/product/nozomi-f1-semena-kapusty-belokachannoy-sakata-sakata",147136864]
["Семена капусты б/к Ориема F1, 10 тыс. шт. (GD), Rijk Zwaan",6460,null,0,"Фото","http://agroopt-market.ru/collection/belokachannaya/product/oriema-f1-semena-kapusty-belokachannoy-rijk-zwaan-rayk-tsvaan",147136878]
["Семена капусты б/к Ориема F1, 1000 шт. (GD), Rijk Zwaan",650,null,0,"Фото","http://agroopt-market.ru/collection/belokachannaya/product/oriema-f1-semena-kapusty-belokachannoy-rijk-zwaan-rayk-tsvaan",147136874]
["Семена капусты б/к Ориема F1, 2500 шт. (GD), Rijk Zwaan",1610,null,0,"Фото","http://agroopt-market.ru/collection/belokachannaya/product/oriema-f1-semena-kapusty-belokachannoy-rijk-zwaan-rayk-tsvaan",147136876]
["Семена капусты б/к Ортус F1, 2500 шт., Takii",1760,null,0,"Фото","http://agroopt-market.ru/collection/belokachannaya/product/ortus-f1-semena-kapusty-belokachannoy-takii-taki",147136882]
["Семена капусты б/к Оутем квин F1, 2500 шт., Takii",1820,null,0,"Фото","http://agroopt-market.ru/collection/belokachannaya/product/outem-kvin-f1-semena-kapusty-belokachannoy-takii-taki",147136884]
["Семена капусты б/к Пандион F1, 2500 шт., Seminis",1603,null,0,"Фото","http://agroopt-market.ru/collection/belokachannaya/product/pandion-f1-semena-kapusty-belokachannoy-seminis-seminis",147136890]
["Семена капусты б/к Парадокс F1, 100 тыс. шт. (калибр.), Bejo",94320,null,0,"Фото","http://agroopt-market.ru/collection/belokachannaya/product/paradoks-f1-semena-kapusty-belokachannoy-bejo-beyo",147136894]
["Семена капусты б/к Парадокс F1, 2500 шт. (калибр.), Bejo",2530,null,0,"Фото","http://agroopt-market.ru/collection/belokachannaya/product/paradoks-f1-semena-kapusty-belokachannoy-bejo-beyo",147136896]
["Семена капусты б/к Парел F1, 2500 шт. (калибр.), Bejo",1860,null,0,"Фото","http://agroopt-market.ru/collection/belokachannaya/product/parel-f1-semena-kapusty-belokachannoy-bejo-beyo",147136900]
["Семена капусты б/к Пассат F1, 2500 шт. (калибр.), Bejo",2530,null,0,"Фото","http://agroopt-market.ru/collection/belokachannaya/product/passat-f1-semena-kapusty-belokachannoy-bejo-beyo",147136905]
["Семена капусты б/к Перфекта F1, 2500 шт. (калибр.), Bejo",2340,null,0,"Фото","http://agroopt-market.ru/collection/belokachannaya/product/perfekta-f1-semena-kapusty-belokachannoy-bejo-beyo",147136910]
["Семена капусты б/к Пластун F1, 2500 шт., Гавриш",1650,null,0,"Фото","http://agroopt-market.ru/collection/belokachannaya/product/semena-kapusty-belokachannoy-plastun-f1-gavrish",158070929]
["Семена капусты б/к Предеко F1, 2500 шт., Takii",1820,null,0,"Фото","http://agroopt-market.ru/collection/belokachannaya/product/predeko-f1-semena-kapusty-belokachannoy-takii-taki",147136914]
["Семена капусты б/к Престар F1, 2500 шт., Takii",1760,null,0,"Фото","http://agroopt-market.ru/collection/belokachannaya/product/prestar-f1-semena-kapusty-belokachannoy-takii-taki",147136917]
["Семена капусты б/к Пронка F1, 2500 шт., Takii",1820,null,0,"Фото","http://agroopt-market.ru/collection/belokachannaya/product/pronka-f1-semena-kapusty-belokachannoy-takii-taki",147136920]
["Семена капусты б/к Пруктор F1, 2500 шт., Syngenta","по запросу",null,null,"Фото","http://agroopt-market.ru/collection/saharnaya/product/bonus-f1-semena-kukuruzy-saharnoy-syngenta-singenta",148669788]
["Семена капусты б/к Радан F1, 2500 шт., Enza Zaden",1730,null,0,"Фото","http://agroopt-market.ru/collection/belokachannaya/product/radan-f1-semena-kapusty-belokachannoy-enza-zaden-enza-zaden",147136929]
["Семена капусты б/к Райма F1, 10 тыс. шт. (GD), Rijk Zwaan",7070,null,0,"Фото","http://agroopt-market.ru/collection/belokachannaya/product/rayma-f1-semena-kapusty-belokachannoy-rijk-zwaan-rayk-tsvaan",147136937]
["Семена капусты б/к Райма F1, 1000 шт. (GD), Rijk Zwaan",710,null,0,"Фото","http://agroopt-market.ru/collection/belokachannaya/product/rayma-f1-semena-kapusty-belokachannoy-rijk-zwaan-rayk-tsvaan",147136933]
["Семена капусты б/к Райма F1, 2500 шт. (GD), Rijk Zwaan",1770,null,{"$f":"B331*C331","v":0},"Фото","http://agroopt-market.ru/collection/belokachannaya/product/rayma-f1-semena-kapusty-belokachannoy-rijk-zwaan-rayk-tsvaan",147136935]
["Семена капусты б/к Рамада F1, 2500 шт. (калибр.), Bejo",1800,null,0,{"$f":"HYPERLINK(F332,\"Фото\")","v":"Фото"},"http://agroopt-market.ru/collection/belokachannaya/product/ramada-f1-semena-kapusty-belokachannoy-bejo-beyo",147136942]
["Семена капусты б/к Раменос F1, 2500 шт., Hazera",1775,null,0,"Фото","http://agroopt-market.ru/collection/belokachannaya/product/ramenos-f1-semena-kapusty-belokachannoy-hazera-hazera",147136946]
["Семена капусты б/к Рамко F1, 2500 шт., Syngenta",1871,null,0,"Фото","http://agroopt-market.ru/collection/belokachannaya/product/ramko-f1-semena-kapusty-belokachannoy-syngenta-singenta",147136951]
["Семена капусты б/к Реактор F1, 2500 шт., Syngenta",1761,null,0,"Фото","http://agroopt-market.ru/collection/belokachannaya/product/reaktor-f1-semena-kapusty-belokachannoy-syngenta-singenta",147136954]
["Семена капусты б/к Редженси F1, 1000 шт., Hazera",600,null,0,"Фото","http://agroopt-market.ru/collection/belokachannaya/product/redzhensi-f1-semena-kapusty-belokachannoy-hazera-hazera",147136956]
["Семена капусты б/к Редженси F1, 2500 шт., Hazera",2750,null,0,"Фото","http://agroopt-market.ru/collection/belokachannaya/product/redzhensi-f1-semena-kapusty-belokachannoy-hazera-hazera",147136957]
["Семена капусты б/к Ринда F1, 2500 шт., Seminis",1406,null,0,"Фото","http://agroopt-market.ru/collection/belokachannaya/product/rinda-f1-semena-kapusty-belokachannoy-seminis-seminis",147136960]
["Семена капусты б/к Риэкшен F1, 100 тыс. шт. (калибр.), Bejo",94320,null,0,"Фото","http://agroopt-market.ru/collection/belokachannaya/product/riekshen-f1-semena-kapusty-belokachannoy-bejo-beyo",147136962]
["Семена капусты б/к Риэкшен F1, 2500 шт. (калибр.), Bejo",2530,null,0,"Фото","http://agroopt-market.ru/collection/belokachannaya/product/riekshen-f1-semena-kapusty-belokachannoy-bejo-beyo",147136963]
["Семена капусты б/к Ройал Вонтаж F1, 2 500 шт, Sakata",1700,null,0,"Фото","-","ПРН"]
["Семена капусты б/к Роктор F1, 2500 шт., Syngenta",2036,null,0,"Фото","http://agroopt-market.ru/collection/belokachannaya/product/roktor-f1-semena-kapusty-belokachannoy-syngenta-singenta",147136966]
["Семена капусты б/к Саратога F1, 2500 шт. (калибр.), Bejo",2340,null,0,"Фото","http://agroopt-market.ru/collection/belokachannaya/product/saratoga-f1-semena-kapusty-belokachannoy-bejo-beyo",147136967]
["Семена капусты б/к Сателит F1, 2500 шт. (калибр.), Bejo",2340,null,0,"Фото","http://agroopt-market.ru/collection/belokachannaya/product/satelit-f1-semena-kapusty-belokachannoy-bejo-beyo",147136969]
["Семена капусты б/к Сати F1, 1000 шт., Hazera",710,null,0,"Фото","http://agroopt-market.ru/collection/belokachannaya/product/sati-f1-semena-kapusty-belokachannoy-hazera-hazera",147136971]
["Семена капусты б/к Сати F1, 2500 шт., Hazera",1775,null,0,"Фото","http://agroopt-market.ru/collection/belokachannaya/product/sati-f1-semena-kapusty-belokachannoy-hazera-hazera",147136972]
["Семена капусты б/к Северина F1, 10 гр, Hazera",1000,null,0,"Фото","http://agroopt-market.ru/collection/arbuz/product/semena-arbuza-dolbi-f1-nunhems-nyunems",158070890]
["Семена капусты б/к Секома F1, 10 тыс. шт. (GD), Rijk Zwaan",7560,null,0,"Фото","http://agroopt-market.ru/collection/belokachannaya/product/sekoma-f1-semena-kapusty-belokachannoy-rijk-zwaan-rayk-tsvaan",147136978]
["Семена капусты б/к Секома F1, 1000 шт. (GD), Rijk Zwaan",760,null,0,"Фото","http://agroopt-market.ru/collection/belokachannaya/product/sekoma-f1-semena-kapusty-belokachannoy-rijk-zwaan-rayk-tsvaan",147136976]
["Семена капусты б/к Секома F1, 2500 шт. (GD), Rijk Zwaan",1890,null,0,"Фото","http://agroopt-market.ru/collection/belokachannaya/product/sekoma-f1-semena-kapusty-belokachannoy-rijk-zwaan-rayk-tsvaan",147136977]
["Семена капусты б/к Сельма F1, 10 тыс. шт. (GD), Rijk Zwaan",6480,null,0,"Фото","http://agroopt-market.ru/collection/belokachannaya/product/selma-f1-semena-kapusty-belokachannoy-rijk-zwaan-rayk-tsvaan",147136982]
["Семена капусты б/к Сельма F1, 1000 шт. (GD), Rijk Zwaan",650,null,0,"Фото","http://agroopt-market.ru/collection/belokachannaya/product/selma-f1-semena-kapusty-belokachannoy-rijk-zwaan-rayk-tsvaan",147136980]
["Семена капусты б/к Сельма F1, 2500 шт. (GD), Rijk Zwaan",1620,null,0,"Фото","http://agroopt-market.ru/collection/belokachannaya/product/selma-f1-semena-kapusty-belokachannoy-rijk-zwaan-rayk-tsvaan",147136981]
["Семена капусты б/к Септима F1, 10 тыс. шт. (GD), Rijk Zwaan",7560,null,0,"Фото","http://agroopt-market.ru/collection/belokachannaya/product/septima-f1-semena-kapusty-belokachannoy-rijk-zwaan-rayk-tsvaan",147136986]
["Семена капусты б/к Септима F1, 1000 шт. (GD), Rijk Zwaan",760,null,0,"Фото","http://agroopt-market.ru/collection/belokachannaya/product/septima-f1-semena-kapusty-belokachannoy-rijk-zwaan-rayk-tsvaan",147136984]
["Семена капусты б/к Септима F1, 2500 шт. (GD), Rijk Zwaan",1890,null,0,"Фото","http://agroopt-market.ru/collection/belokachannaya/product/septima-f1-semena-kapusty-belokachannoy-rijk-zwaan-rayk-tsvaan",147136985]
["Семена капусты б/к Сесиль F1, 2500 шт. (калибр.), Bejo",2340,null,0,"Фото","http://agroopt-market.ru/collection/belokachannaya/product/sesil-f1-semena-kapusty-belokachannoy-bejo-beyo",147136988]
["Семена капусты б/к Синтекс F1, 2500 шт. (калибр.), Bejo",1990,null,0,"Фото","http://agroopt-market.ru/collection/belokachannaya/product/sinteks-f1-semena-kapusty-belokachannoy-bejo-beyo",147136989]
["Семена капусты б/к Сир F1, 2500 шт., Clause",1873,null,0,"Фото","http://agroopt-market.ru/collection/belokachannaya/product/sir-f1-semena-kapusty-belokachannoy-clause-klos",147136991]
["Семена капусты б/к Сократес F1, 2 500 шт, Syngenta",1324,null,0,"Фото","-","ПРН"]
["Семена капусты б/к Сонсма F1, 1000 шт. (NS), Rijk Zwaan",760,null,0,"Фото","http://agroopt-market.ru/collection/belokachannaya/product/sonsma-f1-semena-kapusty-belokachannoy-rijk-zwaan-rayk-tsvaan",147136992]
["Семена капусты б/к Сталкер F1, 2500 шт., Гавриш",1500,null,0,"Фото","http://agroopt-market.ru/collection/belokachannaya/product/semena-kapusty-belokachannoy-stalker-f1-gavrish",158070926]
["Семена капусты б/к Стинг F1, 2500 шт., Hazera",1775,null,0,"Фото","http://agroopt-market.ru/collection/belokachannaya/product/sting-f1-semena-kapusty-belokachannoy-hazera-hazera",147136996]
["Семена капусты б/к Сторема F1, 10 тыс. шт. (GD), Rijk Zwaan",7560,null,0,"Фото","http://agroopt-market.ru/collection/belokachannaya/product/storema-f1-semena-kapusty-belokachannoy-rijk-zwaan-rayk-tsvaan",147137000]
["Семена капусты б/к Сторема F1, 1000 шт. (GD), Rijk Zwaan",760,null,0,"Фото","http://agroopt-market.ru/collection/belokachannaya/product/storema-f1-semena-kapusty-belokachannoy-rijk-zwaan-rayk-tsvaan",147136998]
["Семена капусты б/к Сторема F1, 2500 шт. (GD), Rijk Zwaan",1890,null,0,"Фото","http://agroopt-market.ru/collection/belokachannaya/product/storema-f1-semena-kapusty-belokachannoy-rijk-zwaan-rayk-tsvaan",147136999]
["Семена капусты б/к Сторидор F1, 2500 шт., Syngenta",1982,null,0,"Фото","http://agroopt-market.ru/collection/belokachannaya/product/storidor-f1-semena-kapusty-belokachannoy-syngenta-singenta",147137002]
["Семена капусты б/к Сторка F1, 2500 шт., Takii",1870,null,0,"Фото","http://agroopt-market.ru/collection/belokachannaya/product/storka-f1-semena-kapusty-belokachannoy-takii-taki",147137003]
["Семена капусты б/к Структа F1, 2500 шт., Takii",1820,null,0,"Фото","http://agroopt-market.ru/collection/belokachannaya/product/strukta-f1-semena-kapusty-belokachannoy-takii-taki",147137005]
["Семена капусты б/к Структон F1, 2500 шт., Hazera",1775,null,0,"Фото","http://agroopt-market.ru/collection/belokachannaya/product/strukton-f1-semena-kapusty-belokachannoy-hazera-hazera",147137006]
["Семена капусты б/к Структура F1, 2 500 шт, Hazera",1775,null,0,"Фото","-","ПРН"]
["Семена капусты б/к Сунта F1, 2500 шт., Takii",1760,null,0,"Фото","http://agroopt-market.ru/collection/belokachannaya/product/sunta-f1-semena-kapusty-belokachannoy-takii-taki",147137008]
["Семена капусты б/к Суприм Вонтаж F1, 2 500 шт, Sakata",1700,null,0,"Фото","-","ПРН"]
["Семена капусты б/к Сюрприз F1, 2500 шт. (калибр.), Bejo",1860,null,0,"Фото","http://agroopt-market.ru/collection/belokachannaya/product/syurpriz-f1-semena-kapusty-belokachannoy-bejo-beyo",147137011]
["Семена капусты б/к Тагил F1, 2500 шт., Гавриш",1100,null,0,"Фото","http://agroopt-market.ru/collection/belokachannaya/product/semena-kapusty-belokachannoy-tagil-f1-gavrish",158070931]
["Семена капусты б/к Тайфун F1, 2500 шт. (калибр.), Bejo",2530,null,0,"Фото","http://agroopt-market.ru/collection/belokachannaya/product/tayfun-f1-semena-kapusty-belokachannoy-bejo-beyo",147137013]
["Семена капусты б/к Такома F1, 10 тыс. шт., Rijk Zwaan",7560,null,0,"Фото","http://agroopt-market.ru/collection/belokachannaya/product/semena-kapusty-belokachannoy-takoma-f1-rijk-zwaan-rayk-tsvaan",158070811]
["Семена капусты б/к Такома F1, 10 тыс. шт., Rijk Zwaan",7560,null,0,"Фото","http://agroopt-market.ru/collection/belokachannaya/product/takoma-f1-semena-kapusty-belokachannoy-rijk-zwaan-rayk-tsvaan",158102588]
["Семена капусты б/к Такома F1, 1000 шт., Rijk Zwaan",760,null,0,"Фото","http://agroopt-market.ru/collection/belokachannaya/product/takoma-f1-semena-kapusty-belokachannoy-rijk-zwaan-rayk-tsvaan",147137015]
["Семена капусты б/к Такома F1, 2500 шт., Rijk Zwaan",1890,null,0,"Фото","http://agroopt-market.ru/collection/belokachannaya/product/semena-kapusty-belokachannoy-takoma-f1-rijk-zwaan-rayk-tsvaan",158070810]
["Семена капусты б/к Такома F1, 2500 шт., Rijk Zwaan",1890,null,0,"Фото","http://agroopt-market.ru/collection/belokachannaya/product/takoma-f1-semena-kapusty-belokachannoy-rijk-zwaan-rayk-tsvaan",158102534]
["Семена капусты б/к Таурус F1, 2500 шт., Hazera",1775,null,0,"Фото","http://agroopt-market.ru/collection/belokachannaya/product/taurus-f1-semena-kapusty-belokachannoy-hazera-hazera",147137016]
["Семена капусты б/к Тафма F1, 10 тыс. шт. (GD), Rijk Zwaan",6460,null,0,"Фото","http://agroopt-market.ru/collection/belokachannaya/product/tafma-f1-semena-kapusty-belokachannoy-rijk-zwaan-rayk-tsvaan",147137020]
["Семена капусты б/к Тафма F1, 1000 шт. (GD), Rijk Zwaan",650,null,0,"Фото","http://agroopt-market.ru/collection/belokachannaya/product/tafma-f1-semena-kapusty-belokachannoy-rijk-zwaan-rayk-tsvaan",147137018]
["Семена капусты б/к Тафма F1, 2500 шт. (GD), Rijk Zwaan",1610,null,0,"Фото","http://agroopt-market.ru/collection/belokachannaya/product/tafma-f1-semena-kapusty-belokachannoy-rijk-zwaan-rayk-tsvaan",147137019]
["Семена капусты б/к Текила F1, 2500 шт., Syngenta",2626,null,0,"Фото","http://agroopt-market.ru/collection/belokachannaya/product/tekila-f1-syngenta-semena-kapusty-belokachannoy-syngenta-singenta",147137022]
["Семена капусты б/к Тенесити F1, 2500 шт., Sakata",1750,null,0,"Фото","http://agroopt-market.ru/collection/belokachannaya/product/tenesiti-f1-semena-kapusty-belokachannoy-sakata-sakata",147137024]
["Семена капусты б/к Тиара F1, 2500 шт. (калибр.), Bejo",1860,null,0,"Фото","http://agroopt-market.ru/collection/belokachannaya/product/tiara-f1-semena-kapusty-belokachannoy-bejo-beyo",147137025]
["Семена капусты б/к Тобия F1, 2500 шт., Seminis",1678,null,0,"Фото","http://agroopt-market.ru/collection/belokachannaya/product/tobiya-f1-semena-kapusty-belokachannoy-seminis-seminis",147137027]
["Семена капусты б/к Томас F1, 2500 шт. (калибр.), Bejo",1800,null,0,"Фото","http://agroopt-market.ru/collection/belokachannaya/product/tomas-f1-semena-kapusty-belokachannoy-bejo-beyo",147137029]
["Семена капусты б/к Топма F1, 10 тыс. шт., Rijk Zwaan",7560,null,0,"Фото","http://agroopt-market.ru/collection/belokachannaya/product/semena-kapusty-belokachannoy-topma-f1-rijk-zwaan-rayk-tsvaan",158070814]
["Семена капусты б/к Топма F1, 1000 шт., Rijk Zwaan",760,null,0,"Фото","http://agroopt-market.ru/collection/belokachannaya/product/semena-kapusty-belokachannoy-topma-f1-rijk-zwaan-rayk-tsvaan",158070812]
["Семена капусты б/к Топма F1, 2500 шт., Rijk Zwaan",1890,null,0,"Фото","http://agroopt-market.ru/collection/belokachannaya/product/semena-kapusty-belokachannoy-topma-f1-rijk-zwaan-rayk-tsvaan",158070813]
["Семена капусты б/к Тош F1, 2500 шт., Гавриш",1650,null,0,"Фото","http://agroopt-market.ru/collection/belokachannaya/product/semena-kapusty-belokachannoy-tosh-f1-gavrish",158070930]
["Семена капусты б/к Транзам F1, 2500 шт. (калибр.), Bejo",2340,null,{"$f":"B395*C395","v":0},"Фото","http://agroopt-market.ru/collection/belokachannaya/product/tranzam-f1-semena-kapusty-belokachannoy-bejo-beyo",147137030]
["Семена капусты б/к Триперио F1, 2500 шт., Syngenta",1817,null,0,{"$f":"HYPERLINK(F396,\"Фото\")","v":"Фото"},"http://agroopt-market.ru/collection/belokachannaya/product/triperio-f1-semena-kapusty-belokachannoy-syngenta-singenta",147137032]
["Семена капусты б/к Файтер F1, 2500 шт., Sakata",1850,null,0,"Фото","http://agroopt-market.ru/collection/belokachannaya/product/fayter-f1-semena-kapusty-belokachannoy-sakata-sakata",147137034]
["Семена капусты б/к Фарао F1, 2500 шт. (калибр.), Bejo",1860,null,0,"Фото","http://agroopt-market.ru/collection/belokachannaya/product/farao-f1-semena-kapusty-belokachannoy-bejo-beyo",147137035]
["Семена капусты б/к Флексима F1, 10 тыс. шт. (GD), Rijk Zwaan",7560,null,0,"Фото","http://agroopt-market.ru/collection/belokachannaya/product/fleksima-f1-semena-kapusty-belokachannoy-rijk-zwaan-rayk-tsvaan",147137039]
["Семена капусты б/к Флексима F1, 1000 шт. (GD), Rijk Zwaan",760,null,0,"Фото","http://agroopt-market.ru/collection/belokachannaya/product/fleksima-f1-semena-kapusty-belokachannoy-rijk-zwaan-rayk-tsvaan",147137037]
["Семена капусты б/к Флексима F1, 2500 шт. (GD), Rijk Zwaan",1890,null,0,"Фото","http://agroopt-market.ru/collection/belokachannaya/product/fleksima-f1-semena-kapusty-belokachannoy-rijk-zwaan-rayk-tsvaan",147137038]
["Семена капусты б/к Форсаж F1, 2500 шт., Гавриш",1500,null,0,"Фото","http://agroopt-market.ru/collection/belokachannaya/product/semena-kapusty-belokachannoy-forsazh-f1-gavrish",158070925]
["Семена капусты б/к Фреско F1, 2500 шт. (калибр.), Bejo",1860,null,0,"Фото","http://agroopt-market.ru/collection/belokachannaya/product/fresko-f1-semena-kapusty-belokachannoy-bejo-beyo",147137041]
["Семена капусты б/к Фундакси F1, 2500 шт., Seminis",1804,null,0,"Фото","http://agroopt-market.ru/collection/belokachannaya/product/fundaksi-f1-semena-kapusty-belokachannoy-seminis-seminis",147137042]
["Семена капусты б/к Фьюрис F1, 2500 шт., Seminis",1773,null,0,"Фото","http://agroopt-market.ru/collection/belokachannaya/product/fyuris-f1-semena-kapusty-belokachannoy-seminis-seminis",147137044]
["Семена капусты б/к Харрикейн F1, 100 тыс. шт. (калибр.), Bejo",9280,null,0,"Фото","http://agroopt-market.ru/collection/belokachannaya/product/harrikeyn-f1-semena-kapusty-belokachannoy-bejo-beyo",147137046]
["Семена капусты б/к Харрикейн F1, 2500 шт. (калибр.), Bejo",2400,null,0,"Фото","http://agroopt-market.ru/collection/belokachannaya/product/harrikeyn-f1-semena-kapusty-belokachannoy-bejo-beyo",147137047]
["Семена капусты б/к Хинова F1, 2500 шт. (калибр.), Bejo",2340,null,0,"Фото","http://agroopt-market.ru/collection/belokachannaya/product/hinova-f1-semena-kapusty-belokachannoy-bejo-beyo",147137049]
["Семена капусты б/к Хипо F1, 2500 шт., Sakata",1750,null,0,"Фото","http://agroopt-market.ru/collection/belokachannaya/product/hipo-f1-semena-kapusty-belokachannoy-sakata-sakata",147137050]
["Семена капусты б/к Центурион F1, 2500 шт., Clause",1951,null,0,"Фото","http://agroopt-market.ru/collection/belokachannaya/product/tsenturion-f1-semena-kapusty-belokachannoy-clause-klos",147137052]
["Семена капусты б/к Церокс F1, 2500 шт. (калибр.), Bejo",1990,null,0,"Фото","http://agroopt-market.ru/collection/belokachannaya/product/tseroks-f1-semena-kapusty-belokachannoy-bejo-beyo",147137054]
["Семена капусты б/к Циклон F1, 100 тыс. шт. (калибр.), Bejo",9280,null,0,"Фото","http://agroopt-market.ru/collection/belokachannaya/product/tsiklon-f1-semena-kapusty-belokachannoy-bejo-beyo",147137056]
["Семена капусты б/к Циклон F1, 2500 шт. (калибр.), Bejo",2400,null,0,"Фото","http://agroopt-market.ru/collection/belokachannaya/product/tsiklon-f1-semena-kapusty-belokachannoy-bejo-beyo",147137057]
["Семена капусты б/к Циклоп F1, 2500 шт., Sakata",1850,null,0,"Фото","http://agroopt-market.ru/collection/belokachannaya/product/tsiklop-f1-semena-kapusty-belokachannoy-sakata-sakata",147137058]
["Семена капусты б/к Циркон F1, 2500 шт. (калибр.), Bejo",2530,null,0,"Фото","http://agroopt-market.ru/collection/belokachannaya/product/tsirkon-f1-semena-kapusty-belokachannoy-bejo-beyo",147137060]
["Семена капусты б/к Чамп F1, 2500 шт., Seminis",1603,null,0,"Фото","http://agroopt-market.ru/collection/belokachannaya/product/champ-f1-semena-kapusty-belokachannoy-seminis-seminis",147137062]
["Семена капусты б/к Чекмейт F1, 2500 шт. (калибр.), Bejo",1960,null,0,"Фото","http://agroopt-market.ru/collection/belokachannaya/product/chekmeyt-f1-semena-kapusty-belokachannoy-bejo-beyo",147137063]
["Семена капусты б/к Чиз F1, 2500 шт., Clause",1899,null,0,"Фото","http://agroopt-market.ru/collection/belokachannaya/product/chiz-f1-semena-kapusty-belokachannoy-clause-klos",147137065]
["Семена капусты б/к Чирс F1, 1 000 шт, TAKII",800,null,0,"Фото","-","ПРН"]
["Семена капусты б/к Чирс F1, 2500 шт., Takii",1820,null,0,"Фото","http://agroopt-market.ru/collection/belokachannaya/product/chirs-f1-semena-kapusty-belokachannoy-takii-taki",147137067]
["Семена капусты б/к Шармант F1, 2500 шт., Sakata",1700,null,0,"Фото","http://agroopt-market.ru/collection/belokachannaya/product/sharmant-f1-semena-kapusty-belokachannoy-sakata-sakata",147137070]
["Семена капусты б/к Экскалибур F1, 2500 шт. (калибр.), Bejo",1400,null,0,"Фото","http://agroopt-market.ru/collection/belokachannaya/product/ekskalibur-f1-semena-kapusty-belokachannoy-bejo-beyo",147137072]
["Семена капусты б/к Экспект F1, 2500 шт. (калибр.), Bejo",2530,null,0,"Фото","http://agroopt-market.ru/collection/belokachannaya/product/ekspekt-f1-semena-kapusty-belokachannoy-bejo-beyo",147137073]
["Семена капусты б/к Эластор F1, 2500 шт., Syngenta",1500,null,0,"Фото","http://agroopt-market.ru/collection/belokachannaya/product/elastor-f1-semena-kapusty-belokachannoy-syngenta-singenta",147137075]
["Семена капусты б/к Элиза F1, 2 500 шт, Sakata",1730,null,0,"Фото","-","ПРН"]
["Семена капусты б/к Элиза F1,прец, 2 500 шт, Sakata",1980,null,0,"Фото","-","ПРН"]
["Семена капусты б/к Эмили F1, 2500 шт., Hazera",1775,null,0,"Фото","http://agroopt-market.ru/collection/belokachannaya/product/emili-f1-semena-kapusty-belokachannoy-hazera-hazera",147137077]
["Семена капусты б/к Эрдено F1, 2500 шт., Syngenta",1706,null,0,"Фото","http://agroopt-market.ru/collection/belokachannaya/product/erdeno-f1-semena-kapusty-belokachannoy-syngenta-singenta",147137078]
["Семена капусты б/к Юбилей F1, 2500 шт. (калибр.), Bejo",2530,null,0,"Фото","http://agroopt-market.ru/collection/belokachannaya/product/yubiley-f1-semena-kapusty-belokachannoy-bejo-beyo",147137080]
["Семена капусты б/к Юниор F1, 2500 шт., Syngenta",1817,null,0,"Фото","http://agroopt-market.ru/collection/belokachannaya/product/yunior-f1-semena-kapusty-belokachannoy-syngenta-singenta",147137081]
["Семена капусты б/к Фактор F1, 2 500 шт, Syngenta",1871,null,0,"Фото","-","ПРН"]
["Капуста брокколи","@",null,"@","@"]
["Семена капусты брокколи Агасси F1, 1000 шт. (PR), Rijk Zwaan",610,null,0,"Фото","http://agroopt-market.ru/collection/brokkoli/product/agassi-f1-semena-brokkoli-rijk-zwaan-rayk-tsvaan",147137083]
["Семена капусты брокколи Айронмен F1, 1000 шт., Seminis",1141,null,0,"Фото","http://agroopt-market.ru/collection/brokkoli/product/ayronmen-f1-semena-brokkoli-seminis-seminis",147137084]
["Семена капусты брокколи Атлантис F1, 2500 шт., Takii",1950,null,0,"Фото","http://agroopt-market.ru/collection/brokkoli/product/atlantis-f1-semena-brokkoli-takii-taki",147137086]
["Семена капусты брокколи Батавия F1, 2500 шт., Bejo",1450,null,0,"Фото","http://agroopt-market.ru/collection/brokkoli/product/bataviya-f1-semena-brokkoli-bejo-beyo",147137087]
["Семена капусты брокколи Белстар F1, 2500 шт., Bejo",1420,null,0,"Фото","http://agroopt-market.ru/collection/brokkoli/product/belstar-f1-semena-brokkoli-bejo-beyo",147137089]
["Семена капусты брокколи Бомонт F1, 2500 шт., Bejo",1450,null,0,"Фото","http://agroopt-market.ru/collection/brokkoli/product/bomont-f1-semena-brokkoli-bejo-beyo",147137090]
["Семена капусты брокколи Гераклион F1, 1000 шт., Sakata",1200,null,0,"Фото","http://agroopt-market.ru/collection/brokkoli/product/geraklion-f1-semena-brokkoli-sakata-sakata",147198992]
["Семена капусты брокколи Гераклион F1, 2500 шт., Sakata",3000,null,0,"Фото","http://agroopt-market.ru/collection/brokkoli/product/geraklion-f1-semena-brokkoli-sakata-sakata",147137092]
["Семена капусты брокколи Грин Мэджик F1, 2500 шт., Sakata",2500,null,0,"Фото","http://agroopt-market.ru/collection/brokkoli/product/grin-medzhik-f1-semena-brokkoli-sakata-sakata",147137094]
["Семена капусты брокколи Квинта F1, 2500 шт., Takii",1950,null,0,"Фото","http://agroopt-market.ru/collection/brokkoli/product/kvinta-f1-semena-brokkoli-takii-taki",147137096]
["Семена капусты брокколи Корато F1, 2500 шт., Enza Zaden",1650,null,0,"Фото","http://agroopt-market.ru/collection/brokkoli/product/korato-f1-semena-brokkoli-enza-zaden-enza-zaden",147137097]
["Семена капусты брокколи Лаки F1, 2500 шт., Bejo",1450,null,0,"Фото","http://agroopt-market.ru/collection/brokkoli/product/laki-f1-semena-brokkoli-bejo-beyo",147137099]
["Семена капусты брокколи Лорд F1, 1000 шт., Seminis",799,null,0,"Фото","http://agroopt-market.ru/collection/brokkoli/product/lord-f1-semena-brokkoli-seminis-seminis",147137101]
["Семена капусты брокколи Маратон F1, 2500 шт., Sakata",2500,null,0,"Фото","http://agroopt-market.ru/collection/brokkoli/product/maraton-f1-semena-brokkoli-sakata-sakata",147137102]
["Семена капусты брокколи Монако F1, 2500 шт., Syngenta",1150.5,null,0,"Фото","http://agroopt-market.ru/collection/brokkoli/product/monako-f1-semena-brokkoli-syngenta-singenta",147137104]
["Семена капусты брокколи Монтоп F1, 2500 шт., Syngenta","по запросу",null,null,"Фото","http://agroopt-market.ru/collection/saharnaya/product/boston-f1-semena-kukuruzy-saharnoy-syngenta-singenta",148669794]
["Семена капусты брокколи Наксос F1, 2 500 шт, Sakata",3500,null,0,"Фото","-","ПРН"]
["Семена капусты брокколи Орантес F1, 1000 шт., Rijk Zwaan",620,null,0,"Фото","http://agroopt-market.ru/collection/brokkoli/product/orantes-f1-semena-brokkoli-rijk-zwaan-rayk-tsvaan",147137111]
["Семена капусты брокколи Партенон F1, 2500 шт., Sakata",3000,null,0,"Фото","http://agroopt-market.ru/collection/brokkoli/product/partenon-f1-semena-brokkoli-sakata-sakata",147137113]
["Семена капусты брокколи Самсон F1, 2500 шт., Sakata",3000,null,0,"Фото","http://agroopt-market.ru/collection/brokkoli/product/samson-f1-semena-brokkoli-sakata-sakata",147137114]
["Семена капусты брокколи Серфинг F1, 1000 шт., Гавриш",650,null,0,"Фото","http://agroopt-market.ru/collection/brokkoli/product/semena-kapusty-brokkoli-serfing-f1-gavrish",158070935]
["Семена капусты брокколи Спиридон F1, 2500 шт., Sakata",3000,null,0,"Фото","http://agroopt-market.ru/collection/brokkoli/product/spiridon-f1-semena-brokkoli-sakata-sakata",147137116]
["Семена капусты брокколи Тандер дом F1, 2500 шт., Takii",1950,null,0,"Фото","http://agroopt-market.ru/collection/brokkoli/product/tander-dom-f1-semena-brokkoli-takii-taki",147137117]
["Семена капусты брокколи Тритон F1, 2 500 шт, Sakata",3000,null,0,"Фото","-","ПРН"]
["Семена капусты брокколи Фарос F1, 2 500 шт, Sakata",3000,null,0,"Фото","-","ПРН"]
["Семена капусты брокколи Фиеста F1, 2500 шт., Bejo",1420,null,0,"Фото","http://agroopt-market.ru/collection/brokkoli/product/fiesta-f1-semena-brokkoli-bejo-beyo",147137119]
["Семена капусты брокколи Хронос F1, 2 500 шт, Sakata",3000,null,0,"Фото","-","ПРН"]
["Капуста брюссельская","@",null,"@","@"]
["Семена капусты брюссельской Бриллиант F1, 2500 шт. (2,0-2,25), Hazera",4850,null,{"$f":"B461*C461","v":0},"Фото","http://agroopt-market.ru/collection/bryusselskaya/product/brilliant-f1-semena-bryusselskoy-kapusty-hazera-hazera",147137121]
["Семена капусты брюссельской Диабло F1, 2500 шт. (прециз.), Bejo",5490,null,0,{"$f":"HYPERLINK(F462,\"Фото\")","v":"Фото"},"http://agroopt-market.ru/collection/bryusselskaya/product/diablo-f1-semena-bryusselskoy-kapusty-bejo-beyo",147137123]
["Семена капусты брюссельской Франклин F1, 2500 шт. (прециз.), Bejo",5490,null,0,"Фото","http://agroopt-market.ru/collection/bryusselskaya/product/franklin-f1-semena-bryusselskoy-kapusty-bejo-beyo",147137125]
["Капуста краснокочанная","@",null,"@","@"]
["Семена капусты к/к Варна, 2500 шт., Sakata",2000,null,0,"Фото","http://agroopt-market.ru/collection/krasnokochannaya/product/varna-f1-semena-kapusty-kranokachannoy-sakata-sakata",147137140]
["Семена капусты к/к Климаро F1, 2500 шт. (прециз.), Bejo",3120,null,0,"Фото","http://agroopt-market.ru/collection/krasnokochannaya/product/klimaro-f1-semena-kapusty-kranokachannoy-bejo-beyo",147137142]
["Семена капусты к/к Лектро F1, 2500 шт. (прециз.), Bejo",3010,null,0,"Фото","http://agroopt-market.ru/collection/krasnokochannaya/product/lektro-f1-semena-kapusty-kranokachannoy-bejo-beyo",147137144]
["Семена капусты к/к Претино F1, 2500 шт., Takii",1950,null,0,"Фото","http://agroopt-market.ru/collection/krasnokochannaya/product/pretino-f1-semena-kapusty-kranokachannoy-takii-taki",147137145]
["Семена капусты к/к Примеро F1, 2500 шт. (прециз.), Bejo",3060,null,0,"Фото","http://agroopt-market.ru/collection/krasnokochannaya/product/primero-f1-semena-kapusty-kranokachannoy-bejo-beyo",147137147]
["Семена капусты к/к Ранчеро F1, 2500 шт. (прециз.), Bejo",3060,null,0,"Фото","http://agroopt-market.ru/collection/krasnokochannaya/product/ranchero-f1-semena-kapusty-kranokachannoy-bejo-beyo",147137148]
["Семена капусты к/к Регилиус F1, 2500 шт., Syngenta",1770,null,0,"Фото","http://agroopt-market.ru/collection/krasnokochannaya/product/regilius-f1-semena-kapusty-kranokachannoy-syngenta-singenta",147137151]
["Семена капусты к/к Ред Династи F1, 2500 шт., Seminis",1872,null,0,"Фото","http://agroopt-market.ru/collection/krasnokochannaya/product/red-dinasti-f1-semena-kapusty-kranokachannoy-seminis-seminis",147137152]
["Семена капусты к/к Редма F1, 1000 шт. (NS), Rijk Zwaan",760,null,0,"Фото","http://agroopt-market.ru/collection/krasnokochannaya/product/redma-rz-f1-semena-kapusty-kranokachannoy-rijk-zwaan-rayk-tsvaan",147137153]
["Семена капусты к/к Редма F1, 2500 шт. (NS), Rijk Zwaan",1910,null,0,"Фото","http://agroopt-market.ru/collection/krasnokochannaya/product/redma-rz-f1-semena-kapusty-kranokachannoy-rijk-zwaan-rayk-tsvaan",147137154]
["Семена капусты к/к Рексома F1, 1000 шт., Rijk Zwaan",760,null,0,"Фото","http://agroopt-market.ru/collection/krasnokochannaya/product/reksoma-f1-semena-kapusty-kranokachannoy-rijk-zwaan-rayk-tsvaan",147137156]
["Семена капусты к/к Ресима F1, 1000 шт. (NS), Rijk Zwaan",760,null,0,"Фото","http://agroopt-market.ru/collection/krasnokochannaya/product/resima-f1-semena-kapusty-kranokachannoy-rijk-zwaan-rayk-tsvaan",147137158]
["Семена капусты к/к Ресима F1, 2500 шт. (NS), Rijk Zwaan",1910,null,0,"Фото","http://agroopt-market.ru/collection/krasnokochannaya/product/resima-f1-semena-kapusty-kranokachannoy-rijk-zwaan-rayk-tsvaan",147137159]
["Семена капусты к/к Родима F1, 1000 шт. (NS), Rijk Zwaan",760,null,0,"Фото","http://agroopt-market.ru/collection/krasnokochannaya/product/rodima-f1-semena-kapusty-kranokachannoy-rijk-zwaan-rayk-tsvaan",147137161]
["Семена капусты к/к Родима F1, 2500 шт. (NS), Rijk Zwaan",1910,null,0,"Фото","http://agroopt-market.ru/collection/krasnokochannaya/product/rodima-f1-semena-kapusty-kranokachannoy-rijk-zwaan-rayk-tsvaan",147137162]
["Семена капусты к/к Рококо F1, 2500 шт., Hazera",2490,null,0,"Фото","http://agroopt-market.ru/collection/krasnokochannaya/product/rokoko-f1-semena-kapusty-kranokachannoy-hazera-hazera",147137163]
["Семена капусты к/к Рокси F1, 2500 шт., Seminis",1811,null,0,"Фото","http://agroopt-market.ru/collection/krasnokochannaya/product/roksi-f1-semena-kapusty-kranokachannoy-seminis-seminis",147137165]
["Семена капусты к/к Романов F1, 2500 шт., Hazera",2490,null,0,"Фото","http://agroopt-market.ru/collection/krasnokochannaya/product/romanov-f1-semena-kapusty-kranokachannoy-hazera-hazera",147137166]
["Семена капусты к/к Рондал F1, 2500 шт., Hazera",2490,null,0,"Фото","http://agroopt-market.ru/collection/krasnokochannaya/product/rondal-f1-semena-kapusty-kranokachannoy-hazera-hazera",147137168]
["Семена капусты к/к Руби Перфекшн F1, 2500 шт., Takii",1950,null,0,"Фото","http://agroopt-market.ru/collection/krasnokochannaya/product/rubi-perfekshn-f1-semena-kapusty-kranokachannoy-takii-taki",147137169]
["Семена капусты к/к Рэд Джевел F1, 2500 шт., Sakata",1800,null,0,"Фото","http://agroopt-market.ru/collection/krasnokochannaya/product/red-dzhevel-f1-semena-kapusty-kranokachannoy-sakata-sakata",147137171]
["Кольраби","@",null,"@","@"]
["Семена капусты кольраби Едер F1, 1000 шт. (NS), Rijk Zwaan",790,null,0,"Фото","http://agroopt-market.ru/collection/kolrabi/product/eder-rz-f1-semena-kapusty-kolrabi-rijk-zwaan-rayk-tsvaan",147137126]
["Семена капусты кольраби Колибри F1, 2500 шт. (прециз.), Bejo",2950,null,0,"Фото","http://agroopt-market.ru/collection/kolrabi/product/kolibri-f1-semena-kapusty-kolrabi-bejo-beyo",147137128]
["Семена капусты кольраби Корист F1, 2500 шт. (прециз.), Bejo",2920,null,0,"Фото","http://agroopt-market.ru/collection/kolrabi/product/korist-f1-semena-kapusty-kolrabi-bejo-beyo",147137130]
["Семена капусты кольраби Коссак F1, 2500 шт. (прециз.), Bejo",299,null,0,"Фото","http://agroopt-market.ru/collection/kolrabi/product/kossak-f1-semena-kapusty-kolrabi-bejo-beyo",147137131]
["Семена капусты кольраби Оазис F1, 2500 шт., Enza Zaden",2875,null,0,"Фото","http://agroopt-market.ru/collection/kolrabi/product/oazis-f1-semena-kapusty-kolrabi-enza-zaden-enza-zaden",147137133]
["Семена капусты кольраби Октаве F1, 2500 шт., Enza Zaden",2875,null,0,"Фото","http://agroopt-market.ru/collection/kolrabi/product/oktave-f1-semena-kapusty-kolrabi-enza-zaden-enza-zaden",147137135]
["Семена капусты кольраби Опус F1, 2500 шт., Enza Zaden",2875,null,0,"Фото","http://agroopt-market.ru/collection/kolrabi/product/opus-f1-semena-kapusty-kolrabi-enza-zaden-enza-zaden",147137137]
["Семена капусты кольраби Терек F1, 1000 шт. (NS), Rijk Zwaan",790,null,0,"Фото","http://agroopt-market.ru/collection/kolrabi/product/terek-f1-semena-kapusty-kolrabi-rijk-zwaan-rayk-tsvaan",147137139]
["Капуста листовая","@",null,"@","@"]
["Семена капусты листовой Редбор F1, 2500 шт. (прециз.), Bejo",3820,null,0,"Фото","http://agroopt-market.ru/collection/listovaya/product/redbor-f1-semena-kapusty-listovoy-bejo-beyo",147137174]
["Семена капусты листовой Рефлекс F1, 2500 шт. (прециз.), Bejo",3090,null,0,"Фото","http://agroopt-market.ru/collection/listovaya/product/refleks-f1-semena-kapusty-listovoy-bejo-beyo",147137176]
["Капуста пекинская","@",null,"@","@"]
["Семена капусты пекинской Айкидо F1, 1000 шт., Гавриш",410,null,0,"Фото","http://agroopt-market.ru/collection/pekinskaya/product/semena-kapusty-pekinskoy-aykido-f1-gavrish",158070936]
["Семена капусты пекинской Билко F1, 2500 шт. (прециз.), Bejo",1500,null,0,"Фото","http://agroopt-market.ru/collection/pekinskaya/product/bilko-f1-semena-pekinskoy-kapusty-bejo-beyo",147137177]
["Семена капусты пекинской Витимо F1, 2500 шт., Hazera",1500,null,0,"Фото","http://agroopt-market.ru/collection/pekinskaya/product/vitimo-f1-semena-pekinskoy-kapusty-hazera-hazera",147137179]
["Семена капусты пекинской Кисеки F1, 1000 шт., Sakata",800,null,0,"Фото","http://agroopt-market.ru/collection/pekinskaya/product/kiseki-f1-semena-pekinskoy-kapusty-sakata-sakata",147137180]
["Семена капусты пекинской Кьюстар F1, 2500 шт., Takii",1540,null,0,"Фото","http://agroopt-market.ru/collection/pekinskaya/product/kyustar-f1-semena-pekinskoy-kapusty-takii-taki",147137182]
["Семена капусты пекинской Маноко F1, 2500 шт. (прециз.), Bejo",1360,null,0,"Фото","http://agroopt-market.ru/collection/pekinskaya/product/manoko-f1-semena-pekinskoy-kapusty-bejo-beyo",147137184]
["Семена капусты пекинской Мирако F1, 2500 шт. (прециз.), Bejo",1500,null,0,"Фото","http://agroopt-market.ru/collection/pekinskaya/product/mirako-f1-semena-pekinskoy-kapusty-bejo-beyo",147137186]
["Семена капусты пекинской Мичико F1, 2500 шт., Hazera",1500,null,0,"Фото","http://agroopt-market.ru/collection/pekinskaya/product/michiko-f1-semena-pekinskoy-kapusty-hazera-hazera",147137188]
["Семена капусты пекинской Морило Сторидо, 1000 шт., Hazera",700,null,0,"Фото","http://agroopt-market.ru/collection/pekinskaya/product/morilo-storido-semena-pekinskoy-kapusty-hazera-hazera",147137189]
["Семена капусты пекинской Натсуки F1, 1000 шт., Sakata",850,null,0,"Фото","http://agroopt-market.ru/collection/pekinskaya/product/natsuki-f1-semena-pekinskoy-kapusty-sakata-sakata",147137191]
["Семена капусты пекинской Ориент сюрпрайз F1, 2500 шт., Takii",1540,null,0,"Фото","http://agroopt-market.ru/collection/pekinskaya/product/orient-syurprayz-f1-semena-pekinskoy-kapusty-takii-taki",147137192]
["Семена капусты пекинской Пасифико F1, 2500 шт. (прециз.), Bejo",1560,null,0,"Фото","http://agroopt-market.ru/collection/pekinskaya/product/pasifiko-f1-semena-pekinskoy-kapusty-bejo-beyo",147137194]
["Семена капусты пекинской Предуро F1, 2500 шт., Takii",1540,null,0,"Фото","http://agroopt-market.ru/collection/pekinskaya/product/preduro-f1-semena-pekinskoy-kapusty-takii-taki",147137195]
["Семена капусты пекинской Ричи F1, 1000 шт., Sakata",650,null,0,"Фото","http://agroopt-market.ru/collection/pekinskaya/product/richi-f1-semena-pekinskoy-kapusty-sakata-sakata",147137197]
["Семена капусты пекинской Спринкин F1, 2500 шт., Syngenta",1441,null,0,"Фото","http://agroopt-market.ru/collection/pekinskaya/product/sprinkin-f1-semena-pekinskoy-kapusty-syngenta-singenta",147137208]
["Семена капусты пекинской Суприн F1, 2500 шт., Syngenta",1321,null,0,"Фото","http://agroopt-market.ru/collection/pekinskaya/product/suprin-f1-semena-pekinskoy-kapusty-syngenta-singenta",147137210]
["Семена капусты пекинской Табалуга F1, 1000 шт., Sakata",650,null,0,"Фото","http://agroopt-market.ru/collection/pekinskaya/product/tabaluga-f1-semena-pekinskoy-kapusty-sakata-sakata",147137198]
["Семена капусты пекинской Таранко F1, 2500 шт. (прециз.), Bejo",1360,null,0,"Фото","http://agroopt-market.ru/collection/pekinskaya/product/taranko-f1-semena-pekinskoy-kapusty-bejo-beyo",147137200]
["Семена капусты пекинской Эмико F1, 2500 шт. (прециз.), Bejo",1500,null,0,"Фото","http://agroopt-market.ru/collection/pekinskaya/product/emiko-f1-semena-pekinskoy-kapusty-bejo-beyo",147137202]
["Семена капусты пекинской Эндуро F1, 2500 шт., Takii",1540,null,0,"Фото","http://agroopt-market.ru/collection/pekinskaya/product/enduro-f1-semena-pekinskoy-kapusty-takii-taki",147137204]
["Семена капусты пекинской Юки F1, 1000 шт., Sakata",650,null,0,"Фото","http://agroopt-market.ru/collection/pekinskaya/product/yuki-f1-semena-pekinskoy-kapusty-sakata-sakata",147137207]
["Капуста савойская","@",null,"@","@"]
["Семена капусты савойской Вироса F1, 2500 шт. (прециз.), Bejo",3030,null,0,"Фото","http://agroopt-market.ru/collection/savoyskaya/product/virosa-f1-semena-savoyskoy-kapusty-bejo-beyo",147137213]
["Семена капусты савойской Конвой F1, 2500 шт., Takii",1875,null,0,"Фото","http://agroopt-market.ru/collection/savoyskaya/product/konvoy-f1-semena-savoyskoy-kapusty-takii-taki",147137215]
["Семена капусты савойской Мадлен F1, 1000 шт., Rijk Zwaan",990,null,0,"Фото","http://agroopt-market.ru/collection/savoyskaya/product/madlen-f1-semena-savoyskoy-kapusty-rijk-zwaan-rayk-tsvaan",147137217]
["Семена капусты савойской Мелисса F1, 2500 шт. (прециз.), Bejo",3060,null,0,"Фото","http://agroopt-market.ru/collection/savoyskaya/product/melissa-f1-semena-savoyskoy-kapusty-bejo-beyo",147137218]
["Семена капусты савойской Морама F1, 1000 шт. (NS), Rijk Zwaan",730,null,0,"Фото","http://agroopt-market.ru/collection/savoyskaya/product/morama-f1-semena-savoyskoy-kapusty-rijk-zwaan-rayk-tsvaan",147137220]
["Семена капусты савойской Оваса F1, 2500 шт. (прециз.), Bejo",3030,null,0,"Фото","http://agroopt-market.ru/collection/savoyskaya/product/ovasa-f1-semena-savoyskoy-kapusty-bejo-beyo",147137222]
["Семена капусты савойской Салима F1, 1000 шт. (NS), Rijk Zwaan",1000,null,0,"Фото","http://agroopt-market.ru/collection/savoyskaya/product/salima-f1-semena-savoyskoy-kapusty-rijk-zwaan-rayk-tsvaan",147137224]
["Семена капусты савойской Серпантин F1, 2500 шт., Hazera",2600,null,0,"Фото","http://agroopt-market.ru/collection/savoyskaya/product/serpantin-f1-semena-savoyskoy-kapusty-hazera-hazera",147137225]
["Семена капусты савойской Сонхо F1, 2500 шт., Takii",2375,null,0,"Фото","http://agroopt-market.ru/collection/savoyskaya/product/sonho-f1-semena-savoyskoy-kapusty-takii-taki",147137226]
["Семена капусты савойской Эстрема F1, 1000 шт. (NS), Rijk Zwaan",740,null,{"$f":"B530*C530","v":0},"Фото","http://agroopt-market.ru/collection/savoyskaya/product/estrema-f1-semena-savoyskoy-kapusty-rijk-zwaan-rayk-tsvaan",147137228]
["Капуста цветная","@",null,"@","@"]
["Семена капусты цветной SV5818AC F1, 1000 шт., Seminis",1512,null,0,{"$f":"HYPERLINK(F532,\"Фото\")","v":"Фото"},"http://agroopt-market.ru/collection/tsvetnaya/product/sv5818ac-f1-semena-tsvetnoy-kapusty-seminis-seminis",147137230]
["Семена капусты цветной Абени F1, 1000 шт., Seminis",1908,null,0,"Фото","http://agroopt-market.ru/collection/tsvetnaya/product/abeni-f1-semena-tsvetnoy-kapusty-seminis-seminis",147137231]
["Семена капусты цветной Альтамира F1, 2500 шт. (калибр.), Bejo",3940,null,0,"Фото","http://agroopt-market.ru/collection/tsvetnaya/product/altamira-f1-semena-tsvetnoy-kapusty-bejo-beyo",147137236]
["Семена капусты цветной Амандин F1, 1 000 шт, Sakata",3700,null,0,"Фото","-","ПРН"]
["Семена капусты цветной Америго F1, 2500 шт., Syngenta",2981,null,0,"Фото","http://agroopt-market.ru/collection/tsvetnaya/product/amerigo-f1-semena-tsvetnoy-kapusty-syngenta-singenta",147137240]
["Семена капусты цветной Амстердам F1, 2500 шт., Hazera",3360,null,0,"Фото","http://agroopt-market.ru/collection/tsvetnaya/product/amsterdam-f1-semena-tsvetnoy-kapusty-hazera-hazera",147137241]
["Семена капусты цветной Балбоа F1, 2500 шт. (калибр.), Bejo",3940,null,0,"Фото","http://agroopt-market.ru/collection/tsvetnaya/product/balboa-f1-semena-tsvetnoy-kapusty-bejo-beyo",147137243]
["Семена капусты цветной Барселона F1, 2500 шт., Hazera",3360,null,0,"Фото","http://agroopt-market.ru/collection/tsvetnaya/product/barselona-f1-semena-tsvetnoy-kapusty-hazera-hazera",147137245]
["Семена капусты цветной Белкорт F1, 1000 шт. (NS), Rijk Zwaan",1270,null,0,"Фото","http://agroopt-market.ru/collection/tsvetnaya/product/belkort-f1-semena-tsvetnoy-kapusty-rijk-zwaan-rayk-tsvaan",147137246]
["Семена капусты цветной Белкорт F1, 2500 шт. (NS), Rijk Zwaan",3180,null,0,"Фото","http://agroopt-market.ru/collection/tsvetnaya/product/belkort-f1-semena-tsvetnoy-kapusty-rijk-zwaan-rayk-tsvaan",147137248]
["Семена капусты цветной Бразилия F1, 2500 шт., Hazera",3360,null,0,"Фото","http://agroopt-market.ru/collection/tsvetnaya/product/braziliya-f1-semena-tsvetnoy-kapusty-hazera-hazera",147137252]
["Семена капусты цветной Брунел F1, 2500 шт., Syngenta","по запросу",null,null,"Фото","http://agroopt-market.ru/collection/saharnaya/product/gh-5704-f1-semena-kukuruzy-saharnoy-syngenta-singenta",148669798]
["Семена капусты цветной Брюс F1, 2500 шт., Syngenta",3071,null,0,"Фото","http://agroopt-market.ru/collection/tsvetnaya/product/bryus-f1-semena-tsvetnoy-kapusty-syngenta-singenta",147137255]
["Семена капусты цветной Вероника F1, 2500 шт. (прециз.), Bejo",6730,null,0,"Фото","http://agroopt-market.ru/collection/tsvetnaya/product/veronika-f1-semena-tsvetnoy-kapusty-bejo-beyo",147137257]
["Семена капусты цветной Витаверде F1, 1000 шт. (NS), Rijk Zwaan",2460,null,0,"Фото","http://agroopt-market.ru/collection/tsvetnaya/product/vitaverde-f1-semena-tsvetnoy-kapusty-rijk-zwaan-rayk-tsvaan",147137258]
["Семена капусты цветной Витаверде F1, 2500 шт. (NS), Rijk Zwaan",6140,null,0,"Фото","http://agroopt-market.ru/collection/tsvetnaya/product/vitaverde-f1-semena-tsvetnoy-kapusty-rijk-zwaan-rayk-tsvaan",147137260]
["Семена капусты цветной Гермон F1, 1000 шт., Seminis",1908,null,0,"Фото","http://agroopt-market.ru/collection/tsvetnaya/product/germon-f1-semena-tsvetnoy-kapusty-seminis-seminis",147137262]
["Семена капусты цветной Гохан F1, 2500 шт., Syngenta","по запросу",null,null,"Фото","http://agroopt-market.ru/collection/saharnaya/product/shaynrok-f1-semena-kukuruzy-saharnoy-syngenta-singenta",148669884]
["Семена капусты цветной Гудман, 2500 шт. (калибр.), Bejo",1610,null,0,"Фото","http://agroopt-market.ru/collection/tsvetnaya/product/gudman-semena-tsvetnoy-kapusty-bejo-beyo",147137265]
["Семена капусты цветной Джерес F1, 2500 шт. (калибр.), Bejo",4550,null,0,"Фото","http://agroopt-market.ru/collection/tsvetnaya/product/dzheres-f1-semena-tsvetnoy-kapusty-bejo-beyo",147137267]
["Семена капусты цветной Инклайн F1, 1000 шт., Sakata",1250,null,0,"Фото","http://agroopt-market.ru/collection/tsvetnaya/product/inklayn-f1-semena-tsvetnoy-kapusty-sakata-sakata",147137269]
["Семена капусты цветной Кабрал F1, 2500 шт., Syngenta","по запросу",null,null,"Фото","http://agroopt-market.ru/collection/repchatyy/product/fermo-f1-semena-luka-repchatogo-hazera-hazera",147259788]
["Семена капусты цветной Кандид Шарм F1, 1000 шт., Sakata",1250,null,0,"Фото","http://agroopt-market.ru/collection/tsvetnaya/product/kandid-sharm-f1-semena-tsvetnoy-kapusty-sakata-sakata",147137272]
["Семена капусты цветной Карнак F1, 1000 шт., Sakata",1900,null,0,"Фото","http://agroopt-market.ru/collection/tsvetnaya/product/karnak-f1-semena-tsvetnoy-kapusty-sakata-sakata",147137274]
["Семена капусты цветной Картьер F1, 2500 шт., Syngenta",3412,null,0,"Фото","http://agroopt-market.ru/collection/tsvetnaya/product/kartier-f1-syngenta-semena-tsvetnoy-kapusty-syngenta-singenta",147137275]
["Семена капусты цветной Каспер F1, 1000 шт. (NS), Rijk Zwaan",1120,null,0,"Фото","http://agroopt-market.ru/collection/tsvetnaya/product/kasper-rz-f1-semena-tsvetnoy-kapusty-rijk-zwaan-rayk-tsvaan",147137277]
["Семена капусты цветной Каспер F1, 2500 шт. (NS), Rijk Zwaan",2790,null,0,"Фото","http://agroopt-market.ru/collection/tsvetnaya/product/kasper-rz-f1-semena-tsvetnoy-kapusty-rijk-zwaan-rayk-tsvaan",147137279]
["Семена капусты цветной Кастор F1, 1 000 шт, Sakata",1500,null,0,"Фото","-","ПРН"]
["Семена капусты цветной Кашмир F1, 1000 шт., Sakata",1250,null,0,"Фото","http://agroopt-market.ru/collection/tsvetnaya/product/kashmir-f1-semena-tsvetnoy-kapusty-sakata-sakata",147137281]
["Семена капусты цветной Кердэс F1, 1000 шт., Seminis",1512,null,0,"Фото","http://agroopt-market.ru/collection/tsvetnaya/product/kerdes-f1-semena-tsvetnoy-kapusty-seminis-seminis",147137283]
["Семена капусты цветной Кларифай F1, 2500 шт., Syngenta","по запросу",null,null,"Фото","http://agroopt-market.ru/collection/repchatyy/product/bursa-f1-semena-luka-repchatogo-syngenta-singenta",147259683]
["Семена капусты цветной Клиппер F1, 1000 шт., Clause",1480,null,0,"Фото","http://agroopt-market.ru/collection/tsvetnaya/product/klipper-f1-semena-tsvetnoy-kapusty-clause-klos",147137287]
["Семена капусты цветной Клэптон F1, 2500 шт., Syngenta",5175,null,0,"Фото","http://agroopt-market.ru/collection/tsvetnaya/product/klepton-f1-semena-tsvetnoy-kapusty-syngenta-singenta",147137289]
["Семена капусты цветной Концепт F1, 2500 шт., Enza Zaden",3220,null,0,"Фото","http://agroopt-market.ru/collection/tsvetnaya/product/kontsept-f1-semena-tsvetnoy-kapusty-enza-zaden-enza-zaden",147137290]
["Семена капусты цветной Корлану F1, 2500 шт., Syngenta","по запросу",null,null,"Фото","http://agroopt-market.ru/collection/nantskiy/product/natalya-f1-semena-morkovi-sortotip-nantskiy-syngenta-singenta",147776258]
["Семена капусты цветной Кортес F1, 2500 шт., Syngenta",2776,null,0,"Фото","http://agroopt-market.ru/collection/tsvetnaya/product/kortes-f1-semena-tsvetnoy-kapusty-syngenta-singenta",147137294]
["Семена капусты цветной Кул F1, 2500 шт., Syngenta","по запросу",null,null,"Фото","http://agroopt-market.ru/collection/nantskiy/product/chempion-f1-semena-morkovi-sortotip-nantskiy-syngenta-singenta",147776260]
["Семена капусты цветной Леканю F1, 2500 шт., Syngenta",3274,null,0,"Фото","http://agroopt-market.ru/collection/tsvetnaya/product/lekanyu-f1-semena-tsvetnoy-kapusty-syngenta-singenta",147137298]
["Семена капусты цветной Майбах F1, 1000 шт., Clause",1480,null,0,"Фото","http://agroopt-market.ru/collection/tsvetnaya/product/maybah-f1-semena-tsvetnoy-kapusty-clause-klos",147137299]
["Семена капусты цветной Мизуна, 100 гр, Enza Zaden",655,null,0,"Фото","http://agroopt-market.ru/collection/kapusta-yaponskaya/product/mizuna-semena-kapusty-enza-zaden-enza-zaden",148769243]
["Семена капусты цветной Овиедо F1, 2500 шт. (калибр.), Bejo",3940,null,0,"Фото","http://agroopt-market.ru/collection/tsvetnaya/product/oviedo-f1-semena-tsvetnoy-kapusty-bejo-beyo",147137304]
["Семена капусты цветной Опаал, 2500 шт. (NS), Rijk Zwaan",900,null,0,"Фото","http://agroopt-market.ru/collection/tsvetnaya/product/opaal-semena-tsvetnoy-kapusty-rijk-zwaan-rayk-tsvaan",147137307]
["Семена капусты цветной Ормонд F1, 1000 шт., Rijk Zwaan",1310,null,0,"Фото","http://agroopt-market.ru/collection/tsvetnaya/product/ormond-f1-semena-tsvetnoy-kapusty-rijk-zwaan-rayk-tsvaan",147137310]
["Семена капусты цветной Пунтоверде F1, 1000 шт. (NS), Rijk Zwaan",4270,null,0,"Фото","http://agroopt-market.ru/collection/tsvetnaya/product/puntoverde-f1-semena-tsvetnoy-kapusty-rijk-zwaan-rayk-tsvaan",147137311]
["Семена капусты цветной Пунтоверде F1, 2500 шт. (NS), Rijk Zwaan",10680,null,0,"Фото","http://agroopt-market.ru/collection/tsvetnaya/product/puntoverde-f1-semena-tsvetnoy-kapusty-rijk-zwaan-rayk-tsvaan",147137313]
["Семена капусты цветной Рауль F1, 2500 шт., Hazera",3550,null,0,"Фото","http://agroopt-market.ru/collection/tsvetnaya/product/raul-f1-semena-tsvetnoy-kapusty-hazera-hazera",147137315]
["Семена капусты цветной Саборд F1, 1000 шт., Clause",3699,null,0,"Фото","http://agroopt-market.ru/collection/tsvetnaya/product/sabord-f1-semena-tsvetnoy-kapusty-clause-klos",147137316]
["Семена капусты цветной Севилла F1, 2500 шт. (калибр.), Bejo",4450,null,0,"Фото","http://agroopt-market.ru/collection/tsvetnaya/product/sevilla-f1-semena-tsvetnoy-kapusty-bejo-beyo",147137318]
["Семена капусты цветной Сеул F1, 2500 шт., Hazera",3550,null,0,"Фото","http://agroopt-market.ru/collection/tsvetnaya/product/seul-f1-semena-tsvetnoy-kapusty-hazera-hazera",147137320]
["Семена капусты цветной Синерджи F1, 2500 шт., Enza Zaden",3220,null,0,"Фото","http://agroopt-market.ru/collection/tsvetnaya/product/sinerdzhi-f1-semena-tsvetnoy-kapusty-enza-zaden-enza-zaden",147137322]
["Семена капусты цветной Скайвокер F1, 2500 шт. (калибр.), Bejo",3940,null,0,"Фото","http://agroopt-market.ru/collection/tsvetnaya/product/skayvoker-f1-semena-tsvetnoy-kapusty-bejo-beyo",147137323]
["Семена капусты цветной Смилла F1, 2500 шт., Syngenta","по запросу",null,null,"Фото","http://agroopt-market.ru/collection/shantane/product/diamento-f1-semena-morkovi-sortotip-shantane-vilmorin-vilmorin",147781304]
["Семена капусты цветной Спейс стар F1, 2500 шт., Syngenta",3522,null,0,"Фото","http://agroopt-market.ru/collection/tsvetnaya/product/speys-star-f1-semena-tsvetnoy-kapusty-syngenta-singenta",147137327]
["Семена капусты цветной Стабилис F1, 1000 шт. (NS), Rijk Zwaan",1270,null,0,"Фото","http://agroopt-market.ru/collection/tsvetnaya/product/stabilis-f1-semena-tsvetnoy-kapusty-rijk-zwaan-rayk-tsvaan",147137328]
["Семена капусты цветной Стабилис F1, 2500 шт. (NS), Rijk Zwaan",3180,null,0,"Фото","http://agroopt-market.ru/collection/tsvetnaya/product/stabilis-f1-semena-tsvetnoy-kapusty-rijk-zwaan-rayk-tsvaan",147137329]
["Семена капусты цветной Старгейт F1, 2500 шт. (калибр.), Bejo",4640,null,0,"Фото","http://agroopt-market.ru/collection/tsvetnaya/product/stargeyt-f1-semena-tsvetnoy-kapusty-bejo-beyo",147137332]
["Семена капусты цветной Телерджи F1, 2500 шт., Enza Zaden",3220,null,0,"Фото","http://agroopt-market.ru/collection/tsvetnaya/product/telerdzhi-f1-semena-tsvetnoy-kapusty-enza-zaden-enza-zaden",147137335]
["Семена капусты цветной Тетрис F1, 2 500 шт, Syngenta",3191,null,0,"Фото","-","ПРН"]
["Семена капусты цветной Уайт Консепт F1, 1000 шт., Sakata",2000,null,0,"Фото","http://agroopt-market.ru/collection/tsvetnaya/product/uayt-konsept-f1-semena-tsvetnoy-kapusty-sakata-sakata",147137337]
["Семена капусты цветной Уайтэксел F1, 1000 шт., Sakata",1250,null,0,"Фото","http://agroopt-market.ru/collection/tsvetnaya/product/uayteksel-f1-semena-tsvetnoy-kapusty-sakata-sakata",147137338]
["Семена капусты цветной Фарадей F1, 2500 шт., Syngenta","по запросу",null,null,"Фото","http://agroopt-market.ru/collection/shantane/product/diamento-f1-semena-morkovi-sortotip-shantane-vilmorin-vilmorin",147776566]
["Семена капусты цветной Фарго F1, 2500 шт. (калибр.), Bejo",3630,null,0,"Фото","http://agroopt-market.ru/collection/tsvetnaya/product/fargo-f1-semena-tsvetnoy-kapusty-bejo-beyo",147137341]
["Семена капусты цветной Феррара F1, 2500 шт., Hazera",3550,null,0,"Фото","http://agroopt-market.ru/collection/tsvetnaya/product/ferrara-f1-semena-tsvetnoy-kapusty-hazera-hazera",147137343]
["Семена капусты цветной Фламенко F1, 2500 шт. (калибр.), Bejo",4550,null,{"$f":"B595*C595","v":0},"Фото","http://agroopt-market.ru/collection/tsvetnaya/product/flamenko-f1-semena-tsvetnoy-kapusty-bejo-beyo",147137345]
["Семена капусты цветной Форталеза F1, 1000 шт., Seminis",1472,null,0,{"$f":"HYPERLINK(F596,\"Фото\")","v":"Фото"},"http://agroopt-market.ru/collection/tsvetnaya/product/fortaleza-f1-semena-tsvetnoy-kapusty-seminis-seminis",147137346]
["Семена капусты цветной Фридом F1, 1000 шт., Seminis",1483,null,0,"Фото","http://agroopt-market.ru/collection/tsvetnaya/product/fridom-f1-semena-tsvetnoy-kapusty-seminis-seminis",147137348]
["Семена капусты цветной Фристайл F1, 1000 шт., Гавриш",1500,null,0,"Фото","http://agroopt-market.ru/collection/tsvetnaya/product/semena-kapusty-tsvetnoy-fristayl-f1-gavrish",158070937]
["Семена капусты цветной Фронтина F1, 1000 шт., Seminis",1436,null,0,"Фото","http://agroopt-market.ru/collection/tsvetnaya/product/frontina-f1-semena-tsvetnoy-kapusty-seminis-seminis",147137350]
["Семена капусты цветной Целеритас F1, 1000 шт. (NS), Rijk Zwaan",1270,null,0,"Фото","http://agroopt-market.ru/collection/tsvetnaya/product/tseleritas-f1-semena-tsvetnoy-kapusty-rijk-zwaan-rayk-tsvaan",147137352]
["Семена капусты цветной Целеритас F1, 2500 шт. (NS), Rijk Zwaan",3180,null,0,"Фото","http://agroopt-market.ru/collection/tsvetnaya/product/tseleritas-f1-semena-tsvetnoy-kapusty-rijk-zwaan-rayk-tsvaan",147137353]
["Семена капусты цветной Церси F1, 1000 шт. (NS), Rijk Zwaan",1270,null,0,"Фото","http://agroopt-market.ru/collection/tsvetnaya/product/tsersi-f1-semena-tsvetnoy-kapusty-rijk-zwaan-rayk-tsvaan",147137356]
["Семена капусты цветной Церси F1, 2500 шт. (NS), Rijk Zwaan",3180,null,0,"Фото","http://agroopt-market.ru/collection/tsvetnaya/product/tsersi-f1-semena-tsvetnoy-kapusty-rijk-zwaan-rayk-tsvaan",147137358]
["Семена капусты цветной Шамборд F1, 1000 шт. (NS), Rijk Zwaan",1310,null,0,"Фото","http://agroopt-market.ru/collection/tsvetnaya/product/shambord-f1-semena-tsvetnoy-kapusty-rijk-zwaan-rayk-tsvaan",147137361]
["Семена капусты цветной Шамборд F1, 2500 шт. (NS), Rijk Zwaan",3280,null,0,"Фото","http://agroopt-market.ru/collection/tsvetnaya/product/shambord-f1-semena-tsvetnoy-kapusty-rijk-zwaan-rayk-tsvaan",147137362]
["Семена капусты цветной Шарлот F1, 2500 шт. (калибр.), Bejo",3330,null,0,"Фото","http://agroopt-market.ru/collection/tsvetnaya/product/sharlot-f1-semena-tsvetnoy-kapusty-bejo-beyo",147137365]
["Кориандр","@",null,"@","@"]
["Семена кориандра Дебют, 1 кг, Гавриш",1250,null,0,"Фото","http://agroopt-market.ru/collection/koriandr/product/semena-koriandra-debyut-gavrish",158071205]
["Семена кориандра Карибе, 500 гр, Bejo",700,null,0,"Фото","http://agroopt-market.ru/collection/koriandr/product/karibe-semena-korianda-bejo-beyo",148769246]
["Семена кориандра Кин-дза-дза, 1 кг, Гавриш",1300,null,0,"Фото","http://agroopt-market.ru/collection/koriandr/product/semena-koriandra-kin-dza-dza-gavrish",158071206]
["Семена кориандра Коммандер, 500 гр, Bejo",940,null,0,"Фото","http://agroopt-market.ru/collection/koriandr/product/kommander-semena-korianda-bejo-beyo",148769250]
["Семена кориандра Марино, 100 гр, Enza Zaden",220,null,0,"Фото","http://agroopt-market.ru/collection/koriandr/product/marino-semena-korianda-enza-zaden-enza-zaden",148769253]
["Семена кориандра Санто, 500 гр, Sakata",1100,null,0,"Фото","http://agroopt-market.ru/collection/koriandr/product/santo-semena-korianda-sakata-sakata",148769256]
["Семена кориандра Шико, 1 кг, Гавриш",1250,null,0,"Фото","http://agroopt-market.ru/collection/koriandr/product/semena-koriandra-shiko-gavrish",158071207]
["Кукуруза","@",null,"@","@"]
["Семена кукурузы Бентам F1, 100 тыс. шт., Sakata",85000,null,0,"Фото","http://agroopt-market.ru/collection/saharnaya/product/bentam-f1-semena-kukuruzy-saharnoy-sakata-sakata",148669779]
["Семена кукурузы Бонус F1, 1 кг, Syngenta","по запросу",null,null,"Фото","http://agroopt-market.ru/collection/shantane/product/silvano-f1-semena-morkovi-sortotip-shantane-vilmorin-vilmorin",147780487]
["Семена кукурузы Бостон F1, 1 кг, Syngenta","по запросу",null,null,"Фото","http://agroopt-market.ru/collection/shantane/product/silvano-f1-semena-morkovi-sortotip-shantane-vilmorin-vilmorin",147780535]
["Семена кукурузы Боулинг F1, 1 кг, Гавриш",4900,null,0,"Фото","http://agroopt-market.ru/collection/saharnaya/product/semena-kukuruzy-bouling-f1-gavrish",158070938]
["Семена кукурузы Гх 5704 F1, 100 тыс. шт., Syngenta","по запросу",null,null,"Фото","http://agroopt-market.ru/collection/melkobugorchatyy/product/mars-f1-semena-ogurtsa-korotkoplodnogo-sakata-sakata",147563066]
["Семена кукурузы Кокани F1, 5 тыс. шт., Clause",2864,null,0,"Фото","http://agroopt-market.ru/collection/saharnaya/product/kokani-f1-semena-kukuruzy-saharnoy-clause-klos",148669804]
["Семена кукурузы Легаси F1, 5 тыс. шт., Clause",2864,null,0,"Фото","http://agroopt-market.ru/collection/saharnaya/product/legasi-f1-semena-kukuruzy-saharnoy-clause-klos",148669809]
["Семена кукурузы Леженд F1, 1 кг, Clause",3132,null,0,"Фото","http://agroopt-market.ru/collection/saharnaya/product/lezhend-f1-semena-kukuruzy-saharnoy-clause-klos",148669816]
["Семена кукурузы Леженд F1, 5 тыс. шт., Clause",2888,null,0,"Фото","http://agroopt-market.ru/collection/saharnaya/product/lezhend-f1-semena-kukuruzy-saharnoy-clause-klos",148669818]
["Семена кукурузы Леженд F1, 50 тыс. шт., Clause",29400,null,0,"Фото","http://agroopt-market.ru/collection/saharnaya/product/lezhend-f1-semena-kukuruzy-saharnoy-clause-klos",148669820]
["Семена кукурузы Мегатон F1, 50 тыс. шт., Clause",29675,null,0,"Фото","http://agroopt-market.ru/collection/saharnaya/product/semena-kukuruzy-megaton-f1-clause-klos",158070815]
["Семена кукурузы Мегатон F1, 5000 шт., Clause",3020,null,0,"Фото","http://agroopt-market.ru/collection/saharnaya/product/megaton-f1-semena-kukuruzy-saharnoy-clause-klos",148669825]
["Семена кукурузы сах.Хони Бентам 78 дней F1, 5 000 сем",4900,null,0,"Фото","-","ПРН"]
["Семена кукурузы Свитстар F1, 1 кг, Syngenta",4206,null,0,"Фото","http://agroopt-market.ru/collection/saharnaya/product/svitstar-f1-semena-kukuruzy-saharnoy-syngenta-singenta",148669844]
["Семена кукурузы Спирит F1, 1 кг, Syngenta",2308,null,0,"Фото","http://agroopt-market.ru/collection/saharnaya/product/spirit-f1-semena-kukuruzy-saharnoy-syngenta-singenta",148669857]
["Семена кукурузы Супер Санданс F1, 1 кг, Vilmorin",3153,null,0,"Фото","http://agroopt-market.ru/collection/saharnaya/product/super-sandans-f1-semena-kukuruzy-saharnoy-clause-klos",148669862]
["Семена кукурузы Трофи F1, 5000 шт., Seminis",4240,null,0,"Фото","http://agroopt-market.ru/collection/saharnaya/product/trofi-f1-semena-kukuruzy-saharnoy-seminis-seminis",148669868]
["Семена кукурузы Турбо F1, 100 тыс. шт., Clause",56231,null,0,"Фото","http://agroopt-market.ru/collection/saharnaya/product/semena-kukuruzy-turbo-f1-clause-klos",158070816]
["Семена кукурузы Хони Бентам F1, 100 тыс. шт., Sakata",85000,null,0,"Фото","http://agroopt-market.ru/collection/saharnaya/product/bentam-f1-semena-kukuruzy-saharnoy-sakata-sakata",148669779]
["Семена кукурузы Шайнрок F1, 1 кг, Syngenta","по запросу",null,null,"Фото","http://agroopt-market.ru/collection/krupnobugorchatyy-3/product/semena-ogurtsa-pcheloopylyaemogo-delpina-f1-nunhems-nyunems",158071011]
["Семена кукурузы Шайнрок F1, 100 000 сем, Syngenta",43192.6,null,0,"Фото","-","ПРН"]
["Лук батун (на перо)","@",null,"@","@"]
["Семена лука батуна Байя Верде, 250 тыс. шт., Seminis",12917,null,0,"Фото","http://agroopt-market.ru/collection/na-pero/product/bayya-verde-semena-luka-batun-seminis-seminis",147259619]
["Семена лука батуна Банчинг стар, 250 тыс. шт., Enza Zaden",18340,null,0,"Фото","http://agroopt-market.ru/collection/na-pero/product/banching-star-semena-luka-batun-enza-zaden-enza-zaden",147259620]
["Семена лука батуна Грин Баннер, 10 тыс. шт., Seminis",517,null,0,"Фото","http://agroopt-market.ru/collection/na-pero/product/grin-banner-semena-luka-batun-seminis-seminis",147259622]
["Семена лука батуна Грин Баннер, 250 тыс. шт., Seminis",12917,null,0,"Фото","http://agroopt-market.ru/collection/na-pero/product/grin-banner-semena-luka-batun-seminis-seminis",147259623]
["Семена лука батуна Кайгаро, 250 тыс. шт., Enza Zaden",9010,null,0,"Фото","http://agroopt-market.ru/collection/na-pero/product/kaygaro-semena-luka-batun-enza-zaden-enza-zaden",147259625]
["Семена лука батуна Катана, 50 гр, Sakata",900,null,0,"Фото","http://agroopt-market.ru/collection/na-pero/product/katana-semena-luka-batun-sakata-sakata",147259627]
["Семена лука батуна Катана, 500 гр, Sakata",8000,null,0,"Фото","http://agroopt-market.ru/collection/na-pero/product/katana-semena-luka-batun-sakata-sakata",147259628]
["Семена лука батуна Легионер, 1 кг, Гавриш",5900,null,0,"Фото","http://agroopt-market.ru/collection/na-pero/product/semena-luka-batuna-legioner-gavrish",158070939]
["Семена лука батуна Лонг Уайт Кошигая, 100 гр, Sakata",500,null,0,"Фото","http://agroopt-market.ru/collection/na-pero/product/long-uayt-koshigaya-semena-luka-batun-sakata-sakata",147259631]
["Семена лука батуна Лонг Уайт Кошигая, 500 гр, Sakata",2500,null,0,"Фото","http://agroopt-market.ru/collection/na-pero/product/long-uayt-koshigaya-semena-luka-batun-sakata-sakata",147259632]
["Семена лука батуна Параде, 10 тыс. шт. (прециз.), Bejo",300,null,0,"Фото","http://agroopt-market.ru/collection/na-pero/product/parade-semena-luka-batun-bejo-beyo",147259633]
["Семена лука батуна Параде, 250 тыс. шт. (прециз.), Bejo",6650,null,0,"Фото","http://agroopt-market.ru/collection/na-pero/product/parade-semena-luka-batun-bejo-beyo",147423712]
["Семена лука батуна Перформер, 10 тыс. шт. (прециз.), Bejo",300,null,0,"Фото","-","ПРН"]
["Семена лука батуна Перформер, 250 тыс. шт. (прециз.), Bejo",6650,null,0,"Фото","-","ПРН"]
["Семена лука батуна Тайкун F1, 250 тыс. шт., Takii",15100,null,0,"Фото","http://agroopt-market.ru/collection/na-pero/product/taykun-f1-semena-luka-batun-takii-taki",147259635]
["Семена лука батуна Тотем, 500 гр, Sakata",5000,null,0,"Фото","http://agroopt-market.ru/collection/na-pero/product/totem-semena-luka-batun-sakata-sakata",147259637]
["Семена лука батуна Фист, 250 тыс. шт., Takii",12150,null,0,"Фото","http://agroopt-market.ru/collection/na-pero/product/fist-semena-luka-batun-takii-taki",147259638]
["Семена лука батуна Эстафет F1, 250 тыс. шт., Takii",15100,null,0,"Фото","http://agroopt-market.ru/collection/na-pero/product/estafet-f1-semena-luka-batun-takii-taki",147259640]
["Лук порей","@",null,"@","@"]
["Семена лука порея Джампер, 10 тыс. шт. (Bejo/прайм.), Bejo",10950,null,0,"Фото","http://agroopt-market.ru/collection/porey/product/dzhamper-semena-luka-porey-bejo-beyo",147259642]
["Семена лука порея Коламбус, 10 тыс. шт., Bejo",1800,null,0,"Фото","http://agroopt-market.ru/collection/porey/product/kolambus-semena-luka-porey-bejo-beyo",147259643]
["Семена лука порея Ланцелот, 10 тыс. шт., Bejo",1800,null,0,"Фото","http://agroopt-market.ru/collection/porey/product/lantselot-semena-luka-porey-bejo-beyo",147259645]
["Семена лука порея Матейко F1, 2500 шт. (PR), Rijk Zwaan",2590,null,0,"Фото","http://agroopt-market.ru/collection/porey/product/mateyko-f1-semena-luka-porey-rijk-zwaan-rayk-tsvaan",147259647]
["Семена лука порея Панчо, 100 тыс. шт., Hazera",20500,null,0,"Фото","http://agroopt-market.ru/collection/porey/product/pancho-semena-luka-porey-hazera-hazera",147259649]
["Семена лука порея Порбелла, 100 тыс. шт., Hazera",20500,null,0,"Фото","http://agroopt-market.ru/collection/porey/product/porbella-semena-luka-porey-hazera-hazera",147259651]
["Семена лука порея Форрест, 10 тыс. шт., Bejo",1800,null,{"$f":"B663*C663","v":0},"Фото","http://agroopt-market.ru/collection/porey/product/forrest-semena-luka-porey-bejo-beyo",147259653]
["Лук репчатый","@",null,"@","@"]
["Семена лука репчатого Айспёрл F1, 250 тыс. шт. (Bejo/dGS прециз.), Bejo",33430,null,0,{"$f":"HYPERLINK(F665,\"Фото\")","v":"Фото"},"http://agroopt-market.ru/collection/repchatyy/product/ayspyorl-f1-semena-luka-repchatogo-bejo-beyo",147259654]
["Семена лука репчатого Алонсо F1, 250 тыс. шт., Bejo",17180,null,0,"Фото","http://agroopt-market.ru/collection/repchatyy/product/alonso-f1-semena-luka-repchatogo-bejo-beyo",147259656]
["Семена лука репчатого Альбион, 250 тыс. шт., Bejo",23880,null,0,"Фото","http://agroopt-market.ru/collection/repchatyy/product/albion-semena-luka-repchatogo-bejo-beyo",147259657]
["Семена лука репчатого Аруба F1, 250 тыс. шт., Sakata",20000,null,0,"Фото","http://agroopt-market.ru/collection/repchatyy/product/aruba-f1-semena-luka-repchatogo-sakata-sakata",147259659]
["Семена лука репчатого Банко, 250 тыс. шт., Syngenta",8801,null,0,"Фото","http://agroopt-market.ru/collection/repchatyy/product/banko-semena-luka-repchatogo-syngenta-singenta",147259663]
["Семена лука репчатого Барито F1, 250 тыс. шт., Seminis",19354,null,0,"Фото","http://agroopt-market.ru/collection/repchatyy/product/barito-f1-semena-luka-repchatogo-seminis-seminis",147259665]
["Семена лука репчатого Белло Бланко F1, 250 тыс. шт., Sakata",25000,null,0,"Фото","http://agroopt-market.ru/collection/repchatyy/product/bello-blanko-f1-semena-luka-repchatogo-sakata-sakata",147259666]
["Семена лука репчатого Бенефит F1, 250 тыс. шт., Takii",20700,null,0,"Фото","http://agroopt-market.ru/collection/repchatyy/product/benefit-f1-semena-luka-repchatogo-takii-taki",147259668]
["Семена лука репчатого Беннито F1, 250 тыс. шт., Seminis",17388,null,0,"Фото","http://agroopt-market.ru/collection/repchatyy/product/bennito-f1-semena-luka-repchatogo-seminis-seminis",147259670]
["Семена лука репчатого Бонус F1, 250 тыс. шт., Takii",25100,null,0,"Фото","http://agroopt-market.ru/collection/repchatyy/product/bonus-f1-takii-semena-luka-repchatogo-takii-taki",147259674]
["Семена лука репчатого Боско F1, 250 тыс. шт., Syngenta",17601,null,0,"Фото","http://agroopt-market.ru/collection/repchatyy/product/bosko-f1-semena-luka-repchatogo-syngenta-singenta",147259676]
["Семена лука репчатого Братко F1, 250 тыс. шт., Syngenta",16502,null,0,"Фото","http://agroopt-market.ru/collection/repchatyy/product/bratko-f1-semena-luka-repchatogo-syngenta-singenta",147259678]
["Семена лука репчатого Брэкстон F1, 250 тыс. шт., Bejo",19180,null,0,"Фото","http://agroopt-market.ru/collection/repchatyy/product/brekston-f1-semena-luka-repchatogo-bejo-beyo",147259679]
["Семена лука репчатого Бургос F1, 250 тыс. шт., Vilmorin",13415,null,0,"Фото","http://agroopt-market.ru/collection/repchatyy/product/burgos-f1-semena-luka-repchatogo-vilmorin-vilmorin",147259681]
["Семена лука репчатого Бурса F1, 250 тыс. шт., Syngenta","по запросу",null,null,"Фото","http://agroopt-market.ru/collection/melkobugorchatyy-3/product/semena-ogurtsa-pcheloopylyaemogo-dolomit-f1-nunhems-nyunems",158071013]
["Семена лука репчатого Вайт Винг F1, 250 тыс. шт. (Bejo/dGS прециз.), Bejo",32950,null,0,"Фото","http://agroopt-market.ru/collection/repchatyy/product/vayt-ving-f1-semena-luka-repchatogo-bejo-beyo",147259685]
["Семена лука репчатого Валентино F1, 250 тыс. шт., Hazera",17060,null,0,"Фото","http://agroopt-market.ru/collection/repchatyy/product/valentino-f1-semena-luka-repchatogo-hazera-hazera",147259687]
["Семена лука репчатого Варес F1, 250 тыс. шт., Seminis",17388,null,0,"Фото","http://agroopt-market.ru/collection/repchatyy/product/vares-f1-semena-luka-repchatogo-seminis-seminis",147259689]
["Семена лука репчатого Венто F1, 250 тыс. шт., Hazera",15355,null,0,"Фото","http://agroopt-market.ru/collection/repchatyy/product/vento-f1-semena-luka-repchatogo-hazera-hazera",147259691]
["Семена лука репчатого Вердон F1, 250 тыс. шт., Takii",40900,null,0,"Фото","http://agroopt-market.ru/collection/repchatyy/product/verdon-f1-semena-luka-repchatogo-takii-taki",147259692]
["Семена лука репчатого Визион F1, 250 тыс. шт., Syngenta",16502,null,0,"Фото","http://agroopt-market.ru/collection/repchatyy/product/vizion-f1-semena-luka-repchatogo-syngenta-singenta",147259694]
["Семена лука репчатого Вольф F1, 250 тыс. шт., Hazera",19100,null,0,"Фото","http://agroopt-market.ru/collection/repchatyy/product/volf-f1-semena-luka-repchatogo-hazera-hazera",147259696]
["Семена лука репчатого Глэдстоун F1, 250 тыс. шт., Bejo",16190,null,0,"Фото","http://agroopt-market.ru/collection/repchatyy/product/gledstoun-f1-semena-luka-repchatogo-bejo-beyo",147259697]
["Семена лука репчатого Дайтона F1, 250 тыс. шт., Bejo",15640,null,0,"Фото","http://agroopt-market.ru/collection/repchatyy/product/daytona-f1-bejo-semena-luka-repchatogo-bejo-beyo",147259699]
["Семена лука репчатого Дакапо F1, 250 тыс. шт., Hazera",14520,null,0,"Фото","http://agroopt-market.ru/collection/repchatyy/product/dakapo-f1-semena-luka-repchatogo-hazera-hazera",147259700]
["Семена лука репчатого Дерби F1, 250 тыс. шт., Bejo",29300,null,0,"Фото","http://agroopt-market.ru/collection/repchatyy/product/derbi-f1-bejo-semena-luka-repchatogo-bejo-beyo",147259702]
["Семена лука репчатого Дормо F1, 250 тыс. шт., Hazera",17300,null,0,"Фото","http://agroopt-market.ru/collection/repchatyy/product/dormo-f1-semena-luka-repchatogo-hazera-hazera",147259703]
["Семена лука репчатого ЕХ 077 F1, 250 тыс. шт., Seminis",17388,null,0,"Фото","http://agroopt-market.ru/collection/repchatyy/product/eh-077-f1-semena-luka-repchatogo-seminis-seminis",147259705]
["Семена лука репчатого Зои F1, 250 тыс. шт., Enza Zaden",19700,null,0,"Фото","http://agroopt-market.ru/collection/repchatyy/product/zoi-f1-semena-luka-repchatogo-enza-zaden-enza-zaden",147259707]
["Семена лука репчатого Катинка F1, 250 тыс. шт., Bejo",19180,null,0,"Фото","http://agroopt-market.ru/collection/repchatyy/product/katinka-f1-semena-luka-repchatogo-bejo-beyo",147259708]
["Семена лука репчатого Каунтач F1, 100 тыс. шт., Nunhems",18781,null,0,"Фото","http://agroopt-market.ru/collection/repchatyy/product/semena-luka-repchatogo-kauntach-f1-nunhems-nyunems",158070941]
["Семена лука репчатого Комета F1, 100 тыс. шт., Nunhems",12521,null,0,"Фото","http://agroopt-market.ru/collection/repchatyy/product/semena-luka-repchatogo-kometa-f1-nunhems-nyunems",158070943]
["Семена лука репчатого Кремень, 1 кг, Гавриш",4500,null,0,"Фото","http://agroopt-market.ru/collection/repchatyy/product/semena-luka-repchatogo-kremen-gavrish",158070948]
["Семена лука репчатого Кэнди F1, 250 тыс. шт., Seminis",21564,null,0,"Фото","http://agroopt-market.ru/collection/repchatyy/product/kendi-f1-semena-luka-repchatogo-seminis-seminis",147259710]
["Семена лука репчатого Лорензос F1, 250 тыс. шт., Vilmorin",14587,null,0,"Фото","http://agroopt-market.ru/collection/repchatyy/product/lorenzos-f1-semena-luka-repchatogo-vilmorin-vilmorin",147259711]
["Семена лука репчатого Макалу, 250 тыс. шт., Bejo",20330,null,0,"Фото","http://agroopt-market.ru/collection/repchatyy/product/makalu-semena-luka-repchatogo-bejo-beyo",147259713]
["Семена лука репчатого Манас F1, 250 тыс. шт. (калибр.), Bejo",18230,null,0,"Фото","http://agroopt-market.ru/collection/repchatyy/product/manas-f1-semena-luka-repchatogo-bejo-beyo",147423732]
["Семена лука репчатого Манас F1, 250 тыс. шт. (прециз.), Bejo",20050,null,0,"Фото","http://agroopt-market.ru/collection/repchatyy/product/manas-f1-semena-luka-repchatogo-bejo-beyo",147259714]
["Семена лука репчатого Маргит F1, 250 тыс. шт., Seminis",17734,null,0,"Фото","http://agroopt-market.ru/collection/repchatyy/product/margit-f1-semena-luka-repchatogo-seminis-seminis",147259717]
["Семена лука репчатого Марко F1, 250 тыс. шт., Hazera",15400,null,0,"Фото","http://agroopt-market.ru/collection/repchatyy/product/marko-f1-semena-luka-repchatogo-hazera-hazera",147259719]
["Семена лука репчатого Медуза F1, 250 тыс. шт., Takii",26190,null,0,"Фото","http://agroopt-market.ru/collection/repchatyy/product/meduza-f1-semena-luka-repchatogo-takii-taki",147259721]
["Семена лука репчатого Меранто F1, 250 тыс. шт., Hazera",19255,null,0,"Фото","http://agroopt-market.ru/collection/repchatyy/product/meranto-f1-semena-luka-repchatogo-hazera-hazera",147259722]
["Семена лука репчатого Монастрел F1, 250 тыс. шт., Enza Zaden",29700,null,0,"Фото","http://agroopt-market.ru/collection/repchatyy/product/monastrel-f1-semena-luka-repchatogo-enza-zaden-enza-zaden",147421562]
["Семена лука репчатого Моушен F1, 250 тыс. шт., Syngenta",16122,null,0,"Фото","http://agroopt-market.ru/collection/repchatyy/product/moushen-f1-semena-luka-repchatogo-syngenta-singenta",147259724]
["Семена лука репчатого Музыка F1, 250 тыс. шт., Bejo",24680,null,0,"Фото","http://agroopt-market.ru/collection/repchatyy/product/muzyka-f1-semena-luka-repchatogo-bejo-beyo",147259726]
["Семена лука репчатого Мустанг F1, 250 тыс. шт., Bejo",20430,null,0,"Фото","http://agroopt-market.ru/collection/repchatyy/product/mustang-f1-semena-luka-repchatogo-bejo-beyo",147259727]
["Семена лука репчатого Мэллори F1, 250 тыс. шт., Bejo",19180,null,0,"Фото","http://agroopt-market.ru/collection/repchatyy/product/mellori-f1-semena-luka-repchatogo-bejo-beyo",147259729]
["Семена лука репчатого Навигатор, 1 кг, Гавриш",4200,null,0,"Фото","http://agroopt-market.ru/collection/repchatyy/product/semena-luka-repchatogo-navigator-gavrish",158070951]
["Семена лука репчатого Неман, 1 кг, Гавриш",5900,null,0,"Фото","http://agroopt-market.ru/collection/repchatyy/product/semena-luka-repchatogo-neman-gavrish",158070947]
["Семена лука репчатого Новиста F1, 250 тыс. шт., Takii",21500,null,0,"Фото","http://agroopt-market.ru/collection/repchatyy/product/novista-f1-semena-luka-repchatogo-takii-taki",147259732]
["Семена лука репчатого Олимпик F1, 250 тыс. шт., Bejo",4260,null,0,"Фото","http://agroopt-market.ru/collection/repchatyy/product/olimpik-f1-semena-luka-repchatogo-bejo-beyo",147259734]
["Семена лука репчатого Пандеро F1, 100 тыс. шт., Nunhems",8033,null,0,"Фото","http://agroopt-market.ru/collection/repchatyy/product/semena-luka-repchatogo-pandero-f1-nunhems-nyunems",158070944]
["Семена лука репчатого Премито F1, 250 тыс. шт., Seminis","по запросу",null,null,"Фото","http://agroopt-market.ru/collection/repchatyy/product/premito-f1-semena-luka-repchatogo-seminis-seminis",147259737]
["Семена лука репчатого Прометей, 1 кг, Гавриш",3250,null,0,"Фото","http://agroopt-market.ru/collection/repchatyy/product/semena-luka-repchatogo-prometey-gavrish",158070949]
["Семена лука репчатого Радар, 250 тыс. шт., Bejo",13610,null,0,"Фото","http://agroopt-market.ru/collection/repchatyy/product/radar-semena-luka-repchatogo-bejo-beyo",147259739]
["Семена лука репчатого Ред Барон, 250 тыс. шт., Bejo",14190,null,0,"Фото","http://agroopt-market.ru/collection/repchatyy/product/red-baron-semena-luka-repchatogo-bejo-beyo",147259741]
["Семена лука репчатого Ред Булл F1, 250 тыс. шт., Bejo",29850,null,0,"Фото","http://agroopt-market.ru/collection/repchatyy/product/red-bull-f1-semena-luka-repchatogo-bejo-beyo",147259742]
["Семена лука репчатого Ред Рам F1, 250 тыс. шт., Bejo",32530,null,0,"Фото","http://agroopt-market.ru/collection/repchatyy/product/red-ram-f1-semena-luka-repchatogo-bejo-beyo",147259744]
["Семена лука репчатого Рекс F1, 250 тыс. шт., Takii",35060,null,0,"Фото","http://agroopt-market.ru/collection/repchatyy/product/reks-f1-semena-luka-repchatogo-takii-taki",147259747]
["Семена лука репчатого Робин, 250 тыс. шт., Bejo",14190,null,0,"Фото","http://agroopt-market.ru/collection/repchatyy/product/robin-semena-luka-repchatogo-bejo-beyo",147259749]
["Семена лука репчатого Роухайд F1, 250 тыс. шт. (Bejo/dGS прециз.), Bejo",21370,null,0,"Фото","http://agroopt-market.ru/collection/repchatyy/product/rouhayd-f1-semena-luka-repchatogo-bejo-beyo",147259750]
["Семена лука репчатого Сабросо F1, 100 тыс. шт., Nunhems",8151,null,0,"Фото","http://agroopt-market.ru/collection/repchatyy/product/semena-luka-repchatogo-sabroso-f1-nunhems-nyunems",158070945]
["Семена лука репчатого Саманта F1, 250 тыс. шт., Enza Zaden",16400,null,0,"Фото","http://agroopt-market.ru/collection/repchatyy/product/samanta-f1-semena-luka-repchatogo-enza-zaden-enza-zaden",147259752]
["Семена лука репчатого Сангро F1, 250 тыс. шт., Bejo",20970,null,{"$f":"B728*C728","v":0},"Фото","http://agroopt-market.ru/collection/repchatyy/product/sangro-f1-semena-luka-repchatogo-bejo-beyo",147259753]
["Семена лука репчатого Сафран F1, 250 тыс. шт., Bejo",21790,null,0,{"$f":"HYPERLINK(F729,\"Фото\")","v":"Фото"},"http://agroopt-market.ru/collection/repchatyy/product/safran-f1-semena-luka-repchatogo-bejo-beyo",147259755]
["Семена лука репчатого Свифт, 250 тыс. шт., Bejo",14210,null,0,"Фото","http://agroopt-market.ru/collection/repchatyy/product/svift-semena-luka-repchatogo-bejo-beyo",147259756]
["Семена лука репчатого Седона F1, 250 тыс. шт., Bejo",20050,null,0,"Фото","http://agroopt-market.ru/collection/repchatyy/product/sedona-f1-semena-luka-repchatogo-bejo-beyo",147259758]
["Семена лука репчатого Сеншу Еллоу Глоб, 250 000, Sakata",12450,null,0,"Фото","-","ПРН"]
["Семена лука репчатого Сеншуй йеллоу F1, 250 тыс. шт., Takii",12600,null,0,"Фото","http://agroopt-market.ru/collection/repchatyy/product/senshuy-yellou-f1-semena-luka-repchatogo-takii-taki",147259759]
["Семена лука репчатого Сибирь, 250 тыс. шт., Bejo",17940,null,0,"Фото","http://agroopt-market.ru/collection/repchatyy/product/sibir-semena-luka-repchatogo-bejo-beyo",147259761]
["Семена лука репчатого Скапино F1, 250 тыс. шт., Hazera",16890,null,0,"Фото","http://agroopt-market.ru/collection/repchatyy/product/skapino-f1-semena-luka-repchatogo-hazera-hazera",147259762]
["Семена лука репчатого Снайпер F1, 250 тыс. шт., Enza Zaden",20700,null,0,"Фото","http://agroopt-market.ru/collection/repchatyy/product/snayper-f1-semena-luka-repchatogo-enza-zaden-enza-zaden",147259764]
["Семена лука репчатого Спирит F1, 250 тыс. шт., Bejo",18230,null,0,"Фото","http://agroopt-market.ru/collection/repchatyy/product/spirit-f1-bejo-semena-luka-repchatogo-bejo-beyo",147259765]
["Семена лука репчатого Спэниш Медальон F1, 250 тыс. шт., Sakata",23000,null,0,"Фото","http://agroopt-market.ru/collection/repchatyy/product/spenish-medalon-f1-semena-luka-repchatogo-sakata-sakata",147259767]
["Семена лука репчатого Стардаст, 250 тыс. шт., Bejo",12660,null,0,"Фото","http://agroopt-market.ru/collection/repchatyy/product/stardast-semena-luka-repchatogo-bejo-beyo",147259769]
["Семена лука репчатого Стартер F1, 250 тыс. шт., Hazera",17225,null,0,"Фото","http://agroopt-market.ru/collection/repchatyy/product/starter-f1-semena-luka-repchatogo-hazera-hazera",147259771]
["Семена лука репчатого Стурон, 1 кг, Hazera",6900,null,0,"Фото","http://agroopt-market.ru/collection/repchatyy/product/sturon-semena-luka-repchatogo-hazera-hazera",147259774]
["Семена лука репчатого Стурон, 20 кг, Hazera",138000,null,0,"Фото","http://agroopt-market.ru/collection/repchatyy/product/sturon-semena-luka-repchatogo-hazera-hazera",147259775]
["Семена лука репчатого Такмарк F1, 250 тыс. шт., Takii",25400,null,0,"Фото","http://agroopt-market.ru/collection/repchatyy/product/takmark-f1-semena-luka-repchatogo-takii-taki",147259777]
["Семена лука репчатого Такстар F1, 250 тыс. шт., Takii",25400,null,0,"Фото","http://agroopt-market.ru/collection/repchatyy/product/takstar-f1-semena-luka-repchatogo-takii-taki",147259779]
["Семена лука репчатого Талон F1, 250 тыс. шт., Bejo",20700,null,0,"Фото","http://agroopt-market.ru/collection/repchatyy/product/talon-f1-semena-luka-repchatogo-bejo-beyo",147259780]
["Семена лука репчатого Тамара F1, 250 тыс. шт., Bejo",20430,null,0,"Фото","http://agroopt-market.ru/collection/repchatyy/product/tamara-f1-bejo-semena-luka-repchatogo-bejo-beyo",147259782]
["Семена лука репчатого Тареско F1, 250 тыс. шт., Hazera",17225,null,0,"Фото","http://agroopt-market.ru/collection/repchatyy/product/taresko-f1-semena-luka-repchatogo-hazera-hazera",147259783]
["Семена лука репчатого Темптэйшен F1, 250 тыс. шт., Syngenta",16502,null,0,"Фото","http://agroopt-market.ru/collection/repchatyy/product/tempteyshen-f1-semena-luka-repchatogo-syngenta-singenta",147259785]
["Семена лука репчатого Тетон 112 F1, 250 тыс. шт., Seminis",5400,null,0,"Фото","http://agroopt-market.ru/collection/repchatyy/product/teton-112-f1-semena-luka-repchatogo-seminis-seminis",147259787]
["Семена лука репчатого Франциско, 250 тыс. шт., Hazera",8800,null,0,"Фото","http://agroopt-market.ru/collection/repchatyy/product/frantsisko-semena-luka-repchatogo-hazera-hazera",147259789]
["Семена лука репчатого Халцедон, 1 кг, Гавриш",2850,null,0,"Фото","http://agroopt-market.ru/collection/repchatyy/product/semena-luka-repchatogo-haltsedon-gavrish",158070946]
["Семена лука репчатого Центро F1, 250 тыс. шт., Hazera",17300,null,0,"Фото","http://agroopt-market.ru/collection/repchatyy/product/tsentro-f1-semena-luka-repchatogo-hazera-hazera",147259791]
["Семена лука репчатого Шерман F1, 250 тыс. шт., Bejo",21790,null,0,"Фото","http://agroopt-market.ru/collection/repchatyy/product/sherman-f1-semena-luka-repchatogo-bejo-beyo",147259792]
["Семена лука репчатого Эвейшн F1, 100 тыс. шт., Sakata",8000,null,0,"Фото","http://agroopt-market.ru/collection/repchatyy/product/eveyshn-f1-semena-luka-repchatogo-sakata-sakata",147259795]
["Семена лука репчатого Эвейшн F1, 250 тыс. шт., Sakata",26100,null,0,"Фото","http://agroopt-market.ru/collection/repchatyy/product/eveyshn-f1-semena-luka-repchatogo-sakata-sakata",147259794]
["Семена лука репчатого Эксибишен, 10 тыс. шт., Bejo",1140,null,0,"Фото","http://agroopt-market.ru/collection/repchatyy/product/eksibishen-semena-luka-repchatogo-bejo-beyo",147259799]
["Семена лука репчатого Эксибишен, 250 тыс. шт., Bejo",26740,null,0,"Фото","http://agroopt-market.ru/collection/repchatyy/product/eksibishen-semena-luka-repchatogo-bejo-beyo",147259800]
["Семена лука репчатого Эхо F1, 250 тыс. шт., Sakata",20000,null,0,"Фото","http://agroopt-market.ru/collection/repchatyy/product/eho-f1-semena-luka-repchatogo-sakata-sakata",147259803]
["Лук шитт","@",null,"@","@"]
["Семена шнитт лука Карат, 1 кг, Гавриш",6500,null,{"$f":"B760*C760","v":0},{"$f":"HYPERLINK(F760,\"Фото\")","v":"Фото"},"http://agroopt-market.ru/collection/shnitt/product/semena-shnitt-luka-karat-gavrish",158070940]
["Семена шнитт лука Старо, 100 гр, Enza Zaden",2300,null,{"$f":"B761*C761","v":0},{"$f":"HYPERLINK(F761,\"Фото\")","v":"Фото"},"http://agroopt-market.ru/collection/shnitt/product/semena-shnitt-luka-staro-enza-zaden-enza-zaden",158070817]
["Майоран","@",null,"@","@"]
["Семена майорана Сканди, 1 кг, Гавриш",20250,null,0,"Фото","http://agroopt-market.ru/collection/mayoran/product/semena-mayorana-skandi-gavrish",158071208]
["Мангольд","@",null,"@","@"]
["Семена мангольда Гранат, 1 кг, Гавриш",2050,null,0,"Фото","http://agroopt-market.ru/collection/mangold/product/semena-mangolda-granat-gavrish",158071210]
["Семена мангольда Рубарб, Sakata",2000,null,0,"Фото","-","ПРН"]
["Семена мангольда Рубиноа, 10 тыс. шт., Enza Zaden",450,null,0,"Фото","http://agroopt-market.ru/collection/mangold/product/rubinoa-semena-mangolda-enza-zaden-enza-zaden",148769268]
["Семена мангольда Чарли F1, 25 тыс. шт. (PR), Rijk Zwaan",1170,null,0,"Фото","http://agroopt-market.ru/collection/mangold/product/charli-f1-semena-mangolda-rijk-zwaan-rayk-tsvaan",148769276]
["Семена мангольда Чарли F1, 50 тыс. шт. (PR), Rijk Zwaan",2340,null,0,"Фото","http://agroopt-market.ru/collection/mangold/product/charli-f1-semena-mangolda-rijk-zwaan-rayk-tsvaan",148769274]
["Мелиса","@",null,"@","@"]
["Семена мелисы Исидора, 1 кг, Гавриш",24000,null,0,"Фото","http://agroopt-market.ru/collection/melisa/product/semena-melisy-isidora-gavrish",158071211]
["Семена мелисы Махито, 1 кг, Гавриш",24000,null,0,"Фото","http://agroopt-market.ru/collection/melisa/product/semena-melisy-mahito-gavrish",158071212]
["Морковь","@",null,"@","@"]
["Семена моркови Абако F1, 1 млн. шт. (1,6-1,8), Seminis",47628,null,0,"Фото","http://agroopt-market.ru/collection/shantane/product/abako-f1-semena-morkovi-sortotip-shantane-seminis-seminis",147776583]
["Семена моркови Абако F1, 1 млн. шт. (1,8-2,0), Seminis",51408,null,0,"Фото","http://agroopt-market.ru/collection/shantane/product/abako-f1-semena-morkovi-sortotip-shantane-seminis-seminis",147776584]
["Семена моркови Абако F1, 1 млн. шт. (2,0 и выше), Seminis",55944,null,0,"Фото","http://agroopt-market.ru/collection/shantane/product/abako-f1-semena-morkovi-sortotip-shantane-seminis-seminis",147776585]
["Семена моркови Абако F1, 100 тыс. шт. (2,0 и выше), Seminis",5641,null,0,"Фото","http://agroopt-market.ru/collection/shantane/product/abako-f1-semena-morkovi-sortotip-shantane-seminis-seminis",152231762]
["Семена моркови Абако F1, 200 тыс. шт. (1,6-1,8), Seminis",9857,null,0,"Фото","http://agroopt-market.ru/collection/shantane/product/abako-f1-semena-morkovi-sortotip-shantane-seminis-seminis",147776587]
["Семена моркови Абако F1, 200 тыс. шт. (1,8-2,0), Seminis",10613,null,0,"Фото","http://agroopt-market.ru/collection/shantane/product/abako-f1-semena-morkovi-sortotip-shantane-seminis-seminis",147776588]
["Семена моркови Абако F1, 200 тыс. шт. (2,0 и выше), Seminis",11520,null,0,"Фото","http://agroopt-market.ru/collection/shantane/product/abako-f1-semena-morkovi-sortotip-shantane-seminis-seminis",147776589]
["Семена моркови Абледо F1, 1 млн. шт., Seminis",31493,null,0,"Фото","http://agroopt-market.ru/collection/shantane/product/abledo-f1-semena-morkovi-sortotip-shantane-seminis-seminis",147776557]
["Семена моркови Абледо F1, 200 тыс. шт., Seminis",6631,null,0,"Фото","http://agroopt-market.ru/collection/shantane/product/abledo-f1-semena-morkovi-sortotip-shantane-seminis-seminis",147776558]
["Семена моркови Аттилио F1, 100 тыс. шт. (1,6-1,8), Vilmorin",5341,null,0,"Фото","http://agroopt-market.ru/collection/nantskiy/product/attilio-f1-semena-morkovi-sortotip-nantskiy-vilmorin-vilmorin",147776426]
["Семена моркови Аттилио F1, 100 тыс. шт. (1,8-2,0), Vilmorin",5341,null,0,"Фото","http://agroopt-market.ru/collection/nantskiy/product/attilio-f1-semena-morkovi-sortotip-nantskiy-vilmorin-vilmorin",147776428]
["Семена моркови Аттилио F1, 500 тыс. шт. (1,6-1,8), Vilmorin",26702,null,0,"Фото","http://agroopt-market.ru/collection/nantskiy/product/attilio-f1-semena-morkovi-sortotip-nantskiy-vilmorin-vilmorin",147776429]
["Семена моркови Аттилио F1, 500 тыс. шт. (1,8-2,0), Vilmorin",26702,null,0,"Фото","http://agroopt-market.ru/collection/nantskiy/product/attilio-f1-semena-morkovi-sortotip-nantskiy-vilmorin-vilmorin",147776430]
["Семена моркови Аттилио F1, 500 тыс. шт. (2,2-2,4), Vilmorin",26702,null,0,"Фото","http://agroopt-market.ru/collection/nantskiy/product/attilio-f1-semena-morkovi-sortotip-nantskiy-vilmorin-vilmorin",147776432]
["Семена моркови Аурантина F1, 100 тыс. шт. (1,4-1,6), Takii",4200,null,0,"Фото","http://agroopt-market.ru/collection/shantane/product/aurantina-f1-tsn-745-semena-morkovi-sortotip-shantane-takii-taki",147776499]
["Семена моркови Аурантина F1, 100 тыс. шт. (1,6-1,8), Takii",4340,null,0,"Фото","http://agroopt-market.ru/collection/shantane/product/aurantina-f1-tsn-745-semena-morkovi-sortotip-shantane-takii-taki",147776501]
["Семена моркови Аурантина F1, 100 тыс. шт. (1,8-2,0), Takii",4450,null,0,"Фото","http://agroopt-market.ru/collection/shantane/product/aurantina-f1-tsn-745-semena-morkovi-sortotip-shantane-takii-taki",147776502]
["Семена моркови Аурантина F1, 100 тыс. шт. (2,0-2,2), Takii",4680,null,0,"Фото","http://agroopt-market.ru/collection/shantane/product/aurantina-f1-tsn-745-semena-morkovi-sortotip-shantane-takii-taki",147776503]
["Семена моркови Аурантина F1, 100 тыс. шт. (2,0-2,4), Takii",4890,null,0,"Фото","http://agroopt-market.ru/collection/shantane/product/aurantina-f1-tsn-745-semena-morkovi-sortotip-shantane-takii-taki",147776504]
["Семена моркови Аурантина F1, 100 тыс. шт. (2,4-2,6), Takii",5150,null,0,"Фото","http://agroopt-market.ru/collection/shantane/product/aurantina-f1-tsn-745-semena-morkovi-sortotip-shantane-takii-taki",147776505]
["Семена моркови Аурантина F1, 100 тыс. шт. (2,6-2,8), Takii",5250,null,0,"Фото","http://agroopt-market.ru/collection/shantane/product/aurantina-f1-tsn-745-semena-morkovi-sortotip-shantane-takii-taki",147776506]
["Семена моркови Базель F1, 100 тыс. шт. (1,6-1,8), Bejo",5130,null,0,"Фото","http://agroopt-market.ru/collection/nantskiy/product/bazel-f1-semena-morkovi-sortotip-nantskiy-bejo-beyo",147776387]
["Семена моркови Базель F1, 100 тыс. шт. (1,8-2,0), Bejo",5510,null,0,"Фото","http://agroopt-market.ru/collection/nantskiy/product/bazel-f1-semena-morkovi-sortotip-nantskiy-bejo-beyo",147776388]
["Семена моркови Базель F1, 100 тыс. шт. (2,0-2,2-2,4-2,6), Bejo",5830,null,0,"Фото","http://agroopt-market.ru/collection/nantskiy/product/bazel-f1-semena-morkovi-sortotip-nantskiy-bejo-beyo",147776389]
["Семена моркови Балтимор F1, 100 тыс. шт. (1,6-1,8), Bejo",5130,null,0,"Фото","http://agroopt-market.ru/collection/nantskiy/product/baltimor-f1-semena-morkovi-sortotip-nantskiy-bejo-beyo",147776404]
["Семена моркови Балтимор F1, 100 тыс. шт. (1,8-2,0), Bejo",5510,null,{"$f":"B799*C799","v":0},"Фото","http://agroopt-market.ru/collection/nantskiy/product/baltimor-f1-semena-morkovi-sortotip-nantskiy-bejo-beyo",147776406]
["Семена моркови Балтимор F1, 100 тыс. шт. (2,0-2,2-2,4-2,6), Bejo",5830,null,0,{"$f":"HYPERLINK(F800,\"Фото\")","v":"Фото"},"http://agroopt-market.ru/collection/nantskiy/product/baltimor-f1-semena-morkovi-sortotip-nantskiy-bejo-beyo",147776407]
["Семена моркови Бангор F1, 100 тыс. шт. (1,6-1,8), Bejo",5130,null,0,"Фото","http://agroopt-market.ru/collection/nantskiy/product/bangor-f1-semena-morkovi-sortotip-nantskiy-bejo-beyo",147776369]
["Семена моркови Бангор F1, 100 тыс. шт. (1,8-2,0), Bejo",5510,null,0,"Фото","http://agroopt-market.ru/collection/nantskiy/product/bangor-f1-semena-morkovi-sortotip-nantskiy-bejo-beyo",147776370]
["Семена моркови Бангор F1, 100 тыс. шт. (2,0-2,2-2,4-2,6), Bejo",5830,null,0,"Фото","http://agroopt-market.ru/collection/nantskiy/product/bangor-f1-semena-morkovi-sortotip-nantskiy-bejo-beyo",147776371]
["Семена моркови Белградо F1, 100 тыс. шт. (1,6-1,8), Bejo",5430,null,0,"Фото","http://agroopt-market.ru/collection/nantskiy/product/belgrado-f1-semena-morkovi-sortotip-nantskiy-bejo-beyo",147776391]
["Семена моркови Белградо F1, 100 тыс. шт. (1,8-2,0), Bejo",5810,null,0,"Фото","http://agroopt-market.ru/collection/nantskiy/product/belgrado-f1-semena-morkovi-sortotip-nantskiy-bejo-beyo",147776392]
["Семена моркови Белградо F1, 100 тыс. шт. (2,0-2,2-2,4-2,6), Bejo",6130,null,0,"Фото","http://agroopt-market.ru/collection/nantskiy/product/belgrado-f1-semena-morkovi-sortotip-nantskiy-bejo-beyo",147776394]
["Семена моркови Берлин F1, 100 тыс. шт. (1,6-1,8), Bejo",5430,null,0,"Фото","http://agroopt-market.ru/collection/nantskiy/product/berlin-f1-semena-morkovi-sortotip-nantskiy-bejo-beyo",147776358]
["Семена моркови Берлин F1, 100 тыс. шт. (1,8-2,0), Bejo",5810,null,0,"Фото","http://agroopt-market.ru/collection/nantskiy/product/berlin-f1-semena-morkovi-sortotip-nantskiy-bejo-beyo",147776359]
["Семена моркови Берлин F1, 100 тыс. шт. (2,0-2,2-2,4-2,6), Bejo",6130,null,0,"Фото","http://agroopt-market.ru/collection/nantskiy/product/berlin-f1-semena-morkovi-sortotip-nantskiy-bejo-beyo",147776361]
["Семена моркови Бермуда F1, 100 тыс. шт. (1,6-1,8), Bejo",5130,null,0,"Фото","http://agroopt-market.ru/collection/nantskiy/product/bermuda-f1-semena-morkovi-sortotip-nantskiy-bejo-beyo",147776364]
["Семена моркови Бермуда F1, 100 тыс. шт. (1,8-2,0), Bejo",5510,null,0,"Фото","http://agroopt-market.ru/collection/nantskiy/product/bermuda-f1-semena-morkovi-sortotip-nantskiy-bejo-beyo",147776366]
["Семена моркови Бермуда F1, 100 тыс. шт. (2,0-2,2-2,4-2,6), Bejo",5830,null,0,"Фото","http://agroopt-market.ru/collection/nantskiy/product/bermuda-f1-semena-morkovi-sortotip-nantskiy-bejo-beyo",147776367]
["Семена моркови Болеро F1, 100 тыс. шт. (1,6-1,8), Vilmorin",5271,null,0,"Фото","http://agroopt-market.ru/collection/nantskiy/product/bolero-f1-semena-morkovi-sortotip-nantskiy-vilmorin-vilmorin",147776448]
["Семена моркови Болеро F1, 500 тыс. шт. (1,6-1,8), Vilmorin",26355,null,0,"Фото","http://agroopt-market.ru/collection/nantskiy/product/bolero-f1-semena-morkovi-sortotip-nantskiy-vilmorin-vilmorin",147776450]
["Семена моркови Болеро F1, 500 тыс. шт. (2,0-2,2), Vilmorin",26355,null,0,"Фото","http://agroopt-market.ru/collection/nantskiy/product/bolero-f1-semena-morkovi-sortotip-nantskiy-vilmorin-vilmorin",147776451]
["Семена моркови Болтекс, 500 гр, Clause",2617,null,0,"Фото","http://agroopt-market.ru/collection/shantane/product/bolteks-semena-morkovi-sortotip-shantane-clause-klos",147776527]
["Семена моркови ВАК-75 F1, 500 000 шт, Vilmorin",24134,null,0,"Фото","-","ПРН"]
["Семена моркови Вармия F1, 1 млн. шт., Rijk Zwaan",42530,null,0,"Фото","http://agroopt-market.ru/collection/nantskiy/product/varmiya-f1-semena-morkovi-sortotip-nantskiy-rijk-zwaan-rayk-tsvaan",147776543]
["Семена моркови Вармия F1, 100 тыс. шт., Rijk Zwaan",4250,null,0,"Фото","http://agroopt-market.ru/collection/nantskiy/product/varmiya-f1-semena-morkovi-sortotip-nantskiy-rijk-zwaan-rayk-tsvaan",147776541]
["Семена моркови Вармия F1, 25 тыс. шт., Rijk Zwaan",1060,null,0,"Фото","http://agroopt-market.ru/collection/nantskiy/product/varmiya-f1-semena-morkovi-sortotip-nantskiy-rijk-zwaan-rayk-tsvaan",147776540]
["Семена моркови Вита Лонга, 500 гр, Bejo",5300,null,0,"Фото","http://agroopt-market.ru/collection/shantane/product/vita-longa-semena-morkovi-sortotip-shantane-bejo-beyo",147776578]
["Семена моркови Волкано F1, 100 тыс. шт., Vilmorin",5572,null,0,"Фото","http://agroopt-market.ru/collection/nantskiy/product/volkano-f1-semena-morkovi-sortotip-nantskiy-vilmorin-vilmorin",147776248]
["Семена моркови Волкано F1, 500 тыс. шт., Vilmorin",27860,null,0,"Фото","http://agroopt-market.ru/collection/nantskiy/product/volkano-f1-semena-morkovi-sortotip-nantskiy-vilmorin-vilmorin",147776250]
["Семена моркови Волкано F1,в оболочке Vilcrust, 500 000 шт, Vilmorin",30646,null,0,"Фото","-","ПРН"]
["Семена моркови Джерада F1, 100 тыс. шт., Rijk Zwaan",4250,null,0,"Фото","http://agroopt-market.ru/collection/nantskiy/product/dzherada-f1-semena-morkovi-sortotip-nantskiy-rijk-zwaan-rayk-tsvaan",147776335]
["Семена моркови Джерада F1, 25 тыс. шт., Rijk Zwaan",1060,null,0,"Фото","http://agroopt-market.ru/collection/nantskiy/product/dzherada-f1-semena-morkovi-sortotip-nantskiy-rijk-zwaan-rayk-tsvaan",147776333]
["Семена моркови Диаменто F1, 1,6-1,8 мм, 500 000 шт, Vilmorin",24134,null,0,"Фото","-","ПРН"]
["Семена моркови Диаменто F1, 1,8-2,0 мм, 500 000 шт,Vilmorin",24134,null,0,"Фото","-","ПРН"]
["Семена моркови Диаменто F1, 100 тыс. шт. (2,0-2,2), Vilmorin",4827,null,0,"Фото","http://agroopt-market.ru/collection/shantane/product/diamento-f1-semena-morkovi-sortotip-shantane-vilmorin-vilmorin",147776565]
["Семена моркови Дордонь F1, 100 тыс. шт., Syngenta",4506,null,0,"Фото","http://agroopt-market.ru/collection/nantskiy/product/dordon-f1-semena-morkovi-sortotip-nantskiy-syngenta-singenta",147776337]
["Семена моркови Еллоустоун, 100 тыс. шт. (1,6-1,8), Bejo",4950,null,0,"Фото","http://agroopt-market.ru/collection/morkov/product/elloustoun-semena-morkovi-sortotip-bejo-beyo",147776622]
["Семена моркови Еллоустоун, 100 тыс. шт. (1,8-2,0), Bejo",5320,null,0,"Фото","http://agroopt-market.ru/collection/morkov/product/elloustoun-semena-morkovi-sortotip-bejo-beyo",147776624]
["Семена моркови Ибица F1, 100 тыс. шт. (1,6-1,8), Bejo",5130,null,0,"Фото","http://agroopt-market.ru/collection/imperator/product/ibitsa-f1-semena-morkovi-sortotip-imperator-bejo-beyo",147776236]
["Семена моркови Ибица F1, 100 тыс. шт. (1,8-2,0), Bejo",5510,null,0,"Фото","http://agroopt-market.ru/collection/imperator/product/ibitsa-f1-semena-morkovi-sortotip-imperator-bejo-beyo",147776238]
["Семена моркови Ибица F1, 100 тыс. шт. (2,0-2,2-2,4-2,6), Bejo",5830,null,0,"Фото","http://agroopt-market.ru/collection/imperator/product/ibitsa-f1-semena-morkovi-sortotip-imperator-bejo-beyo",147776239]
["Семена моркови Камаран F1, 100 тыс. шт. (1,6-1,8), Bejo",5430,null,0,"Фото","http://agroopt-market.ru/collection/shantane/product/kamaran-f1-semena-morkovi-sortotip-shantane-bejo-beyo",147776521]
["Семена моркови Камаран F1, 100 тыс. шт. (1,8-2,0), Bejo",5810,null,0,"Фото","http://agroopt-market.ru/collection/shantane/product/kamaran-f1-semena-morkovi-sortotip-shantane-bejo-beyo",147776523]
["Семена моркови Камаран F1, 100 тыс. шт. (2,0-2,2-2,4-2,6), Bejo",6130,null,0,"Фото","http://agroopt-market.ru/collection/shantane/product/kamaran-f1-semena-morkovi-sortotip-shantane-bejo-beyo",147776525]
["Семена моркови Канада F1, 100 тыс. шт. (1,6-1,8), Bejo",4800,null,0,"Фото","http://agroopt-market.ru/collection/shantane/product/kanada-f1-semena-morkovi-sortotip-shantane-bejo-beyo",147776464]
["Семена моркови Канада F1, 100 тыс. шт. (1,8-2,0), Bejo",5170,null,0,"Фото","http://agroopt-market.ru/collection/shantane/product/kanada-f1-semena-morkovi-sortotip-shantane-bejo-beyo",147776465]
["Семена моркови Канада F1, 100 тыс. шт. (2,0-2,2-2,4-2,6), Bejo",5490,null,0,"Фото","http://agroopt-market.ru/collection/shantane/product/kanada-f1-semena-morkovi-sortotip-shantane-bejo-beyo",147776473]
["Семена моркови Канберра F1, 100 тыс. шт. (1,4-1,6), Bejo",4600,null,0,"Фото","http://agroopt-market.ru/collection/shantane/product/kanberra-f1-semena-morkovi-sortotip-shantane-bejo-beyo",147776599]
["Семена моркови Канберра F1, 100 тыс. шт. (1,6-1,8), Bejo",5010,null,0,"Фото","http://agroopt-market.ru/collection/shantane/product/kanberra-f1-semena-morkovi-sortotip-shantane-bejo-beyo",147776600]
["Семена моркови Канберра F1, 100 тыс. шт. (1,8-2,0), Bejo",5390,null,0,"Фото","http://agroopt-market.ru/collection/shantane/product/kanberra-f1-semena-morkovi-sortotip-shantane-bejo-beyo",147776602]
["Семена моркови Канберра F1, 100 тыс. шт. (2,0-2,2-2,4-2,6), Bejo",5710,null,0,"Фото","http://agroopt-market.ru/collection/shantane/product/kanberra-f1-semena-morkovi-sortotip-shantane-bejo-beyo",147776603]
["Семена моркови Кантербюри F1, 100 тыс. шт. (1,6-1,8), Bejo",4370,null,0,"Фото","http://agroopt-market.ru/collection/shantane/product/kanterbyuri-f1-semena-morkovi-sortotip-shantane-bejo-beyo",147776580]
["Семена моркови Кантербюри F1, 100 тыс. шт. (1,8-2,0), Bejo",4740,null,0,"Фото","http://agroopt-market.ru/collection/shantane/product/kanterbyuri-f1-semena-morkovi-sortotip-shantane-bejo-beyo",147776581]
["Семена моркови Кантербюри F1, 100 тыс. шт. (2,0-2,2-2,4-2,6), Bejo",5070,null,0,"Фото","http://agroopt-market.ru/collection/shantane/product/kanterbyuri-f1-semena-morkovi-sortotip-shantane-bejo-beyo",147776621]
["Семена моркови Карбета F1, 1 млн. шт., Seminis",36300,null,0,"Фото","http://agroopt-market.ru/collection/shantane/product/karbeta-f1-semena-morkovi-sortotip-shantane-seminis-seminis",147776591]
["Семена моркови Карбета F1, 200 тыс. шт., Seminis",7590,null,0,"Фото","http://agroopt-market.ru/collection/shantane/product/karbeta-f1-semena-morkovi-sortotip-shantane-seminis-seminis",147776592]
["Семена моркови Карболи F1, 200 тыс. шт., Seminis",9047,null,0,"Фото","http://agroopt-market.ru/collection/nantskiy/product/karboli-f1-semena-morkovi-sortotip-nantskiy-seminis-seminis",147776535]
["Семена моркови Карведжо F1, 1 млн. шт., Seminis",47192,null,0,"Фото","http://agroopt-market.ru/collection/nantskiy/product/karvedzho-f1-semena-morkovi-sortotip-nantskiy-seminis-seminis",147776453]
["Семена моркови Карведжо F1, 200 тыс. шт., Seminis",9770,null,0,"Фото","http://agroopt-market.ru/collection/nantskiy/product/karvedzho-f1-semena-morkovi-sortotip-nantskiy-seminis-seminis",147776454]
["Семена моркови Карвора F1, 1 млн. шт., Seminis",52920,null,0,"Фото","http://agroopt-market.ru/collection/nantskiy/product/karvora-f1-semena-morkovi-sortotip-nantskiy-seminis-seminis",147776434]
["Семена моркови Карвора F1, 100 тыс. шт., Seminis",5292,null,0,"Фото","http://agroopt-market.ru/collection/nantskiy/product/karvora-f1-semena-morkovi-sortotip-nantskiy-seminis-seminis",147780645]
["Семена моркови Карвора F1, 200 тыс. шт., Seminis",10159,null,0,"Фото","http://agroopt-market.ru/collection/nantskiy/product/karvora-f1-semena-morkovi-sortotip-nantskiy-seminis-seminis",147776446]
["Семена моркови Кардифф F1, 100 тыс. шт. (1,6-1,8), Bejo",5130,null,0,"Фото","http://agroopt-market.ru/collection/shantane/product/kardiff-f1-semena-morkovi-sortotip-shantane-bejo-beyo",147776569]
["Семена моркови Кардифф F1, 100 тыс. шт. (1,8-2,0), Bejo",5510,null,0,"Фото","http://agroopt-market.ru/collection/shantane/product/kardiff-f1-semena-morkovi-sortotip-shantane-bejo-beyo",147776570]
["Семена моркови Кардифф F1, 100 тыс. шт. (2,0-2,2-2,4-2,6), Bejo",5830,null,0,"Фото","http://agroopt-market.ru/collection/shantane/product/kardiff-f1-semena-morkovi-sortotip-shantane-bejo-beyo",147776572]
["Семена моркови Карини, 500 гр, Bejo",6120,null,0,"Фото","http://agroopt-market.ru/collection/shantane/product/karini-semena-morkovi-sortotip-shantane-bejo-beyo",147776507]
["Семена моркови Каротан, 250 гр, Rijk Zwaan",3010,null,0,"Фото","http://agroopt-market.ru/collection/flakke/product/karotan-rz-semena-morkovi-sortotip-flakke-rijk-zwaan-rayk-tsvaan",147776550]
["Семена моркови Карсон F1, 100 тыс. шт. (1,6-1,8), Bejo",4800,null,0,"Фото","http://agroopt-market.ru/collection/shantane/product/karson-f1-semena-morkovi-sortotip-shantane-bejo-beyo",147776574]
["Семена моркови Карсон F1, 100 тыс. шт. (1,8-2,0), Bejo",5170,null,{"$f":"B863*C863","v":0},"Фото","http://agroopt-market.ru/collection/shantane/product/karson-f1-semena-morkovi-sortotip-shantane-bejo-beyo",147776575]
["Семена моркови Карсон F1, 100 тыс. шт. (2,0-2,2-2,4-2,6), Bejo",5490,null,0,{"$f":"HYPERLINK(F864,\"Фото\")","v":"Фото"},"http://agroopt-market.ru/collection/shantane/product/karson-f1-semena-morkovi-sortotip-shantane-bejo-beyo",147776576]
["Семена моркови Каскад F1, 100 тыс. шт. (1,6-1,8), Bejo",5010,null,0,"Фото","http://agroopt-market.ru/collection/shantane/product/kaskad-f1-semena-morkovi-sortotip-shantane-bejo-beyo",147776561]
["Семена моркови Каскад F1, 100 тыс. шт. (1,8-2,0), Bejo",5390,null,0,"Фото","http://agroopt-market.ru/collection/shantane/product/kaskad-f1-semena-morkovi-sortotip-shantane-bejo-beyo",147776562]
["Семена моркови Каскад F1, 100 тыс. шт. (2,0-2,2-2,4-2,6), Bejo",5710,null,0,"Фото","http://agroopt-market.ru/collection/shantane/product/kaskad-f1-semena-morkovi-sortotip-shantane-bejo-beyo",147776563]
["Семена моркови Концерто F1, 100 тыс. шт. (1,6-1,8), Vilmorin",4950,null,0,"Фото","http://agroopt-market.ru/collection/nantskiy/product/kontserto-f1-semena-morkovi-sortotip-nantskiy-vilmorin-vilmorin",147776326]
["Семена моркови Концерто F1, 100 тыс. шт. (1,8-2,0), Vilmorin",4950,null,0,"Фото","http://agroopt-market.ru/collection/nantskiy/product/kontserto-f1-semena-morkovi-sortotip-nantskiy-vilmorin-vilmorin",147776327]
["Семена моркови Концерто F1, 500 тыс. шт. (1,6-1,8), Vilmorin",24746,null,0,"Фото","http://agroopt-market.ru/collection/nantskiy/product/kontserto-f1-semena-morkovi-sortotip-nantskiy-vilmorin-vilmorin",147776328]
["Семена моркови Концерто F1, 500 тыс. шт. (1,8-2,0), Vilmorin",24746,null,0,"Фото","http://agroopt-market.ru/collection/nantskiy/product/kontserto-f1-semena-morkovi-sortotip-nantskiy-vilmorin-vilmorin",147776329]
["Семена моркови Концерто F1, 500 тыс. шт. (2,0-2,2), Vilmorin",24746,null,0,"Фото","http://agroopt-market.ru/collection/nantskiy/product/kontserto-f1-semena-morkovi-sortotip-nantskiy-vilmorin-vilmorin",147776330]
["Семена моркови Кордоба F1, 100 тыс. шт. (1,6-1,8), Bejo",5010,null,0,"Фото","http://agroopt-market.ru/collection/shantane/product/kordoba-f1-semena-morkovi-sortotip-shantane-bejo-beyo",147776595]
["Семена моркови Кордоба F1, 100 тыс. шт. (1,8-2,0), Bejo",5390,null,0,"Фото","http://agroopt-market.ru/collection/shantane/product/kordoba-f1-semena-morkovi-sortotip-shantane-bejo-beyo",147776597]
["Семена моркови Кордоба F1, 100 тыс. шт. (2,0-2,2-2,4-2,6), Bejo",5710,null,0,"Фото","http://agroopt-market.ru/collection/shantane/product/kordoba-f1-semena-morkovi-sortotip-shantane-bejo-beyo",147776598]
["Семена моркови Купар F1, 100 тыс. шт. (1,6-1,8), Bejo",5010,null,0,"Фото","http://agroopt-market.ru/collection/shantane/product/kupar-f1-semena-morkovi-sortotip-shantane-bejo-beyo",147776553]
["Семена моркови Купар F1, 100 тыс. шт. (1,8-2,0), Bejo",5390,null,0,"Фото","http://agroopt-market.ru/collection/shantane/product/kupar-f1-semena-morkovi-sortotip-shantane-bejo-beyo",147776555]
["Семена моркови Купар F1, 100 тыс. шт. (2,0-2,2-2,4-2,6), Bejo",5710,null,0,"Фото","http://agroopt-market.ru/collection/shantane/product/kupar-f1-semena-morkovi-sortotip-shantane-bejo-beyo",147776556]
["Семена моркови Курода Пауэр, 1 кг, Sakata",12000,null,0,"Фото","http://agroopt-market.ru/collection/shantane/product/kuroda-pauer-semena-morkovi-sortotip-shantane-sakata-sakata",147776530]
["Семена моркови Курода Шантанэ, 1 кг, Sakata",4500,null,0,"Фото","http://agroopt-market.ru/collection/shantane/product/kuroda-shantane-semena-morkovi-sortotip-shantane-sakata-sakata",147776532]
["Семена моркови Лагуна F1, 100 тыс. шт., Nunhems",6214,null,0,"Фото","http://agroopt-market.ru/collection/nantskiy/product/semena-morkovi-laguna-f1-nunhems-nyunems",158070956]
["Семена моркови Маэстро F1, 100 тыс. шт. (1,6-1,8), Vilmorin",5586,null,0,"Фото","http://agroopt-market.ru/collection/nantskiy/product/maestro-f1-semena-morkovi-sortotip-nantskiy-vilmorin-vilmorin",147776458]
["Семена моркови Маэстро F1, 500 тыс. шт. (1,6-1,8), Vilmorin",27928,null,0,"Фото","http://agroopt-market.ru/collection/nantskiy/product/maestro-f1-semena-morkovi-sortotip-nantskiy-vilmorin-vilmorin",147776460]
["Семена моркови Маэстро F1, 500 тыс. шт. (1,8-2,0), Vilmorin",27928,null,0,"Фото","http://agroopt-market.ru/collection/nantskiy/product/maestro-f1-semena-morkovi-sortotip-nantskiy-vilmorin-vilmorin",147776461]
["Семена моркови Мирафлорес F1,100 000 шт, Clause",4727,null,0,"Фото","-","ПРН"]
["Семена моркови Мирна F1, 1 млн. шт., Seminis",44726,null,0,"Фото","http://agroopt-market.ru/collection/nantskiy/product/mirna-f1-semena-morkovi-sortotip-nantskiy-seminis-seminis",147776456]
["Семена моркови Мирна F1, 200 тыс. шт., Seminis",9270,null,0,"Фото","http://agroopt-market.ru/collection/nantskiy/product/mirna-f1-semena-morkovi-sortotip-nantskiy-seminis-seminis",147776462]
["Семена моркови Монанта, 100 тыс. шт. (1,6-1,8), Rijk Zwaan",1930,null,0,"Фото","http://agroopt-market.ru/collection/nantskiy/product/monanta-semena-morkovi-sortotip-nantskiy-rijk-zwaan-rayk-tsvaan",147776468]
["Семена моркови Монанта, 250 гр, Rijk Zwaan",1100,null,0,"Фото","http://agroopt-market.ru/collection/nantskiy/product/monanta-semena-morkovi-sortotip-nantskiy-rijk-zwaan-rayk-tsvaan",147776471]
["Семена моркови Монанта, 500 гр, Rijk Zwaan",2210,null,0,"Фото","http://agroopt-market.ru/collection/nantskiy/product/monanta-semena-morkovi-sortotip-nantskiy-rijk-zwaan-rayk-tsvaan",147776472]
["Семена моркови Морелия F1, 100 тыс. шт. (1,6-1,8), Rijk Zwaan",3970,null,0,"Фото","http://agroopt-market.ru/collection/nantskiy/product/moreliya-f1-semena-morkovi-sortotip-nantskiy-rijk-zwaan-rayk-tsvaan",147776256]
["Семена моркови Морелия F1, 100 тыс. шт. (1,8-2,0), Rijk Zwaan",4250,null,0,"Фото","http://agroopt-market.ru/collection/nantskiy/product/moreliya-f1-semena-morkovi-sortotip-nantskiy-rijk-zwaan-rayk-tsvaan",147776254]
["Семена моркови Морелия F1, 25 тыс. шт. (1,6-1,8), Rijk Zwaan",990,null,0,"Фото","http://agroopt-market.ru/collection/nantskiy/product/moreliya-f1-semena-morkovi-sortotip-nantskiy-rijk-zwaan-rayk-tsvaan",147776267]
["Семена моркови Морелия F1, 25 тыс. шт. (1,8-2,0), Rijk Zwaan",1060,null,0,"Фото","http://agroopt-market.ru/collection/nantskiy/product/semena-morkovi-moreliya-f1-rijk-zwaan-rayk-tsvaan",158070819]
["Семена моркови Навал F1, 100 тыс. шт. (1,6-1,8), Bejo",5130,null,0,"Фото","http://agroopt-market.ru/collection/nantskiy/product/naval-f1-semena-morkovi-sortotip-nantskiy-bejo-beyo",147776382]
["Семена моркови Навал F1, 100 тыс. шт. (1,8-2,0), Bejo",5510,null,0,"Фото","http://agroopt-market.ru/collection/nantskiy/product/naval-f1-semena-morkovi-sortotip-nantskiy-bejo-beyo",147776383]
["Семена моркови Навал F1, 100 тыс. шт. (2,0-2,2-2,4-2,6), Bejo",5830,null,0,"Фото","http://agroopt-market.ru/collection/nantskiy/product/naval-f1-semena-morkovi-sortotip-nantskiy-bejo-beyo",147776385]
["Семена моркови Найджел F1, 100 тыс. шт. (1,6-1,8), Bejo",5130,null,0,"Фото","http://agroopt-market.ru/collection/nantskiy/product/naydzhel-f1-semena-morkovi-sortotip-nantskiy-bejo-beyo",147776308]
["Семена моркови Найджел F1, 100 тыс. шт. (1,8-2,0), Bejo",5510,null,0,"Фото","http://agroopt-market.ru/collection/nantskiy/product/naydzhel-f1-semena-morkovi-sortotip-nantskiy-bejo-beyo",147776309]
["Семена моркови Найджел F1, 100 тыс. шт. (2,0-2,2-2,4-2,6), Bejo",5830,null,0,"Фото","http://agroopt-market.ru/collection/nantskiy/product/naydzhel-f1-semena-morkovi-sortotip-nantskiy-bejo-beyo",147776311]
["Семена моркови Найроби F1, 100 тыс. шт. (1,6-1,8), Bejo",5130,null,0,"Фото","http://agroopt-market.ru/collection/nantskiy/product/nayrobi-f1-semena-morkovi-sortotip-nantskiy-bejo-beyo",147776295]
["Семена моркови Найроби F1, 100 тыс. шт. (1,8-2,0), Bejo",5510,null,0,"Фото","http://agroopt-market.ru/collection/nantskiy/product/nayrobi-f1-semena-morkovi-sortotip-nantskiy-bejo-beyo",147776297]
["Семена моркови Найроби F1, 100 тыс. шт. (2,0-2,2-2,4-2,6), Bejo",5830,null,0,"Фото","http://agroopt-market.ru/collection/nantskiy/product/nayrobi-f1-semena-morkovi-sortotip-nantskiy-bejo-beyo",147776298]
["Семена моркови Намдал F1, 100 тыс. шт. (1,6-1,8), Bejo",5130,null,0,"Фото","http://agroopt-market.ru/collection/nantskiy/product/namdal-f1-semena-morkovi-sortotip-nantskiy-bejo-beyo",147776277]
["Семена моркови Намдал F1, 100 тыс. шт. (1,8-2,0), Bejo",5510,null,0,"Фото","http://agroopt-market.ru/collection/nantskiy/product/namdal-f1-semena-morkovi-sortotip-nantskiy-bejo-beyo",147776278]
["Семена моркови Намдал F1, 100 тыс. шт. (2,0-2,2-2,4-2,6), Bejo",5830,null,0,"Фото","http://agroopt-market.ru/collection/nantskiy/product/namdal-f1-semena-morkovi-sortotip-nantskiy-bejo-beyo",147776280]
["Семена моркови Намур F1, 100 тыс. шт. (1,6-1,8), Bejo",5130,null,0,"Фото","http://agroopt-market.ru/collection/nantskiy/product/namur-f1-semena-morkovi-sortotip-nantskiy-bejo-beyo",147776443]
["Семена моркови Намур F1, 100 тыс. шт. (1,8-2,0), Bejo",5510,null,0,"Фото","http://agroopt-market.ru/collection/nantskiy/product/namur-f1-semena-morkovi-sortotip-nantskiy-bejo-beyo",147776444]
["Семена моркови Намур F1, 100 тыс. шт. (2,0-2,2-2,4-2,6), Bejo",5830,null,0,"Фото","http://agroopt-market.ru/collection/nantskiy/product/namur-f1-semena-morkovi-sortotip-nantskiy-bejo-beyo",147776445]
["Семена моркови Нантская 4, 1 кг, Гавриш",3650,null,0,"Фото","http://agroopt-market.ru/collection/nantskiy/product/semena-morkovi-nantskaya-4-gavrish",158070952]
["Семена моркови Наполи F1, 100 тыс. шт. (1,6-1,8), Bejo",5130,null,0,"Фото","http://agroopt-market.ru/collection/nantskiy/product/napoli-f1-semena-morkovi-sortotip-nantskiy-bejo-beyo",147776261]
["Семена моркови Наполи F1, 100 тыс. шт. (1,8-2,0), Bejo",5510,null,0,"Фото","http://agroopt-market.ru/collection/nantskiy/product/napoli-f1-semena-morkovi-sortotip-nantskiy-bejo-beyo",147776262]
["Семена моркови Наполи F1, 100 тыс. шт. (2,0-2,2-2,4-2,6), Bejo",5830,null,0,"Фото","http://agroopt-market.ru/collection/nantskiy/product/napoli-f1-semena-morkovi-sortotip-nantskiy-bejo-beyo",147776264]
["Семена моркови Нарбонне F1, 100 тыс. шт. (1,6-1,8), Bejo",5130,null,0,"Фото","http://agroopt-market.ru/collection/nantskiy/product/narbonne-f1-semena-morkovi-sortotip-nantskiy-bejo-beyo",147776480]
["Семена моркови Нарбонне F1, 100 тыс. шт. (1,8-2,0), Bejo",5510,null,0,"Фото","http://agroopt-market.ru/collection/nantskiy/product/narbonne-f1-semena-morkovi-sortotip-nantskiy-bejo-beyo",147776481]
["Семена моркови Нарбонне F1, 100 тыс. шт. (2,0-2,2-2,4-2,6), Bejo",5830,null,0,"Фото","http://agroopt-market.ru/collection/nantskiy/product/narbonne-f1-semena-morkovi-sortotip-nantskiy-bejo-beyo",147776482]
["Семена моркови Наталья F1, 100 тыс. шт., Syngenta","по запросу",null,null,"Фото","http://agroopt-market.ru/collection/krupnobugorchatyy-3/product/semena-ogurtsa-pcheloopylyaemogo-dolomit-f1-nunhems-nyunems-2",158071025]
["Семена моркови Натива F1, 100 тыс. шт., Sakata",4900,null,0,"Фото","http://agroopt-market.ru/collection/shantane/product/nativa-f1-semena-morkovi-sortotip-shantane-sakata-sakata",147776475]
["Семена моркови Натуна F1, 100 тыс. шт. (1,6-1,8), Bejo",5240,null,0,"Фото","http://agroopt-market.ru/collection/nantskiy/product/natuna-f1-semena-morkovi-sortotip-nantskiy-bejo-beyo",147776378]
["Семена моркови Натуна F1, 100 тыс. шт. (1,8-2,0), Bejo",5610,null,0,"Фото","http://agroopt-market.ru/collection/nantskiy/product/natuna-f1-semena-morkovi-sortotip-nantskiy-bejo-beyo",147776379]
["Семена моркови Натуна F1, 100 тыс. шт. (2,0-2,2-2,4-2,6), Bejo",5930,null,0,"Фото","http://agroopt-market.ru/collection/nantskiy/product/natuna-f1-semena-morkovi-sortotip-nantskiy-bejo-beyo",147776380]
["Семена моркови Наярит F1, 100 тыс. шт. (1,6-1,8), Bejo",4480,null,0,"Фото","http://agroopt-market.ru/collection/nantskiy/product/nayarit-f1-semena-morkovi-sortotip-nantskiy-bejo-beyo",147776409]
["Семена моркови Наярит F1, 100 тыс. шт. (1,8-2,0), Bejo",4860,null,0,"Фото","http://agroopt-market.ru/collection/nantskiy/product/nayarit-f1-semena-morkovi-sortotip-nantskiy-bejo-beyo",147776410]
["Семена моркови Наярит F1, 100 тыс. шт. (2,0-2,2-2,4-2,6), Bejo",5180,null,0,"Фото","http://agroopt-market.ru/collection/nantskiy/product/nayarit-f1-semena-morkovi-sortotip-nantskiy-bejo-beyo",147776411]
["Семена моркови Небула F1, 1 млн. шт., Seminis",49176,null,0,"Фото","http://agroopt-market.ru/collection/nantskiy/product/nebula-f1-semena-morkovi-sortotip-nantskiy-seminis-seminis",147776435]
["Семена моркови Небула F1, 100 тыс. шт., Seminis",4918,null,0,"Фото","http://agroopt-market.ru/collection/nantskiy/product/nebula-f1-semena-morkovi-sortotip-nantskiy-seminis-seminis",152242035]
["Семена моркови Небула F1, 200 тыс. шт., Seminis",10159,null,{"$f":"B927*C927","v":0},"Фото","http://agroopt-market.ru/collection/nantskiy/product/nebula-f1-semena-morkovi-sortotip-nantskiy-seminis-seminis",147776436]
["Семена моркови Нектар F1, 100 тыс. шт. (1,6-1,8), Bejo",5130,null,0,{"$f":"HYPERLINK(F928,\"Фото\")","v":"Фото"},"http://agroopt-market.ru/collection/nantskiy/product/nektar-f1-semena-morkovi-sortotip-nantskiy-bejo-beyo",147776303]
["Семена моркови Нектар F1, 100 тыс. шт. (1,8-2,0), Bejo",5510,null,0,"Фото","http://agroopt-market.ru/collection/nantskiy/product/nektar-f1-semena-morkovi-sortotip-nantskiy-bejo-beyo",147776305]
["Семена моркови Нектар F1, 100 тыс. шт. (2,0-2,2-2,4-2,6), Bejo",5830,null,0,"Фото","http://agroopt-market.ru/collection/nantskiy/product/nektar-f1-semena-morkovi-sortotip-nantskiy-bejo-beyo",147776306]
["Семена моркови Неликс F1, 100 тыс. шт. (1,6-1,8), Bejo",5130,null,0,"Фото","http://agroopt-market.ru/collection/nantskiy/product/neliks-f1-semena-morkovi-sortotip-nantskiy-bejo-beyo",147776413]
["Семена моркови Неликс F1, 100 тыс. шт. (1,8-2,0), Bejo",5510,null,0,"Фото","http://agroopt-market.ru/collection/nantskiy/product/neliks-f1-semena-morkovi-sortotip-nantskiy-bejo-beyo",147776414]
["Семена моркови Неликс F1, 100 тыс. шт. (2,0-2,2-2,4-2,6), Bejo",5830,null,0,"Фото","http://agroopt-market.ru/collection/nantskiy/product/neliks-f1-semena-morkovi-sortotip-nantskiy-bejo-beyo",147776416]
["Семена моркови Нерак F1, 100 тыс. шт. (1,6-1,8), Bejo",5320,null,0,"Фото","http://agroopt-market.ru/collection/nantskiy/product/nerak-f1-semena-morkovi-sortotip-nantskiy-bejo-beyo",147776373]
["Семена моркови Нерак F1, 100 тыс. шт. (1,8-2,0), Bejo",5700,null,0,"Фото","http://agroopt-market.ru/collection/nantskiy/product/nerak-f1-semena-morkovi-sortotip-nantskiy-bejo-beyo",147776374]
["Семена моркови Нерак F1, 100 тыс. шт. (2,0-2,2-2,4-2,6), Bejo",6020,null,0,"Фото","http://agroopt-market.ru/collection/nantskiy/product/nerak-f1-semena-morkovi-sortotip-nantskiy-bejo-beyo",147776376]
["Семена моркови Ниагара F1, 100 тыс. шт. (1,6-1,8), Bejo",5130,null,0,"Фото","http://agroopt-market.ru/collection/nantskiy/product/niagara-f1-semena-morkovi-sortotip-nantskiy-bejo-beyo",147776269]
["Семена моркови Ниагара F1, 100 тыс. шт. (1,8-2,0), Bejo",5510,null,0,"Фото","http://agroopt-market.ru/collection/nantskiy/product/niagara-f1-semena-morkovi-sortotip-nantskiy-bejo-beyo",147776270]
["Семена моркови Ниагара F1, 100 тыс. шт. (2,0-2,2-2,4-2,6), Bejo",5830,null,0,"Фото","http://agroopt-market.ru/collection/nantskiy/product/niagara-f1-semena-morkovi-sortotip-nantskiy-bejo-beyo",147776271]
["Семена моркови Ниланд F1, 100 тыс. шт. (1,6-1,8), Bejo",5320,null,0,"Фото","http://agroopt-market.ru/collection/nantskiy/product/niland-f1-semena-morkovi-sortotip-nantskiy-bejo-beyo",147776422]
["Семена моркови Ниланд F1, 100 тыс. шт. (1,8-2,0), Bejo",5700,null,0,"Фото","http://agroopt-market.ru/collection/nantskiy/product/niland-f1-semena-morkovi-sortotip-nantskiy-bejo-beyo",147776423]
["Семена моркови Ниланд F1, 100 тыс. шт. (2,0-2,2-2,4-2,6), Bejo",6020,null,0,"Фото","http://agroopt-market.ru/collection/nantskiy/product/niland-f1-semena-morkovi-sortotip-nantskiy-bejo-beyo",147776424]
["Семена моркови Нирвана, 1 кг, Гавриш",3800,null,0,"Фото","http://agroopt-market.ru/collection/nantskiy/product/semena-morkovi-nirvana-gavrish",158070953]
["Семена моркови Нирим F1, 100 тыс. шт. (1,6-1,8), Bejo",5130,null,0,"Фото","http://agroopt-market.ru/collection/nantskiy/product/nirim-f1-semena-morkovi-sortotip-nantskiy-bejo-beyo",147776440]
["Семена моркови Нирим F1, 100 тыс. шт. (1,8-2,0), Bejo",5510,null,0,"Фото","http://agroopt-market.ru/collection/nantskiy/product/nirim-f1-semena-morkovi-sortotip-nantskiy-bejo-beyo",147776441]
["Семена моркови Нирим F1, 100 тыс. шт. (2,0-2,2-2,4-2,6), Bejo",5830,null,0,"Фото","http://agroopt-market.ru/collection/nantskiy/product/nirim-f1-semena-morkovi-sortotip-nantskiy-bejo-beyo",147776442]
["Семена моркови Номинатор F1, 100 тыс. шт. (1,6-1,8), Bejo",5130,null,0,"Фото","http://agroopt-market.ru/collection/nantskiy/product/nominator-f1-semena-morkovi-sortotip-nantskiy-bejo-beyo",147776348]
["Семена моркови Номинатор F1, 100 тыс. шт. (1,8-2,0), Bejo",5510,null,0,"Фото","http://agroopt-market.ru/collection/nantskiy/product/nominator-f1-semena-morkovi-sortotip-nantskiy-bejo-beyo",147776349]
["Семена моркови Номинатор F1, 100 тыс. шт. (2,0-2,2-2,4-2,6), Bejo",5830,null,0,"Фото","http://agroopt-market.ru/collection/nantskiy/product/nominator-f1-semena-morkovi-sortotip-nantskiy-bejo-beyo",147776350]
["Семена моркови Норвегия F1, 100 тыс. шт. (1,6-1,8), Bejo",5320,null,0,"Фото","http://agroopt-market.ru/collection/nantskiy/product/norvegiya-f1-semena-morkovi-sortotip-nantskiy-bejo-beyo",147776353]
["Семена моркови Норвегия F1, 100 тыс. шт. (1,8-2,0), Bejo",5700,null,0,"Фото","http://agroopt-market.ru/collection/nantskiy/product/norvegiya-f1-semena-morkovi-sortotip-nantskiy-bejo-beyo",147776355]
["Семена моркови Норвегия F1, 100 тыс. шт. (2,0-2,2-2,4-2,6), Bejo",6020,null,0,"Фото","http://agroopt-market.ru/collection/nantskiy/product/norvegiya-f1-semena-morkovi-sortotip-nantskiy-bejo-beyo",147776356]
["Семена моркови Норволк F1, 100 тыс. шт. (1,6-1,8), Bejo",5430,null,0,"Фото","http://agroopt-market.ru/collection/nantskiy/product/norvolk-f1-semena-morkovi-sortotip-nantskiy-bejo-beyo",147776396]
["Семена моркови Норволк F1, 100 тыс. шт. (1,8-2,0), Bejo",5810,null,0,"Фото","http://agroopt-market.ru/collection/nantskiy/product/norvolk-f1-semena-morkovi-sortotip-nantskiy-bejo-beyo",147776397]
["Семена моркови Норволк F1, 100 тыс. шт. (2,0-2,2-2,4-2,6), Bejo",6130,null,0,"Фото","http://agroopt-market.ru/collection/nantskiy/product/norvolk-f1-semena-morkovi-sortotip-nantskiy-bejo-beyo",147776398]
["Семена моркови Ньюкасл F1, 100 тыс. шт. (1,6-1,8), Bejo",5130,null,0,"Фото","http://agroopt-market.ru/collection/nantskiy/product/nyukasl-f1-semena-morkovi-sortotip-nantskiy-bejo-beyo",147776400]
["Семена моркови Ньюкасл F1, 100 тыс. шт. (1,8-2,0), Bejo",5510,null,0,"Фото","http://agroopt-market.ru/collection/nantskiy/product/nyukasl-f1-semena-morkovi-sortotip-nantskiy-bejo-beyo",147776401]
["Семена моркови Ньюкасл F1, 100 тыс. шт. (2,0-2,2-2,4-2,6), Bejo",5830,null,0,"Фото","http://agroopt-market.ru/collection/nantskiy/product/nyukasl-f1-semena-morkovi-sortotip-nantskiy-bejo-beyo",147776402]
["Семена моркови Ньюхолл F1, 100 тыс. шт. (1,6-1,8), Bejo",5130,null,0,"Фото","http://agroopt-market.ru/collection/nantskiy/product/nyuholl-f1-semena-morkovi-sortotip-nantskiy-bejo-beyo",147776417]
["Семена моркови Ньюхолл F1, 100 тыс. шт. (1,8-2,0), Bejo",5510,null,0,"Фото","http://agroopt-market.ru/collection/nantskiy/product/nyuholl-f1-semena-morkovi-sortotip-nantskiy-bejo-beyo",147776419]
["Семена моркови Ньюхолл F1, 100 тыс. шт. (2,0-2,2-2,4-2,6), Bejo",5830,null,0,"Фото","http://agroopt-market.ru/collection/nantskiy/product/nyuholl-f1-semena-morkovi-sortotip-nantskiy-bejo-beyo",147776420]
["Семена моркови Октаво F1, 500 тыс. шт., Vilmorin",28615,null,0,"Фото","http://agroopt-market.ru/collection/nantskiy/product/oktavo-f1-semena-morkovi-sortotip-nantskiy-vilmorin-vilmorin",147776293]
["Семена моркови Олимпо F1, 100 тыс. шт. (1,6-1,8), Vilmorin",5050,null,0,"Фото","http://agroopt-market.ru/collection/shantane/product/olimpo-f1-semena-morkovi-sortotip-nantskiy-vilmorin-vilmorin",147776274]
["Семена моркови Олимпо F1, 100 тыс. шт. (1,8-2,0), Vilmorin",5050,null,0,"Фото","http://agroopt-market.ru/collection/shantane/product/olimpo-f1-semena-morkovi-sortotip-nantskiy-vilmorin-vilmorin",147776275]
["Семена моркови Олимпо F1, 100 тыс. шт. (2,0-2,2), Vilmorin",5050,null,0,"Фото","http://agroopt-market.ru/collection/shantane/product/olimpo-f1-semena-morkovi-sortotip-nantskiy-vilmorin-vilmorin",147776281]
["Семена моркови Олимпо F1, 100 тыс. шт. (2,2-2,4), Vilmorin",5050,null,0,"Фото","http://agroopt-market.ru/collection/shantane/product/olimpo-f1-semena-morkovi-sortotip-nantskiy-vilmorin-vilmorin",147776282]
["Семена моркови Олимпо F1, 100 тыс. шт. (2,4-2,6), Vilmorin",5050,null,0,"Фото","http://agroopt-market.ru/collection/shantane/product/olimpo-f1-semena-morkovi-sortotip-nantskiy-vilmorin-vilmorin",147776284]
["Семена моркови Олимпо F1, 2,4-2,6 мм, 500 000 шт, Vilmorin",23411,null,0,"Фото","-","ПРН"]
["Семена моркови Олимпо F1, 500 тыс. шт. (1,8-2,0), Vilmorin",23411,null,0,"Фото","http://agroopt-market.ru/collection/shantane/product/olimpo-f1-semena-morkovi-sortotip-nantskiy-vilmorin-vilmorin",147776285]
["Семена моркови Олимпо F1, 500 тыс. шт. (2,0-2,2), Vilmorin",23411,null,0,"Фото","http://agroopt-market.ru/collection/shantane/product/olimpo-f1-semena-morkovi-sortotip-nantskiy-vilmorin-vilmorin",147776287]
["Семена моркови Олимпо F1, 500 тыс. шт. (2,2-2,4), Vilmorin",23411,null,0,"Фото","http://agroopt-market.ru/collection/shantane/product/olimpo-f1-semena-morkovi-sortotip-nantskiy-vilmorin-vilmorin",147776288]
["Семена моркови Престо F1, 100 тыс. шт. (1,8-2,0), Vilmorin",4853,null,0,"Фото","http://agroopt-market.ru/collection/nantskiy/product/presto-f1-semena-morkovi-sortotip-nantskiy-vilmorin-vilmorin",147776300]
["Семена моркови Престо F1, 100 тыс. шт. (2,0-2,2), Vilmorin",4853,null,0,"Фото","http://agroopt-market.ru/collection/nantskiy/product/presto-f1-semena-morkovi-sortotip-nantskiy-vilmorin-vilmorin",147776301]
["Семена моркови Престо F1, 500 тыс. шт. (1,8-2,0), Vilmorin",24261,null,0,"Фото","http://agroopt-market.ru/collection/nantskiy/product/presto-f1-semena-morkovi-sortotip-nantskiy-vilmorin-vilmorin",147776312]
["Семена моркови Престо F1, 500 тыс. шт. (2,0-2,2), Vilmorin",24261,null,0,"Фото","http://agroopt-market.ru/collection/nantskiy/product/presto-f1-semena-morkovi-sortotip-nantskiy-vilmorin-vilmorin",147776313]
["Семена моркови Проминанс F1, 100 тыс. шт. (1,4-1,6), Takii",4200,null,0,"Фото","http://agroopt-market.ru/collection/shantane/product/prominans-f1-ti-114-semena-morkovi-sortotip-shantane-takii-taki",147776477]
["Семена моркови Проминанс F1, 100 тыс. шт. (1,6-1,8), Takii",4340,null,0,"Фото","http://agroopt-market.ru/collection/shantane/product/prominans-f1-ti-114-semena-morkovi-sortotip-shantane-takii-taki",147776478]
["Семена моркови Проминанс F1, 100 тыс. шт. (1,8-2,0), Takii",4450,null,0,"Фото","http://agroopt-market.ru/collection/shantane/product/prominans-f1-ti-114-semena-morkovi-sortotip-shantane-takii-taki",147776483]
["Семена моркови Проминанс F1, 100 тыс. шт. (2,0-2,2), Takii",4680,null,0,"Фото","http://agroopt-market.ru/collection/shantane/product/prominans-f1-ti-114-semena-morkovi-sortotip-shantane-takii-taki",147776485]
["Семена моркови Проминанс F1, 100 тыс. шт. (2,2-2,4), Takii",4890,null,0,"Фото","http://agroopt-market.ru/collection/shantane/product/prominans-f1-ti-114-semena-morkovi-sortotip-shantane-takii-taki",147776486]
["Семена моркови Проминанс F1, 100 тыс. шт. (2,4-2,6), Takii",5150,null,0,"Фото","http://agroopt-market.ru/collection/shantane/product/prominans-f1-ti-114-semena-morkovi-sortotip-shantane-takii-taki",147776487]
["Семена моркови Проминанс F1, 100 тыс. шт. (2,6-2,8), Takii",5250,null,0,"Фото","http://agroopt-market.ru/collection/shantane/product/prominans-f1-ti-114-semena-morkovi-sortotip-shantane-takii-taki",147776488]
["Семена моркови Ред Кор, 1 кг, Sakata",5000,null,0,"Фото","http://agroopt-market.ru/collection/shantane/product/red-kor-sakata-semena-morkovi-sortotip-shantane-sakata-sakata",147776616]
["Семена моркови Ред Кор, 1 кг, Гавриш",3650,null,0,"Фото","http://agroopt-market.ru/collection/shantane/product/semena-morkovi-red-kor-gavrish",158070954]
["Семена моркови Ред Кор, 100 тыс. шт., Sakata",3200,null,0,"Фото","http://agroopt-market.ru/collection/shantane/product/red-kor-sakata-semena-morkovi-sortotip-shantane-sakata-sakata",147782212]
["Семена моркови Ред кор, 500 гр, Clause",2617,null,0,"Фото","http://agroopt-market.ru/collection/shantane/product/red-kor-semena-morkovi-sortotip-shantane-clause-klos",147776619]
["Семена моркови Ред Кор, 500 тыс. (банка), Vilmorin",3540,null,0,"Фото","http://agroopt-market.ru/collection/shantane/product/red-kor-semena-morkovi-sortotip-shantane-vilmorin-vilmorin",147776618]
["Семена моркови Рига рз F1, 1 млн. шт. ФР>1,6, Rijk Zwaan",38092,null,0,"Фото","http://agroopt-market.ru/collection/nantskiy/product/riga-rz-f1-semena-morkovi-sortotip-nantskiy-rijk-zwaan-rayk-tsvaan",147776352]
["Семена моркови Рига рз F1, 100 тыс. шт. ФР>1,6, Rijk Zwaan",3809,null,0,"Фото","http://agroopt-market.ru/collection/nantskiy/product/riga-rz-f1-semena-morkovi-sortotip-nantskiy-rijk-zwaan-rayk-tsvaan",147776351]
["Семена моркови Рига рз F1, 25 тыс. шт. ФР>1,6, Rijk Zwaan",952,null,0,"Фото","http://agroopt-market.ru/collection/nantskiy/product/riga-rz-f1-semena-morkovi-sortotip-nantskiy-rijk-zwaan-rayk-tsvaan",147776346]
["Семена моркови Ройал Форто, 1 кг, Seminis",5987,null,{"$f":"B991*C991","v":0},"Фото","http://agroopt-market.ru/collection/nantskiy/product/royal-forto-semena-morkovi-sortotip-nantskiy-seminis-seminis",147776362]
["Семена моркови Ромоса, 500 гр, Bejo",3290,null,0,{"$f":"HYPERLINK(F992,\"Фото\")","v":"Фото"},"http://agroopt-market.ru/collection/nantskiy/product/romosa-semena-morkovi-sortotip-nantskiy-bejo-beyo",147776345]
["Семена моркови Саманта F1, 100 тыс. шт., Sakata",4800,null,0,"Фото","http://agroopt-market.ru/collection/nantskiy/product/samanta-f1-semena-morkovi-sortotip-nantskiy-sakata-sakata",147776537]
["Семена моркови Самсон, 500 гр, Bejo",3220,null,0,"Фото","http://agroopt-market.ru/collection/nantskiy/product/samson-semena-morkovi-sortotip-nantskiy-bejo-beyo",147776438]
["Семена моркови СВ 3118 F1, 1 млн. шт. (1,6-1,8), Seminis",49896,null,0,"Фото","http://agroopt-market.ru/collection/shantane/product/sv-3118-dch-f1-semena-morkovi-sortotip-shantane-seminis-seminis",147776605]
["Семена моркови СВ 3118 F1, 1 млн. шт. (1,8-2,0), Seminis",52164,null,0,"Фото","http://agroopt-market.ru/collection/shantane/product/sv-3118-dch-f1-semena-morkovi-sortotip-shantane-seminis-seminis",147776606]
["Семена моркови СВ 3118 F1, 1 млн. шт. (2,0 и выше), Seminis",58212,null,0,"Фото","http://agroopt-market.ru/collection/shantane/product/sv-3118-dch-f1-semena-morkovi-sortotip-shantane-seminis-seminis",147776607]
["Семена моркови СВ 3118 F1, 200 тыс. шт. (1,6-1,8), Seminis",10310,null,0,"Фото","http://agroopt-market.ru/collection/shantane/product/sv-3118-dch-f1-semena-morkovi-sortotip-shantane-seminis-seminis",147776608]
["Семена моркови СВ 3118 F1, 200 тыс. шт. (1,8-2,0), Seminis",10764,null,0,"Фото","http://agroopt-market.ru/collection/shantane/product/sv-3118-dch-f1-semena-morkovi-sortotip-shantane-seminis-seminis",147776610]
["Семена моркови СВ 3118 F1, 200 тыс. шт. (2,0 и выше), Seminis",11642,null,0,"Фото","http://agroopt-market.ru/collection/shantane/product/sv-3118-dch-f1-semena-morkovi-sortotip-shantane-seminis-seminis",147776611]
["Семена моркови СВ 3118 F1, 250 тыс. шт. (1,6-1,8), Seminis",12578,null,0,"Фото","http://agroopt-market.ru/collection/shantane/product/sv-3118-dch-f1-semena-morkovi-sortotip-shantane-seminis-seminis",152243208]
["Семена моркови СВ 3118 F1, 250 тыс. шт. (2,0 и выше), Seminis",11952,null,0,"Фото","http://agroopt-market.ru/collection/shantane/product/sv-3118-dch-f1-semena-morkovi-sortotip-shantane-seminis-seminis",152243162]
["Семена моркови Сильвано F1, 100 тыс. шт. (1,6-1,8), Vilmorin",5164,null,0,"Фото","http://agroopt-market.ru/collection/shantane/product/silvano-f1-semena-morkovi-sortotip-shantane-vilmorin-vilmorin",147776509]
["Семена моркови Сильвано F1, 100 тыс. шт. (2,0-2,2), Vilmorin",5164,null,0,"Фото","http://agroopt-market.ru/collection/shantane/product/silvano-f1-semena-morkovi-sortotip-shantane-vilmorin-vilmorin",147776512]
["Семена моркови Сильвано F1, 100 тыс. шт. (2,2-2,4), Vilmorin",5164,null,0,"Фото","http://agroopt-market.ru/collection/shantane/product/silvano-f1-semena-morkovi-sortotip-shantane-vilmorin-vilmorin",147776514]
["Семена моркови Сильвано F1, 100 тыс. шт. (2,4-2,6), Vilmorin",5164,null,0,"Фото","http://agroopt-market.ru/collection/shantane/product/silvano-f1-semena-morkovi-sortotip-shantane-vilmorin-vilmorin",147776515]
["Семена моркови Сильвано F1, 500 тыс. шт. (1,6-1,8), Vilmorin",25337,null,0,"Фото","http://agroopt-market.ru/collection/shantane/product/silvano-f1-semena-morkovi-sortotip-shantane-vilmorin-vilmorin",147776516]
["Семена моркови Сильвано F1, 500 тыс. шт. (1,8-2,0), Vilmorin",25337,null,0,"Фото","http://agroopt-market.ru/collection/shantane/product/silvano-f1-semena-morkovi-sortotip-shantane-vilmorin-vilmorin",147776517]
["Семена моркови Сильвано F1, 500 тыс. шт. (2,0-2,2), Vilmorin",25337,null,0,"Фото","http://agroopt-market.ru/collection/shantane/product/silvano-f1-semena-morkovi-sortotip-shantane-vilmorin-vilmorin",147776518]
["Семена моркови Сильвано F1, 500 тыс. шт. (2,2-2,4), Vilmorin",25337,null,0,"Фото","http://agroopt-market.ru/collection/shantane/product/silvano-f1-semena-morkovi-sortotip-shantane-vilmorin-vilmorin",147776520]
["Семена моркови Сопрано F1, 100 тыс. шт. (1,6-1,8), Vilmorin",5586,null,0,"Фото","http://agroopt-market.ru/collection/nantskiy/product/soprano-f1-semena-morkovi-sortotip-nantskiy-vilmorin-vilmorin",147776316]
["Семена моркови Сопрано F1, 100 тыс. шт. (1,8-2,0), Vilmorin",5586,null,0,"Фото","http://agroopt-market.ru/collection/nantskiy/product/soprano-f1-semena-morkovi-sortotip-nantskiy-vilmorin-vilmorin",147776317]
["Семена моркови Сопрано F1, 100 тыс. шт. (2,0-2,2), Vilmorin",5586,null,0,"Фото","http://agroopt-market.ru/collection/nantskiy/product/soprano-f1-semena-morkovi-sortotip-nantskiy-vilmorin-vilmorin",147776319]
["Семена моркови Сопрано F1, 500 тыс. шт. (1,8-2,0), Vilmorin",27928,null,0,"Фото","http://agroopt-market.ru/collection/nantskiy/product/soprano-f1-semena-morkovi-sortotip-nantskiy-vilmorin-vilmorin",147776322]
["Семена моркови Сопрано F1, 500 тыс. шт. (2,0-2,2), Vilmorin",27928,null,0,"Фото","http://agroopt-market.ru/collection/nantskiy/product/soprano-f1-semena-morkovi-sortotip-nantskiy-vilmorin-vilmorin",147776324]
["Семена моркови Сопрано F1,VS, 1,6-1,8 мм, 500 000 шт, Vilmorin",34910,null,0,"Фото","-","ПРН"]
["Семена моркови Тангерина F1, 100 тыс. шт. (1,4-1,6), Takii",4200,null,0,"Фото","http://agroopt-market.ru/collection/shantane/product/tangerina-f1-t-825-semena-morkovi-sortotip-shantane-takii-taki",147776489]
["Семена моркови Тангерина F1, 100 тыс. шт. (1,6-1,8), Takii",4340,null,0,"Фото","http://agroopt-market.ru/collection/shantane/product/tangerina-f1-t-825-semena-morkovi-sortotip-shantane-takii-taki",147776492]
["Семена моркови Тангерина F1, 100 тыс. шт. (1,8-2,0), Takii",4450,null,0,"Фото","http://agroopt-market.ru/collection/shantane/product/tangerina-f1-t-825-semena-morkovi-sortotip-shantane-takii-taki",147776493]
["Семена моркови Тангерина F1, 100 тыс. шт. (2,0-2,2), Takii",4680,null,0,"Фото","http://agroopt-market.ru/collection/shantane/product/tangerina-f1-t-825-semena-morkovi-sortotip-shantane-takii-taki",147776494]
["Семена моркови Тангерина F1, 100 тыс. шт. (2,2-2,4), Takii",4890,null,0,"Фото","http://agroopt-market.ru/collection/shantane/product/tangerina-f1-t-825-semena-morkovi-sortotip-shantane-takii-taki",147776495]
["Семена моркови Тангерина F1, 100 тыс. шт. (2,4-2,6), Takii",5150,null,0,"Фото","http://agroopt-market.ru/collection/shantane/product/tangerina-f1-t-825-semena-morkovi-sortotip-shantane-takii-taki",147776496]
["Семена моркови Тангерина F1, 100 тыс. шт. (2,6-2,8), Takii",5250,null,0,"Фото","http://agroopt-market.ru/collection/shantane/product/tangerina-f1-t-825-semena-morkovi-sortotip-shantane-takii-taki",147776498]
["Семена моркови Темпо F1, 100 тыс. шт., Vilmorin",5406,null,0,"Фото","http://agroopt-market.ru/collection/nantskiy/product/tempo-f1-semena-morkovi-sortotip-nantskiy-vilmorin-vilmorin",147776251]
["Семена моркови Темпо F1, 500 тыс. шт., Vilmorin",27030,null,0,"Фото","http://agroopt-market.ru/collection/nantskiy/product/tempo-f1-semena-morkovi-sortotip-nantskiy-vilmorin-vilmorin",147776252]
["Семена моркови Терракота F1, 250 тыс. шт., Takii",11700,null,0,"Фото","http://agroopt-market.ru/collection/nantskiy/product/terrakota-f1-semena-morkovi-sortotip-nantskiy-takii-taki",147776534]
["Семена моркови Тито, 500 гр, Hazera",2600,null,0,"Фото","http://agroopt-market.ru/collection/nantskiy/product/tito-semena-morkovi-sortotip-nantskiy-hazera-hazera",147776255]
["Семена моркови Фидра F1, 100 тыс. шт. (1,6-1,8), Rijk Zwaan",3970,null,0,"Фото","http://agroopt-market.ru/collection/nantskiy/product/semena-morkovi-fidra-f1-rijk-zwaan-rayk-tsvaan",158070820]
["Семена моркови Фидра F1, 100 тыс. шт. (1,8-2,0), Rijk Zwaan",4250,null,0,"Фото","http://agroopt-market.ru/collection/nantskiy/product/fidra-f1-semena-morkovi-sortotip-nantskiy-rijk-zwaan-rayk-tsvaan",147776341]
["Семена моркови Фидра F1, 25 тыс. шт. (1,6-1,8), Rijk Zwaan",990,null,0,"Фото","http://agroopt-market.ru/collection/nantskiy/product/fidra-f1-semena-morkovi-sortotip-nantskiy-rijk-zwaan-rayk-tsvaan",147776343]
["Семена моркови Фидра F1, 25 тыс. шт. (1,8-2,0), Rijk Zwaan",1060,null,0,"Фото","http://agroopt-market.ru/collection/nantskiy/product/fidra-f1-semena-morkovi-sortotip-nantskiy-rijk-zwaan-rayk-tsvaan",147776340]
["Семена моркови Чемпион F1, 100 тыс. шт., Syngenta","по запросу",null,null,"Фото","http://agroopt-market.ru/collection/melkobugorchatyy-3/product/semena-ogurtsa-pcheloopylyaemogo-profi-f1-nunhems-nyunems",158071028]
["Семена моркови Шантанэ 2461, 1 кг, Гавриш",2900,null,0,"Фото","http://agroopt-market.ru/collection/shantane/product/semena-morkovi-shantane-2461-gavrish",158070955]
["Семена моркови Шантенэ а кур руж 2, 100 тыс. шт., Syngenta",848,null,0,"Фото","http://agroopt-market.ru/collection/shantane/product/shantene-a-kur-ruzh-2-semena-morkovi-sortotip-shantane-syngenta-singenta",147776528]
["Семена моркови Шантенэ-комет, 500 гр, Hazera",2800,null,0,"Фото","http://agroopt-market.ru/collection/shantane/product/shantene-komet-semena-morkovi-sortotip-shantane-hazera-hazera",147776511]
["Семена моркови Шантиклер F1, 100 тыс. шт., Sakata",3600,null,0,"Фото","http://agroopt-market.ru/collection/shantane/product/shantikler-f1-semena-morkovi-sortotip-shantane-sakata-sakata",147776490]
["Семена моркови Экзелсо F1, 100 тыс. шт. (1,6-1,8), Vilmorin",5640,null,0,"Фото","http://agroopt-market.ru/collection/nantskiy/product/ekzelso-f1-semena-morkovi-sortotip-nantskiy-vilmorin-vilmorin",147776241]
["Семена моркови Экзелсо F1, 100 тыс. шт. (1,8-2,0), Vilmorin",5640,null,0,"Фото","http://agroopt-market.ru/collection/nantskiy/product/ekzelso-f1-semena-morkovi-sortotip-nantskiy-vilmorin-vilmorin",147776242]
["Семена моркови Экзелсо F1, 500 тыс. шт. (1,8-2,0), Vilmorin",28200,null,0,"Фото","http://agroopt-market.ru/collection/nantskiy/product/ekzelso-f1-semena-morkovi-sortotip-nantskiy-vilmorin-vilmorin",147776246]
["Семена моркови Экзелсо F1, 500 тыс. шт. (2,0-2,2), Vilmorin",28200,null,0,"Фото","http://agroopt-market.ru/collection/nantskiy/product/ekzelso-f1-semena-morkovi-sortotip-nantskiy-vilmorin-vilmorin",147776247]
["Семена моркови Эксельсо F1,в оболочке vilseed, 1,8-2,0 мм, 500 000 шт, Vilmorin",35250,null,0,"Фото","-","ПРН"]
["Семена моркови Экстремо F1, 500 тыс. шт., Vilmorin",30527,null,0,"Фото","http://agroopt-market.ru/collection/nantskiy/product/ekstremo-f1-semena-morkovi-sortotip-nantskiy-vilmorin-vilmorin",147776291]
["Семена моркови Эмперор F1, 2,2-2,4 мм, 500 000 шт, Vilmorin",23193,null,0,"Фото","-","ПРН"]
["Семена моркови Эмперор F1, 500 тыс. шт. (1,8-2,0), Vilmorin",23193,null,0,"Фото","http://agroopt-market.ru/collection/shantane/product/emperor-f1-semena-morkovi-sortotip-shantane-vilmorin-vilmorin",147776548]
["Семена моркови Юкон F1, 100 тыс. шт., Syngenta",3817,null,0,"Фото","http://agroopt-market.ru/collection/nantskiy/product/yukon-f1-semena-morkovi-sortotip-nantskiy-syngenta-singenta",147776265]
["Мята","@",null,"@","@"]
["Семена мяты Ментол, 1 кг, Гавриш",147000,null,0,"Фото","http://agroopt-market.ru/collection/myata/product/semena-myaty-mentol-gavrish",158071213]
["Огурец","@",null,"@","@"]
["Семена огурца Бэби Мини F1, 250 шт., Seminis",796,null,0,"Фото","http://agroopt-market.ru/collection/gladkiy/product/bebi-mini-f1-semena-ogurtsa-korotkoplodnogo-seminis-seminis",147562997]
["Семена огурца Кохиба F1, 1000 шт, Hazera",16500,null,0,"Фото","-","ПРН"]
["Семена огурца Кохиба F1, 500 шт, Hazera",8250,null,0,"Фото","-","ПРН"]
["Семена огурца Лахиб F1,1 000 шт, Sakata",6800,null,0,"Фото","-","ПРН"]
["Семена огурца Магдалена F1, 250 шт., Seminis",648,null,0,"Фото","http://agroopt-market.ru/collection/bugorchatyy/product/magdalena-f1-semena-ogurtsa-korotkoplodnogo-seminis-seminis",147562992]
["Семена огурца Мадита F1, 250 шт., Seminis",652,null,0,"Фото","http://agroopt-market.ru/collection/bugorchatyy/product/madita-f1-semena-ogurtsa-korotkoplodnogo-seminis-seminis",147562993]
["Семена огурца Мондиал F1, 500 шт, Hazera",3500,null,0,"Фото","-","ПРН"]
["Семена огурца Никифор F1, 500 шт",14150,null,0,"Фото","-","ПРН"]
["Семена огурца Орзу F1, 1 000 шт, Nunhems",4745,null,{"$f":"B1057*C1057","v":0},"Фото","-","ПРН"]
["Семена огурца п/к 3506 F1, 250 шт., Seminis",831,null,0,{"$f":"HYPERLINK(F1058,\"Фото\")","v":"Фото"},"http://agroopt-market.ru/collection/krupnobugorchatyy/product/3506-f1-semena-ogurtsa-korotkoplodnogo-seminis-seminis",147563010]
["Семена огурца п/к 4097 F1, 1000 шт., Seminis",3264,null,0,"Фото","http://agroopt-market.ru/collection/krupnobugorchatyy/product/4097-f1-semena-ogurtsa-korotkoplodnogo-seminis-seminis",147563012]
["Семена огурца п/к 4097 F1, 250 шт., Seminis",816,null,0,"Фото","http://agroopt-market.ru/collection/krupnobugorchatyy/product/4097-f1-semena-ogurtsa-korotkoplodnogo-seminis-seminis",147563013]
["Семена огурца п/к 8986 F1, 1000 шт., De Ruiter Seeds",32662,null,0,"Фото","http://agroopt-market.ru/collection/gladkiy-2/product/8986-f1-semena-ogurtsa-sredneplodnogo-de-ruiter-seeds-de-royter-sids",147563090]
["Семена огурца п/к Аванс F1, 1000 шт., Гавриш",980,null,0,"Фото","http://agroopt-market.ru/collection/srednebugorchatyy/product/semena-ogurtsa-partenokarpicheskogo-avans-f1-gavrish",158070978]
["Семена огурца п/к Адмирал F1, 1000 шт., Гавриш",2150,null,0,"Фото","http://agroopt-market.ru/collection/srednebugorchatyy/product/semena-ogurtsa-partenokarpicheskogo-admiral-f1-gavrish",158070971]
["Семена огурца п/к Алекс F1, 1000 шт., Bejo",2460,null,0,"Фото","http://agroopt-market.ru/collection/melkobugorchatyy/product/aleks-f1-semena-ogurtsa-korotkoplodnogo-bejo-beyo",147563045]
["Семена огурца п/к Алпака F1, 1000 шт., Bejo",2460,null,0,"Фото","http://agroopt-market.ru/collection/melkobugorchatyy/product/alpaka-f1-semena-ogurtsa-korotkoplodnogo-bejo-beyo",147563046]
["Семена огурца п/к Аль-Бируни F1, 1000 шт., Гавриш",3650,null,0,"Фото","http://agroopt-market.ru/collection/gladkiy/product/semena-ogurtsa-partenokarpicheskogo-al-biruni-f1-gavrish",158070986]
["Семена огурца п/к Анзор F1, 1000 шт., Bejo",2460,null,0,"Фото","http://agroopt-market.ru/collection/melkobugorchatyy-2/product/anzor-f1-semena-ogurtsa-sredneplodnogo-bejo-beyo",147563120]
["Семена огурца п/к Анниса F1, 1000 шт., De Ruiter Seeds",47890,null,0,"Фото","http://agroopt-market.ru/collection/gladkiy-3/product/annisa-f1-semena-ogurtsa-dlinnoplodnogo-de-ruiter-seeds-de-royter-sids",147562956]
["Семена огурца п/к Ардито F1, 1000 шт., De Ruiter Seeds",31646,null,0,"Фото","http://agroopt-market.ru/collection/gladkiy-3/product/ardito-f1-semena-ogurtsa-dlinnoplodnogo-de-ruiter-seeds-de-royter-sids",147562957]
["Семена огурца п/к Артист F1, 1000 шт., Bejo",2460,null,0,"Фото","http://agroopt-market.ru/collection/krupnobugorchatyy/product/artist-f1-semena-ogurtsa-korotkoplodnogo-bejo-beyo",147563014]
["Семена огурца п/к Аскер F1, 1000 шт., Bejo",3150,null,0,"Фото","http://agroopt-market.ru/collection/krupnobugorchatyy-2/product/asker-f1-semena-ogurtsa-sredneplodnogo-bejo-beyo",147563108]
["Семена огурца п/к Атаман F1, 1000 шт., Гавриш",2850,null,0,"Фото","http://agroopt-market.ru/collection/srednebugorchatyy/product/semena-ogurtsa-partenokarpicheskogo-ataman-f1-gavrish",158070965]
["Семена огурца п/к Барез F1, 1000 шт., Гавриш",3650,null,0,"Фото","http://agroopt-market.ru/collection/gladkiy-2/product/semena-ogurtsa-partenokarpicheskogo-barez-f1-gavrish",158070985]
["Семена огурца п/к Бьерн F1, 500 шт., Enza Zaden",1660,null,0,"Фото","http://agroopt-market.ru/collection/srednebugorchatyy/product/biern-f1-semena-ogurtsa-korotkoplodnogo-enza-zaden-enza-zaden",147563076]
["Семена огурца п/к Габри F1, 1000 шт., Sakata",2800,null,0,"Фото","http://agroopt-market.ru/collection/krupnobugorchatyy/product/gabri-f1-semena-ogurtsa-korotkoplodnogo-sakata-sakata",147563019]
["Семена огурца п/к Габри F1, 500 шт., Sakata",1400,null,0,"Фото","http://agroopt-market.ru/collection/krupnobugorchatyy/product/gabri-f1-semena-ogurtsa-korotkoplodnogo-sakata-sakata",147563020]
["Семена огурца п/к Гармония F1, 1000 шт., Rijk Zwaan",1840,null,0,"Фото","http://agroopt-market.ru/collection/melkobugorchatyy/product/garmoniya-rz-f1-semena-ogurtsa-korotkoplodnogo-rijk-zwaan-rayk-tsvaan",147563050]
["Семена огурца п/к Гелиас F1, 100 шт., Rijk Zwaan (ЗГ)",4400,null,0,"Фото","http://agroopt-market.ru/collection/gladkiy-3/product/gelias-f1-semena-ogurtsa-dlinnoplodnogo-rijk-zwaan-rayk-tsvaan",147562960]
["Семена огурца п/к Гелиас F1, 1000 шт., Rijk Zwaan (ЗГ)",44040,null,0,"Фото","http://agroopt-market.ru/collection/gladkiy-3/product/gelias-f1-semena-ogurtsa-dlinnoplodnogo-rijk-zwaan-rayk-tsvaan",147562958]
["Семена огурца п/к Гелиас F1, 500 шт., Rijk Zwaan (ЗГ)",22020,null,0,"Фото","http://agroopt-market.ru/collection/gladkiy-3/product/gelias-f1-semena-ogurtsa-dlinnoplodnogo-rijk-zwaan-rayk-tsvaan",147562959]
["Семена огурца п/к Геракл F1, 1000 шт., Rijk Zwaan (ЗГ)",9840,null,0,"Фото","http://agroopt-market.ru/collection/krupnobugorchatyy-2/product/gerakl-f1-semena-ogurtsa-sredneplodnogo-rijk-zwaan-rayk-tsvaan",147563112]
["Семена огурца п/к Геракл F1, 500 шт., Rijk Zwaan (ЗГ)",4920,null,0,"Фото","http://agroopt-market.ru/collection/krupnobugorchatyy-2/product/gerakl-f1-semena-ogurtsa-sredneplodnogo-rijk-zwaan-rayk-tsvaan",147563113]
["Семена огурца п/к Герман F1, 100 тыс. шт., Seminis",250000,null,0,"Фото","http://agroopt-market.ru/collection/ogurets/product/german-f1-semena-ogurtsa-korotkoplodnogo-seminis-seminis",149460765]
["Семена огурца п/к Герман F1, 1000 шт., Seminis",2500,null,0,"Фото","http://agroopt-market.ru/collection/ogurets/product/german-f1-semena-ogurtsa-korotkoplodnogo-seminis-seminis",149460763]
["Семена огурца п/к Гефест F1, 1000 шт., De Ruiter Seeds",31646,null,0,"Фото","http://agroopt-market.ru/collection/bugorchatyy-2/product/gefest-f1-semena-ogurtsa-sredneplodnogo-de-ruiter-seeds-de-royter-sids",147563089]
["Семена огурца п/к Гуннар F1, 500 шт., Enza Zaden",1330,null,0,"Фото","http://agroopt-market.ru/collection/krupnobugorchatyy/product/gunnar-f1-semena-ogurtsa-korotkoplodnogo-enza-zaden-enza-zaden",147563021]
["Семена огурца п/к Данди F1, 100 шт., Rijk Zwaan (ЗГ)",1090,null,0,"Фото","http://agroopt-market.ru/collection/krupnobugorchatyy-2/product/dandi-f1-semena-ogurtsa-sredneplodnogo-rijk-zwaan-rayk-tsvaan",147563117]
["Семена огурца п/к Данди F1, 1000 шт., Rijk Zwaan (ЗГ)",10890,null,0,"Фото","http://agroopt-market.ru/collection/krupnobugorchatyy-2/product/dandi-f1-semena-ogurtsa-sredneplodnogo-rijk-zwaan-rayk-tsvaan",147563115]
["Семена огурца п/к Данди F1, 500 шт., Rijk Zwaan (ЗГ)",5450,null,0,"Фото","http://agroopt-market.ru/collection/krupnobugorchatyy-2/product/dandi-f1-semena-ogurtsa-sredneplodnogo-rijk-zwaan-rayk-tsvaan",147563116]
["Семена огурца п/к Делтастар F1, 100 шт., Rijk Zwaan (ЗГ)",2420,null,0,"Фото","http://agroopt-market.ru/collection/gladkiy/product/deltastar-f1-semena-ogurtsa-korotkoplodnogo-rijk-zwaan-rayk-tsvaan",147563000]
["Семена огурца п/к Делтастар F1, 1000 шт., Rijk Zwaan (ЗГ)",24220,null,0,"Фото","http://agroopt-market.ru/collection/gladkiy/product/deltastar-f1-semena-ogurtsa-korotkoplodnogo-rijk-zwaan-rayk-tsvaan",147562998]
["Семена огурца п/к Делтастар F1, 500 шт., Rijk Zwaan (ЗГ)",12110,null,0,"Фото","http://agroopt-market.ru/collection/gladkiy/product/deltastar-f1-semena-ogurtsa-korotkoplodnogo-rijk-zwaan-rayk-tsvaan",147562999]
["Семена огурца п/к Демарраж F1, 100 шт., Rijk Zwaan (ЗГ)",3950,null,0,"Фото","http://agroopt-market.ru/collection/gladkiy-3/product/demarrazh-f1-semena-ogurtsa-dlinnoplodnogo-rijk-zwaan-rayk-tsvaan",147562980]
["Семена огурца п/к Демарраж F1, 1000 шт., Rijk Zwaan (ЗГ)",39530,null,0,"Фото","http://agroopt-market.ru/collection/gladkiy-3/product/demarrazh-f1-semena-ogurtsa-dlinnoplodnogo-rijk-zwaan-rayk-tsvaan",147562978]
["Семена огурца п/к Демарраж F1, 500 шт., Rijk Zwaan (ЗГ)",19770,null,0,"Фото","http://agroopt-market.ru/collection/gladkiy-3/product/demarrazh-f1-semena-ogurtsa-dlinnoplodnogo-rijk-zwaan-rayk-tsvaan",147562979]
["Семена огурца п/к Дерия F1, 500 шт., Enza Zaden",1060,null,0,"Фото","http://agroopt-market.ru/collection/krupnobugorchatyy-2/product/deriya-f1-semena-ogurtsa-sredneplodnogo-enza-zaden-enza-zaden",147563118]
["Семена огурца п/к Диригент F1, 1000 шт., Rijk Zwaan",1970,null,0,"Фото","http://agroopt-market.ru/collection/melkobugorchatyy/product/dirigent-f1-semena-ogurtsa-korotkoplodnogo-rijk-zwaan-rayk-tsvaan",147563054]
["Семена огурца п/к Дончак F1, 1000 шт., Гавриш",2500,null,0,"Фото","http://agroopt-market.ru/collection/all/product/semena-ogurtsa-partenokarpicheskogo-donchak-f1-gavrish",158070960]
["Семена огурца п/к Жавель F1, 1000 шт., De Ruiter Seeds",9200,null,0,"Фото","http://agroopt-market.ru/collection/gladkiy-2/product/zhavel-f1-semena-ogurtsa-sredneplodnogo-de-ruiter-seeds-de-royter-sids",147563091]
["Семена огурца п/к Зена F1, 1000 шт., Sakata",700,null,0,"Фото","http://agroopt-market.ru/collection/gladkiy-2/product/zena-f1-semena-ogurtsa-sredneplodnogo-sakata-sakata",147563092]
["Семена огурца п/к Зена F1, 500 шт., Sakata",350,null,0,"Фото","http://agroopt-market.ru/collection/gladkiy-2/product/zena-f1-semena-ogurtsa-sredneplodnogo-sakata-sakata",147563093]
["Семена огурца п/к Ибн-Сина F1, 1000 шт., Гавриш",2500,null,0,"Фото","http://agroopt-market.ru/collection/gladkiy-2/product/semena-ogurtsa-partenokarpicheskogo-ibn-sina-f1-gavrish",158070987]
["Семена огурца п/к Кадет F1, 1000 шт., Гавриш",6500,null,0,"Фото","http://agroopt-market.ru/collection/srednebugorchatyy-3/product/semena-ogurtsa-partenokarpicheskogo-kadet-f1-gavrish",158070959]
["Семена огурца п/к Кадриль F1, 1000 шт., Гавриш",1250,null,0,"Фото","http://agroopt-market.ru/collection/srednebugorchatyy/product/semena-ogurtsa-partenokarpicheskogo-kadril-f1-gavrish",158070975]
["Семена огурца п/к Капучино F1, 1000 шт., Гавриш",1250,null,0,"Фото","http://agroopt-market.ru/collection/srednebugorchatyy/product/semena-ogurtsa-partenokarpicheskogo-kapuchino-f1-gavrish",158070976]
["Семена огурца п/к Караоке F1, 1000 шт., Rijk Zwaan",1880,null,0,"Фото","http://agroopt-market.ru/collection/bugorchatyy/product/karaoke-f1-semena-ogurtsa-korotkoplodnogo-rijk-zwaan-rayk-tsvaan",147562985]
["Семена огурца п/к Карим F1, 1000 шт., Гавриш",3650,null,0,"Фото","http://agroopt-market.ru/collection/gladkiy-2/product/semena-ogurtsa-partenokarpicheskogo-karim-f1-gavrish",158070981]
["Семена огурца п/к Карин F1, 1000 шт., Seminis",2132,null,0,"Фото","http://agroopt-market.ru/collection/melkobugorchatyy/product/karin-f1-semena-ogurtsa-korotkoplodnogo-seminis-seminis",147563057]
["Семена огурца п/к Карина F1, 1000 шт., Гавриш",3650,null,0,"Фото","http://agroopt-market.ru/collection/gladkiy-2/product/semena-ogurtsa-partenokarpicheskogo-karina-f1-gavrish",158070983]
["Семена огурца п/к Кафкас F1, 1000 шт., Seminis",10872,null,0,"Фото","http://agroopt-market.ru/collection/gladkiy-2/product/kafkas-f1-semena-ogurtsa-sredneplodnogo-seminis-seminis",147563094]
["Семена огурца п/к Квинтус F1, 1000 шт., De Ruiter Seeds",35280,null,0,"Фото","http://agroopt-market.ru/collection/gladkiy-3/product/kvintus-f1-semena-ogurtsa-dlinnoplodnogo-de-ruiter-seeds-de-royter-sids",147562961]
["Семена огурца п/к Кемре F1, 500 шт., Hazera",3500,null,0,"Фото","http://agroopt-market.ru/collection/gladkiy/product/kemre-f1-semena-ogurtsa-korotkoplodnogo-hazera-hazera",147563001]
["Семена огурца п/к Кибрия F1, 1000 шт., Rijk Zwaan",2140,null,0,"Фото","http://agroopt-market.ru/collection/srednebugorchatyy/product/kibriya-f1-semena-ogurtsa-korotkoplodnogo-rijk-zwaan-rayk-tsvaan",147563082]
["Семена огурца п/к Клодин F1, 1000 шт., Seminis",2608,null,0,"Фото","http://agroopt-market.ru/collection/melkobugorchatyy/product/klodin-f1-semena-ogurtsa-korotkoplodnogo-seminis-seminis",147563059]
["Семена огурца п/к Компонист F1, 1000 шт., Rijk Zwaan",2070,null,0,"Фото","http://agroopt-market.ru/collection/krupnobugorchatyy/product/komponist-rz-f1-semena-ogurtsa-korotkoplodnogo-rijk-zwaan-rayk-tsvaan",147563024]
["Семена огурца п/к Корентин F1, 250 шт., Seminis",852,null,0,"Фото","http://agroopt-market.ru/collection/melkobugorchatyy/product/korentin-f1-semena-ogurtsa-korotkoplodnogo-seminis-seminis",147563061]
["Семена огурца п/к Кураж F1, 1000 шт., Гавриш",2900,null,0,"Фото","http://agroopt-market.ru/collection/all/product/semena-ogurtsa-partenokarpicheskogo-kurazh-f1-gavrish",158070964]
["Семена огурца п/к Ларино F1, 100 шт., Rijk Zwaan (ЗГ)",3290,null,0,"Фото","http://agroopt-market.ru/collection/gladkiy/product/larino-f1-semena-ogurtsa-korotkoplodnogo-rijk-zwaan-rayk-tsvaan",147563004]
["Семена огурца п/к Ларино F1, 1000 шт., Rijk Zwaan (ЗГ)",32910,null,0,"Фото","http://agroopt-market.ru/collection/gladkiy/product/larino-f1-semena-ogurtsa-korotkoplodnogo-rijk-zwaan-rayk-tsvaan",147563002]
["Семена огурца п/к Ларино F1, 500 шт., Rijk Zwaan (ЗГ)",16460,null,0,"Фото","http://agroopt-market.ru/collection/gladkiy/product/larino-f1-semena-ogurtsa-korotkoplodnogo-rijk-zwaan-rayk-tsvaan",147563003]
["Семена огурца п/к Ленара F1, 1000 шт., Rijk Zwaan",2570,null,{"$f":"B1121*C1121","v":0},"Фото","http://agroopt-market.ru/collection/bugorchatyy/product/lenara-f1-semena-ogurtsa-korotkoplodnogo-rijk-zwaan-rayk-tsvaan",147562989]
["Семена огурца п/к Лист F1, 1000 шт., Rijk Zwaan",1970,null,0,{"$f":"HYPERLINK(F1122,\"Фото\")","v":"Фото"},"http://agroopt-market.ru/collection/melkobugorchatyy/product/list-f1-semena-ogurtsa-korotkoplodnogo-rijk-zwaan-rayk-tsvaan",147563063]
["Семена огурца п/к Лоэнгрин F1, 100 шт., Rijk Zwaan (ЗГ)",4240,null,0,"Фото","http://agroopt-market.ru/collection/gladkiy-3/product/loengrin-f1-semena-ogurtsa-dlinnoplodnogo-rijk-zwaan-rayk-tsvaan",147562964]
["Семена огурца п/к Лоэнгрин F1, 1000 шт., Rijk Zwaan (ЗГ)",42370,null,0,"Фото","http://agroopt-market.ru/collection/gladkiy-3/product/loengrin-f1-semena-ogurtsa-dlinnoplodnogo-rijk-zwaan-rayk-tsvaan",147562962]
["Семена огурца п/к Лоэнгрин F1, 500 шт., Rijk Zwaan (ЗГ)",21190,null,0,"Фото","http://agroopt-market.ru/collection/gladkiy-3/product/loengrin-f1-semena-ogurtsa-dlinnoplodnogo-rijk-zwaan-rayk-tsvaan",147562963]
["Семена огурца п/к Мажор F1, 1000 шт., Гавриш",2000,null,0,"Фото","http://agroopt-market.ru/collection/krupnobugorchatyy/product/semena-ogurtsa-partenokarpicheskogo-mazhor-f1-gavrish",158070972]
["Семена огурца п/к Максимус F1, 1000 шт., Гавриш",2150,null,0,"Фото","http://agroopt-market.ru/collection/srednebugorchatyy/product/semena-ogurtsa-partenokarpicheskogo-maksimus-f1-gavrish",158070970]
["Семена огурца п/к Мамлюк F1, 1000 шт., Гавриш",2900,null,0,"Фото","http://agroopt-market.ru/collection/srednebugorchatyy/product/semena-ogurtsa-partenokarpicheskogo-mamlyuk-f1-gavrish",158070968]
["Семена огурца п/к Мареса F1, 1000 шт., Seminis",2608,null,0,"Фото","http://agroopt-market.ru/collection/krupnobugorchatyy/product/maresa-f1-semena-ogurtsa-korotkoplodnogo-seminis-seminis",147563027]
["Семена огурца п/к Маринда F1, 1000 шт., Seminis",1339,null,0,"Фото","http://agroopt-market.ru/collection/krupnobugorchatyy/product/marinda-f1-semena-ogurtsa-korotkoplodnogo-seminis-seminis",147563029]
["Семена огурца п/к Мария F1, 1000 шт., Sakata",1800,null,0,"Фото","http://agroopt-market.ru/collection/krupnobugorchatyy/product/mariya-f1-semena-ogurtsa-korotkoplodnogo-sakata-sakata",147563030]
["Семена огурца п/к Мартин F1, 1000 шт., Гавриш",4900,null,0,"Фото","http://agroopt-market.ru/collection/srednebugorchatyy/product/semena-ogurtsa-partenokarpicheskogo-martin-f1-gavrish",158070962]
["Семена огурца п/к Маша F1, 100 тыс. шт., Seminis",245200,null,0,"Фото","http://agroopt-market.ru/collection/ogurets/product/masha-f1-semena-ogurtsa-korotkoplodnogo-seminis-seminis",149460758]
["Семена огурца п/к Маша F1, 1000 шт., Seminis",2452,null,0,"Фото","http://agroopt-market.ru/collection/ogurets/product/masha-f1-semena-ogurtsa-korotkoplodnogo-seminis-seminis",149460756]
["Семена огурца п/к Мева F1, 100 шт., Rijk Zwaan (ЗГ)",3300,null,0,"Фото","http://agroopt-market.ru/collection/gladkiy-3/product/meva-f1-semena-ogurtsa-dlinnoplodnogo-rijk-zwaan-rayk-tsvaan",147562967]
["Семена огурца п/к Мева F1, 1000 шт., Rijk Zwaan (ЗГ)",32980,null,0,"Фото","http://agroopt-market.ru/collection/gladkiy-3/product/meva-f1-semena-ogurtsa-dlinnoplodnogo-rijk-zwaan-rayk-tsvaan",147562965]
["Семена огурца п/к Мева F1, 500 шт., Rijk Zwaan (ЗГ)",16490,null,0,"Фото","http://agroopt-market.ru/collection/gladkiy-3/product/meva-f1-semena-ogurtsa-dlinnoplodnogo-rijk-zwaan-rayk-tsvaan",147562966]
["Семена огурца п/к Мерамор F1, 100 шт., Rijk Zwaan (ЗГ)",3400,null,0,"Фото","http://agroopt-market.ru/collection/gladkiy-2/product/meramor-f1-semena-ogurtsa-sredneplodnogo-rijk-zwaan-rayk-tsvaan",147563097]
["Семена огурца п/к Мерамор F1, 1000 шт., Rijk Zwaan (ЗГ)",34000,null,0,"Фото","http://agroopt-market.ru/collection/gladkiy-2/product/meramor-f1-semena-ogurtsa-sredneplodnogo-rijk-zwaan-rayk-tsvaan",147563095]
["Семена огурца п/к Мерамор F1, 500 шт., Rijk Zwaan (ЗГ)",17000,null,0,"Фото","http://agroopt-market.ru/collection/gladkiy-2/product/meramor-f1-semena-ogurtsa-sredneplodnogo-rijk-zwaan-rayk-tsvaan",147563096]
["Семена огурца п/к Меренга F1, 100 тыс. шт., Seminis",270000,null,0,"Фото","http://agroopt-market.ru/collection/krupnobugorchatyy/product/merenga-f1-semena-ogurtsa-korotkoplodnogo-seminis-seminis",147563031]
["Семена огурца п/к Меренга F1, 1000 шт., Seminis",2700,null,0,"Фото","http://agroopt-market.ru/collection/krupnobugorchatyy/product/merenga-f1-semena-ogurtsa-korotkoplodnogo-seminis-seminis",147563032]
["Семена огурца п/к Мертус F1, 1000 шт., Rijk Zwaan (ЗГ)",7550,null,0,"Фото","http://agroopt-market.ru/collection/gladkiy-2/product/mertus-f1-semena-ogurtsa-sredneplodnogo-rijk-zwaan-rayk-tsvaan",147563100]
["Семена огурца п/к Мертус F1, 500 шт., Rijk Zwaan (ЗГ)",3770,null,0,"Фото","http://agroopt-market.ru/collection/gladkiy-2/product/mertus-f1-semena-ogurtsa-sredneplodnogo-rijk-zwaan-rayk-tsvaan",147563098]
["Семена огурца п/к Мурашка F1, 1000 шт., Гавриш",850,null,0,"Фото","http://agroopt-market.ru/collection/krupnobugorchatyy/product/semena-ogurtsa-partenokarpicheskogo-murashka-f1-gavrish",158070980]
["Семена огурца п/к Навруз F1, 1000 шт., Гавриш",850,null,0,"Фото","http://agroopt-market.ru/collection/gladkiy/product/semena-ogurtsa-partenokarpicheskogo-navruz-f1-gavrish",158070988]
["Семена огурца п/к Оберто F1, 100 шт., Rijk Zwaan (ЗГ)",4240,null,0,"Фото","http://agroopt-market.ru/collection/gladkiy-3/product/oberto-f1-semena-ogurtsa-dlinnoplodnogo-rijk-zwaan-rayk-tsvaan",147562970]
["Семена огурца п/к Оберто F1, 1000 шт., Rijk Zwaan (ЗГ)",42450,null,0,"Фото","http://agroopt-market.ru/collection/gladkiy-3/product/oberto-f1-semena-ogurtsa-dlinnoplodnogo-rijk-zwaan-rayk-tsvaan",147562968]
["Семена огурца п/к Оберто F1, 500 шт., Rijk Zwaan (ЗГ)",21220,null,0,"Фото","http://agroopt-market.ru/collection/gladkiy-3/product/oberto-f1-semena-ogurtsa-dlinnoplodnogo-rijk-zwaan-rayk-tsvaan",147562969]
["Семена огурца п/к Пакто F1, 1000 шт., De Ruiter Seeds",27702,null,0,"Фото","http://agroopt-market.ru/collection/gladkiy-2/product/pakto-f1-semena-ogurtsa-sredneplodnogo-de-ruiter-seeds-de-royter-sids",147563101]
["Семена огурца п/к Палех F1, 1000 шт., Гавриш",2150,null,0,"Фото","http://agroopt-market.ru/collection/srednebugorchatyy/product/semena-ogurtsa-partenokarpicheskogo-paleh-f1-gavrish",158070973]
["Семена огурца п/к Пасалимо F1, 500 шт., Syngenta",1211,null,0,"Фото","http://agroopt-market.ru/collection/krupnobugorchatyy/product/pasalimo-f1-semena-ogurtsa-korotkoplodnogo-syngenta-singenta",147563035]
["Семена огурца п/к Пиковелл F1, 100 шт., Rijk Zwaan (ЗГ)",4430,null,0,"Фото","http://agroopt-market.ru/collection/gladkiy/product/pikovell-f1-semena-ogurtsa-korotkoplodnogo-rijk-zwaan-rayk-tsvaan",147563007]
["Семена огурца п/к Пиковелл F1, 1000 шт., Rijk Zwaan (ЗГ)",44280,null,0,"Фото","http://agroopt-market.ru/collection/gladkiy/product/pikovell-f1-semena-ogurtsa-korotkoplodnogo-rijk-zwaan-rayk-tsvaan",147563005]
["Семена огурца п/к Пиковелл F1, 500 шт., Rijk Zwaan (ЗГ)",22140,null,0,"Фото","http://agroopt-market.ru/collection/gladkiy/product/pikovell-f1-semena-ogurtsa-korotkoplodnogo-rijk-zwaan-rayk-tsvaan",147563006]
["Семена огурца п/к Пиколино F1, 500 шт., Enza Zaden",2100,null,0,"Фото","http://agroopt-market.ru/collection/gladkiy/product/pikolino-f1-semena-ogurtsa-korotkoplodnogo-enza-zaden-enza-zaden",147563008]
["Семена огурца п/к Пируэт F1, 1000 шт., Гавриш",3250,null,0,"Фото","http://agroopt-market.ru/collection/krupnobugorchatyy/product/semena-ogurtsa-partenokarpicheskogo-piruet-f1-gavrish",158070963]
["Семена огурца п/к Платов F1, 1000 шт., Гавриш",2500,null,0,"Фото","http://agroopt-market.ru/collection/srednebugorchatyy/product/semena-ogurtsa-partenokarpicheskogo-platov-f1-gavrish",158070961]
["Семена огурца п/к Прадо F1, 1000 шт., Bejo",3460,null,0,"Фото","http://agroopt-market.ru/collection/melkobugorchatyy-2/product/prado-f1-semena-ogurtsa-sredneplodnogo-bejo-beyo",147563121]
["Семена огурца п/к Пролог F1, 100 шт., Rijk Zwaan (ЗГ)",4580,null,0,"Фото","http://agroopt-market.ru/collection/gladkiy-3/product/prolog-f1-semena-ogurtsa-dlinnoplodnogo-rijk-zwaan-rayk-tsvaan",147562983]
["Семена огурца п/к Пролог F1, 1000 шт., Rijk Zwaan (ЗГ)",45780,null,0,"Фото","http://agroopt-market.ru/collection/gladkiy-3/product/prolog-f1-semena-ogurtsa-dlinnoplodnogo-rijk-zwaan-rayk-tsvaan",147562981]
["Семена огурца п/к Пуччини F1, 10 гр, Rijk Zwaan",330,null,0,"Фото","http://agroopt-market.ru/collection/bugorchatyy/product/puchchini-f1-semena-ogurtsa-korotkoplodnogo-rijk-zwaan-rayk-tsvaan",147562994]
["Семена огурца п/к Пуччини F1, 250 гр, Rijk Zwaan",8300,null,0,"Фото","http://agroopt-market.ru/collection/bugorchatyy/product/puchchini-f1-semena-ogurtsa-korotkoplodnogo-rijk-zwaan-rayk-tsvaan",147562995]
["Семена огурца п/к Пуччини F1, 50 гр, Rijk Zwaan",1660,null,0,"Фото","http://agroopt-market.ru/collection/bugorchatyy/product/puchchini-f1-semena-ogurtsa-korotkoplodnogo-rijk-zwaan-rayk-tsvaan",147562996]
["Семена огурца п/к Раис F1, 1000 шт., Гавриш",8550,null,0,"Фото","http://agroopt-market.ru/collection/srednebugorchatyy-3/product/semena-ogurtsa-partenokarpicheskogo-rais-f1-gavrish",158070957]
["Семена огурца п/к Рапидес F1, 1000 шт., De Ruiter Seeds",41278,null,0,"Фото","http://agroopt-market.ru/collection/gladkiy-3/product/rapides-f1-semena-ogurtsa-dlinnoplodnogo-de-ruiter-seeds-de-royter-sids",147562971]
["Семена огурца п/к Саунд F1, 1000 шт., Rijk Zwaan",1970,null,0,"Фото","http://agroopt-market.ru/collection/krupnobugorchatyy/product/saund-f1-semena-ogurtsa-korotkoplodnogo-rijk-zwaan-rayk-tsvaan",147563038]
["Семена огурца п/к Святогор F1, 100 шт., Rijk Zwaan (ЗГ)",3300,null,0,"Фото","http://agroopt-market.ru/collection/ogurets/product/svyatogor-f1-semena-ogurtsa-sredneplodnogo-rijk-zwaan-rayk-tsvaan",149460766]
["Семена огурца п/к Святогор F1, 1000 шт., Rijk Zwaan (ЗГ)",32980,null,0,"Фото","http://agroopt-market.ru/collection/ogurets/product/svyatogor-f1-semena-ogurtsa-sredneplodnogo-rijk-zwaan-rayk-tsvaan",149460768]
["Семена огурца п/к Седрик F1, 500 шт., Enza Zaden",1510,null,0,"Фото","http://agroopt-market.ru/collection/krupnobugorchatyy-2/product/sedrik-f1-semena-ogurtsa-sredneplodnogo-enza-zaden-enza-zaden",147563119]
["Семена огурца п/к Сигурд F1, 500 шт., Enza Zaden",1000,null,0,"Фото","http://agroopt-market.ru/collection/srednebugorchatyy/product/sigurd-f1-semena-ogurtsa-korotkoplodnogo-enza-zaden-enza-zaden",147563085]
["Семена огурца п/к Спино F1, 500 шт., Syngenta",1431,null,0,"Фото","http://agroopt-market.ru/collection/srednebugorchatyy/product/spino-f1-semena-ogurtsa-korotkoplodnogo-syngenta-singenta",147563086]
["Семена огурца п/к Суперина F1, 2500 шт., Hazera",2450,null,0,"Фото","http://agroopt-market.ru/collection/gladkiy/product/superina-f1-semena-ogurtsa-korotkoplodnogo-hazera-hazera",147563009]
["Семена огурца п/к Тару F1, 1000 шт., De Ruiter Seeds",57578,null,0,"Фото","http://agroopt-market.ru/collection/gladkiy-3/product/taru-f1-semena-ogurtsa-dlinnoplodnogo-de-ruiter-seeds-de-royter-sids",147562972]
["Семена огурца п/к Тироло F1, 1000 шт., De Ruiter Seeds",57578,null,0,"Фото","http://agroopt-market.ru/collection/gladkiy-3/product/tirolo-f1-semena-ogurtsa-dlinnoplodnogo-de-ruiter-seeds-de-royter-sids",147562973]
["Семена огурца п/к Траватор F1, 100 шт., Rijk Zwaan (ЗГ)",4400,null,0,"Фото","http://agroopt-market.ru/collection/gladkiy-3/product/travator-f1-semena-ogurtsa-dlinnoplodnogo-rijk-zwaan-rayk-tsvaan",147562976]
["Семена огурца п/к Траватор F1, 1000 шт., Rijk Zwaan (ЗГ)",44040,null,0,"Фото","http://agroopt-market.ru/collection/gladkiy-3/product/travator-f1-semena-ogurtsa-dlinnoplodnogo-rijk-zwaan-rayk-tsvaan",147562974]
["Семена огурца п/к Траватор F1, 500 шт., Rijk Zwaan (ЗГ)",22020,null,0,"Фото","http://agroopt-market.ru/collection/gladkiy-3/product/travator-f1-semena-ogurtsa-dlinnoplodnogo-rijk-zwaan-rayk-tsvaan",147562975]
["Семена огурца п/к Трилоджи F1, 1000 шт., Rijk Zwaan",2090,null,0,"Фото","http://agroopt-market.ru/collection/melkobugorchatyy/product/trilodzhi-f1-semena-ogurtsa-korotkoplodnogo-rijk-zwaan-rayk-tsvaan",147563068]
["Семена огурца п/к Туми F1, 500 шт., Enza Zaden",1300,null,0,"Фото","http://agroopt-market.ru/collection/krupnobugorchatyy/product/tumi-f1-semena-ogurtsa-korotkoplodnogo-enza-zaden-enza-zaden",147563040]
["Семена огурца п/к Уран F1, 1000 шт., Sakata",2800,null,0,"Фото","http://agroopt-market.ru/collection/krupnobugorchatyy/product/uran-f1-semena-ogurtsa-korotkoplodnogo-sakata-sakata",147563041]
["Семена огурца п/к Уран F1, 500 шт., Sakata",1400,null,0,"Фото","http://agroopt-market.ru/collection/krupnobugorchatyy/product/uran-f1-semena-ogurtsa-korotkoplodnogo-sakata-sakata",147563042]
["Семена огурца п/к Хасбулат F1, 1000 шт., Гавриш",850,null,0,"Фото","http://agroopt-market.ru/collection/srednebugorchatyy/product/semena-ogurtsa-partenokarpicheskogo-hasbulat-f1-gavrish",158070979]
["Семена огурца п/к Хэлли F1, 250 шт., Seminis",2484,null,0,"Фото","http://agroopt-market.ru/collection/gladkiy-2/product/helli-f1-semena-ogurtsa-sredneplodnogo-seminis-seminis",147563103]
["Семена огурца п/к Церес F1, 1000 шт., De Ruiter Seeds",39262,null,{"$f":"B1185*C1185","v":0},"Фото","http://agroopt-market.ru/collection/gladkiy-3/product/tseres-f1-semena-ogurtsa-dlinnoplodnogo-de-ruiter-seeds-de-royter-sids",147562977]
["Семена огурца п/к Чайковский F1, 1000 шт., Rijk Zwaan",2450,null,0,{"$f":"HYPERLINK(F1186,\"Фото\")","v":"Фото"},"http://agroopt-market.ru/collection/ogurets/product/chaykovskiy-f1-semena-ogurtsa-korotkoplodnogo-rijk-zwaan-rayk-tsvaan",149460762]
["Семена огурца п/к Шарж F1, 1000 шт., Гавриш",2900,null,0,"Фото","http://agroopt-market.ru/collection/srednebugorchatyy/product/semena-ogurtsa-partenokarpicheskogo-sharzh-f1-gavrish",158070967]
["Семена огурца п/к Щедрик F1, 1000 шт., Гавриш",980,null,0,"Фото","http://agroopt-market.ru/collection/srednebugorchatyy/product/semena-ogurtsa-partenokarpicheskogo-schedrik-f1-gavrish",158070977]
["Семена огурца п/к Эколь F1, 500 шт., Syngenta",1321,null,0,"Фото","http://agroopt-market.ru/collection/krupnobugorchatyy/product/ekol-f1-semena-ogurtsa-korotkoplodnogo-syngenta-singenta",147563043]
["Семена огурца п/к Эксельсиор F1, 500 шт., Enza Zaden",1300,null,0,"Фото","http://agroopt-market.ru/collection/srednebugorchatyy/product/ekselsior-f1-semena-ogurtsa-korotkoplodnogo-enza-zaden-enza-zaden",147563088]
["Семена огурца п/к Яни F1, 100 шт., Rijk Zwaan (ЗГ)",2390,null,0,"Фото","http://agroopt-market.ru/collection/gladkiy-2/product/yani-f1-semena-ogurtsa-sredneplodnogo-rijk-zwaan-rayk-tsvaan",147563106]
["Семена огурца п/к Яни F1, 1000 шт., Rijk Zwaan (ЗГ)",23860,null,0,"Фото","http://agroopt-market.ru/collection/gladkiy-2/product/yani-f1-semena-ogurtsa-sredneplodnogo-rijk-zwaan-rayk-tsvaan",147563104]
["Семена огурца п/к Яни F1, 500 шт., Rijk Zwaan (ЗГ)",11930,null,0,"Фото","http://agroopt-market.ru/collection/gladkiy-2/product/yani-f1-semena-ogurtsa-sredneplodnogo-rijk-zwaan-rayk-tsvaan",147563105]
["Семена огурца п/о Адам F1, 1000 шт., Bejo",2460,null,0,"Фото","http://agroopt-market.ru/collection/melkobugorchatyy/product/adam-f1-semena-ogurtsa-korotkoplodnogo-bejo-beyo",147563044]
["Семена огурца п/о Альянс F1, 50 гр, Bejo",830,null,0,"Фото","http://agroopt-market.ru/collection/ogurets/product/alyans-f1-semena-ogurtsa-korotkoplodnogo-bejo-beyo",149460769]
["Семена огурца п/о Амур F1, 1000 шт., Bejo",2460,null,0,"Фото","http://agroopt-market.ru/collection/ogurets/product/amur-f1-semena-ogurtsa-korotkoplodnogo-bejo-beyo",154305922]
["Семена огурца п/о Астерикс F1, 50 гр, Bejo",830,null,0,"Фото","http://agroopt-market.ru/collection/srednebugorchatyy-2/product/asteriks-f1-semena-ogurtsa-sredneplodnogo-bejo-beyo",147563143]
["Семена огурца п/о Атик F1, 1000 шт., Bejo",1980,null,0,"Фото","http://agroopt-market.ru/collection/melkobugorchatyy/product/atik-f1-semena-ogurtsa-korotkoplodnogo-bejo-beyo",147563047]
["Семена огурца п/о Атлантис F1, 50 гр, Bejo",830,null,0,"Фото","http://agroopt-market.ru/collection/krupnobugorchatyy-3/product/atlantis-f1-semena-ogurtsa-korotkoplodnogo-bejo-beyo",147563130]
["Семена огурца п/о Атлет F1, 1000 шт., Гавриш",4500,null,0,"Фото","http://agroopt-market.ru/collection/krupnobugorchatyy-3/product/semena-ogurtsa-pcheloopylyaemogo-atlet-f1-gavrish",158070995]
["Семена огурца п/о Афина F1, 1000 шт., Nunhems",2832,null,0,"Фото","http://agroopt-market.ru/collection/krupnobugorchatyy-3/product/semena-ogurtsa-pcheloopylyaemogo-afina-f1-nunhems-nyunems",158071015]
["Семена огурца п/о Афина F1, 500 шт., Nunhems",1416,null,0,"Фото","http://agroopt-market.ru/collection/krupnobugorchatyy-3/product/semena-ogurtsa-pcheloopylyaemogo-afina-f1-nunhems-nyunems",158071006]
["Семена огурца п/о Ацтек, 1000 шт., Bejo",2460,null,0,"Фото","http://agroopt-market.ru/collection/melkobugorchatyy/product/atstek-f1-semena-ogurtsa-korotkoplodnogo-bejo-beyo",147563048]
["Семена огурца п/о Аякс F1, 1000 шт., Nunhems",1282,null,0,"Фото","http://agroopt-market.ru/collection/krupnobugorchatyy-3/product/semena-ogurtsa-pcheloopylyaemogo-ayaks-f1-nunhems-nyunems",158071016]
["Семена огурца п/о Барвина F1, 500 шт., Nunhems",1824,null,0,"Фото","http://agroopt-market.ru/collection/krupnobugorchatyy-3/product/semena-ogurtsa-pcheloopylyaemogo-barvina-f1-nunhems-nyunems",158071008]
["Семена огурца п/о Бегунок F1, 1000 шт., Гавриш",5300,null,0,"Фото","http://agroopt-market.ru/collection/krupnobugorchatyy-1508875113/product/semena-ogurtsa-pcheloopylyaemogo-begunok-f1-gavrish",158071002]
["Семена огурца п/о Беттина F1, 1000 шт., Nunhems",3647,null,0,"Фото","http://agroopt-market.ru/collection/krupnobugorchatyy-3/product/semena-ogurtsa-pcheloopylyaemogo-bettina-f1-nunhems-nyunems",158071017]
["Семена огурца п/о Беттина F1, 500 шт., Nunhems",1824,null,0,"Фото","http://agroopt-market.ru/collection/krupnobugorchatyy-3/product/semena-ogurtsa-pcheloopylyaemogo-bettina-f1-nunhems-nyunems",158071010]
["Семена огурца п/о Бодрячок F1, 1000 шт., Гавриш",3650,null,0,"Фото","http://agroopt-market.ru/collection/krupnobugorchatyy-1508875113/product/semena-ogurtsa-pcheloopylyaemogo-bodryachok-f1-gavrish",158071003]
["Семена огурца п/о Гектор F1, 1000 шт., Nunhems",918,null,0,"Фото","http://agroopt-market.ru/collection/krupnobugorchatyy-3/product/semena-ogurtsa-pcheloopylyaemogo-gektor-f1-nunhems-nyunems",158071018]
["Семена огурца п/о Делпина F1, 1000 шт., Nunhems",2429,null,0,"Фото","http://agroopt-market.ru/collection/krupnobugorchatyy-3/product/semena-ogurtsa-pcheloopylyaemogo-delpina-f1-nunhems-nyunems",158071021]
["Семена огурца п/о Джаззер F1, 500 шт., Enza Zaden",3810,null,0,"Фото","http://agroopt-market.ru/collection/krupnobugorchatyy-1508875113/product/semena-ogurtsa-pcheloopylyaemogo-dzhazzer-f1-enza-zaden-enza-zaden",158070822]
["Семена огурца п/о Джастина F1, 1000 шт., Nunhems",2609,null,0,"Фото","http://agroopt-market.ru/collection/srednebugorchatyy-1508874978/product/semena-ogurtsa-pcheloopylyaemogo-dzhastina-f1-nunhems-nyunems",158071022]
["Семена огурца п/о Директор F1, 1000 шт., Nunhems",3713,null,0,"Фото","http://agroopt-market.ru/collection/krupnobugorchatyy-3/product/semena-ogurtsa-pcheloopylyaemogo-direktor-f1-nunhems-nyunems",158071024]
["Семена огурца п/о Директор F1, 500 шт., Nunhems",1857,null,0,"Фото","http://agroopt-market.ru/collection/krupnobugorchatyy-3/product/semena-ogurtsa-pcheloopylyaemogo-direktor-f1-nunhems-nyunems",158071012]
["Семена огурца п/о Заначка F1, 1000 шт., Гавриш",975,null,0,"Фото","http://agroopt-market.ru/collection/krupnobugorchatyy-3/product/semena-ogurtsa-pcheloopylyaemogo-zanachka-f1-gavrish",158071005]
["Семена огурца п/о Казанова F1, 1000 шт., Гавриш",5300,null,0,"Фото","http://agroopt-market.ru/collection/krupnobugorchatyy-1508875113/product/semena-ogurtsa-pcheloopylyaemogo-kazanova-f1-gavrish",158071001]
["Семена огурца п/о Карамболь F1, 1000 шт., Гавриш",4900,null,0,"Фото","http://agroopt-market.ru/collection/krupnobugorchatyy-1508875113/product/semena-ogurtsa-pcheloopylyaemogo-karambol-f1-gavrish",158070992]
["Семена огурца п/о Картель F1, 1000 шт., Гавриш",5500,null,0,"Фото","http://agroopt-market.ru/collection/krupnobugorchatyy-3/product/semena-ogurtsa-pcheloopylyaemogo-kartel-f1-gavrish",158070990]
["Семена огурца п/о Коринто F1, 500 шт., Enza Zaden",4350,null,0,"Фото","http://agroopt-market.ru/collection/krupnobugorchatyy-1508875113/product/semena-ogurtsa-pcheloopylyaemogo-korinto-f1-enza-zaden-enza-zaden",158070824]
["Семена огурца п/о Криспина F1, 1000 шт., Nunhems",2240,null,0,"Фото","http://agroopt-market.ru/collection/krupnobugorchatyy-3/product/semena-ogurtsa-pcheloopylyaemogo-krispina-f1-nunhems-nyunems",158071026]
["Семена огурца п/о Левина F1, 1000 шт., Seminis",554,null,0,"Фото","http://agroopt-market.ru/collection/krupnobugorchatyy-3/product/levina-f1-semena-ogurtsa-korotkoplodnogo-seminis-seminis",147563131]
["Семена огурца п/о Магнит F1, 1000 шт., Гавриш",5500,null,0,"Фото","http://agroopt-market.ru/collection/krupnobugorchatyy-3/product/semena-ogurtsa-pcheloopylyaemogo-magnit-f1-gavrish",158070989]
["Семена огурца п/о Медиа F1, 100 шт., Rijk Zwaan (ЗГ)",3100,null,0,"Фото","http://agroopt-market.ru/collection/gladkiy-1500659258/product/media-f1-semena-ogurtsa-sredneplodnogo-rijk-zwaan-rayk-tsvaan",147563140]
["Семена огурца п/о Медиа F1, 1000 шт., Rijk Zwaan (ЗГ)",30970,null,0,"Фото","http://agroopt-market.ru/collection/gladkiy-1500659258/product/media-f1-semena-ogurtsa-sredneplodnogo-rijk-zwaan-rayk-tsvaan",147563138]
["Семена огурца п/о Медиа F1, 500 шт., Rijk Zwaan (ЗГ)",15480,null,0,"Фото","http://agroopt-market.ru/collection/gladkiy-1500659258/product/media-f1-semena-ogurtsa-sredneplodnogo-rijk-zwaan-rayk-tsvaan",147563139]
["Семена огурца п/о Мелен F1, 500 шт., Enza Zaden",6100,null,0,"Фото","http://agroopt-market.ru/collection/gladkiy-1500659166/product/melen-f1-semena-ogurtsa-korotkoplodnogo-enza-zaden-enza-zaden",147563128]
["Семена огурца п/о Монолит F1, 1000 шт., Nunhems",2581,null,0,"Фото","http://agroopt-market.ru/collection/melkobugorchatyy-3/product/semena-ogurtsa-pcheloopylyaemogo-monolit-f1-nunhems-nyunems",158071027]
["Семена огурца п/о Мунира F1, 100 шт., Rijk Zwaan (ЗГ)",1090,null,0,"Фото","http://agroopt-market.ru/collection/krupnobugorchatyy-1508875113/product/semena-ogurtsa-pcheloopylyaemogo-munira-f1-rijk-zwaan-rayk-tsvaan",158070826]
["Семена огурца п/о Мунира F1, 1000 шт., Rijk Zwaan (ЗГ)",10890,null,0,"Фото","http://agroopt-market.ru/collection/krupnobugorchatyy-1508875113/product/semena-ogurtsa-pcheloopylyaemogo-munira-f1-rijk-zwaan-rayk-tsvaan",158070828]
["Семена огурца п/о Мунира F1, 500 шт., Rijk Zwaan (ЗГ)",5450,null,0,"Фото","http://agroopt-market.ru/collection/krupnobugorchatyy-1508875113/product/semena-ogurtsa-pcheloopylyaemogo-munira-f1-rijk-zwaan-rayk-tsvaan",158070827]
["Семена огурца п/о Надюша F1, 1000 шт., Seminis",1008,null,0,"Фото","http://agroopt-market.ru/collection/bugorchatyy-3/product/nadyusha-f1-semena-ogurtsa-korotkoplodnogo-seminis-seminis",147563123]
["Семена огурца п/о Найл F1, 500 шт., Enza Zaden",4570,null,0,"Фото","http://agroopt-market.ru/collection/gladkiy-1500659258/product/semena-ogurtsa-pcheloopylyaemogo-nayl-f1-enza-zaden-enza-zaden",158070821]
["Семена огурца п/о Наташа F1, 1000 шт., Seminis",680,null,0,"Фото","http://agroopt-market.ru/collection/krupnobugorchatyy-3/product/natasha-f1-semena-ogurtsa-korotkoplodnogo-seminis-seminis",147563133]
["Семена огурца п/о Наташа F1, 25 тыс. шт., Seminis",17010,null,0,"Фото","http://agroopt-market.ru/collection/krupnobugorchatyy-3/product/natasha-f1-semena-ogurtsa-korotkoplodnogo-seminis-seminis",147563132]
["Семена огурца п/о Никифор F1, 1000 шт., Hazera",28300,null,0,"Фото","http://agroopt-market.ru/collection/gladkiy-1500659258/product/semena-ogurtsa-pcheloopylyaemogo-nikifor-f1-hazera-hazera",158070825]
["Семена огурца п/о Октопус F1, 500 шт., Syngenta",441,null,0,"Фото","http://agroopt-market.ru/collection/ogurets/product/oktopus-f1-semena-ogurtsa-korotkoplodnogo-syngenta-singenta",149460770]
["Семена огурца п/о Парсифал F1, 1000 шт., Hazera",1350,null,0,"Фото","http://agroopt-market.ru/collection/krupnobugorchatyy-3/product/parsifal-f1-semena-ogurtsa-korotkoplodnogo-hazera-hazera",147563134]
["Семена огурца п/о Посол F1, 1000 шт., Гавриш",975,null,0,"Фото","http://agroopt-market.ru/collection/krupnobugorchatyy-3/product/semena-ogurtsa-pcheloopylyaemogo-posol-f1-gavrish",158071004]
["Семена огурца п/о Пролог F1, 500 шт., Rijk Zwaan (ЗГ)",22890,null,0,"Фото","http://agroopt-market.ru/collection/gladkiy-3/product/prolog-f1-semena-ogurtsa-dlinnoplodnogo-rijk-zwaan-rayk-tsvaan",157986588]
["Семена огурца п/о Регал F1, 10 гр, Clause",250,null,0,"Фото","http://agroopt-market.ru/collection/krupnobugorchatyy-3/product/regal-f1-semena-ogurtsa-korotkoplodnogo-clause-klos",147563135]
["Семена огурца п/о Роял F1, 10 гр, Clause",250,null,0,"Фото","http://agroopt-market.ru/collection/krupnobugorchatyy-3/product/royal-f1-semena-ogurtsa-korotkoplodnogo-clause-klos",147563136]
["Семена огурца п/о Сатина F1, 1000 шт., Nunhems",2663,null,0,"Фото","http://agroopt-market.ru/collection/krupnobugorchatyy-3/product/semena-ogurtsa-pcheloopylyaemogo-satina-f1-nunhems-nyunems",158071029]
["Семена огурца п/о Сатина F1, 500 шт., Nunhems",1332,null,0,"Фото","http://agroopt-market.ru/collection/krupnobugorchatyy-3/product/semena-ogurtsa-pcheloopylyaemogo-satina-f1-nunhems-nyunems",158071014]
["Семена огурца п/о Сафаа F1, 25 тыс. шт., Seminis",20790,null,0,"Фото","http://agroopt-market.ru/collection/gladkiy-1500659258/product/safaa-f1-semena-ogurtsa-sredneplodnogo-seminis-seminis",147563141]
["Семена огурца п/о Святогор F1, 500 шт., Rijk Zwaan (ЗГ)",16490,null,0,"Фото","http://agroopt-market.ru/collection/ogurets/product/svyatogor-f1-semena-ogurtsa-sredneplodnogo-rijk-zwaan-rayk-tsvaan",157986637]
["Семена огурца п/о Соната F1, 1000 шт., Rijk Zwaan",470,null,0,"Фото","http://agroopt-market.ru/collection/bugorchatyy-3/product/sonata-rz-f1-semena-ogurtsa-korotkoplodnogo-rijk-zwaan-rayk-tsvaan",147563125]
["Семена огурца п/о Таракановский F1, 1000 шт., Гавриш",2450,null,0,"Фото","http://agroopt-market.ru/collection/gladkiy-1500659258/product/semena-ogurtsa-pcheloopylyaemogo-tarakanovskiy-f1-gavrish",158071000]
["Семена огурца п/о Тести Грин, 1000 шт., Sakata",2850,null,{"$f":"B1249*C1249","v":0},"Фото","http://agroopt-market.ru/collection/gladkiy-1508875200/product/semena-ogurtsa-pcheloopylyaemogo-testi-grin-sakata-sakata",158070830]
["Семена огурца п/о Эдванс F1, 50 гр, Bejo",830,null,0,{"$f":"HYPERLINK(F1250,\"Фото\")","v":"Фото"},"http://agroopt-market.ru/collection/krupnobugorchatyy-3/product/edvans-f1-semena-ogurtsa-korotkoplodnogo-bejo-beyo",147563137]
["Семена огурца п/о Эстафета F1, 1000 шт., Гавриш",2600,null,0,"Фото","http://agroopt-market.ru/collection/krupnobugorchatyy-1508875113/product/semena-ogurtsa-pcheloopylyaemogo-estafeta-f1-gavrish",158070998]
["Семена огурца Пасамонте F1, 500 шт, Syngenta",881,null,0,"Фото","-","ПРН"]
["Семена огурца Салинас F1, 500 шт, Syngenta",881,null,0,"Фото","-","ПРН"]
["Семена огурца Солейшн, 5000 шт. (3,75-4,00 мм пр. драже), Hazera",4800,null,0,"Фото","http://agroopt-market.ru/collection/aysberg/product/soleyson-semena-salata-aysberg-hazera-hazera",148874688]
["Семена огурца Фаро F1,1 000 шт, Sakata",7560,null,0,"Фото","-","ПРН"]
["Семена огурца Цунами F1, 1 000 шт, Sakata",7700,null,0,"Фото","-","ПРН"]
["Пастернак","@",null,"@","@"]
["Семена пастернака ПосейДон, 1 кг, Гавриш",8100,null,0,"Фото","http://agroopt-market.ru/collection/pasternak/product/semena-pasternaka-poseydon-gavrish",158071215]
["Перец острый","@",null,"@","@"]
["Семена перца острого Гомера F1, 250 шт., Enza Zaden",910,null,0,"Фото","http://agroopt-market.ru/collection/krasnyy/product/gomera-f1-semena-pertsa-ostrogo-krasnogo-enza-zaden-enza-zaden",148192819]
["Семена перца острого Кохиба F1, 500 шт., Sakata",1750,null,0,"Фото","http://agroopt-market.ru/collection/krasnyy/product/kohiba-f1-semena-pertsa-ostrogo-krasnogo-sakata-sakata",148192850]
["Семена перца острого Пьетро F1, 100 шт., Rijk Zwaan","под заказ",null,null,"Фото","http://agroopt-market.ru/collection/krasnyy/product/pietro-f1-semena-pertsa-ostrogo-krasnogo-rijk-zwaan-rayk-tsvaan",148192904]
["Семена перца острого Пьетро F1, 1000 шт., Rijk Zwaan","под заказ",null,null,"Фото","http://agroopt-market.ru/collection/krasnyy/product/pietro-f1-semena-pertsa-ostrogo-krasnogo-rijk-zwaan-rayk-tsvaan",148192906]
["Семена перца острого Пьетро F1, 500 шт., Rijk Zwaan","под заказ",null,null,"Фото","http://agroopt-market.ru/collection/krasnyy/product/pietro-f1-semena-pertsa-ostrogo-krasnogo-rijk-zwaan-rayk-tsvaan",148192905]
["Семена перца острого Сафьян F1, 250 шт., Clause",1609,null,0,"Фото","http://agroopt-market.ru/collection/krasnyy/product/safyan-f1-semena-pertsa-ostrogo-krasnogo-clause-klos",148192920]
["Семена перца острого Сонора F1, 500 шт., Sakata",1750,null,0,"Фото","http://agroopt-market.ru/collection/krasnyy/product/sonora-f1-semena-pertsa-ostrogo-krasnogo-sakata-sakata",148192938]
["Семена перца острого Тандер F1, 1000 шт., Rijk Zwaan",3640,null,0,"Фото","http://agroopt-market.ru/collection/krasnyy/product/tander-f1-semena-pertsa-ostrogo-krasnogo-rijk-zwaan-rayk-tsvaan",148192951]
["Семена перца острого Тандер F1, 500 шт., Rijk Zwaan",1820,null,0,"Фото","http://agroopt-market.ru/collection/krasnyy/product/tander-f1-semena-pertsa-ostrogo-krasnogo-rijk-zwaan-rayk-tsvaan",148192950]
["Семена перца острого Тассили F1, 250 шт., Clause",1557,null,0,"Фото","http://agroopt-market.ru/collection/krasnyy/product/tassili-f1-semena-pertsa-ostrogo-krasnogo-clause-klos",148192953]
["Семена перца острого Хайфи F1, 250 шт., Enza Zaden",970,null,0,"Фото","http://agroopt-market.ru/collection/krasnyy/product/hayfi-f1-semena-pertsa-ostrogo-krasnogo-enza-zaden-enza-zaden",148192981]
["Семена перца острого Харакири F1, 1000 шт., Гавриш",4500,null,0,"Фото","http://agroopt-market.ru/collection/krasnyy/product/semena-pertsa-ostrogo-harakiri-f1-gavrish",158071030]
["Семена перца острого Шакира F1, 500 шт., Enza Zaden",1940,null,0,"Фото","http://agroopt-market.ru/collection/krasnyy/product/shakira-f1-semena-pertsa-ostrogo-krasnogo-enza-zaden-enza-zaden",148192988]
["Семена перца острого Янка F1, 1000 шт., Rijk Zwaan",4630,null,0,"Фото","http://agroopt-market.ru/collection/krasnyy/product/yanka-f1-semena-pertsa-ostrogo-krasnogo-rijk-zwaan-rayk-tsvaan",148193001]
["Семена перца острого Янка F1, 500 шт., Rijk Zwaan",2310,null,0,"Фото","http://agroopt-market.ru/collection/krasnyy/product/yanka-f1-semena-pertsa-ostrogo-krasnogo-rijk-zwaan-rayk-tsvaan",148192999]
["Перец сладкий","@",null,"@","@"]
["Семена перца сладкого Адиге F1, 500 шт., Sakata",1500,null,0,"Фото","http://agroopt-market.ru/collection/krasnyy-2/product/adige-f1-semena-pertsa-sladkogo-krasnogo-sakata-sakata",148192788]
["Семена перца сладкого Аккорд А1, 500 шт., Hazera",2420,null,0,"Фото","http://agroopt-market.ru/collection/krasnyy-3/product/semena-pertsa-sladkogo-akkord-a1-hazera-hazera",158070834]
["Семена перца сладкого Анетта F1, 500 шт., Enza Zaden",1180,null,0,"Фото","http://agroopt-market.ru/collection/krasnyy-3/product/anetta-f1-semena-pertsa-sladkogo-krasnogo-enza-zaden-enza-zaden",148192790]
["Семена перца сладкого Арарат F1, 1000 шт., Гавриш",1250,null,0,"Фото","http://agroopt-market.ru/collection/krasnyy-3/product/semena-pertsa-sladkogo-ararat-f1-gavrish",158071039]
["Семена перца сладкого Аристотель ЭКС 3 Р F1, 500 шт., Seminis",1924,null,0,"Фото","http://agroopt-market.ru/collection/krasnyy-1501251226/product/aristotel-eks-3-r-f1-semena-pertsa-sladkogo-krasnogo-seminis-seminis",148192791]
["Семена перца сладкого Аркано F1, 500 шт., Sakata",1500,null,0,"Фото","http://agroopt-market.ru/collection/krasnyy-1501251291/product/arkano-f1-semena-pertsa-sladkogo-krasnogo-sakata-sakata",148192793]
["Семена перца сладкого Бандай F1, 500 шт., Sakata",1500,null,0,"Фото","http://agroopt-market.ru/collection/krasnyy-1501251226/product/banday-f1-semena-pertsa-sladkogo-krasnogo-sakata-sakata",148192795]
["Семена перца сладкого Бачата F1, 1000 шт., Rijk Zwaan",4160,null,0,"Фото","http://agroopt-market.ru/collection/zheltyy/product/bachata-f1-semena-pertsa-sladkogo-zheltogo-rijk-zwaan-rayk-tsvaan",148192798]
["Семена перца сладкого Бачата F1, 500 шт., Rijk Zwaan",2080,null,0,"Фото","http://agroopt-market.ru/collection/zheltyy/product/bachata-f1-semena-pertsa-sladkogo-zheltogo-rijk-zwaan-rayk-tsvaan",148192797]
["Семена перца сладкого Беладонна F1, 500 шт., Seminis",1924,null,0,"Фото","http://agroopt-market.ru/collection/belyy-2/product/beladonna-f1-semena-pertsa-sladkogo-belogo-seminis-seminis",148192801]
["Семена перца сладкого Бланчина F1, 500 шт., Enza Zaden",1510,null,0,"Фото","http://agroopt-market.ru/collection/belyy-2/product/blanchina-f1-semena-pertsa-sladkogo-belogo-enza-zaden-enza-zaden",148192803]
["Семена перца сладкого Блонди F1, 500 шт., Syngenta",2146,null,0,"Фото","http://agroopt-market.ru/collection/zheltyy/product/blondi-f1-semena-pertsa-sladkiogo-zheltogo-syngenta-singenta",148192805]
["Семена перца сладкого Буги F1, 100 шт., Rijk Zwaan (ЗГ)",3450,null,0,"Фото","http://agroopt-market.ru/collection/oranzhevyy-2/product/bugi-f1-semena-pertsa-sladkogo-oranzhevogo-rijk-zwaan-rayk-tsvaan",148192808]
["Семена перца сладкого Буги F1, 1000 шт., Rijk Zwaan (ЗГ)",34470,null,0,"Фото","http://agroopt-market.ru/collection/oranzhevyy-2/product/bugi-f1-semena-pertsa-sladkogo-oranzhevogo-rijk-zwaan-rayk-tsvaan",148192810]
["Семена перца сладкого Буги F1, 500 шт., Rijk Zwaan (ЗГ)",17240,null,0,"Фото","http://agroopt-market.ru/collection/oranzhevyy-2/product/bugi-f1-semena-pertsa-sladkogo-oranzhevogo-rijk-zwaan-rayk-tsvaan",148192809]
["Семена перца сладкого Бутуз, 100 гр, Гавриш",2050,null,0,"Фото","http://agroopt-market.ru/collection/krasnyy-3/product/semena-pertsa-sladkogo-butuz-gavrish",158071040]
["Семена перца сладкого Ведрана F1, 500 шт., Enza Zaden",1350,null,0,"Фото","http://agroopt-market.ru/collection/belyy/product/vedrana-f1-semena-pertsa-sladkogo-belogo-enza-zaden-enza-zaden",148192813]
["Семена перца сладкого Велез F1, 500 шт., Enza Zaden",8420,null,0,"Фото","http://agroopt-market.ru/collection/zheltyy/product/velez-f1-semena-pertsa-sladkogo-zheltogo-enza-zaden-enza-zaden",148192816]
["Семена перца сладкого Геркулес F1, 5 гр, Clause",2978,null,0,"Фото","http://agroopt-market.ru/collection/krasnyy-1501251226/product/semena-pertsa-sladkogo-gerkules-f1-clause-klos",158070831]
["Семена перца сладкого Давос F1, 100 шт., Rijk Zwaan (ЗГ)",3450,null,0,"Фото","http://agroopt-market.ru/collection/krasnyy-1501251226/product/davos-f1-semena-pertsa-sladkogo-krasnogo-rijk-zwaan-rayk-tsvaan",148192822]
["Семена перца сладкого Давос F1, 1000 шт., Rijk Zwaan (ЗГ)",34470,null,0,"Фото","http://agroopt-market.ru/collection/krasnyy-1501251226/product/davos-f1-semena-pertsa-sladkogo-krasnogo-rijk-zwaan-rayk-tsvaan",148192824]
["Семена перца сладкого Давос F1, 500 шт., Rijk Zwaan (ЗГ)",17240,null,0,"Фото","http://agroopt-market.ru/collection/krasnyy-1501251226/product/davos-f1-semena-pertsa-sladkogo-krasnogo-rijk-zwaan-rayk-tsvaan",148192823]
["Семена перца сладкого Даллас F1, 500 шт., Enza Zaden",1230,null,0,"Фото","http://agroopt-market.ru/collection/krasnyy-1501251226/product/dallas-f1-semena-pertsa-sladkogo-krasnogo-enza-zaden-enza-zaden",148192825]
["Семена перца сладкого Дерби F1, 1000 шт., De Ruiter Seeds",35212,null,0,"Фото","http://agroopt-market.ru/collection/zheltyy/product/derbi-f1-semena-pertsa-sladkogo-zheltogo-de-ruiter-seeds",148192828]
["Семена перца сладкого Джейд F1, 500 шт., Sakata",1750,null,0,"Фото","http://agroopt-market.ru/collection/svetlo-zelenyy/product/dzheyd-f1-semena-pertsa-sladkogo-svetlo-zelenogo-sakata-sakata",148192831]
["Семена перца сладкого Джемини F1, 1000 шт., Nunhems",4117,null,0,"Фото","http://agroopt-market.ru/collection/zheltyy/product/semena-pertsa-sladkogo-dzhemini-f1-nunhems-nyunems",158071033]
["Семена перца сладкого Джипси F1, 500 шт., Seminis",1460,null,0,"Фото","http://agroopt-market.ru/collection/krasnyy-3/product/dzhipsi-f1-semena-pertsa-sladkogo-krasnogo-seminis-seminis",148192832]
["Семена перца сладкого Дикаприо F1, 500 шт., Enza Zaden",8940,null,0,"Фото","http://agroopt-market.ru/collection/zheltyy/product/dikaprio-f1-semena-pertsa-sladkogo-zheltogo-enza-zaden-enza-zaden",148192835]
["Семена перца сладкого Иланга F1, 1000 шт., Rijk Zwaan",4160,null,0,"Фото","http://agroopt-market.ru/collection/zheltyy/product/ilanga-f1-semena-pertsa-sladkogo-zheltogo-rijk-zwaan-rayk-tsvaan",148192839]
["Семена перца сладкого Иланга F1, 500 шт., Rijk Zwaan",2080,null,0,"Фото","http://agroopt-market.ru/collection/zheltyy/product/ilanga-f1-semena-pertsa-sladkogo-zheltogo-rijk-zwaan-rayk-tsvaan",148192838]
["Семена перца сладкого Ирэн F1, 500 шт., Enza Zaden",1460,null,0,"Фото","http://agroopt-market.ru/collection/svetlo-zelenyy/product/semena-pertsa-sladkogo-iren-f1-enza-zaden-enza-zaden",158070832]
["Семена перца сладкого Кадия F1, 500 шт., Enza Zaden",2640,null,0,"Фото","http://agroopt-market.ru/collection/zheltyy/product/kadiya-f1-semena-pertsa-sladkogo-zheltogo-enza-zaden-enza-zaden",148192841]
["Семена перца сладкого Каптур F1, 500 шт., Seminis",1503,null,0,"Фото","http://agroopt-market.ru/collection/krasnyy-3/product/kaptur-f1-semena-pertsa-sladkogo-krasnogo-seminis-seminis",148192844]
["Семена перца сладкого Катриона F1, 500 шт., Enza Zaden",2170,null,0,"Фото","http://agroopt-market.ru/collection/zheltyy/product/katriona-f1-semena-pertsa-sladkogo-zheltogo-enza-zaden-enza-zaden",148192846]
["Семена перца сладкого Клаудио F1, 1000 шт., Nunhems",4078,null,0,"Фото","http://agroopt-market.ru/collection/krasnyy-1501251226/product/semena-pertsa-sladkogo-klaudio-f1-nunhems-nyunems",158071034]
["Семена перца сладкого Клаудио F1, 500 шт., Nunhems",2039,null,0,"Фото","http://agroopt-market.ru/collection/krasnyy-1501251226/product/semena-pertsa-sladkogo-klaudio-f1-nunhems-nyunems",158071032]
["Семена перца сладкого Лозорно F1, 500 шт., Enza Zaden",2700,null,0,"Фото","http://agroopt-market.ru/collection/krasnyy-1501251226/product/lozorno-f1-semena-pertsa-sladkogo-krasnogo-enza-zaden-enza-zaden",148192852]
["Семена перца сладкого Лорка F1, 1000 шт., De Ruiter Seeds",15114,null,0,"Фото","http://agroopt-market.ru/collection/krasnyy-1501251226/product/lorka-f1-semena-pertsa-sladkogo-krasnogo-de-ruiter-seeds",148192854]
["Семена перца сладкого Лотта F1, 500 шт., Enza Zaden",1290,null,0,"Фото","http://agroopt-market.ru/collection/krasnyy-3/product/lotta-f1-semena-pertsa-sladkogo-krasnogo-enza-zaden-enza-zaden",148192855]
["Семена перца сладкого Любовь F1, 500 шт., Syngenta","по запросу",null,null,"Фото","http://agroopt-market.ru/collection/krasnyy-3/product/lyubov-f1-semena-pertsa-sladkiogo-krasnogo-syngenta-singenta",148192859]
["Семена перца сладкого Маврас F1, 500 шт., Enza Zaden",1290,null,{"$f":"B1316*C1316","v":0},"Фото","http://agroopt-market.ru/collection/krasnyy-1501251226/product/mavras-f1-semena-pertsa-sladkogo-krasnogo-enza-zaden-enza-zaden",148192860]
["Семена перца сладкого Магно F1, 500 шт., Enza Zaden",2820,null,0,{"$f":"HYPERLINK(F1317,\"Фото\")","v":"Фото"},"http://agroopt-market.ru/collection/oranzhevyy-2/product/magno-f1-semena-pertsa-sladkogo-oranzhevogo-enza-zaden-enza-zaden",148192862]
["Семена перца сладкого Мадонна F1, 1 000 шт, Tezier",3217,null,0,"Фото","-","ПРН"]
["Семена перца сладкого Мазурка F1, 1000 шт., Rijk Zwaan",5610,null,0,"Фото","http://agroopt-market.ru/collection/krasnyy-1501251291/product/semena-pertsa-sladkogo-mazurka-f1-rijk-zwaan-rayk-tsvaan",158070837]
["Семена перца сладкого Мазурка F1, 500 шт., Rijk Zwaan",2800,null,0,"Фото","http://agroopt-market.ru/collection/krasnyy-1501251291/product/semena-pertsa-sladkogo-mazurka-f1-rijk-zwaan-rayk-tsvaan",158070835]
["Семена перца сладкого Марадонна F1, 500 шт., Seminis",1865,null,0,"Фото","http://agroopt-market.ru/collection/belyy-2/product/maradonna-f1-semena-pertsa-sladkogo-belogo-seminis-seminis",148192868]
["Семена перца сладкого Милдред F1, 500 шт., Enza Zaden",1730,null,0,"Фото","http://agroopt-market.ru/collection/zheltyy/product/mildred-f1-semena-pertsa-sladkogo-zheltogo-enza-zaden-enza-zaden",148192870]
["Семена перца сладкого Нагано F1, 100 шт., Rijk Zwaan (ЗГ)",3450,null,0,"Фото","http://agroopt-market.ru/collection/krasnyy-1501251226/product/nagano-f1-semena-pertsa-sladkogo-krasnogo-rijk-zwaan-rayk-tsvaan",148192872]
["Семена перца сладкого Нагано F1, 1000 шт., Rijk Zwaan (ЗГ)",34470,null,0,"Фото","http://agroopt-market.ru/collection/krasnyy-1501251226/product/nagano-f1-semena-pertsa-sladkogo-krasnogo-rijk-zwaan-rayk-tsvaan",148192875]
["Семена перца сладкого Нагано F1, 500 шт., Rijk Zwaan (ЗГ)",17240,null,0,"Фото","http://agroopt-market.ru/collection/krasnyy-1501251226/product/nagano-f1-semena-pertsa-sladkogo-krasnogo-rijk-zwaan-rayk-tsvaan",148192873]
["Семена перца сладкого Никита F1, 1000 шт., Clause",3217,null,0,"Фото","http://agroopt-market.ru/collection/krasnyy-1501251226/product/nikita-f1-semena-pertsa-sladkogo-krasnogo-clause-klos",148192878]
["Семена перца сладкого Омброне F1, 500 шт., Sakata",2400,null,0,"Фото","http://agroopt-market.ru/collection/krasnyy-1501251291/product/ombrone-f1-semena-pertsa-sladkogo-krasnogo-sakata-sakata",148192882]
["Семена перца сладкого Оранж Глори F1, 1000 шт., De Ruiter Seeds",23322,null,0,"Фото","http://agroopt-market.ru/collection/oranzhevyy-2/product/oranzh-glori-f1-semena-pertsa-sladkogo-oranzhevogo-de-ruiter-seeds",148192884]
["Семена перца сладкого Палермо F1, 100 шт., Rijk Zwaan (ЗГ)",3450,null,0,"Фото","http://agroopt-market.ru/collection/krasnyy-2/product/palermo-f1-semena-pertsa-sladkogo-krasnogo-rijk-zwaan-rayk-tsvaan",148192887]
["Семена перца сладкого Палермо F1, 1000 шт., Rijk Zwaan (ЗГ)",34470,null,0,"Фото","http://agroopt-market.ru/collection/krasnyy-2/product/palermo-f1-semena-pertsa-sladkogo-krasnogo-rijk-zwaan-rayk-tsvaan",148192890]
["Семена перца сладкого Палермо F1, 500 шт., Rijk Zwaan (ЗГ)",17240,null,0,"Фото","http://agroopt-market.ru/collection/krasnyy-2/product/palermo-f1-semena-pertsa-sladkogo-krasnogo-rijk-zwaan-rayk-tsvaan",148192888]
["Семена перца сладкого Поло F1, 500 шт., Sakata",1500,null,0,"Фото","http://agroopt-market.ru/collection/krasnyy-3/product/polo-f1-semena-pertsa-sladkogo-krasnogo-sakata-sakata",148192893]
["Семена перца сладкого Портека F1, 1000 шт., Rijk Zwaan",3630,null,0,"Фото","http://agroopt-market.ru/collection/krasnyy-3/product/porteka-f1-semena-pertsa-sladkogo-krasnogo-rijk-zwaan-rayk-tsvaan",148192895]
["Семена перца сладкого Портека F1, 500 шт., Rijk Zwaan",1820,null,0,"Фото","http://agroopt-market.ru/collection/krasnyy-3/product/semena-pertsa-sladkogo-porteka-f1-rijk-zwaan-rayk-tsvaan",158070833]
["Семена перца сладкого Притавит F1, 500 шт., Seminis",1530,null,0,"Фото","http://agroopt-market.ru/collection/krasnyy-1501251323/product/pritavit-f1-semena-pertsa-sladkogo-krasnogo-seminis-seminis",148192898]
["Семена перца сладкого Прокрафт F1, 500 шт., Enza Zaden",1350,null,0,"Фото","http://agroopt-market.ru/collection/krasnyy-1501251226/product/prokraft-f1-semena-pertsa-sladkogo-krasnogo-enza-zaden-enza-zaden",148192899]
["Семена перца сладкого Ред барон F1, 500 шт., Enza Zaden",2520,null,0,"Фото","http://agroopt-market.ru/collection/krasnyy-1501251226/product/red-baron-f1-semena-pertsa-sladkogo-krasnogo-enza-zaden-enza-zaden",148192910]
["Семена перца сладкого Ред Найт F1, 500 шт., Seminis",1924,null,0,"Фото","http://agroopt-market.ru/collection/krasnyy-1501251226/product/red-nayt-f1-semena-pertsa-sladkogo-krasnogo-seminis-seminis",148192912]
["Семена перца сладкого Рубине F1, 500 шт., Enza Zaden",2520,null,0,"Фото","http://agroopt-market.ru/collection/krasnyy-3/product/rubine-f1-semena-pertsa-sladkogo-krasnogo-enza-zaden-enza-zaden",148192914]
["Семена перца сладкого Самандер F1, 1000 шт., Nunhems",5152,null,0,"Фото","http://agroopt-market.ru/collection/krasnyy-2/product/semena-pertsa-sladkogo-samander-f1-nunhems-nyunems",158071035]
["Семена перца сладкого Самсон F1, 1000 шт., Гавриш",4050,null,0,"Фото","http://agroopt-market.ru/collection/krasnyy-1501251291/product/semena-pertsa-sladkogo-samson-f1-gavrish",158071037]
["Семена перца сладкого Сарно F1, 500 шт., Sakata",1500,null,0,"Фото","http://agroopt-market.ru/collection/krasnyy-1501251291/product/sarno-f1-semena-pertsa-sladkogo-krasnogo-sakata-sakata",148192918]
["Семена перца сладкого Свен F1, 100 шт., Rijk Zwaan (ЗГ)",3450,null,0,"Фото","http://agroopt-market.ru/collection/zheltyy/product/sven-f1-semena-pertsa-sladkogo-zheltogo-rijk-zwaan-rayk-tsvaan",148192923]
["Семена перца сладкого Свен F1, 1000 шт., Rijk Zwaan (ЗГ)",34470,null,0,"Фото","http://agroopt-market.ru/collection/zheltyy/product/sven-f1-semena-pertsa-sladkogo-zheltogo-rijk-zwaan-rayk-tsvaan",148192926]
["Семена перца сладкого Свен F1, 500 шт., Rijk Zwaan (ЗГ)",17240,null,0,"Фото","http://agroopt-market.ru/collection/zheltyy/product/sven-f1-semena-pertsa-sladkogo-zheltogo-rijk-zwaan-rayk-tsvaan",148192924]
["Семена перца сладкого Симето F1, 500 шт., Sakata",1500,null,0,"Фото","http://agroopt-market.ru/collection/krasnyy-1501251291/product/simeto-f1-semena-pertsa-sladkogo-krasnogo-sakata-sakata",148192927]
["Семена перца сладкого Сноувайт F1, 1000 шт., Rijk Zwaan",3600,null,0,"Фото","http://agroopt-market.ru/collection/belyy/product/snouvayt-f1-semena-pertsa-sladkogo-belogo-rijk-zwaan-rayk-tsvaan",148192933]
["Семена перца сладкого Сноувайт F1, 500 шт., Rijk Zwaan",1800,null,0,"Фото","http://agroopt-market.ru/collection/belyy/product/snouvayt-f1-semena-pertsa-sladkogo-belogo-rijk-zwaan-rayk-tsvaan",148192930]
["Семена перца сладкого Сондела F1, 1000 шт., Rijk Zwaan",4160,null,0,"Фото","http://agroopt-market.ru/collection/krasnyy-1501251226/product/sondela-f1-semena-pertsa-sladkogo-krasnogo-rijk-zwaan-rayk-tsvaan",148192937]
["Семена перца сладкого Сондела F1, 500 шт., Rijk Zwaan",2080,null,0,"Фото","http://agroopt-market.ru/collection/krasnyy-1501251226/product/sondela-f1-semena-pertsa-sladkogo-krasnogo-rijk-zwaan-rayk-tsvaan",148192935]
["Семена перца сладкого Стайер F1, 100 шт., Rijk Zwaan (ЗГ)",3450,null,0,"Фото","http://agroopt-market.ru/collection/zheltyy/product/stayer-f1-semena-pertsa-sladkogo-zheltogo-rijk-zwaan-rayk-tsvaan",148192941]
["Семена перца сладкого Стайер F1, 1000 шт., Rijk Zwaan (ЗГ)",34470,null,0,"Фото","http://agroopt-market.ru/collection/zheltyy/product/stayer-f1-semena-pertsa-sladkogo-zheltogo-rijk-zwaan-rayk-tsvaan",148192944]
["Семена перца сладкого Стайер F1, 500 шт., Rijk Zwaan (ЗГ)",17240,null,0,"Фото","http://agroopt-market.ru/collection/zheltyy/product/stayer-f1-semena-pertsa-sladkogo-zheltogo-rijk-zwaan-rayk-tsvaan",148192943]
["Семена перца сладкого Стенли F1, 500 шт., Bejo",930,null,0,"Фото","http://agroopt-market.ru/collection/krasnyy-1501251226/product/stenli-f1-semena-pertsa-sladkogo-krasnogo-bejo-beyo",148192946]
["Семена перца сладкого Тамара F1, 500 шт., Seminis",1355,null,0,"Фото","http://agroopt-market.ru/collection/krasnyy-2/product/tamara-f1-semena-pertsa-sladkogo-krasnogo-seminis-seminis",148192948]
["Семена перца сладкого Тевере F1, 500 шт., Sakata",2400,null,0,"Фото","http://agroopt-market.ru/collection/zheltyy-2/product/tevere-f1-semena-pertsa-sladkogo-zheltogo-sakata-sakata",148192957]
["Семена перца сладкого Текила F1, 500 шт., Enza Zaden",1980,null,0,"Фото","http://agroopt-market.ru/collection/krasnyy-1501251226/product/tekila-f1-semena-pertsa-sladkogo-krasnogo-enza-zaden-enza-zaden",148192959]
["Семена перца сладкого Тесео F1, 500 шт., Enza Zaden",3950,null,0,"Фото","http://agroopt-market.ru/collection/krasnyy-3/product/teseo-f1-semena-pertsa-sladkogo-krasnogo-enza-zaden-enza-zaden",148192961]
["Семена перца сладкого Требия F1, 500 шт., Sakata",1500,null,0,"Фото","http://agroopt-market.ru/collection/zheltyy-2/product/trebiya-f1-semena-pertsa-sladkogo-zheltogo-sakata-sakata",148192964]
["Семена перца сладкого Трипл стар F1, 500 шт., Enza Zaden",5330,null,0,"Фото","http://agroopt-market.ru/collection/krasnyy-1501251226/product/tripl-star-f1-semena-pertsa-sladkogo-krasnogo-enza-zaden-enza-zaden",148192965]
["Семена перца сладкого Турбин F1, 500 шт., Bejo",1210,null,0,"Фото","http://agroopt-market.ru/collection/zheltyy/product/turbin-f1-semena-pertsa-sladkogo-zheltogo-bejo-beyo",148192968]
["Семена перца сладкого Фавилла F1, 500 шт., Seminis",3168,null,0,"Фото","http://agroopt-market.ru/collection/krasnyy-1501251291/product/favilla-f1-semena-pertsa-sladkogo-krasnogo-seminis-seminis",148192970]
["Семена перца сладкого Фламинго F1, 5 гр, Clause",2838,null,0,"Фото","http://agroopt-market.ru/collection/krasnyy-3/product/flamingo-f1-semena-pertsa-sladkogo-krasnogo-clause-klos",148192972]
["Семена перца сладкого Флексум F1, 500 шт., Seminis",1573,null,0,"Фото","http://agroopt-market.ru/collection/krasnyy-3/product/fleksum-f1-semena-pertsa-sladkogo-krasnogo-seminis-seminis",148192975]
["Семена перца сладкого Фэнтази F1, 1000 шт., De Ruiter Seeds",28196,null,0,"Фото","http://agroopt-market.ru/collection/krasnyy-1501251226/product/fentazi-f1-semena-pertsa-sladkogo-krasnogo-de-ruiter-seeds",148192979]
["Семена перца сладкого Халиф F1, 500 шт., Sakata",1750,null,0,"Фото","http://agroopt-market.ru/collection/belyy-2/product/halif-f1-semena-pertsa-sladkogo-belogo-sakata-sakata",148192983]
["Семена перца сладкого Хаски F1, 500 шт., Enza Zaden",1290,null,0,"Фото","http://agroopt-market.ru/collection/belyy/product/haski-f1-semena-pertsa-sladkogo-belogo-enza-zaden-enza-zaden",148192985]
["Семена перца сладкого Эривань F1, 1000 шт., Гавриш",2050,null,0,"Фото","http://agroopt-market.ru/collection/krasnyy-3/product/semena-pertsa-sladkogo-erivan-f1-gavrish",158071038]
["Семена перца сладкого Эрли Сансейшн F1, 500 шт., Seminis",1920,null,0,"Фото","http://agroopt-market.ru/collection/zheltyy/product/erli-sanseyshn-f1-semena-pertsa-sladkogo-zheltogo-seminis-seminis",148192990]
["Семена перца сладкого Эскудеро F1, 1000 шт., Vilmorin",2750,null,0,"Фото","http://agroopt-market.ru/collection/krasnyy-1501251226/product/eskudero-f1-semena-pertsa-sladkogo-krasnogo-vilmorin-vilmorin",148192992]
["Семена перца сладкого Эспартано F1, 500 шт., Sakata",1500,null,0,"Фото","http://agroopt-market.ru/collection/zheltyy/product/espartano-f1-semena-pertsa-sladkogo-zheltogo-sakata-sakata",148192994]
["Семена перца сладкого Юпитер, 500 шт., Syngenta","по запросу",null,null,"Фото","http://agroopt-market.ru/collection/krasnyy-1501251226/product/yupiter-semena-pertsa-sladkiogo-krasnogo-syngenta-singenta",148192996]
["Петрушка","@",null,"@","@"]
["Семена петрушки Бисер, 1 кг, Гавриш",1500,null,0,"Фото","http://agroopt-market.ru/collection/petrushka/product/semena-petrushki-biser-gavrish",158071047]
["Семена петрушки Бубка, 250 гр., Rijk Zwaan",1753,null,0,"Фото","http://agroopt-market.ru/collection/petrushka/product/bubka-semena-petrushki-rijk-zwaan-rayk-tsvaan",148769303]
["Семена петрушки Вега, 100 гр, Enza Zaden",560,null,0,"Фото","http://agroopt-market.ru/collection/petrushka/product/vega-semena-petrushki-enza-zaden-enza-zaden",148769295]
["Семена петрушки Глория, 1 кг, Гавриш",1650,null,0,"Фото","http://agroopt-market.ru/collection/petrushka/product/semena-petrushki-gloriya-gavrish",158071044]
["Семена петрушки Игл, 50 гр, Bejo",520,null,0,"Фото","http://agroopt-market.ru/collection/petrushka/product/igl-semena-petrushki-bejo-beyo",148769279]
["Семена петрушки Итальянский гигант новас, 1 кг., Clause",800,null,0,"Фото","http://agroopt-market.ru/collection/petrushka/product/italyanskiy-gigant-novas-semena-petrushki-clause-klos",148769292]
["Семена петрушки Итальянский гигант, 1 кг, Гавриш",1500,null,0,"Фото","http://agroopt-market.ru/collection/petrushka/product/semena-petrushki-italyanskiy-gigant-gavrish",158071045]
["Семена петрушки Итальянский гигант, 100 гр, Enza Zaden",1325,null,{"$f":"B1381*C1381","v":0},"Фото","http://agroopt-market.ru/collection/petrushka/product/italyanskiy-gigant-semena-petrushki-enza-zaden-enza-zaden",148769297]
["Семена петрушки Мооскраузе 2, 10 гр, Rijk Zwaan",40,null,0,{"$f":"HYPERLINK(F1382,\"Фото\")","v":"Фото"},"http://agroopt-market.ru/collection/petrushka/product/mooskrauze-2-semena-petrushki-rijk-zwaan-rayk-tsvaan",148769314]
["Семена петрушки Мооскраузе 2, 250 гр, Rijk Zwaan",920,null,0,"Фото","http://agroopt-market.ru/collection/petrushka/product/mooskrauze-2-semena-petrushki-rijk-zwaan-rayk-tsvaan",148769310]
["Семена петрушки Мооскраузе 2, 50 гр, Rijk Zwaan",180,null,0,"Фото","http://agroopt-market.ru/collection/petrushka/product/mooskrauze-2-semena-petrushki-rijk-zwaan-rayk-tsvaan",148769315]
["Семена петрушки Петра, 50 гр, Bejo",240,null,0,"Фото","http://agroopt-market.ru/collection/petrushka/product/petra-semena-petrushki-bejo-beyo",148769282]
["Семена петрушки Риалто, 500 гр, Bejo",1660,null,0,"Фото","http://agroopt-market.ru/collection/petrushka/product/rialto-semena-petrushki-bejo-beyo",148769287]
["Семена петрушки Титан, 50 гр, Bejo",190,null,0,"Фото","http://agroopt-market.ru/collection/petrushka/product/titan-semena-petrushki-bejo-beyo",148769289]
["Семена петрушки Фелиция, 250 гр., Rijk Zwaan",1447,null,0,"Фото","http://agroopt-market.ru/collection/petrushka/product/felitsiya-semena-petrushki-rijk-zwaan-rayk-tsvaan",148769322]
["Семена петрушки Фиделио, 100 гр., Enza Zaden",400,null,0,"Фото","http://agroopt-market.ru/collection/petrushka/product/fidelio-semena-petrushki-enza-zaden-enza-zaden",148769300]
["Семена петрушки Финал, 1 кг, Гавриш",1250,null,0,"Фото","http://agroopt-market.ru/collection/petrushka/product/semena-petrushki-final-gavrish",158071048]
["Семена петрушки Эсмеральда, 1 кг, Гавриш",2050,null,0,"Фото","http://agroopt-market.ru/collection/petrushka/product/semena-petrushki-esmeralda-gavrish",158071042]
["Патиссон","@",null,"@","@"]
["Семена питиссона Сани Делайт F1, 1000 шт., Seminis",4658,null,0,"Фото","http://agroopt-market.ru/collection/patisson/product/sani-delayt-f1-semena-patissona-seminis-seminis",148669896]
["Семена питиссона Сани Делайт F1, 500 шт., Seminis",2329,null,0,"Фото","http://agroopt-market.ru/collection/patisson/product/sani-delayt-f1-semena-patissona-seminis-seminis",148669892]
["Подвой","@",null,"@","@"]
["Семена подвоя Аффин F1, 1000 шт., Rijk Zwaan (ЗГ)",3170,null,0,"Фото","http://agroopt-market.ru/collection/dlya-ogurtsa/product/semena-podvoya-affin-f1-rijk-zwaan-rayk-tsvaan",158070838]
["Семена подвоя Граундфорс F1, 1 000 шт, Sakata",4200,null,0,"Фото","-","ПРН"]
["Семена подвоя Кайзер F1, 1000 шт., Rijk Zwaan (ЗГ)",9820,null,0,"Фото","http://agroopt-market.ru/collection/dlya-tomata/product/semena-podvoya-kayzer-f1-rijk-zwaan-rayk-tsvaan",158070839]
["Семена подвоя Максифорт F1, 1000 шт., De Ruiter Seeds",12306,null,0,"Фото","http://agroopt-market.ru/collection/dlya-tomata/product/maksifort-f1-podvoy-dlya-tomata-de-ruiter-seeds-de-royter",148670148]
["Семена подвоя Радар F1, 1000 шт., Enza Zaden",10000,null,0,"Фото","http://agroopt-market.ru/collection/dlya-tomata/product/radar-f1-podvoy-dlya-tomata-enza-zaden-enza-zaden",148670150]
["Семена подвоя Статус F1, 1000 шт., Enza Zaden",6600,null,0,"Фото","http://agroopt-market.ru/collection/dlya-ogurtsa/product/status-f1-podvoy-dlya-ogurtsa-enza-zaden-enza-zaden",148670151]
["Семена подвоя Тетсукабуто F1, 1000 шт., Enza Zaden",3800,null,0,"Фото","http://agroopt-market.ru/collection/dlya-arbuza/product/tetsukabuto-f1-podvoy-dlya-arbuza-enza-zaden-enza-zaden",148670155]
["Семена подвоя Эмперадор F1, 1000 шт., Rijk Zwaan (ЗГ)",9820,null,0,"Фото","http://agroopt-market.ru/collection/dlya-tomata/product/emperador-podvoy-dlya-tomata-rijk-zwaan-rayk-tsvaan",148670157]
["Редис","@",null,"@","@"]
["Семена редиса Арли F1, 100 тыс. шт., Rijk Zwaan",6780,null,0,"Фото","http://agroopt-market.ru/collection/redis/product/arli-f1-semena-redisa-rijk-zwaan-rayk-tsvaan",148669906]
["Семена редиса Арли F1, 25 тыс. шт., Rijk Zwaan",1700,null,0,"Фото","http://agroopt-market.ru/collection/redis/product/arli-f1-semena-redisa-rijk-zwaan-rayk-tsvaan",148669902]
["Семена редиса Валери F1, 100 тыс. шт., Rijk Zwaan",6330,null,0,"Фото","http://agroopt-market.ru/collection/redis/product/valeri-f1-semena-redisa-rijk-zwaan-rayk-tsvaan",148669913]
["Семена редиса Валери F1, 25 тыс. шт., Rijk Zwaan",1580,null,0,"Фото","http://agroopt-market.ru/collection/redis/product/valeri-f1-semena-redisa-rijk-zwaan-rayk-tsvaan",148669909]
["Семена редиса Вена, 250 гр, Enza Zaden",1960,null,0,"Фото","http://agroopt-market.ru/collection/redis/product/vena-semena-redisa-enza-zaden-enza-zaden",148669921]
["Семена редиса Вена, 50 тыс. шт. (2,50-2,75), Enza Zaden",4360,null,0,"Фото","http://agroopt-market.ru/collection/redis/product/vena-semena-redisa-enza-zaden-enza-zaden",148672412]
["Семена редиса Вираж F1, 1 кг, Гавриш",3250,null,0,"Фото","http://agroopt-market.ru/collection/redis/product/semena-redisa-virazh-f1-gavrish",158071054]
["Семена редиса Глориет F1, 10 тыс. шт., Sakata",1000,null,0,"Фото","http://agroopt-market.ru/collection/redis/product/gloriet-f1-semena-redisa-sakata-sakata",148669926]
["Семена редиса Глориет F1, 1000 шт., Sakata",140,null,0,"Фото","http://agroopt-market.ru/collection/redis/product/gloriet-f1-semena-redisa-sakata-sakata",148669928]
["Семена редиса Дабел F1, 10 тыс. шт., Nunhems",1005,null,0,"Фото","http://agroopt-market.ru/collection/redis/product/semena-redisa-dabel-f1-nunhems-nyunems",158071052]
["Семена редиса Диего F1, 10 тыс. шт., Hazera",1180,null,0,"Фото","http://agroopt-market.ru/collection/redis/product/diego-f1-semena-redisa-hazera-hazera",148669940]
["Семена редиса Диего F1, 250 г, Hazera",1890,null,0,"Фото","-","ПРН"]
["Семена редиса Донар F1, 10 тыс. шт., Syngenta",1211,null,0,"Фото","http://agroopt-market.ru/collection/redis/product/donar-f1-semena-redisa-syngenta-singenta",148669946]
["Семена редиса Ирене, 1 кг, Rijk Zwaan",6960,null,0,"Фото","http://agroopt-market.ru/collection/redis/product/irene-f1-semena-redisa-rijk-zwaan-rayk-tsvaan",148669960]
["Семена редиса Ирене, 250 гр, Rijk Zwaan",1740,null,0,"Фото","http://agroopt-market.ru/collection/redis/product/irene-f1-semena-redisa-rijk-zwaan-rayk-tsvaan",148669957]
["Семена редиса Каспар F1, 10 тыс. шт., Syngenta",716,null,0,"Фото","http://agroopt-market.ru/collection/redis/product/kaspar-f1-semena-redisa-syngenta-singenta",148669966]
["Семена редиса Мелито F1, 10 тыс. шт., Hazera",1250,null,0,"Фото","http://agroopt-market.ru/collection/redis/product/melito-f1-semena-redisa-hazera-hazera",148669975]
["Семена редиса Мелито F1, 250 гр, Hazera",1890,null,0,"Фото","http://agroopt-market.ru/collection/redis/product/melito-f1-semena-redisa-hazera-hazera",148672614]
["Семена редиса Мондиал F1, 100 тыс. шт., Rijk Zwaan",6330,null,0,"Фото","http://agroopt-market.ru/collection/redis/product/mondial-f1-semena-redisa-rijk-zwaan-rayk-tsvaan",148669987]
["Семена редиса Мондиал F1, 25 тыс. шт., Rijk Zwaan",1580,null,0,"Фото","http://agroopt-market.ru/collection/redis/product/mondial-f1-semena-redisa-rijk-zwaan-rayk-tsvaan",148669985]
["Семена редиса РБК, 1 кг, Гавриш",1900,null,0,"Фото","http://agroopt-market.ru/collection/redis/product/semena-redisa-rbk-gavrish",158071056]
["Семена редиса Ребел, 500 гр, Bejo",1440,null,0,"Фото","http://agroopt-market.ru/collection/redis/product/rebel-semena-redisa-bejo-beyo",148669992]
["Семена редиса Регге, 500 гр, Bejo",1440,null,0,"Фото","http://agroopt-market.ru/collection/redis/product/regge-semena-redisa-bejo-beyo",148669997]
["Семена редиса Ровер F1, 5000 шт. (2,25-2,50), Bejo",350,null,0,"Фото","http://agroopt-market.ru/collection/redis/product/rover-f1-semena-redisa-bejo-beyo",148670003]
["Семена редиса Ровер F1, 5000 шт. (2,50-2,75), Bejo",380,null,0,"Фото","http://agroopt-market.ru/collection/redis/product/rover-f1-semena-redisa-bejo-beyo",148670006]
["Семена редиса Ровер F1, 5000 шт. (2,75-3,00), Bejo",420,null,0,"Фото","http://agroopt-market.ru/collection/redis/product/rover-f1-semena-redisa-bejo-beyo",148670008]
["Семена редиса Розетта F1, 5000 шт. (2,25-2,50), Bejo",320,null,0,"Фото","http://agroopt-market.ru/collection/redis/product/rozetta-f1-semena-redisa-bejo-beyo",148670015]
["Семена редиса Розетта F1, 5000 шт. (2,50-2,75), Bejo",360,null,0,"Фото","http://agroopt-market.ru/collection/redis/product/rozetta-f1-semena-redisa-bejo-beyo",148670017]
["Семена редиса Розетта F1, 5000 шт. (2,75-3,00), Bejo",360,null,0,"Фото","http://agroopt-market.ru/collection/redis/product/rozetta-f1-semena-redisa-bejo-beyo",148670020]
["Семена редиса Роксанна F1, 5000 шт. (2,25-2,50), Bejo",320,null,0,"Фото","http://agroopt-market.ru/collection/redis/product/roksanna-f1-semena-redisa-bejo-beyo",148670025]
["Семена редиса Роксанна F1, 5000 шт. (2,50-2,75), Bejo",360,null,0,"Фото","http://agroopt-market.ru/collection/redis/product/roksanna-f1-semena-redisa-bejo-beyo",148670028]
["Семена редиса Роксанна F1, 5000 шт. (2,75-3,00), Bejo",360,null,0,"Фото","http://agroopt-market.ru/collection/redis/product/roksanna-f1-semena-redisa-bejo-beyo",148670032]
["Семена редиса Ролекс F1, 5000 шт. (2,25-2,50), Bejo",360,null,0,"Фото","http://agroopt-market.ru/collection/redis/product/roleks-f1-semena-redisa-bejo-beyo",148670042]
["Семена редиса Ролекс F1, 5000 шт. (2,50-2,75), Bejo",390,null,0,"Фото","http://agroopt-market.ru/collection/redis/product/roleks-f1-semena-redisa-bejo-beyo",148670044]
["Семена редиса Ролекс F1, 5000 шт. (2,75-3,00), Bejo",440,null,0,"Фото","http://agroopt-market.ru/collection/redis/product/roleks-f1-semena-redisa-bejo-beyo",148670047]
["Семена редиса Рондар F1, 10 тыс. шт., Syngenta",838,null,0,"Фото","http://agroopt-market.ru/collection/redis/product/rondar-f1-semena-redisa-syngenta-singenta",148670052]
["Семена редиса Рондеел, 1 кг, Rijk Zwaan",4570,null,0,"Фото","http://agroopt-market.ru/collection/redis/product/rondeel-semena-redisa-rijk-zwaan-rayk-tsvaan",148670060]
["Семена редиса Рондеел, 250 гр, Rijk Zwaan",1140,null,0,"Фото","http://agroopt-market.ru/collection/redis/product/rondeel-semena-redisa-rijk-zwaan-rayk-tsvaan",148670057]
["Семена редиса Рочас F1, 5000 шт. (2,25-2,50), Bejo",350,null,0,"Фото","http://agroopt-market.ru/collection/redis/product/rochas-f1-semena-redisa-bejo-beyo",148670067]
["Семена редиса Рочас F1, 5000 шт. (2,50-2,75), Bejo",380,null,0,"Фото","http://agroopt-market.ru/collection/redis/product/rochas-f1-semena-redisa-bejo-beyo",148670069]
["Семена редиса Рочас F1, 5000 шт. (2,75-3,00), Bejo",420,null,0,"Фото","http://agroopt-market.ru/collection/redis/product/rochas-f1-semena-redisa-bejo-beyo",148670072]
["Семена редиса Рудольф, 500 гр, Bejo",1730,null,0,"Фото","http://agroopt-market.ru/collection/redis/product/rudolf-semena-redisa-bejo-beyo",148670077]
["Семена редиса Селеста F1, 250 гр, Enza Zaden",1890,null,0,"Фото","http://agroopt-market.ru/collection/redis/product/selesta-f1-semena-redisa-enza-zaden-enza-zaden",148670085]
["Семена редиса Селеста F1, 50 тыс. шт. (2,50-2,75), Enza Zaden",4220,null,{"$f":"B1448*C1448","v":0},"Фото","http://agroopt-market.ru/collection/redis/product/selesta-f1-semena-redisa-enza-zaden-enza-zaden",148672988]
["Семена редиса Селеста F1, 50 тыс. шт. (2,75-3,00), Enza Zaden",4570,null,0,{"$f":"HYPERLINK(F1449,\"Фото\")","v":"Фото"},"http://agroopt-market.ru/collection/redis/product/selesta-f1-semena-redisa-enza-zaden-enza-zaden",148673193]
["Семена редиса Сора, 250 гр, Nunhems",1556,null,0,"Фото","http://agroopt-market.ru/collection/redis/product/semena-redisa-sora-nunhems-nyunems",158071050]
["Семена редиса Тинто F1, 50 тыс. шт., Vilmorin",4291,null,0,"Фото","http://agroopt-market.ru/collection/redis/product/tinto-f1-semena-redisa-vilmorin-vilmorin",148670089]
["Семена редиса Черриэт F1, 10 тыс. шт., Sakata",1000,null,0,"Фото","http://agroopt-market.ru/collection/redis/product/cherriet-f1-semena-redisa-sakata-sakata",148670091]
["Семена редиса Эскала F1, 250 гр, Enza Zaden",1890,null,0,"Фото","http://agroopt-market.ru/collection/redis/product/eskala-f1-semena-redisa-enza-zaden-enza-zaden",148670097]
["Семена редиса Эскала F1, 50 тыс. шт. (2,50-2,75), Enza Zaden",4220,null,0,"Фото","http://agroopt-market.ru/collection/redis/product/eskala-f1-semena-redisa-enza-zaden-enza-zaden",148673551]
["Розмарин","@",null,"@","@"]
["Семена розмарина Нежность, 1 кг, Гавриш",250000,null,0,"Фото","http://agroopt-market.ru/collection/rozmarin/product/semena-rozmarina-nezhnost-gavrish",158071216]
["Руккола","@",null,"@","@"]
["Семена рукколы Грация, 1 млн. шт., Enza Zaden",4910,null,0,"Фото","http://agroopt-market.ru/collection/rukkola/product/gratsiya-semena-rukkoly-enza-zaden-enza-zaden",148769327]
["Семена рукколы Колтивата, 100 гр, Enza Zaden",230,null,0,"Фото","http://agroopt-market.ru/collection/rukkola/product/koltivata-semena-rukkoly-enza-zaden-enza-zaden",148769331]
["Семена рукколы Летиция, 100 тыс. шт., Enza Zaden",7000,null,0,"Фото","http://agroopt-market.ru/collection/rukkola/product/letitsiya-semena-rukkoly-enza-zaden-enza-zaden",148769334]
["Семена рукколы Пасьянс, 1 кг, Гавриш",9750,null,0,"Фото","http://agroopt-market.ru/collection/rukkola/product/semena-rukkoly-pasyans-gavrish",158071217]
["Семена рукколы Покер, 1 кг, Гавриш",2850,null,0,"Фото","http://agroopt-market.ru/collection/rukkola/product/semena-rukkoly-poker-gavrish",158071218]
["Семена рукколы Рококо, 500 гр, Vilmorin",9823,null,0,"Фото","http://agroopt-market.ru/collection/rukkola/product/rokoko-semena-rukkoly-vilmorin-vilmorin",148769342]
["Семена рукколы Триция, 1 млн. шт., Enza Zaden",4910,null,0,"Фото","http://agroopt-market.ru/collection/rukkola/product/tritsiya-semena-rukkoly-enza-zaden-enza-zaden",148769339]
["Салат айсберг","@",null,"@","@"]
["Семена салата айсберг Авирам, 25 тыс. шт. (драже), Hazera",24000,null,0,"Фото","http://agroopt-market.ru/collection/aysberg/product/aviram-semena-salata-aysberg-kochannyy-hazera-hazera",148874698]
["Семена салата айсберг Алабама, 5000 шт., Vilmorin",3895,null,0,"Фото","http://agroopt-market.ru/collection/aysberg/product/alabama-semena-salata-aysberg-kochannyy-vilmorin-vilmorin",148874737]
["Семена салата айсберг Анабела, 5 гр, Hazera",850,null,0,"Фото","http://agroopt-market.ru/collection/aysberg/product/anabela-semena-salata-aysberg-hazera-hazera",148874663]
["Семена салата айсберг Ансамбль, 5000 шт., Enza Zaden",5275,null,0,"Фото","http://agroopt-market.ru/collection/aysberg/product/ansambl-semena-salata-aysberg-kochannyy-enza-zaden-enza-zaden",148874654]
["Семена салата айсберг Аргентинас, 1000 шт. (драже), Rijk Zwaan",1470,null,0,"Фото","http://agroopt-market.ru/collection/aysberg/product/argentinas-semena-salata-aysberg-kochannyy-rijk-zwaan-rayk-tsvaan",148874703]
["Семена салата айсберг Аргентинас, 25 тыс. шт. (драже), Rijk Zwaan",36650,null,0,"Фото","http://agroopt-market.ru/collection/aysberg/product/argentinas-semena-salata-aysberg-kochannyy-rijk-zwaan-rayk-tsvaan",148874704]
["Семена салата айсберг Аргентинас, 5000 шт. (драже), Rijk Zwaan",7330,null,0,"Фото","http://agroopt-market.ru/collection/aysberg/product/argentinas-semena-salata-aysberg-kochannyy-rijk-zwaan-rayk-tsvaan",148874705]
["Семена салата айсберг Ардинас, 1000 шт. (драже), Rijk Zwaan",1470,null,0,"Фото","http://agroopt-market.ru/collection/aysberg/product/ardinas-semena-salata-aysberg-kochannyy-rijk-zwaan-rayk-tsvaan",148874706]
["Семена салата айсберг Ардинас, 25 тыс. шт. (драже), Rijk Zwaan",36650,null,0,"Фото","http://agroopt-market.ru/collection/aysberg/product/ardinas-semena-salata-aysberg-kochannyy-rijk-zwaan-rayk-tsvaan",148874708]
["Семена салата айсберг Ардинас, 5000 шт. (драже), Rijk Zwaan",7330,null,0,"Фото","http://agroopt-market.ru/collection/aysberg/product/ardinas-semena-salata-aysberg-kochannyy-rijk-zwaan-rayk-tsvaan",148874709]
["Семена салата айсберг Асаф, 5000 шт. (драже), Hazera",5600,null,0,"Фото","http://agroopt-market.ru/collection/aysberg/product/asaf-semena-salata-aysberg-hazera-hazera",148874664]
["Семена салата айсберг Балерон, 5000 шт., Vilmorin",4800,null,0,"Фото","http://agroopt-market.ru/collection/aysberg/product/baleron-semena-salata-vilmorin-vilmorin",148874862]
["Семена салата айсберг Банделир, 5000 шт., Enza Zaden",4565,null,0,"Фото","http://agroopt-market.ru/collection/aysberg/product/semena-salata-aysberg-bandelir-enza-zaden-enza-zaden",158070844]
["Семена салата айсберг Бриссамар, 50 тыс. шт. (драже), Hazera",48000,null,0,"Фото","http://agroopt-market.ru/collection/aysberg/product/brissamar-semena-salata-aysberg-hazera-hazera",148874667]
["Семена салата айсберг Вернайс, 5000 шт. (3,0-3,5 (драже)), Hazera",4800,null,0,"Фото","http://agroopt-market.ru/collection/aysberg/product/vernays-semena-salata-aysberg-hazera-hazera",148874669]
["Семена салата айсберг Виталист, 5000 шт., Enza Zaden",5735,null,0,"Фото","http://agroopt-market.ru/collection/aysberg/product/semena-salata-aysberg-vitalist-enza-zaden-enza-zaden",158070845]
["Семена салата айсберг Глендана, 5000 шт., Enza Zaden",5275,null,0,"Фото","http://agroopt-market.ru/collection/aysberg/product/glendana-semena-salata-aysberg-kochannyy-enza-zaden-enza-zaden",148874655]
["Семена салата айсберг Даймонд, 5000 шт., Enza Zaden",4565,null,0,"Фото","http://agroopt-market.ru/collection/aysberg/product/daymond-semena-salata-aysberg-kochannyy-enza-zaden-enza-zaden",148874656]
["Семена салата айсберг Дамион, 5000 шт., Enza Zaden",5275,null,0,"Фото","http://agroopt-market.ru/collection/aysberg/product/damion-semena-salata-aysberg-kochannyy-enza-zaden-enza-zaden",148874657]
["Семена салата айсберг Джасперинас, 1000 шт., Rijk Zwaan",1470,null,0,"Фото","http://agroopt-market.ru/collection/aysberg/product/semena-salata-aysberg-dzhasperinas-rijk-zwaan-rayk-tsvaan",158070851]
["Семена салата айсберг Джасперинас, 5000 шт., Rijk Zwaan",7330,null,0,"Фото","http://agroopt-market.ru/collection/aysberg/product/semena-salata-aysberg-dzhasperinas-rijk-zwaan-rayk-tsvaan",158070852]
["Семена салата айсберг Диамантинас, 1000 шт. (драже), Rijk Zwaan",1470,null,0,"Фото","http://agroopt-market.ru/collection/aysberg/product/diamantinas-semena-salata-aysberg-kochannyy-rijk-zwaan-rayk-tsvaan",148874710]
["Семена салата айсберг Диамантинас, 25 тыс. шт. (драже), Rijk Zwaan",36650,null,0,"Фото","http://agroopt-market.ru/collection/aysberg/product/diamantinas-semena-salata-aysberg-kochannyy-rijk-zwaan-rayk-tsvaan",148874711]
["Семена салата айсберг Диамантинас, 5000 шт. (драже), Rijk Zwaan",7330,null,0,"Фото","http://agroopt-market.ru/collection/aysberg/product/diamantinas-semena-salata-aysberg-kochannyy-rijk-zwaan-rayk-tsvaan",148874712]
["Семена салата айсберг Дизайн, 5000 шт., Enza Zaden",5275,null,0,"Фото","http://agroopt-market.ru/collection/aysberg/product/dizayn-semena-salata-aysberg-kochannyy-enza-zaden-enza-zaden",148874658]
["Семена салата айсберг Калифорния, 5000 шт., Vilmorin",3769,null,0,"Фото","http://agroopt-market.ru/collection/aysberg/product/kaliforniya-semena-salata-kochannyy-vilmorin-vilmorin",148874863]
["Семена салата айсберг Кампионас, 1000 шт. (драже), Rijk Zwaan",1220,null,0,"Фото","http://agroopt-market.ru/collection/aysberg/product/kampionas-rz-semena-salata-aysberg-kochannyy-rijk-zwaan-rayk-tsvaan",148874713]
["Семена салата айсберг Кампионас, 25 тыс. шт. (драже), Rijk Zwaan",30470,null,0,"Фото","http://agroopt-market.ru/collection/aysberg/product/kampionas-rz-semena-salata-aysberg-kochannyy-rijk-zwaan-rayk-tsvaan",148874714]
["Семена салата айсберг Кампионас, 5000 шт. (драже), Rijk Zwaan",6090,null,0,"Фото","http://agroopt-market.ru/collection/aysberg/product/kampionas-rz-semena-salata-aysberg-kochannyy-rijk-zwaan-rayk-tsvaan",148874715]
["Семена салата айсберг Кларист, 5000 шт., Enza Zaden",5735,null,0,"Фото","http://agroopt-market.ru/collection/aysberg/product/semena-salata-aysberg-klarist-enza-zaden-enza-zaden",158070846]
["Семена салата айсберг Лагунас, 1000 шт. (драже), Rijk Zwaan",1220,null,0,"Фото","http://agroopt-market.ru/collection/aysberg/product/lagunas-semena-salata-aysberg-kochannyy-rijk-zwaan-rayk-tsvaan",148874716]
["Семена салата айсберг Лагунас, 25 тыс. шт. (драже), Rijk Zwaan",30470,null,0,"Фото","http://agroopt-market.ru/collection/aysberg/product/lagunas-semena-salata-aysberg-kochannyy-rijk-zwaan-rayk-tsvaan",148874717]
["Семена салата айсберг Лагунас, 5000 шт. (драже), Rijk Zwaan",6090,null,0,"Фото","http://agroopt-market.ru/collection/aysberg/product/lagunas-semena-salata-aysberg-kochannyy-rijk-zwaan-rayk-tsvaan",148874718]
["Семена салата айсберг Лиад, 5000 шт. (драже), Hazera",4800,null,0,"Фото","http://agroopt-market.ru/collection/aysberg/product/liad-semena-salata-aysberg-hazera-hazera",148874670]
["Семена салата айсберг Лилач, 20 тыс. шт. (драже), Hazera",19200,null,0,"Фото","http://agroopt-market.ru/collection/aysberg/product/lilach-semena-salata-aysberg-hazera-hazera",148874671]
["Семена салата айсберг Лилач, 5000 шт. (драже), Hazera",4800,null,0,"Фото","http://agroopt-market.ru/collection/aysberg/product/lilach-semena-salata-aysberg-hazera-hazera",148874672]
["Семена салата айсберг Лимор, 50 тыс. шт. (драже), Hazera",48000,null,0,"Фото","http://agroopt-market.ru/collection/aysberg/product/limor-semena-salata-aysberg-hazera-hazera",148874675]
["Семена салата айсберг Линой, 20 тыс. шт. (драже), Hazera",22400,null,0,"Фото","http://agroopt-market.ru/collection/aysberg/product/linoy-semena-salata-aysberg-hazera-hazera",148874676]
["Семена салата айсберг Линой, 5000 шт. (драже), Hazera",5600,null,0,"Фото","http://agroopt-market.ru/collection/aysberg/product/linoy-semena-salata-aysberg-hazera-hazera",148874677]
["Семена салата айсберг Лираз, 20 тыс. шт. (драже), Hazera",19200,null,0,"Фото","http://agroopt-market.ru/collection/aysberg/product/liraz-semena-salata-aysberg-hazera-hazera",148874678]
["Семена салата айсберг Лираз, 25 тыс. шт. (драже), Hazera",24000,null,0,"Фото","http://agroopt-market.ru/collection/aysberg/product/liraz-semena-salata-aysberg-hazera-hazera",148874679]
["Семена салата айсберг Лираз, 50 тыс. шт. (драже), Hazera",48000,null,0,"Фото","http://agroopt-market.ru/collection/aysberg/product/liraz-semena-salata-aysberg-hazera-hazera",148874681]
["Семена салата айсберг Миллион, 5000 шт., Enza Zaden",5275,null,0,"Фото","http://agroopt-market.ru/collection/aysberg/product/million-semena-salata-aysberg-kochannyy-enza-zaden-enza-zaden",148874659]
["Семена салата айсберг Миретт, 1000 шт. (драже), Rijk Zwaan",900,null,0,"Фото","http://agroopt-market.ru/collection/aysberg/product/mirett-semena-salata-aysberg-kochannyy-rijk-zwaan-rayk-tsvaan",148874719]
["Семена салата айсберг Миретт, 25 тыс. шт. (драже), Rijk Zwaan",22510,null,0,"Фото","http://agroopt-market.ru/collection/aysberg/product/mirett-semena-salata-aysberg-kochannyy-rijk-zwaan-rayk-tsvaan",148874720]
["Семена салата айсберг Миретт, 5000 шт. (драже), Rijk Zwaan",4500,null,0,"Фото","http://agroopt-market.ru/collection/aysberg/product/mirett-semena-salata-aysberg-kochannyy-rijk-zwaan-rayk-tsvaan",148874721]
["Семена салата айсберг Моралес, 20 тыс. шт. (драже), Hazera",22400,null,0,"Фото","http://agroopt-market.ru/collection/aysberg/product/morales-semena-salata-aysberg-hazera-hazera",148874682]
["Семена салата айсберг Моралес, 5000 шт. (драже), Hazera",5600,null,0,"Фото","http://agroopt-market.ru/collection/aysberg/product/morales-semena-salata-aysberg-hazera-hazera",148874683]
["Семена салата айсберг Нога, 5000 шт. (драже), Hazera",5600,null,0,"Фото","http://agroopt-market.ru/collection/aysberg/product/noga-semena-salata-aysberg-hazera-hazera",148874684]
["Семена салата айсберг Оптимист, 5000 шт., Enza Zaden",5275,null,{"$f":"B1515*C1515","v":0},"Фото","http://agroopt-market.ru/collection/aysberg/product/semena-salata-aysberg-optimist-enza-zaden-enza-zaden",158070847]
["Семена салата айсберг Папиро, 5000 шт., Enza Zaden",4565,null,0,{"$f":"HYPERLINK(F1516,\"Фото\")","v":"Фото"},"http://agroopt-market.ru/collection/aysberg/product/papiro-semena-salata-aysberg-kochannyy-enza-zaden-enza-zaden",148874660]
["Семена салата айсберг Платинас, 1000 шт. (драже), Rijk Zwaan",1440,null,0,"Фото","http://agroopt-market.ru/collection/aysberg/product/platinas-semena-salata-aysberg-kochannyy-rijk-zwaan-rayk-tsvaan",148874722]
["Семена салата айсберг Платинас, 25 тыс. шт. (драже), Rijk Zwaan",35990,null,0,"Фото","http://agroopt-market.ru/collection/aysberg/product/platinas-semena-salata-aysberg-kochannyy-rijk-zwaan-rayk-tsvaan",148874723]
["Семена салата айсберг Платинас, 5000 шт. (драже), Rijk Zwaan",7200,null,0,"Фото","http://agroopt-market.ru/collection/aysberg/product/platinas-semena-salata-aysberg-kochannyy-rijk-zwaan-rayk-tsvaan",148874724]
["Семена салата айсберг Равив, 20 тыс. шт. (драже), Hazera",22400,null,0,"Фото","http://agroopt-market.ru/collection/aysberg/product/raviv-semena-salata-aysberg-hazera-hazera",148874685]
["Семена салата айсберг Равив, 5000 шт. (драже), Hazera",5600,null,0,"Фото","http://agroopt-market.ru/collection/aysberg/product/raviv-semena-salata-aysberg-hazera-hazera",148874686]
["Семена салата айсберг Робинзон, 25 тыс. шт. (3,0-3,5 мм, драже), Hazera",24000,null,0,"Фото","http://agroopt-market.ru/collection/aysberg/product/robinzon-semena-salata-aysberg-kochannyy-hazera-hazera",148874700]
["Семена салата айсберг Робинзон, 5000 шт. (3,0-3,5 мм, драже), Hazera",4800,null,0,"Фото","http://agroopt-market.ru/collection/aysberg/product/robinzon-semena-salata-aysberg-kochannyy-hazera-hazera",148874702]
["Семена салата айсберг Рубетт, 1000 шт. (драже), Rijk Zwaan",900,null,0,"Фото","http://agroopt-market.ru/collection/aysberg/product/rubett-rz-semena-salata-aysberg-kochannyy-rijk-zwaan-rayk-tsvaan",148874725]
["Семена салата айсберг Рубетт, 25 тыс. шт. (драже), Rijk Zwaan",22510,null,0,"Фото","http://agroopt-market.ru/collection/aysberg/product/rubett-rz-semena-salata-aysberg-kochannyy-rijk-zwaan-rayk-tsvaan",148874726]
["Семена салата айсберг Рубетт, 5000 шт. (драже), Rijk Zwaan",4500,null,0,"Фото","http://agroopt-market.ru/collection/aysberg/product/rubett-rz-semena-salata-aysberg-kochannyy-rijk-zwaan-rayk-tsvaan",148874727]
["Семена салата айсберг Руморс, 5000 шт. (прайм. драже), Bejo",4130,null,0,"Фото","http://agroopt-market.ru/collection/aysberg/product/rumors-semena-salata-aysberg-kochannyy-bejo-beyo",148874650]
["Семена салата айсберг Санлайн F1, 5000 шт., Vilmorin",3895,null,0,"Фото","http://agroopt-market.ru/collection/aysberg/product/sanlayn-f1-semena-salata-aysberg-dezert-vilmorin-vilmorin",148874738]
["Семена салата айсберг Сантаринас, 1000 шт. (драже), Rijk Zwaan",1160,null,0,"Фото","http://agroopt-market.ru/collection/aysberg/product/santarinas-semena-salata-aysberg-kochannyy-rijk-zwaan-rayk-tsvaan",148874729]
["Семена салата айсберг Сантаринас, 25 тыс. шт. (драже), Rijk Zwaan",28930,null,0,"Фото","http://agroopt-market.ru/collection/aysberg/product/santarinas-semena-salata-aysberg-kochannyy-rijk-zwaan-rayk-tsvaan",148874730]
["Семена салата айсберг Сантаринас, 5000 шт. (драже), Rijk Zwaan",5790,null,0,"Фото","http://agroopt-market.ru/collection/aysberg/product/santarinas-semena-salata-aysberg-kochannyy-rijk-zwaan-rayk-tsvaan",148874731]
["Семена салата айсберг Саула, 5000 шт., Enza Zaden",4565,null,0,"Фото","http://agroopt-market.ru/collection/aysberg/product/saula-semena-salata-aysberg-kochannyy-enza-zaden-enza-zaden",148874661]
["Семена салата айсберг Солейшн, 25 тыс. шт. (3,0-3,5 мм, драже), Hazera",24000,null,0,"Фото","http://agroopt-market.ru/collection/aysberg/product/soleyshn-semena-salata-aysberg-hazera-hazera",148874690]
["Семена салата айсберг Солейшн, 500 тыс. шт. (3,0-3,5 мм, драже), Hazera",480000,null,0,"Фото","http://agroopt-market.ru/collection/aysberg/product/soleyshn-semena-salata-aysberg-hazera-hazera",148874692]
["Семена салата айсберг Солейшн, 5000 шт. (3,0-3,5 мм, драже), Hazera",4800,null,0,"Фото","http://agroopt-market.ru/collection/aysberg/product/soleyshn-semena-salata-aysberg-hazera-hazera",148874691]
["Семена салата айсберг Сталлион, 10 гр, Seminis",2999,null,0,"Фото","http://agroopt-market.ru/collection/aysberg/product/stallion-semena-salata-aysberg-kochannyy-seminis-seminis",148874735]
["Семена салата айсберг Таймс, 5000 шт. (прайм. драже), Bejo",4130,null,0,"Фото","http://agroopt-market.ru/collection/aysberg/product/tayms-semena-salata-aysberg-kochannyy-bejo-beyo",148874652]
["Семена салата айсберг Тевион, 5000 шт., Enza Zaden",5275,null,0,"Фото","http://agroopt-market.ru/collection/aysberg/product/tevion-semena-salata-aysberg-kochannyy-enza-zaden-enza-zaden",148874662]
["Семена салата айсберг Умбринас, 1000 шт. (драже), Rijk Zwaan",1470,null,0,"Фото","http://agroopt-market.ru/collection/aysberg/product/umbrinas-semena-salata-aysberg-kochannyy-rijk-zwaan-rayk-tsvaan",148874732]
["Семена салата айсберг Умбринас, 25 тыс. шт. (драже), Rijk Zwaan",36650,null,0,"Фото","http://agroopt-market.ru/collection/aysberg/product/umbrinas-semena-salata-aysberg-kochannyy-rijk-zwaan-rayk-tsvaan",148874733]
["Семена салата айсберг Умбринас, 5000 шт. (драже), Rijk Zwaan",7330,null,0,"Фото","http://agroopt-market.ru/collection/aysberg/product/umbrinas-semena-salata-aysberg-kochannyy-rijk-zwaan-rayk-tsvaan",148874734]
["Семена салата айсберг Челлендж, 5000 шт., Syngenta","по запросу",null,null,"Фото","http://agroopt-market.ru/collection/redis/product/manolo-f1-semena-redisa-hazera-hazera",148669971]
["Семена салата айсберг Шелли, 5000 шт. (драже), Hazera",4800,null,0,"Фото","http://agroopt-market.ru/collection/aysberg/product/shelli-semena-salata-aysberg-hazera-hazera",148874694]
["Семена салата айсберг Экспрешн, 5000 шт., Enza Zaden",5275,null,0,"Фото","http://agroopt-market.ru/collection/aysberg/product/semena-salata-aysberg-ekspreshn-enza-zaden-enza-zaden",158070848]
["Семена салата айсберг Этюд, 5000 шт., Enza Zaden",4565,null,0,"Фото","http://agroopt-market.ru/collection/aysberg/product/semena-salata-aysberg-etyud-enza-zaden-enza-zaden",158070850]
["Семена салата айсберг Ярдена, 5000 шт. (драже), Hazera",4800,null,0,"Фото","http://agroopt-market.ru/collection/aysberg/product/yardena-semena-salata-aysberg-hazera-hazera",148874695]
["Салат батавия","@",null,"@","@"]
["Семена салата батавия Афицион, 100 гр (NS), Rijk Zwaan (ЗГ)",6630,null,0,"Фото","http://agroopt-market.ru/collection/bataviya/product/afitsion-rz-semena-salata-bataviya-kochannyy-rijk-zwaan-rayk-tsvaan",148874746]
["Семена салата батавия Афицион, 250 тыс. шт. (драже), Rijk Zwaan (ЗГ)",162860,null,0,"Фото","http://agroopt-market.ru/collection/bataviya/product/afitsion-rz-semena-salata-bataviya-kochannyy-rijk-zwaan-rayk-tsvaan",148874747]
["Семена салата батавия Афицион, 5 гр (NS), Rijk Zwaan (ЗГ)",330,null,0,"Фото","http://agroopt-market.ru/collection/bataviya/product/semena-salata-bataviya-afitsion-rijk-zwaan-rayk-tsvaan",158070853]
["Семена салата батавия Афицион, 50 гр (NS), Rijk Zwaan (ЗГ)",3320,null,0,"Фото","http://agroopt-market.ru/collection/bataviya/product/afitsion-rz-semena-salata-bataviya-kochannyy-rijk-zwaan-rayk-tsvaan",148874749]
["Семена салата батавия Афицион, 500 гр (NS), Rijk Zwaan (ЗГ)",33150,null,0,"Фото","http://agroopt-market.ru/collection/bataviya/product/afitsion-rz-semena-salata-bataviya-kochannyy-rijk-zwaan-rayk-tsvaan",148874750]
["Семена салата батавия Афицион, 5000 шт. (драже), Rijk Zwaan (ЗГ)",3260,null,0,"Фото","http://agroopt-market.ru/collection/bataviya/product/afitsion-rz-semena-salata-bataviya-kochannyy-rijk-zwaan-rayk-tsvaan",148874748]
["Семена салата батавия Гранд Рапидс Перл Джем, 5 гр, Enza Zaden",410,null,0,"Фото","http://agroopt-market.ru/collection/bataviya/product/semena-salata-bataviya-grand-rapids-perl-dzhem-enza-zaden-enza-zaden",158070855]
["Семена салата батавия Гранд рапидс, 5 гр, Enza Zaden",410,null,0,"Фото","http://agroopt-market.ru/collection/bataviya/product/grand-rapids-semena-salata-bataviya-polukochannyy-enza-zaden-enza-zaden",148874741]
["Семена салата батавия Дедаль, 5000 шт., Vilmorin",3999,null,0,"Фото","http://agroopt-market.ru/collection/bataviya/product/dedal-semena-salata-bataviya-listovoy-vilmorin-vilmorin",148874760]
["Семена салата батавия Диаблотин, 100 тыс. шт., Enza Zaden",3890,null,0,"Фото","http://agroopt-market.ru/collection/bataviya/product/semena-salata-bataviya-diablotin-enza-zaden-enza-zaden",158070857]
["Семена салата батавия Кайпира, 5 гр, Enza Zaden",1410,null,0,"Фото","http://agroopt-market.ru/collection/bataviya/product/kaypira-semena-salata-bataviya-listovoy-enza-zaden-enza-zaden",148874742]
["Семена салата батавия Наварон, 25 тыс. шт., Vilmorin",20752,null,0,"Фото","http://agroopt-market.ru/collection/bataviya/product/navaron-semena-salata-bataviya-vilmorin-vilmorin",148874758]
["Семена салата батавия Отили, 1000 шт., Rijk Zwaan (ЗГ)",1060,null,0,"Фото","http://agroopt-market.ru/collection/bataviya/product/otili-semena-salata-bataviya-polukochannyy-rijk-zwaan-rayk-tsvaan",148874751]
["Семена салата батавия Отили, 250 тыс. шт., Rijk Zwaan (ЗГ)",300050,null,0,"Фото","http://agroopt-market.ru/collection/bataviya/product/otili-semena-salata-bataviya-polukochannyy-rijk-zwaan-rayk-tsvaan",148874752]
["Семена салата батавия Отили, 5000 шт., Rijk Zwaan (ЗГ)",5660,null,0,"Фото","http://agroopt-market.ru/collection/bataviya/product/otili-semena-salata-bataviya-polukochannyy-rijk-zwaan-rayk-tsvaan",148874753]
["Семена салата батавия Пепон, 5000 шт., Vilmorin",4008,null,0,"Фото","http://agroopt-market.ru/collection/bataviya/product/pepon-semena-salata-bataviya-polukochannyy-vilmorin-vilmorin",148874761]
["Семена салата батавия Старфайтер, 10 тыс. шт. (NS), Rijk Zwaan (ЗГ)",3460,null,0,"Фото","http://agroopt-market.ru/collection/bataviya/product/starfayter-semena-salata-bataviya-listovoy-rijk-zwaan-rayk-tsvaan",148874754]
["Семена салата батавия Старфайтер, 100 тыс. шт. (NS), Rijk Zwaan (ЗГ)",34610,null,0,"Фото","http://agroopt-market.ru/collection/bataviya/product/semena-salata-bataviya-starfayter-rijk-zwaan-rayk-tsvaan",158070854]
["Семена салата батавия Старфайтер, 5000 шт. (NS), Rijk Zwaan (ЗГ)",1730,null,0,"Фото","http://agroopt-market.ru/collection/bataviya/product/starfayter-semena-salata-bataviya-listovoy-rijk-zwaan-rayk-tsvaan",148874755]
["Семена салата батавия Тамариндо, 100 тыс. шт., Enza Zaden",3890,null,0,"Фото","http://agroopt-market.ru/collection/bataviya/product/semena-salata-bataviya-tamarindo-enza-zaden-enza-zaden",158070858]
["Семена салата батавия Тональ, 25 тыс. шт. (недраж.), Vilmorin",5460,null,0,"Фото","http://agroopt-market.ru/collection/bataviya/product/tonal-semena-salata-bataviya-listovoy-vilmorin-vilmorin",148874763]
["Семена салата батавия Тональ, 25 тыс. шт., Vilmorin",19991,null,0,"Фото","http://agroopt-market.ru/collection/bataviya/product/tonal-semena-salata-bataviya-listovoy-vilmorin-vilmorin",148874762]
["Семена салата батавия Экскиз, 25 тыс. шт. (недраж.), Vilmorin",5506,null,0,"Фото","http://agroopt-market.ru/collection/bataviya/product/ekskiz-semena-salata-bataviya-polukochannyy-vilmorin-vilmorin",148874764]
["Семена салата батавия Эстони, 5 гр, Enza Zaden",1410,null,0,"Фото","http://agroopt-market.ru/collection/bataviya/product/estoni-semena-salata-bataviya-listovoy-enza-zaden-enza-zaden",148874744]
["Семена салата батавия Яхт, 1000 шт. (драже), Rijk Zwaan (ЗГ)",2290,null,0,"Фото","http://agroopt-market.ru/collection/bataviya/product/yaht-semena-salata-bataviya-rijk-zwaan-rayk-tsvaan",148908811]
["Семена салата батавия Яхт, 5000 шт. (драже), Rijk Zwaan (ЗГ)",11440,null,0,"Фото","http://agroopt-market.ru/collection/bataviya/product/yaht-semena-salata-bataviya-rijk-zwaan-rayk-tsvaan",148874757]
["Семена салата Винтекс, 1000 шт. (драже), Rijk Zwaan",2170,null,0,"Фото","http://agroopt-market.ru/collection/hrustyaschiy-s-silno-rassechennym-listom/product/vinteks-semena-salata-hrustyaschiy-s-silno-rassechennym-listom-listovoy-rijk-zwaan-rayk-tsvaan",148874851]
["Семена салата Винтекс, 5000 шт. (драже), Rijk Zwaan",10850,null,0,"Фото","http://agroopt-market.ru/collection/hrustyaschiy-s-silno-rassechennym-listom/product/vinteks-semena-salata-hrustyaschiy-s-silno-rassechennym-listom-listovoy-rijk-zwaan-rayk-tsvaan",148874852]
["Салат дуболистный","@",null,"@","@"]
["Семена салата дуболистного Визирь, 5000 шт., Enza Zaden",6150,null,0,"Фото","http://agroopt-market.ru/collection/dubolistnyy/product/semena-salata-dubolistnogo-vizir-enza-zaden-enza-zaden",158070860]
["Семена салата дуболистного Карловия, 100 тыс. шт., Rijk Zwaan",4130,null,0,"Фото","http://agroopt-market.ru/collection/dubolistnyy/product/karloviya-semena-salata-dubolistnyy-listovoy-rijk-zwaan-rayk-tsvaan",148874765]
["Семена салата дуболистного Кирибати, 1000 шт. (драже), Rijk Zwaan (ЗГ)",1580,null,0,"Фото","http://agroopt-market.ru/collection/dubolistnyy/product/kiribati-semena-salata-dubolistnyy-polukochannyy-rijk-zwaan-rayk-tsvaan",148874766]
["Семена салата дуболистного Кирибати, 5000 шт. (драже), Rijk Zwaan (ЗГ)",7920,null,0,"Фото","http://agroopt-market.ru/collection/dubolistnyy/product/kiribati-semena-salata-dubolistnyy-polukochannyy-rijk-zwaan-rayk-tsvaan",148874767]
["Семена салата дуболистного Кредо, 1 кг, Гавриш",59600,null,{"$f":"B1581*C1581","v":0},"Фото","http://agroopt-market.ru/collection/dubolistnyy/product/semena-salata-dubolistnogo-kredo-gavrish",158071057]
["Семена салата дуболистного Крилда, 10 тыс. шт. (NS), Rijk Zwaan (ЗГ)",3940,null,0,{"$f":"HYPERLINK(F1582,\"Фото\")","v":"Фото"},"http://agroopt-market.ru/collection/dubolistnyy/product/krilda-semena-salata-dubolistnyy-polukochannyy-rijk-zwaan-rayk-tsvaan",148874768]
["Семена салата дуболистного Крилда, 5000 шт. (NS), Rijk Zwaan (ЗГ)",1970,null,0,"Фото","http://agroopt-market.ru/collection/dubolistnyy/product/krilda-semena-salata-dubolistnyy-polukochannyy-rijk-zwaan-rayk-tsvaan",148874769]
["Семена салата дуболистного Лунавия, 100 тыс. шт., Rijk Zwaan",4130,null,0,"Фото","http://agroopt-market.ru/collection/dubolistnyy/product/lunaviya-semena-salata-dubolistnyy-listovoy-rijk-zwaan-rayk-tsvaan",148874770]
["Семена салата дуболистного Роксай, 1000 шт. (драже), Rijk Zwaan (ЗГ)",1590,null,0,"Фото","http://agroopt-market.ru/collection/dubolistnyy/product/roksay-semena-salata-dubolistnyy-polukochannyy-rijk-zwaan-rayk-tsvaan",148874772]
["Семена салата дуболистного Роксай, 5000 шт. (драже), Rijk Zwaan (ЗГ)",7970,null,0,"Фото","http://agroopt-market.ru/collection/dubolistnyy/product/roksay-semena-salata-dubolistnyy-polukochannyy-rijk-zwaan-rayk-tsvaan",148874771]
["Семена салата дуболистного Сатудай, 1000 шт. (драже), Rijk Zwaan (ЗГ)",1580,null,0,"Фото","http://agroopt-market.ru/collection/dubolistnyy/product/satuday-semena-salata-dubolistnyy-listovoy-rijk-zwaan-rayk-tsvaan",148874773]
["Семена салата дуболистного Сатудай, 5000 шт. (драже), Rijk Zwaan (ЗГ)",7920,null,0,"Фото","http://agroopt-market.ru/collection/dubolistnyy/product/satuday-semena-salata-dubolistnyy-listovoy-rijk-zwaan-rayk-tsvaan",148874774]
["Семена салата дуболистного Скороход, 1 кг, Гавриш",40000,null,0,"Фото","http://agroopt-market.ru/collection/dubolistnyy/product/semena-salata-dubolistnogo-skorohod-gavrish",158071058]
["Семена салата дуболистного Солавия, 100 тыс. шт., Rijk Zwaan",4130,null,0,"Фото","http://agroopt-market.ru/collection/dubolistnyy/product/solaviya-semena-salata-dubolistnyy-listovoy-rijk-zwaan-rayk-tsvaan",148874775]
["Семена салата дуболистного Транвия, 100 тыс. шт., Rijk Zwaan",4130,null,0,"Фото","http://agroopt-market.ru/collection/dubolistnyy/product/tranviya-semena-salata-dubolistnyy-listovoy-rijk-zwaan-rayk-tsvaan",148874776]
["Салат Изи Лиф","@",null,"@","@"]
["Семена салата Изи Лиф Эзра, 5000 шт., Enza Zaden",7000,null,0,"Фото","http://agroopt-market.ru/collection/izi-lif/product/semena-salata-izi-lif-ezra-enza-zaden-enza-zaden",158070861]
["Семена салата Изи Лиф Эзфилан, 5000 шт., Enza Zaden",7000,null,0,"Фото","http://agroopt-market.ru/collection/izi-lif/product/semena-salata-izi-lif-ezfilan-enza-zaden-enza-zaden",158070862]
["Салат кочанный","@",null,"@","@"]
["Семена салата кочанного масл. Аланис, 10 гр, Seminis",4086,null,0,"Фото","http://agroopt-market.ru/collection/kochannyy-maslyanistyy/product/alanis-semena-salata-kochannyy-maslyanistyy-kochannyy-seminis-seminis",148874781]
["Семена салата кочанного масл. Санторо, 1000 шт. (драже), Rijk Zwaan",1610,null,0,"Фото","http://agroopt-market.ru/collection/kochannyy-maslyanistyy/product/santoro-semena-salata-kochannyy-maslyanistyy-kochannyy-rijk-zwaan-rayk-tsvaan",148874779]
["Семена салата кочанного масл. Санторо, 5000 шт. (драже), Rijk Zwaan",8030,null,0,"Фото","http://agroopt-market.ru/collection/kochannyy-maslyanistyy/product/santoro-semena-salata-kochannyy-maslyanistyy-kochannyy-rijk-zwaan-rayk-tsvaan",148874780]
["Салат листовой","@",null,"@","@"]
["Семена салата листового Бакус, 25 тыс. шт., Vilmorin",19485,null,0,"Фото","http://agroopt-market.ru/collection/listovoy/product/bakus-semena-salata-listovoy-listovoy-vilmorin-vilmorin",148874792]
["Семена салата листового Бакус, 5000 шт., Vilmorin",3897,null,0,"Фото","http://agroopt-market.ru/collection/listovoy/product/bakus-semena-salata-listovoy-listovoy-vilmorin-vilmorin",148874793]
["Семена салата листового Вулсини, 10 гр, Seminis",4557,null,0,"Фото","http://agroopt-market.ru/collection/listovoy/product/vulsini-semena-salata-listovoy-listovoy-seminis-seminis",148874784]
["Семена салата листового Гейзер, 1 кг, Гавриш",48600,null,0,"Фото","http://agroopt-market.ru/collection/listovoy/product/semena-salata-listovogo-geyzer-gavrish",158071062]
["Семена салата листового Гренадин, 5000 шт., Vilmorin",3810,null,0,"Фото","http://agroopt-market.ru/collection/listovoy/product/grenadin-semena-salata-listovoy-listovoy-vilmorin-vilmorin",148874794]
["Семена салата листового Дедаль, 25 тыс. шт. (недраж.), Vilmorin",5460,null,0,"Фото","http://agroopt-market.ru/collection/listovoy/product/semena-salata-listovogo-dedal-vilmorin-vilmorin",158070863]
["Семена салата листового Канкан, 5 гр., Hazera",850,null,0,"Фото","http://agroopt-market.ru/collection/listovoy/product/kankan-semena-salata-listovoy-kudryavyy-hazera-hazera",148874782]
["Семена салата листового Касабелла, 10 гр, Seminis",3859,null,0,"Фото","http://agroopt-market.ru/collection/listovoy/product/kasabella-semena-salata-listovoy-listovoy-seminis-seminis",148874785]
["Семена салата листового Лифли, 10 тыс. шт., Nunhems",4867,null,0,"Фото","http://agroopt-market.ru/collection/listovoy/product/semena-salata-listovogo-lifli-nunhems-nyunems",158071060]
["Семена салата листового Лифли, 5000 шт, Nunhems",5286,null,0,"Фото","http://agroopt-market.ru/collection/listovoy/product/semena-salata-listovogo-lifli-nunhems-nyunems",158071059]
["Семена салата листового Орфей, 1 кг, Гавриш",48600,null,0,"Фото","http://agroopt-market.ru/collection/listovoy/product/semena-salata-listovogo-orfey-gavrish",158071063]
["Семена салата листового Фанли, 5000 шт., Syngenta",1608,null,0,"Фото","http://agroopt-market.ru/collection/listovoy/product/fanli-semena-salata-listovoy-listovoy-syngenta-singenta",148874790]
["Семена салата листового Фантайм, 5000 шт., Syngenta",1608,null,0,"Фото","http://agroopt-market.ru/collection/listovoy/product/fantaym-semena-salata-listovoy-listovoy-syngenta-singenta",148874791]
["Семена салата листового Фриллис, 1 кг, Seminis",611525,null,0,"Фото","http://agroopt-market.ru/collection/listovoy/product/frillis-semena-salata-listovoy-polukochannyy-seminis-seminis",148874899]
["Семена салата листового Фриллис, 10 гр, Seminis",6248,null,0,"Фото","http://agroopt-market.ru/collection/listovoy/product/frillis-semena-salata-listovoy-polukochannyy-seminis-seminis",148874789]
["Семена салата листового Фриллис, 5000 шт. (драже), Seminis",5436,null,0,"Фото","http://agroopt-market.ru/collection/listovoy/product/frillis-semena-salata-listovoy-polukochannyy-seminis-seminis",148874898]
["Семена салата листового Хьюджин, 1 кг, Seminis",392364,null,0,"Фото","http://agroopt-market.ru/collection/listovoy/product/hyudzhin-semena-salata-listovoy-listovoy-seminis-seminis",148874786]
["Семена салата листового Хьюджин, 10 гр, Seminis",4056,null,0,"Фото","http://agroopt-market.ru/collection/listovoy/product/hyudzhin-semena-salata-listovoy-listovoy-seminis-seminis",148874787]
["Салат Лолла Блонда","@",null,"@","@"]
["Семена салата Лолла Блонда  Илема, 5000 шт., Enza Zaden",5570,null,0,"Фото","http://agroopt-market.ru/collection/lolla-blonda/product/ilema-semena-salata-lolla-blonda-listovoy-enza-zaden-enza-zaden",148874804]
["Семена салата Лолла Блонда  Ландау, 1000 шт. (драже), Rijk Zwaan",1630,null,0,"Фото","http://agroopt-market.ru/collection/lolla-blonda/product/landau-semena-salata-lolla-blonda-rijk-zwaan-rayk-tsvaan",148874797]
["Семена салата Лолла Блонда  Левистро, 1000 шт. (драже), Rijk Zwaan",1320,null,0,"Фото","http://agroopt-market.ru/collection/lolla-blonda/product/levistro-semena-salata-lolla-blonda-listovoy-rijk-zwaan-rayk-tsvaan",148874798]
["Семена салата Лолла Блонда  Лозано, 1000 шт. (драже), Rijk Zwaan (ЗГ)",1640,null,0,"Фото","http://agroopt-market.ru/collection/lolla-blonda/product/lozano-semena-salata-lolla-blonda-rijk-zwaan-rayk-tsvaan",148874800]
["Семена салата Лолла Блонда  Лозано, 5000 шт. (драже), Rijk Zwaan (ЗГ)",8210,null,0,"Фото","http://agroopt-market.ru/collection/lolla-blonda/product/lozano-semena-salata-lolla-blonda-rijk-zwaan-rayk-tsvaan",148874801]
["Семена салата Лолла Блонда  Локарно, 5000 шт. (NS), Rijk Zwaan",1570,null,0,"Фото","http://agroopt-market.ru/collection/lolla-blonda/product/lokarno-rz-semena-salata-lolla-blonda-polukochannyy-rijk-zwaan-rayk-tsvaan",148874796]
["Семена салата Лолла Блонда  Лугано, 1000 шт. (драже), Rijk Zwaan (ЗГ)",1520,null,0,"Фото","http://agroopt-market.ru/collection/lolla-blonda/product/lugano-semena-salata-lolla-blonda-listovoy-rijk-zwaan-rayk-tsvaan",148874802]
["Семена салата Лолла Блонда  Лугано, 5000 шт. (драже), Rijk Zwaan (ЗГ)",7610,null,0,"Фото","http://agroopt-market.ru/collection/lolla-blonda/product/lugano-semena-salata-lolla-blonda-listovoy-rijk-zwaan-rayk-tsvaan",148874803]
["Семена салата Лолла Блонда  Эстроза, 5 гр, Enza Zaden",1410,null,0,"Фото","http://agroopt-market.ru/collection/lolla-blonda/product/estroza-semena-salata-lolla-blonda-listovoy-enza-zaden-enza-zaden",148874805]
["Салат Лолла Роса","@",null,"@","@"]
["Семена салата Лолла Роса Кармези, 10 тыс. шт. (драже), Rijk Zwaan",4510,null,0,"Фото","http://agroopt-market.ru/collection/lolla-rosa/product/karmezi-semena-salata-lolla-rosa-listovoy-rijk-zwaan-rayk-tsvaan",158430909]
["Семена салата Лолла Росса Кармези, 1000 шт. (NS), Rijk Zwaan",1630,null,{"$f":"B1630*C1630","v":0},{"$f":"HYPERLINK(F1630,\"Фото\")","v":"Фото"},"http://agroopt-market.ru/collection/lolla-rosa/product/karmezi-semena-salata-lolla-rosa-listovoy-rijk-zwaan-rayk-tsvaan",148874812]
["Семена салата Лолла Росса Кармези, 5000 шт. (NS), Rijk Zwaan",8160,null,{"$f":"B1631*C1631","v":0},{"$f":"HYPERLINK(F1631,\"Фото\")","v":"Фото"},"http://agroopt-market.ru/collection/lolla-rosa/product/karmezi-semena-salata-lolla-rosa-listovoy-rijk-zwaan-rayk-tsvaan",148874813]
["Семена салата Лолла Росса Кармези, 5000 шт. (драже), Rijk Zwaan",2250,null,{"$f":"B1632*C1632","v":0},{"$f":"HYPERLINK(F1632,\"Фото\")","v":"Фото"},"http://agroopt-market.ru/collection/lolla-rosa/product/karmezi-semena-salata-lolla-rosa-listovoy-rijk-zwaan-rayk-tsvaan",148874814]
["Семена салата Лолла Росса Леа, 5000 шт., Enza Zaden",5570,null,{"$f":"B1633*C1633","v":0},{"$f":"HYPERLINK(F1633,\"Фото\")","v":"Фото"},"http://agroopt-market.ru/collection/lolla-rosa/product/lea-semena-salata-lolla-rosa-listovoy-enza-zaden-enza-zaden",148874807]
["Семена салата Лолла Росса Раста, 5000 шт., Enza Zaden",5570,null,{"$f":"B1634*C1634","v":0},{"$f":"HYPERLINK(F1634,\"Фото\")","v":"Фото"},"http://agroopt-market.ru/collection/lolla-rosa/product/rasta-semena-salata-lolla-rosa-listovoy-enza-zaden-enza-zaden",148874808]
["Семена салата Лолла Росса Революция, 5000 шт, Nunhems",8800,null,{"$f":"B1635*C1635","v":0},{"$f":"HYPERLINK(F1635,\"Фото\")","v":"Фото"},"http://agroopt-market.ru/collection/lolla-rosa/product/semena-semena-salata-lolla-rossa-revolyutsiya-nunhems-nyunems",158071065]
["Семена салата Лолла Росса Росало, 100 тыс. шт., Enza Zaden",3890,null,{"$f":"B1636*C1636","v":0},{"$f":"HYPERLINK(F1636,\"Фото\")","v":"Фото"},"http://agroopt-market.ru/collection/lolla-rosa/product/semena-semena-salata-lolla-rossa-rosalo-enza-zaden-enza-zaden",158070865]
["Семена салата Лолла Росса Сатин, 1000 шт. (драже), Rijk Zwaan (ЗГ)",1700,null,{"$f":"B1637*C1637","v":0},{"$f":"HYPERLINK(F1637,\"Фото\")","v":"Фото"},"http://agroopt-market.ru/collection/lolla-rosa/product/satin-semena-salata-lolla-rosa-rijk-zwaan-rayk-tsvaan",148874810]
["Семена салата Лолла Росса Сатин, 5000 шт. (драже), Rijk Zwaan (ЗГ)",8510,null,{"$f":"B1638*C1638","v":0},{"$f":"HYPERLINK(F1638,\"Фото\")","v":"Фото"},"http://agroopt-market.ru/collection/lolla-rosa/product/satin-semena-salata-lolla-rosa-rijk-zwaan-rayk-tsvaan",148874811]
["Семена салата Лолла Росса Туска, 5000 шт., Enza Zaden",5570,null,{"$f":"B1639*C1639","v":0},{"$f":"HYPERLINK(F1639,\"Фото\")","v":"Фото"},"http://agroopt-market.ru/collection/lolla-rosa/product/tuska-semena-salata-lolla-rosa-listovoy-enza-zaden-enza-zaden",148874809]
["Семена салата Лолла Росса Энтони, 1000 шт. (драже), Rijk Zwaan",1150,null,{"$f":"B1640*C1640","v":0},{"$f":"HYPERLINK(F1640,\"Фото\")","v":"Фото"},"http://agroopt-market.ru/collection/lolla-rosa/product/entoni-semena-salata-lolla-rosa-listovoy-rijk-zwaan-rayk-tsvaan",148874815]
["Семена салата Лолла Росса Энтони, 5000 шт. (драже), Rijk Zwaan",5740,null,{"$f":"B1641*C1641","v":0},{"$f":"HYPERLINK(F1641,\"Фото\")","v":"Фото"},"http://agroopt-market.ru/collection/lolla-rosa/product/entoni-semena-salata-lolla-rosa-listovoy-rijk-zwaan-rayk-tsvaan",148874816]
["Салат многолистный дуболистный","@",null,"@","@"]
["Семена салата МД Аквино, 1000 шт. (драже), Rijk Zwaan",2350,null,0,"Фото","http://agroopt-market.ru/collection/mnogolistnyy-maslyanistyy/product/akvino-semena-salata-mnogolistnyy-maslyanistyy-polukochannyy-rijk-zwaan-rayk-tsvaan",148874823]
["Семена салата МД Аквино, 5000 шт. (драже), Rijk Zwaan",11770,null,0,"Фото","http://agroopt-market.ru/collection/mnogolistnyy-maslyanistyy/product/akvino-semena-salata-mnogolistnyy-maslyanistyy-polukochannyy-rijk-zwaan-rayk-tsvaan",148874824]
["Семена салата МД Гоген, 1000 шт. (драже), Rijk Zwaan (ЗГ)",2070,null,0,"Фото","http://agroopt-market.ru/collection/mnogolistnyy-maslyanistyy/product/gogen-semena-salata-mnogolistnyy-maslyanistyy-listovoy-rijk-zwaan-rayk-tsvaan",148874825]
["Семена салата МД Гоген, 5000 шт. (драже), Rijk Zwaan (ЗГ)",10330,null,0,"Фото","http://agroopt-market.ru/collection/mnogolistnyy-maslyanistyy/product/gogen-semena-salata-mnogolistnyy-maslyanistyy-listovoy-rijk-zwaan-rayk-tsvaan",148874826]
["Семена салата МД Гумбольдт, 1000 шт. (драже), Rijk Zwaan",2280,null,0,"Фото","http://agroopt-market.ru/collection/mnogolistnyy-dubolistnyy/product/gumbold-semena-salata-mnogolistnyy-dubolistnyy-listovoy-rijk-zwaan-rayk-tsvaan",148874817]
["Семена салата МД Гумбольдт, 5000 шт. (драже), Rijk Zwaan",11380,null,0,"Фото","http://agroopt-market.ru/collection/mnogolistnyy-dubolistnyy/product/gumbold-semena-salata-mnogolistnyy-dubolistnyy-listovoy-rijk-zwaan-rayk-tsvaan",148874818]
["Семена салата МД Ксерафин, 1000 шт. (драже), Rijk Zwaan (ЗГ)",2070,null,0,"Фото","http://agroopt-market.ru/collection/mnogolistnyy-dubolistnyy/product/kserafin-semena-salata-mnogolistnyy-dubolistnyy-polukochannyy-rijk-zwaan-rayk-tsvaan",148874819]
["Семена салата МД Ксерафин, 5000 шт. (драже), Rijk Zwaan (ЗГ)",10330,null,0,"Фото","http://agroopt-market.ru/collection/mnogolistnyy-dubolistnyy/product/kserafin-semena-salata-mnogolistnyy-dubolistnyy-polukochannyy-rijk-zwaan-rayk-tsvaan",148874820]
["Семена салата МД Кук, 1000 шт. (драже), Rijk Zwaan (ЗГ)",2070,null,0,"Фото","http://agroopt-market.ru/collection/mnogolistnyy-dubolistnyy/product/kuk-semena-salata-mnogolistnyy-dubolistnyy-listovoy-rijk-zwaan-rayk-tsvaan",148874821]
["Семена салата МД Кук, 5000 шт. (драже), Rijk Zwaan (ЗГ)",10330,null,0,"Фото","http://agroopt-market.ru/collection/mnogolistnyy-dubolistnyy/product/kuk-semena-salata-mnogolistnyy-dubolistnyy-listovoy-rijk-zwaan-rayk-tsvaan",148874822]
["Семена салата Наварон, 25 000 шт. Vilmorin (недражированные)",5576,null,0,"Фото","-","ПРН"]
["Семена салата полевого Сирилла, 100 тыс. шт., Rijk Zwaan",1382,null,0,"Фото","http://agroopt-market.ru/collection/polevoy/product/sirilla-semena-salata-polevoy-polevoy-rijk-zwaan-rayk-tsvaan",148874828]
["Семена салата полевого Сирилла, 25 тыс. шт., Rijk Zwaan",345,null,0,"Фото","http://agroopt-market.ru/collection/polevoy/product/sirilla-semena-salata-polevoy-polevoy-rijk-zwaan-rayk-tsvaan",148874829]
["Салат Ромэн","@",null,"@","@"]
["Семена салата Ромэн Аувона, 1000 шт. (драже), Rijk Zwaan",1510,null,0,"Фото","http://agroopt-market.ru/collection/romen/product/auvona-semena-salata-romen-rijk-zwaan-rayk-tsvaan",148874835]
["Семена салата Ромэн Аувона, 5000 шт. (драже), Rijk Zwaan",7540,null,0,"Фото","http://agroopt-market.ru/collection/romen/product/auvona-semena-salata-romen-rijk-zwaan-rayk-tsvaan",148874836]
["Семена салата Ромэн Бацио, 5000 шт., Enza Zaden",5570,null,0,"Фото","http://agroopt-market.ru/collection/romen/product/batsio-semena-salata-romen-enza-zaden-enza-zaden",148874831]
["Семена салата Ромэн Викторинус, 1000 шт. (драже), Rijk Zwaan",1560,null,0,"Фото","http://agroopt-market.ru/collection/romen/product/viktorinus-semena-salata-romen-rijk-zwaan-rayk-tsvaan",148874837]
["Семена салата Ромэн Викторинус, 5000 шт. (драже), Rijk Zwaan",7820,null,0,"Фото","http://agroopt-market.ru/collection/romen/product/viktorinus-semena-salata-romen-rijk-zwaan-rayk-tsvaan",148874838]
["Семена салата Ромэн Квинтус, 1000 шт. (драже), Rijk Zwaan",1490,null,0,"Фото","http://agroopt-market.ru/collection/romen/product/kvintus-semena-salata-romen-rijk-zwaan-rayk-tsvaan",148874839]
["Семена салата Ромэн Квинтус, 5000 шт. (драже), Rijk Zwaan",7440,null,0,"Фото","http://agroopt-market.ru/collection/romen/product/kvintus-semena-salata-romen-rijk-zwaan-rayk-tsvaan",148874840]
["Семена салата Ромэн Корбана, 5000 шт., Enza Zaden",5570,null,{"$f":"B1664*C1664","v":0},"Фото","http://agroopt-market.ru/collection/romen/product/korbana-semena-salata-romen-enza-zaden-enza-zaden",148874832]
["Семена салата Ромэн Кранчита, 1000 шт. (драже), Rijk Zwaan",2170,null,0,{"$f":"HYPERLINK(F1665,\"Фото\")","v":"Фото"},"http://agroopt-market.ru/collection/romen/product/kranchita-semena-salata-romen-kochannyy-rijk-zwaan-rayk-tsvaan",148874841]
["Семена салата Ромэн Кранчита, 5000 шт. (драже), Rijk Zwaan",10850,null,0,"Фото","http://agroopt-market.ru/collection/romen/product/kranchita-semena-salata-romen-kochannyy-rijk-zwaan-rayk-tsvaan",148874842]
["Семена салата Ромэн Лотус, 1000 шт., Rijk Zwaan",1550,null,0,"Фото","http://agroopt-market.ru/collection/romen/product/lotus-semena-salata-romen-kochannyy-rijk-zwaan-rayk-tsvaan",148874843]
["Семена салата Ромэн Лотус, 5000 шт., Rijk Zwaan",7760,null,0,"Фото","http://agroopt-market.ru/collection/romen/product/lotus-semena-salata-romen-kochannyy-rijk-zwaan-rayk-tsvaan",148874843]
["Семена салата Ромэн Максимус, 10 тыс. шт. (NS), Rijk Zwaan (ЗГ)",3410,null,0,"Фото","http://agroopt-market.ru/collection/romen/product/semena-salata-romen-maksimus-rijk-zwaan-rayk-tsvaan",158070866]
["Семена салата Ромэн Максимус, 1000 шт. (драже), Rijk Zwaan (ЗГ)",1240,null,0,"Фото","http://agroopt-market.ru/collection/romen/product/maksimus-semena-salata-romen-kochannyy-rijk-zwaan-rayk-tsvaan",148874844]
["Семена салата Ромэн Максимус, 5000 шт. (NS), Rijk Zwaan (ЗГ)",1710,null,0,"Фото","http://agroopt-market.ru/collection/romen/product/maksimus-semena-salata-romen-kochannyy-rijk-zwaan-rayk-tsvaan",148874845]
["Семена салата Ромэн Максимус, 5000 шт. (драже), Rijk Zwaan (ЗГ)",1710,null,0,"Фото","http://agroopt-market.ru/collection/romen/product/maksimus-semena-salata-romen-kochannyy-rijk-zwaan-rayk-tsvaan",148874846]
["Семена салата Ромэн Пиноккио, 5000 шт., Enza Zaden",5570,null,0,"Фото","http://agroopt-market.ru/collection/romen/product/pinokkio-semena-salata-romen-enza-zaden-enza-zaden",148874830]
["Семена салата Ромэн Рафаэль, 1000 шт. (драже), Rijk Zwaan",1330,null,0,"Фото","http://agroopt-market.ru/collection/romen/product/rafael-semena-salata-romen-rijk-zwaan-rayk-tsvaan",148874847]
["Семена салата Ромэн Рафаэль, 5000 шт. (драже), Rijk Zwaan",6630,null,0,"Фото","http://agroopt-market.ru/collection/romen/product/rafael-semena-salata-romen-rijk-zwaan-rayk-tsvaan",148874848]
["Семена салата Ромэн Роджер, 1 кг, Гавриш",59600,null,0,"Фото","http://agroopt-market.ru/collection/romen/product/semena-salata-romen-rodzher-gavrish",158071066]
["Семена салата Ромэн Туринус, 1000 шт. (драже), Rijk Zwaan (ЗГ)",1490,null,0,"Фото","http://agroopt-market.ru/collection/romen/product/turinus-semena-salata-romen-rijk-zwaan-rayk-tsvaan",148874833]
["Семена салата Ромэн Туринус, 5000 шт. (драже), Rijk Zwaan (ЗГ)",7440,null,0,"Фото","http://agroopt-market.ru/collection/romen/product/turinus-semena-salata-romen-rijk-zwaan-rayk-tsvaan",148874834]
["Салат Силанова","@",null,"@","@"]
["Семена салата Силанова Экзакт, 1000 шт. (драже), Rijk Zwaan (ЗГ)",1960,null,0,"Фото","http://agroopt-market.ru/collection/salanova/product/ekzakt-semena-salata-salanova-listovoy-rijk-zwaan-rayk-tsvaan",148874849]
["Семена салата Силанова Экзакт, 5000 шт. (драже), Rijk Zwaan (ЗГ)",9780,null,0,"Фото","http://agroopt-market.ru/collection/salanova/product/ekzakt-semena-salata-salanova-listovoy-rijk-zwaan-rayk-tsvaan",148874850]
["Салат с рассеченным листом","@",null,"@","@"]
["Семена салата Триплекс, 1000 шт. (драже), Rijk Zwaan (ЗГ)",2170,null,0,"Фото","http://agroopt-market.ru/collection/hrustyaschiy-s-silno-rassechennym-listom/product/tripleks-semena-salata-hrustyaschiy-s-silno-rassechennym-listom-listovoy-rijk-zwaan-rayk-tsvaan",148874854]
["Семена салата Триплекс, 5000 шт. (драже), Rijk Zwaan (ЗГ)",10850,null,0,"Фото","http://agroopt-market.ru/collection/hrustyaschiy-s-silno-rassechennym-listom/product/tripleks-semena-salata-hrustyaschiy-s-silno-rassechennym-listom-listovoy-rijk-zwaan-rayk-tsvaan",148874855]
["Семена салата Эксайт, 1000 шт. (драже), Rijk Zwaan",2170,null,0,"Фото","http://agroopt-market.ru/collection/hrustyaschiy-s-silno-rassechennym-listom/product/eksayt-semena-salata-hrustyaschiy-s-silno-rassechennym-listom-listovoy-rijk-zwaan-rayk-tsvaan",148874856]
["Семена салата Эксайт, 5000 шт. (драже), Rijk Zwaan",10850,null,0,"Фото","http://agroopt-market.ru/collection/hrustyaschiy-s-silno-rassechennym-listom/product/eksayt-semena-salata-hrustyaschiy-s-silno-rassechennym-listom-listovoy-rijk-zwaan-rayk-tsvaan",148874857]
["Семена салата Экспертайз, 1000 шт. (драже), Rijk Zwaan (ЗГ)",2170,null,0,"Фото","http://agroopt-market.ru/collection/hrustyaschiy-s-silno-rassechennym-listom/product/ekspertayz-semena-salata-hrustyaschiy-s-silno-rassechennym-listom-listovoy-rijk-zwaan-rayk-tsvaan",148874858]
["Семена салата Экспертайз, 5000 шт. (драже), Rijk Zwaan (ЗГ)",10850,null,0,"Фото","http://agroopt-market.ru/collection/hrustyaschiy-s-silno-rassechennym-listom/product/ekspertayz-semena-salata-hrustyaschiy-s-silno-rassechennym-listom-listovoy-rijk-zwaan-rayk-tsvaan",148874859]
["Семена салата Экспириенс, 1000 шт. (драже), Rijk Zwaan",2170,null,0,"Фото","http://agroopt-market.ru/collection/hrustyaschiy-s-silno-rassechennym-listom/product/ekspiriens-semena-salata-hrustyaschiy-s-silno-rassechennym-listom-listovoy-rijk-zwaan-rayk-tsvaan",148874860]
["Семена салата Экспириенс, 5000 шт. (драже), Rijk Zwaan",10850,null,0,"Фото","http://agroopt-market.ru/collection/hrustyaschiy-s-silno-rassechennym-listom/product/ekspiriens-semena-salata-hrustyaschiy-s-silno-rassechennym-listom-listovoy-rijk-zwaan-rayk-tsvaan",148874861]
["Свекла","@",null,"@","@"]
["Семена свеклы Акела, 100 тыс. шт. (PR<3,5), Rijk Zwaan",4960,null,0,"Фото","http://agroopt-market.ru/collection/stolovaya/product/akela-rz-semena-svekly-stolovoy-rijk-zwaan-rayk-tsvaan",148061825]
["Семена свеклы Акела, 100 тыс. шт. (PR>3,5), Rijk Zwaan",4960,null,0,"Фото","http://agroopt-market.ru/collection/stolovaya/product/akela-rz-semena-svekly-stolovoy-rijk-zwaan-rayk-tsvaan",148061829]
["Семена свеклы Акела, 25 тыс. шт. (PR<3,5), Rijk Zwaan",1240,null,0,"Фото","http://agroopt-market.ru/collection/stolovaya/product/akela-rz-semena-svekly-stolovoy-rijk-zwaan-rayk-tsvaan",148061823]
["Семена свеклы Акела, 25 тыс. шт. (PR>3,5), Rijk Zwaan",1240,null,0,"Фото","http://agroopt-market.ru/collection/stolovaya/product/akela-rz-semena-svekly-stolovoy-rijk-zwaan-rayk-tsvaan",148061826]
["Семена свеклы Бебибит, 100 тыс. шт. (PR<3,5), Rijk Zwaan",4960,null,0,"Фото","http://agroopt-market.ru/collection/stolovaya/product/bebibit-semena-svekly-stolovoy-rijk-zwaan-rayk-tsvaan",148061836]
["Семена свеклы Бебибит, 100 тыс. шт. (PR>3,5), Rijk Zwaan",4960,null,0,"Фото","http://agroopt-market.ru/collection/stolovaya/product/bebibit-semena-svekly-stolovoy-rijk-zwaan-rayk-tsvaan",148061839]
["Семена свеклы Бебибит, 25 тыс. шт. (PR<3,5), Rijk Zwaan",1240,null,0,"Фото","http://agroopt-market.ru/collection/stolovaya/product/bebibit-semena-svekly-stolovoy-rijk-zwaan-rayk-tsvaan",148061834]
["Семена свеклы Бебибит, 25 тыс. шт. (PR>3,5), Rijk Zwaan",1240,null,0,"Фото","http://agroopt-market.ru/collection/stolovaya/product/bebibit-semena-svekly-stolovoy-rijk-zwaan-rayk-tsvaan",148061837]
["Семена свеклы Беттолло F1, 50 тыс. шт. (прециз.), Bejo",3560,null,0,"Фото","http://agroopt-market.ru/collection/stolovaya/product/bettollo-f1-semena-svekly-stolovoy-bejo-beyo",148061866]
["Семена свеклы Бикорес, 10 кг, Bejo",25020,null,0,"Фото","http://agroopt-market.ru/collection/stolovaya/product/bikores-semena-svekly-stolovoy-bejo-beyo",148061871]
["Семена свеклы Бикорес, 50 тыс. шт. (прециз.), Bejo",2410,null,0,"Фото","http://agroopt-market.ru/collection/stolovaya/product/bikores-semena-svekly-stolovoy-bejo-beyo",148061873]
["Семена свеклы Болтарди, 1 кг, Гавриш",2050,null,0,"Фото","http://agroopt-market.ru/collection/stolovaya/product/semena-svekly-boltardi-gavrish",158071069]
["Семена свеклы Болтарди, 100 тыс. шт., Syngenta",3762,null,0,"Фото","http://agroopt-market.ru/collection/stolovaya/product/boltardi-semena-svekly-stolovoy-syngenta-singenta",148061877]
["Семена свеклы Боро F1, 50 тыс. шт. (прециз.), Bejo",3270,null,0,"Фото","http://agroopt-market.ru/collection/stolovaya/product/boro-f1-semena-svekly-stolovoy-bejo-beyo",148061881]
["Семена свеклы Бохан F1, 50 тыс. шт. (прециз.), Bejo",3670,null,0,"Фото","http://agroopt-market.ru/collection/stolovaya/product/bohan-f1-semena-svekly-stolovoy-bejo-beyo",148061884]
["Семена свеклы Водан F1, 50 тыс. шт. (прециз.), Bejo",3270,null,0,"Фото","http://agroopt-market.ru/collection/stolovaya/product/vodan-f1-semena-svekly-stolovoy-bejo-beyo",148061887]
["Семена свеклы Детройт, 1 кг, Clause",1932,null,0,"Фото","http://agroopt-market.ru/collection/stolovaya/product/detroyt-semena-svekly-stolovoy-clause-klos",148061892]
["Семена свеклы Детройт, 1 кг, Гавриш",1500,null,0,"Фото","http://agroopt-market.ru/collection/stolovaya/product/semena-svekly-detroyt-gavrish",158071068]
["Семена свеклы Игл F1, 50 тыс. шт. (2,6-3,2), Sakata",3250,null,0,"Фото","http://agroopt-market.ru/collection/stolovaya/product/igl-f1-semena-svekly-stolovoy-sakata-sakata",148061896]
["Семена свеклы Игл F1, 50 тыс. шт. (3,2-3,6), Sakata",3250,null,0,"Фото","http://agroopt-market.ru/collection/stolovaya/product/igl-f1-semena-svekly-stolovoy-sakata-sakata",148061898]
["Семена свеклы Камаро F1, 50 тыс. шт. (2,2-2,5 ), Vilmorin",3652,null,0,"Фото","http://agroopt-market.ru/collection/stolovaya/product/kamaro-f1-semena-svekly-stolovoy-vilmorin-vilmorin",148061901]
["Семена свеклы Камаро F1, 50 тыс. шт. (3,0-3,5 ), Vilmorin",3652,null,0,"Фото","http://agroopt-market.ru/collection/stolovaya/product/kamaro-f1-semena-svekly-stolovoy-vilmorin-vilmorin",148070256]
["Семена свеклы Кардиал F1, 50 тыс. шт. (2,4-3,2), Sakata",2890,null,0,"Фото","http://agroopt-market.ru/collection/stolovaya/product/kardial-f1-semena-svekly-stolovoy-sakata-sakata",148061905]
["Семена свеклы Кардиал F1, 50 тыс. шт. (2,8-3,2), Sakata",2890,null,0,"Фото","http://agroopt-market.ru/collection/stolovaya/product/kardial-f1-semena-svekly-stolovoy-sakata-sakata",148061907]
["Семена свеклы Кардиал F1, 50 тыс. шт. (3,2-3,6), Sakata",2890,null,0,"Фото","http://agroopt-market.ru/collection/stolovaya/product/kardial-f1-semena-svekly-stolovoy-sakata-sakata",148061909]
["Семена свеклы Кардиал F1, 50 тыс. шт. (3,6-4,0), Sakata",2890,null,0,"Фото","http://agroopt-market.ru/collection/stolovaya/product/kardial-f1-semena-svekly-stolovoy-sakata-sakata",148061910]
["Семена свеклы Кардиал F1, 50 тыс. шт. (4,0-4,4), Sakata",2890,null,0,"Фото","http://agroopt-market.ru/collection/stolovaya/product/kardial-f1-semena-svekly-stolovoy-sakata-sakata",148061912]
["Семена свеклы Кестрел F1, 25 тыс. шт. (4,0-4,4), Sakata",1625,null,0,"Фото","http://agroopt-market.ru/collection/stolovaya/product/kestrel-f1-semena-svekly-stolovoy-sakata-sakata",148061936]
["Семена свеклы Кестрел F1, 50 тыс. шт. (2,8-3,2), Sakata",3250,null,0,"Фото","http://agroopt-market.ru/collection/stolovaya/product/kestrel-f1-semena-svekly-stolovoy-sakata-sakata",148061927]
["Семена свеклы Кестрел F1, 50 тыс. шт. (3,2-3,6), Sakata",3250,null,0,"Фото","http://agroopt-market.ru/collection/stolovaya/product/kestrel-f1-semena-svekly-stolovoy-sakata-sakata",148061932]
["Семена свеклы Кестрел F1, 50 тыс. шт. (3,6-4,0), Sakata",3250,null,0,"Фото","http://agroopt-market.ru/collection/stolovaya/product/kestrel-f1-semena-svekly-stolovoy-sakata-sakata",148061934]
["Семена свеклы Кестрел F1, 50 тыс. шт. (4,0-4,4), Sakata",3250,null,0,"Фото","http://agroopt-market.ru/collection/stolovaya/product/kestrel-f1-semena-svekly-stolovoy-sakata-sakata",148061937]
["Семена свеклы Ларка, 100 тыс. шт. (PR<3,5), Rijk Zwaan",4960,null,0,"Фото","http://agroopt-market.ru/collection/stolovaya/product/larka-semena-svekly-stolovoy-rijk-zwaan-rayk-tsvaan",148061944]
["Семена свеклы Ларка, 100 тыс. шт. (PR>3,5), Rijk Zwaan",4960,null,0,"Фото","http://agroopt-market.ru/collection/stolovaya/product/larka-semena-svekly-stolovoy-rijk-zwaan-rayk-tsvaan",148061949]
["Семена свеклы Ларка, 25 тыс. шт. (PR<3,5), Rijk Zwaan",1240,null,0,"Фото","http://agroopt-market.ru/collection/stolovaya/product/larka-semena-svekly-stolovoy-rijk-zwaan-rayk-tsvaan",148061942]
["Семена свеклы Ларка, 25 тыс. шт. (PR>3,5), Rijk Zwaan",1240,null,0,"Фото","http://agroopt-market.ru/collection/stolovaya/product/larka-semena-svekly-stolovoy-rijk-zwaan-rayk-tsvaan",148061945]
["Семена свеклы Либеро, 100 тыс. шт. (PR<3,5), Rijk Zwaan",4960,null,0,"Фото","http://agroopt-market.ru/collection/stolovaya/product/libero-semena-svekly-stolovoy-rijk-zwaan-rayk-tsvaan",148061963]
["Семена свеклы Либеро, 100 тыс. шт. (PR>3,5), Rijk Zwaan",4960,null,0,"Фото","http://agroopt-market.ru/collection/stolovaya/product/libero-semena-svekly-stolovoy-rijk-zwaan-rayk-tsvaan",148061967]
["Семена свеклы Либеро, 25 тыс. шт. (PR<3,5), Rijk Zwaan",1240,null,0,"Фото","http://agroopt-market.ru/collection/stolovaya/product/libero-semena-svekly-stolovoy-rijk-zwaan-rayk-tsvaan",148061961]
["Семена свеклы Либеро, 25 тыс. шт. (PR>3,5), Rijk Zwaan",1240,null,{"$f":"B1731*C1731","v":0},"Фото","http://agroopt-market.ru/collection/stolovaya/product/libero-semena-svekly-stolovoy-rijk-zwaan-rayk-tsvaan",148061966]
["Семена свеклы Модана, 100 тыс. шт., Syngenta",2648,null,0,{"$f":"HYPERLINK(F1732,\"Фото\")","v":"Фото"},"http://agroopt-market.ru/collection/stolovaya/product/modana-semena-svekly-stolovoy-syngenta-singenta",148061970]
["Семена свеклы Монополи, 100 тыс. шт., Syngenta",5063,null,0,"Фото","http://agroopt-market.ru/collection/stolovaya/product/monopoli-semena-svekly-stolovoy-syngenta-singenta",148061973]
["Семена свеклы Монти F1, 100 тыс. шт. (PR<3,5), Rijk Zwaan",5920,null,0,"Фото","http://agroopt-market.ru/collection/stolovaya/product/monti-f1-semena-svekly-stolovoy-rijk-zwaan-rayk-tsvaan",148061979]
["Семена свеклы Монти F1, 100 тыс. шт. (PR>3,5), Rijk Zwaan",5920,null,0,"Фото","http://agroopt-market.ru/collection/stolovaya/product/monti-f1-semena-svekly-stolovoy-rijk-zwaan-rayk-tsvaan",148061981]
["Семена свеклы Монти F1, 25 тыс. шт. (PR<3,5), Rijk Zwaan",1480,null,0,"Фото","http://agroopt-market.ru/collection/stolovaya/product/monti-f1-semena-svekly-stolovoy-rijk-zwaan-rayk-tsvaan",148061977]
["Семена свеклы Монти F1, 25 тыс. шт. (PR>3,5), Rijk Zwaan",1480,null,0,"Фото","http://agroopt-market.ru/collection/stolovaya/product/monti-f1-semena-svekly-stolovoy-rijk-zwaan-rayk-tsvaan",148061980]
["Семена свеклы Пабло F1, 50 тыс. шт. (прециз.), Bejo",3270,null,0,"Фото","http://agroopt-market.ru/collection/stolovaya/product/pablo-f1-semena-svekly-stolovoy-bejo-beyo",148061991]
["Семена свеклы Ред клауд F1, 50 тыс. шт. (прециз.), Bejo",3270,null,0,"Фото","http://agroopt-market.ru/collection/stolovaya/product/red-klaud-f1-semena-svekly-stolovoy-bejo-beyo",148061996]
["Семена свеклы Рокет, 50 тыс. шт. (прециз.), Bejo",2500,null,0,"Фото","http://agroopt-market.ru/collection/stolovaya/product/roket-semena-svekly-stolovoy-bejo-beyo",148072440]
["Семена свеклы Ронда F1, 50 тыс. шт. (прециз.), Bejo",3560,null,0,"Фото","http://agroopt-market.ru/collection/stolovaya/product/ronda-f1-semena-svekly-stolovoy-bejo-beyo",148062007]
["Семена свеклы столовой Родэна F1, 50 000 шт, Sakata",3850,null,0,"Фото","-","ПРН"]
["Семена свеклы Субето F1, 50 тыс. шт. (прециз.), Bejo",3270,null,0,"Фото","http://agroopt-market.ru/collection/stolovaya/product/subeto-f1-semena-svekly-stolovoy-bejo-beyo",148062013]
["Семена свеклы Таунус F1, 50 тыс. шт. (прециз.), Bejo",3270,null,0,"Фото","http://agroopt-market.ru/collection/stolovaya/product/taunus-f1-semena-svekly-stolovoy-bejo-beyo",148062017]
["Семена свеклы Цеппо F1, 100 тыс. шт. (PR<3,5), Rijk Zwaan",5780,null,0,"Фото","http://agroopt-market.ru/collection/stolovaya/product/tseppo-f1-semena-svekly-stolovoy-rijk-zwaan-rayk-tsvaan",148062022]
["Семена свеклы Цеппо F1, 100 тыс. шт. (PR<3,5/PR>3,5), Rijk Zwaan",5780,null,0,"Фото","http://agroopt-market.ru/collection/stolovaya/product/tseppo-f1-semena-svekly-stolovoy-rijk-zwaan-rayk-tsvaan",148062026]
["Семена свеклы Цеппо F1, 25 тыс. шт. (PR<3,5), Rijk Zwaan",1450,null,0,"Фото","http://agroopt-market.ru/collection/stolovaya/product/tseppo-f1-semena-svekly-stolovoy-rijk-zwaan-rayk-tsvaan",148062021]
["Семена свеклы Цеппо F1, 25 тыс. шт. (PR>3,5), Rijk Zwaan",1450,null,0,"Фото","http://agroopt-market.ru/collection/stolovaya/product/tseppo-f1-semena-svekly-stolovoy-rijk-zwaan-rayk-tsvaan",148062024]
["Семена свеклы Экшен F1, 50 тыс. шт. (прециз.), Bejo",3270,null,0,"Фото","http://agroopt-market.ru/collection/stolovaya/product/ekshen-f1-semena-svekly-stolovoy-bejo-beyo",148062028]
["Сельдерей корневой","@",null,"@","@"]
["Семена сельдерея корневого Балена, 10 тыс. шт., Bejo",3640,null,0,"Фото","http://agroopt-market.ru/collection/selderey/product/balena-semena-seldereya-bejo-beyo",148769355]
["Семена сельдерея корневого Диамант, 10 тыс. шт. (калибр.), Bejo",2200,null,0,"Фото","http://agroopt-market.ru/collection/selderey/product/diamant-semena-seldereya-bejo-beyo",148769360]
["Семена сельдерея корневого Диамант, 10 тыс. шт. (прайм. драже), Bejo",14270,null,0,"Фото","http://agroopt-market.ru/collection/selderey/product/diamant-semena-seldereya-bejo-beyo",148769358]
["Семена сельдерея корневого Ибис, 2500 шт., Enza Zaden",675,null,0,"Фото","http://agroopt-market.ru/collection/selderey/product/ibis-semena-seldereya-enza-zaden-enza-zaden",148769369]
["Семена сельдерея корневого Президент, 10 тыс. шт. (NS), Rijk Zwaan",1730,null,0,"Фото","http://agroopt-market.ru/collection/selderey/product/prezident-rz-semena-seldereya-rijk-zwaan-rayk-tsvaan",148769382]
["Семена сельдерея корневого Принц, 10 000 шт, Nunhems",5765,null,0,"Фото","-","ПРН"]
["Сельдерей черешковый","@",null,"@","@"]
["Семена сельдерея черешкового Артур, 10 тыс. шт. (NS), Rijk Zwaan",2610,null,0,"Фото","http://agroopt-market.ru/collection/selderey/product/artur-semena-seldereya-rijk-zwaan-rayk-tsvaan",148769379]
["Семена сельдерея черешкового Артур, 5000 шт. (драже), Rijk Zwaan",4080,null,0,"Фото","http://agroopt-market.ru/collection/selderey/product/semena-seldereya-chereshkovogo-artur-rijk-zwaan-rayk-tsvaan",158070869]
["Семена сельдерея черешкового Афина, 50 гр, Bejo",660,null,0,"Фото","http://agroopt-market.ru/collection/selderey/product/afina-semena-seldereya-bejo-beyo",148769350]
["Семена сельдерея черешкового Дарклет F1, 10 тыс. шт., Takii",2500,null,0,"Фото","http://agroopt-market.ru/collection/selderey/product/darklet-f1-semena-seldereya-takii-taki",148769385]
["Семена сельдерея черешкового Потенциал, 1 кг, Гавриш",4050,null,0,"Фото","http://agroopt-market.ru/collection/selderey/product/semena-seldereya-chereshkovogo-potentsial-gavrish",158071073]
["Семена сельдерея черешкового Сенеж, 1 кг, Гавриш",5700,null,0,"Фото","http://agroopt-market.ru/collection/selderey/product/semena-seldereya-chereshkovogo-senezh-gavrish",158071071]
["Семена сельдерея черешкового Сиенна F1, 2500 шт., Enza Zaden",2500,null,0,"Фото","http://agroopt-market.ru/collection/selderey/product/semena-seldereya-chereshkovogo-sienna-f1-enza-zaden-enza-zaden",158070868]
["Семена сельдерея черешкового Танго, 10 тыс. шт. (калибр.), Bejo",4110,null,0,"Фото","http://agroopt-market.ru/collection/selderey/product/tango-semena-seldereya-bejo-beyo",148769365]
["Семена сельдерея черешкового Танго, 10 тыс. шт. (прайм. драже), Bejo",14230,null,0,"Фото","http://agroopt-market.ru/collection/selderey/product/tango-semena-seldereya-bejo-beyo",148769363]
["Тимьян","@",null,"@","@"]
["Семена тимьяна Радужный, 1 кг, Гавриш",34100,null,0,"Фото","http://agroopt-market.ru/collection/timyan/product/semena-timyana-raduzhnyy-gavrish",158071220]
["Томат","@",null,"@","@"]
["Семена томата  B 355, 250 шт., Vilmorin",4132,null,0,"Фото","http://agroopt-market.ru/collection/krasnyy-1501426362/product/semena-tomata-protsessingovogo-b-355-vilmorin-vilmorin",158070881]
["Семена томата  Cэр Элиан F1, 250 шт., Vilmorin",3681,null,0,"Фото","http://agroopt-market.ru/collection/krasnyy-1501426353/product/cer-elian-f1-semena-tomata-indeterminantnogo-krasnogo-vilmorin-vilmorin",148315148]
["Семена томата  Васанта F1, 100 шт., Rijk Zwaan",1644.93,null,0,"Фото","http://agroopt-market.ru/collection/krasnyy-1501426358/product/vasanta-f1-semena-tomata-poludeterminantnogo-krasnogo-rijk-zwaan-rayk-tsvaan",148315192]
["Семена томата  Васанта F1, 1000 шт., Rijk Zwaan",16449.34,null,0,"Фото","http://agroopt-market.ru/collection/krasnyy-1501426358/product/vasanta-f1-semena-tomata-poludeterminantnogo-krasnogo-rijk-zwaan-rayk-tsvaan",148315193]
["Семена томата  Женарос F1, 500 шт., Seminis",4523,null,0,"Фото","http://agroopt-market.ru/collection/krasnyy-1501426353/product/zhenaros-f1-semena-tomata-indeterminantnogo-krasnogo-seminis-seminis",148315225]
["Семена томата  Картьер F1, 1000 шт., Syngenta",3412,null,0,"Фото","http://agroopt-market.ru/collection/krasnyy-1501426353/product/kartier-f1-semena-tomata-indeterminantnogo-krasnogo-clause-klos",148315241]
["Семена томата  Мартэз F1, 500 шт., Seminis",3544,null,0,"Фото","http://agroopt-market.ru/collection/rozovyy-3/product/martez-f1-semena-tomata-poludeterminantnogo-rozovogo-seminis-seminis",148315272]
["Семена томата  Матиас F1, 500 шт., Seminis",3670,null,0,"Фото","http://agroopt-market.ru/collection/krasnyy-1501426353/product/matias-f1-semena-tomata-indeterminantnogo-krasnogo-seminis-seminis",148315274]
["Семена томата  Феномена F1, 250 шт., Vilmorin",220,null,0,"Фото","http://agroopt-market.ru/collection/krasnyy-1501426346/product/fenomena-f1-semena-tomata-determinantnogo-krasnogo-vilmorin-vilmorin",148315389]
["Семена томата детерм. 6 пунто 7 F1, 1000 шт., Seminis",1329,null,0,"Фото","http://agroopt-market.ru/collection/krasnyy-1501426346/product/6-punto-7-f1-semena-tomata-determinantnogo-krasnogo-seminis-seminis",148315144]
["Семена томата детерм. Агрессор F1, 1000 шт., Гавриш",400,null,0,"Фото","http://agroopt-market.ru/collection/krasnyy-1501426346/product/semena-tomata-determinantnogo-agressor-f1-gavrish",158071099]
["Семена томата детерм. Адаптор F1, 1000 шт., Гавриш",400,null,0,"Фото","http://agroopt-market.ru/collection/krasnyy-1501426346/product/semena-tomata-determinantnogo-adaptor-f1-gavrish",158071097]
["Семена томата детерм. Айваз 331 F1, 1000 шт., Enza Zaden",1090,null,0,"Фото","http://agroopt-market.ru/collection/krasnyy-1501426346/product/ayvaz-331-f1-semena-tomata-determinantnogo-krasnogo-enza-zaden-enza-zaden",148315154]
["Семена томата детерм. Асалет F1, 1000 шт., Enza Zaden",1290,null,0,"Фото","http://agroopt-market.ru/collection/krasnyy-1501426346/product/semena-tomata-determinantnogo-asalet-f1-enza-zaden-enza-zaden",158070870]
["Семена томата детерм. Бабай F1, 1000 шт., Гавриш",650,null,0,"Фото","http://agroopt-market.ru/collection/krasnyy-1501426346/product/semena-tomata-determinantnogo-babay-f1-gavrish",158071092]
["Семена томата детерм. Багира F1, 5 гр, Clause",2497,null,0,"Фото","http://agroopt-market.ru/collection/krasnyy-1501426346/product/bagira-f1-semena-tomata-determinantnogo-krasnogo-clause-klos",148315172]
["Семена томата детерм. Белла Роса F1, 1000 шт., Sakata",1400,null,0,"Фото","http://agroopt-market.ru/collection/krasnyy-1501426346/product/bella-rosa-f1-semena-tomata-determinantnogo-krasnogo-sakata-sakata",148315174]
["Семена томата детерм. Бенито F1, 5 гр, Bejo",560,null,{"$f":"B1787*C1787","v":0},"Фото","http://agroopt-market.ru/collection/krasnyy-1501426346/product/benito-f1-semena-tomata-determinantnogo-krasnogo-bejo-beyo",148315178]
["Семена томата детерм. Бехрам, 1000 шт., Enza Zaden",1250,null,0,{"$f":"HYPERLINK(F1788,\"Фото\")","v":"Фото"},"http://agroopt-market.ru/collection/krasnyy-1501426346/product/behram-semena-tomata-determinantnogo-krasnogo-enza-zaden-enza-zaden",148315180]
["Семена томата детерм. Благовест F1, 1000 шт., Гавриш",2500,null,0,"Фото","http://agroopt-market.ru/collection/krasnyy-1501426346/product/semena-tomata-determinantnogo-blagovest-f1-gavrish",158071078]
["Семена томата детерм. Бобкат F1, 1000 шт., Syngenta",1101,null,0,"Фото","http://agroopt-market.ru/collection/krasnyy-1501426346/product/bobkat-f1-semena-tomata-determinantnogo-krasnogo-syngenta-singenta",148315185]
["Семена томата детерм. Вольверин F1, 1000 шт., Syngenta",1376,null,0,"Фото","http://agroopt-market.ru/collection/krasnyy-1501426346/product/volverin-f1-semena-tomata-determinantnogo-krasnogo-syngenta-singenta",148315195]
["Семена томата детерм. Гаспачо, 100 гр, Гавриш",900,null,0,"Фото","http://agroopt-market.ru/collection/krasnyy-1501426346/product/semena-tomata-determinantnogo-gaspacho-gavrish",158071105]
["Семена томата детерм. Генерал F1, 1000 шт., Sakata",1400,null,0,"Фото","http://agroopt-market.ru/collection/krasnyy-1501426346/product/general-f1-semena-tomata-determinantnogo-krasnogo-sakata-sakata",148315198]
["Семена томата детерм. Гердон F1, 1000 шт., Seminis",1360,null,0,"Фото","http://agroopt-market.ru/collection/krasnyy-1501426346/product/gerdon-f1-semena-tomata-determinantnogo-krasnogo-seminis-seminis",148315199]
["Семена томата детерм. ГС 12 F1, 1000 шт., Syngenta",496,null,0,"Фото","http://agroopt-market.ru/collection/krasnyy-1501426346/product/gs-12-f1-semena-tomata-determinantnogo-krasnogo-syngenta-singenta",148315204]
["Семена томата детерм. Дебют F1, 1000 шт., Seminis",1267,null,0,"Фото","http://agroopt-market.ru/collection/krasnyy-1501426346/product/debyut-f1-semena-tomata-determinantnogo-krasnogo-seminis-seminis",148315208]
["Семена томата детерм. Джемпакт F1, 1000 шт., Sakata",1000,null,0,"Фото","http://agroopt-market.ru/collection/krasnyy-1501426346/product/dzhempakt-f1-semena-tomata-determinantnogo-krasnogo-sakata-sakata",148315211]
["Семена томата детерм. Джокер F1, 1000 шт., Vilmorin",944,null,0,"Фото","http://agroopt-market.ru/collection/krasnyy-1501426346/product/dzhoker-f1-semena-tomata-determinantnogo-krasnogo-vilmorin-vilmorin",148315213]
["Семена томата детерм. Диаболик F1, 1000 шт., Sakata",1300,null,0,"Фото","http://agroopt-market.ru/collection/krasnyy-1501426346/product/diabolik-f1-semena-tomata-determinantnogo-krasnogo-sakata-sakata",148315214]
["Семена томата детерм. Дуэл Плюс F1, 1000 шт., Seminis",763,null,0,"Фото","http://agroopt-market.ru/collection/krasnyy-1501426346/product/duel-plyus-f1-semena-tomata-determinantnogo-krasnogo-seminis-seminis",148315221]
["Семена томата детерм. Дуэл Эрли F1, 1000 шт., Seminis",748,null,0,"Фото","http://agroopt-market.ru/collection/krasnyy-1501426346/product/duel-erli-f1-semena-tomata-determinantnogo-krasnogo-seminis-seminis",148315222]
["Семена томата детерм. Импала F1, 1000 шт., Vilmorin",1061,null,0,"Фото","http://agroopt-market.ru/collection/krasnyy-1501426346/product/impala-f1-semena-tomata-determinantnogo-krasnogo-vilmorin-vilmorin",148315232]
["Семена томата детерм. Имран F1, 1000 шт., Enza Zaden",1090,null,0,"Фото","http://agroopt-market.ru/collection/krasnyy-1501426346/product/imran-f1-semena-tomata-determinantnogo-krasnogo-enza-zaden-enza-zaden",148315233]
["Семена томата детерм. Индио F1, 1000 шт., Sakata",1300,null,0,"Фото","http://agroopt-market.ru/collection/krasnyy-1501426346/product/indio-f1-semena-tomata-determinantnogo-krasnogo-sakata-sakata",148315234]
["Семена томата детерм. Индио F1, 500 шт., Sakata",650,null,0,"-",{"$error":"#N/A"},"ПРН"]
["Семена томата детерм. Капорал F1, 1000 шт., Vilmorin",733,null,0,"Фото","http://agroopt-market.ru/collection/krasnyy-1501426346/product/kaporal-f1-semena-tomata-determinantnogo-krasnogo-vilmorin-vilmorin",148315238]
["Семена томата детерм. Консерватто F1, 1000 шт., Гавриш",500,null,0,"Фото","http://agroopt-market.ru/collection/krasnyy-1501426346/product/semena-tomata-determinantnogo-konservatto-f1-gavrish",158071096]
["Семена томата детерм. Лината F1, 1000 шт., Enza Zaden",1250,null,0,"Фото","http://agroopt-market.ru/collection/krasnyy-1501426346/product/linata-f1-semena-tomata-determinantnogo-krasnogo-enza-zaden-enza-zaden",148315259]
["Семена томата детерм. Линда F1, 1000 шт., Sakata",1400,null,0,"Фото","http://agroopt-market.ru/collection/krasnyy-1501426346/product/linda-f1-semena-tomata-determinantnogo-krasnogo-sakata-sakata",148315260]
["Семена томата детерм. Лоджейн F1, 1000 шт., Enza Zaden",1020,null,0,"Фото","http://agroopt-market.ru/collection/krasnyy-1501426346/product/lodzheyn-f1-semena-tomata-determinantnogo-krasnogo-enza-zaden-enza-zaden",148315261]
["Семена томата детерм. Ля-ля-фа F1, 1000 шт., Гавриш",3300,null,0,"Фото","http://agroopt-market.ru/collection/krasnyy-1501426346/product/semena-tomata-determinantnogo-lya-lya-fa-f1-gavrish",158071075]
["Семена томата детерм. Мадера F1, 1000 шт., Гавриш",975,null,0,"Фото","http://agroopt-market.ru/collection/krasnyy-1501426346/product/semena-tomata-determinantnogo-madera-f1-gavrish",158071091]
["Семена томата детерм. Мариана F1, 1000 шт., Sakata",1300,null,0,"Фото","http://agroopt-market.ru/collection/krasnyy-1501426346/product/mariana-f1-semena-tomata-determinantnogo-krasnogo-sakata-sakata",148315269]
["Семена томата детерм. Медина F1, 1000 шт., Vilmorin",790,null,0,"Фото","http://agroopt-market.ru/collection/krasnyy-1501426346/product/medina-f1-semena-tomata-determinantnogo-krasnogo-vilmorin-vilmorin",148315278]
["Семена томата детерм. Мирсини F1, 1000 шт., Seminis",1519,null,0,"Фото","http://agroopt-market.ru/collection/krasnyy-1501426346/product/mirsini-f1-semena-tomata-determinantnogo-krasnogo-seminis-seminis",148315284]
["Семена томата детерм. Мона (TMAE 683) F1, 1000 шт., Sakata",1400,null,0,"Фото","http://agroopt-market.ru/collection/krasnyy-1501426346/product/mona-tmae-683-f1-semena-tomata-determinantnogo-krasnogo-sakata-sakata",148315285]
["Семена томата детерм. Монти F1, 1000 шт., Seminis",636,null,0,"Фото","http://agroopt-market.ru/collection/krasnyy-1501426346/product/monti-f1-semena-tomata-determinantnogo-krasnogo-seminis-seminis",148315287]
["Семена томата детерм. Намиб F1, 1000 шт., Syngenta","по запросу",null,null,"Фото","http://agroopt-market.ru/collection/aysberg/product/robinzon-semena-salata-aysberg-kochannyy-hazera-hazera",148874701]
["Семена томата детерм. Новатто F1, 1000 шт., Гавриш",1900,null,0,"Фото","http://agroopt-market.ru/collection/krasnyy-1501426346/product/semena-tomata-determinantnogo-novatto-f1-gavrish",158071086]
["Семена томата детерм. Одиль F1, 1000 шт., Seminis",605,null,0,"Фото","http://agroopt-market.ru/collection/krasnyy-1501426346/product/odil-f1-semena-tomata-determinantnogo-krasnogo-seminis-seminis",148315290]
["Семена томата детерм. Ольга F1, 1000 шт., Vilmorin",963,null,0,"Фото","http://agroopt-market.ru/collection/krasnyy-1501426346/product/olga-f1-semena-tomata-determinantnogo-krasnogo-vilmorin-vilmorin",148315291]
["Семена томата детерм. Перфектпил F1, 1000 шт., Seminis",594,null,0,"Фото","http://agroopt-market.ru/collection/krasnyy-1501426346/product/perfektpil-f1-semena-tomata-determinantnogo-krasnogo-seminis-seminis",148315297]
["Семена томата детерм. Петраросса F1, 5 тыс. шт., Clause",4607,null,0,"Фото","http://agroopt-market.ru/collection/krasnyy-1501426346/product/petrarossa-f1-semena-tomata-determinantnogo-krasnogo-clause-klos",148315298]
["Семена томата детерм. Пинк Буш F1, 1000 шт., Sakata",1900,null,0,"Фото","http://agroopt-market.ru/collection/rozovyy/product/pink-bush-f1-semena-tomata-determinantnogo-rozovogo-sakata-sakata",148315302]
["Семена томата детерм. Пинк Мэджик F1, 500 шт., Sakata",3300,null,0,"Фото","http://agroopt-market.ru/collection/rozovyy/product/pink-medzhik-f1-semena-tomata-determinantnogo-rozovogo-sakata-sakata",148315308]
["Семена томата детерм. Полбиг F1, 5 гр, Bejo",690,null,0,"Фото","http://agroopt-market.ru/collection/krasnyy-1501426346/product/polbig-f1-semena-tomata-determinantnogo-krasnogo-bejo-beyo",148315317]
["Семена томата детерм. Полонез F1, 5 гр, Bejo",860,null,0,"Фото","http://agroopt-market.ru/collection/krasnyy-1501426346/product/polonez-f1-semena-tomata-determinantnogo-krasnogo-bejo-beyo",148315318]
["Семена томата детерм. Полфаст F1, 5 гр, Bejo",630,null,0,"Фото","http://agroopt-market.ru/collection/krasnyy-1501426346/product/polfast-f1-semena-tomata-determinantnogo-krasnogo-bejo-beyo",148315320]
["Семена томата детерм. Ретана F1, 1000 шт., Vilmorin",820,null,0,"Фото","http://agroopt-market.ru/collection/krasnyy-1501426346/product/retana-f1-semena-tomata-determinantnogo-krasnogo-vilmorin-vilmorin",148315328]
["Семена томата детерм. Ричи F1, 5 гр, Bejo",790,null,0,"Фото","http://agroopt-market.ru/collection/krasnyy-1501426346/product/richi-f1-semena-tomata-determinantnogo-krasnogo-bejo-beyo",148315329]
["Семена томата детерм. Розализа F1, 1000 шт., Seminis",1582,null,0,"Фото","http://agroopt-market.ru/collection/rozovyy/product/rozaliza-f1-semena-tomata-determinantnogo-rozovogo-seminis-seminis",148315330]
["Семена томата детерм. Рэпид F1, 1000 шт., Seminis",673,null,0,"Фото","http://agroopt-market.ru/collection/krasnyy-1501426346/product/repid-f1-semena-tomata-determinantnogo-krasnogo-seminis-seminis",148315334]
["Семена томата детерм. Рюрик F1, 1000 шт., Гавриш",650,null,0,"Фото","http://agroopt-market.ru/collection/krasnyy-1501426346/product/semena-tomata-determinantnogo-ryurik-f1-gavrish",158071094]
["Семена томата детерм. Садик F1, 1000 шт., Seminis",1339,null,0,"Фото","http://agroopt-market.ru/collection/krasnyy-1501426346/product/sadik-f1-semena-tomata-determinantnogo-krasnogo-seminis-seminis",148315336]
["Семена томата детерм. Санрайз F1, 1000 шт., Seminis",1038,null,0,"Фото","http://agroopt-market.ru/collection/krasnyy-1501426346/product/sanrayz-f1-semena-tomata-determinantnogo-krasnogo-seminis-seminis",148315338]
["Семена томата детерм. Султан F1, 5 гр, Bejo",630,null,0,"Фото","http://agroopt-market.ru/collection/krasnyy-1501426346/product/sultan-f1-semena-tomata-determinantnogo-krasnogo-bejo-beyo",148315351]
["Семена томата детерм. Супер Ред F1, 1000 шт., Seminis",1447,null,0,"Фото","http://agroopt-market.ru/collection/krasnyy-1501426346/product/super-red-f1-semena-tomata-determinantnogo-krasnogo-seminis-seminis",148315352]
["Семена томата детерм. Супер Сет F1, 1000 шт., Sakata",1300,null,0,"Фото","http://agroopt-market.ru/collection/krasnyy-1501426346/product/super-set-f1-semena-tomata-determinantnogo-krasnogo-sakata-sakata",148315353]
["Семена томата детерм. Сурия F1, 1000 шт., Vilmorin",737,null,0,"Фото","http://agroopt-market.ru/collection/krasnyy-1501426346/product/suriya-f1-semena-tomata-determinantnogo-krasnogo-vilmorin-vilmorin",148315354]
["Семена томата детерм. Таня F1, 1000 шт., Seminis",904,null,0,"Фото","http://agroopt-market.ru/collection/krasnyy-1501426346/product/tanya-f1-semena-tomata-determinantnogo-krasnogo-seminis-seminis",148315357]
["Семена томата детерм. Таунсвилль F1, 5 гр, Bejo",700,null,0,"Фото","http://agroopt-market.ru/collection/krasnyy-1501426346/product/taunsvill-f1-semena-tomata-determinantnogo-krasnogo-bejo-beyo",148315358]
["Семена томата детерм. Терра кота F1, 1000 шт., Syngenta",716,null,0,"Фото","http://agroopt-market.ru/collection/krasnyy-1501426346/product/terra-kota-f1-semena-tomata-determinantnogo-krasnogo-syngenta-singenta",148315359]
["Семена томата детерм. ТМ 10857 F1, 1000 шт., Sakata",1600,null,0,"-",{"$error":"#N/A"},"ПРН"]
["Семена томата детерм. Тмаг 666 F1, 1000 шт., Sakata",1400,null,0,"Фото","http://agroopt-market.ru/collection/krasnyy-1501426346/product/tmag-666-f1-semena-tomata-determinantnogo-krasnogo-sakata-sakata",148315365]
["Семена томата детерм. Томск F1, 1000 шт., Bejo",1430,null,0,"Фото","http://agroopt-market.ru/collection/krasnyy-1501426346/product/tomsk-f1-semena-tomata-determinantnogo-krasnogo-bejo-beyo",148315372]
["Семена томата детерм. Тонопа F1, 1000 шт., Bejo",1400,null,0,"Фото","http://agroopt-market.ru/collection/krasnyy-1501426346/product/tonopa-f1-semena-tomata-determinantnogo-krasnogo-bejo-beyo",148315373]
["Семена томата детерм. Топкапи F1, 1000 шт., Vilmorin",711,null,0,"Фото","http://agroopt-market.ru/collection/krasnyy-1501426346/product/topkapi-f1-semena-tomata-determinantnogo-krasnogo-vilmorin-vilmorin",148315374]
["Семена томата детерм. Топспорт F1, 5 гр, Bejo",920,null,0,"Фото","http://agroopt-market.ru/collection/krasnyy-1501426346/product/topsport-f1-semena-tomata-determinantnogo-krasnogo-bejo-beyo",148315375]
["Семена томата детерм. Торбей F1, 1000 шт., Bejo",1710,null,0,"Фото","http://agroopt-market.ru/collection/rozovyy/product/torbey-f1-semena-tomata-determinantnogo-rozovogo-bejo-beyo",148315376]
["Семена томата детерм. Торквей F1, 5 гр, Bejo",770,null,0,"Фото","http://agroopt-market.ru/collection/krasnyy-1501426346/product/torkvey-f1-semena-tomata-determinantnogo-krasnogo-bejo-beyo",148315378]
["Семена томата детерм. Турмалин, 100 гр, Гавриш",1600,null,{"$f":"B1851*C1851","v":0},"Фото","http://agroopt-market.ru/collection/rozovyy/product/semena-tomata-determinantnogo-turmalin-gavrish",158071101]
["Семена томата детерм. Усмань F1, 1000 шт., Enza Zaden",1090,null,0,{"$f":"HYPERLINK(F1852,\"Фото\")","v":"Фото"},"http://agroopt-market.ru/collection/krasnyy-1501426346/product/usman-f1-semena-tomata-determinantnogo-krasnogo-enza-zaden-enza-zaden",148315384]
["Семена томата детерм. Ферст F1, 1000 шт., Seminis",709,null,0,"Фото","http://agroopt-market.ru/collection/krasnyy-1501426346/product/ferst-f1-semena-tomata-determinantnogo-krasnogo-seminis-seminis",148315390]
["Семена томата детерм. Флетчер F1, 1000 шт., Bejo",1630,null,0,"Фото","http://agroopt-market.ru/collection/krasnyy-1501426346/product/fletcher-f1-semena-tomata-determinantnogo-krasnogo-bejo-beyo",148315391]
["Семена томата детерм. Флорида 47 Р F1, 1000 шт., Seminis",1037,null,0,"Фото","http://agroopt-market.ru/collection/krasnyy-1501426346/product/florida-47-r-f1-semena-tomata-determinantnogo-krasnogo-seminis-seminis",148315392]
["Семена томата детерм. Фриско F1, 1000 шт., Clause",874,null,0,"Фото","http://agroopt-market.ru/collection/krasnyy-1501426346/product/frisko-f1-semena-tomata-determinantnogo-krasnogo-clause-klos",148315394]
["Семена томата детерм. Хайпил 108 F1, 1000 шт., Seminis",605,null,0,"Фото","http://agroopt-market.ru/collection/krasnyy-1501426346/product/haypil-108-f1-semena-tomata-determinantnogo-krasnogo-seminis-seminis",148315395]
["Семена томата детерм. Чери Блосэм F1, 1000 шт., Sakata",1900,null,0,"Фото","http://agroopt-market.ru/collection/krasnyy-1501426346/product/cheri-blosem-f1-semena-tomata-determinantnogo-krasnogo-sakata-sakata",148315403]
["Семена томата детерм. Чери Блосэм F1, 500 шт., Sakata",950,null,0,"Фото","http://agroopt-market.ru/collection/krasnyy-1501426346/product/cheri-blosem-f1-semena-tomata-determinantnogo-krasnogo-sakata-sakata",148315402]
["Семена томата детерм. Шива F1, 1000 шт., Syngenta","по запросу",null,null,"Фото","http://agroopt-market.ru/collection/aysberg/product/soleyshn-semena-salata-aysberg-hazera-hazera",148874689]
["Семена томата детерм. Экватор F1, 1000 шт., Seminis",1346,null,0,"Фото","http://agroopt-market.ru/collection/krasnyy-1501426346/product/ekvator-f1-semena-tomata-determinantnogo-krasnogo-seminis-seminis",148315409]
["Семена томата детерм. Элегро F1, 1000 шт., Seminis",1392,null,0,"Фото","http://agroopt-market.ru/collection/krasnyy-1501426346/product/elegro-f1-semena-tomata-determinantnogo-krasnogo-seminis-seminis",148315410]
["Семена томата детерм. Яки F1, 1000 шт., Seminis",763,null,0,"Фото","http://agroopt-market.ru/collection/krasnyy-1501426346/product/yaki-f1-semena-tomata-determinantnogo-krasnogo-seminis-seminis",148315419]
["Семена томата Ивет F1, 500 шт, Syngenta",3346,null,0,"Фото","-","ПРН"]
["Семена томата индет. 3725 F1, 500 шт., Seminis",3780,null,0,"Фото","http://agroopt-market.ru/collection/krasnyy-1501426353/product/sv-3725-tch-f1-semena-tomata-indeterminantnogo-krasnogo-seminis-seminis",148315341]
["Семена томата индет. 72-629 F1, 100 шт., Rijk Zwaan (ЗГ)",3400,null,0,"Фото","http://agroopt-market.ru/collection/krasnyy-1501426353/product/72-629-f1-semena-tomata-indeterminantnogo-krasnogo-rijk-zwaan-rayk-tsvaan",148315145]
["Семена томата индет. 72-629 F1, 1000 шт., Rijk Zwaan (ЗГ)",34000,null,0,"Фото","http://agroopt-market.ru/collection/krasnyy-1501426353/product/72-629-f1-semena-tomata-indeterminantnogo-krasnogo-rijk-zwaan-rayk-tsvaan",148315147]
["Семена томата индет. Ti-169 F1, 250 шт., Takii",2000,null,0,"Фото","http://agroopt-market.ru/collection/zheltyy-3/product/ti-169-f1-semena-tomata-indeterminantnogo-zheltogo-takii-taki",148315149]
["Семена томата индет. V 328 F1, 250 шт., Vilmorin",2329,null,0,"Фото","http://agroopt-market.ru/collection/krasnyy-1501426353/product/v-328-f1-semena-tomata-indeterminantnogo-krasnogo-vilmorin-vilmorin",148315150]
["Семена томата индет. Агилис F1, 500 шт., Enza Zaden",3290,null,0,"Фото","http://agroopt-market.ru/collection/krasnyy-1501426353/product/agilis-f1-semena-tomata-indeterminantnogo-krasnogo-enza-zaden-enza-zaden",148315152]
["Семена томата индет. Адмиро F1, 1000 шт., De Ruiter Seeds",22286,null,0,"Фото","http://agroopt-market.ru/collection/krasnyy-1501426353/product/admiro-f1-semena-tomata-indeterminantnogo-krasnogo-de-ruiter-seeds-de-royter-sids",148315153]
["Семена томата индет. Адмиро F1, 500 шт., De Ruiter Seeds",11443,null,0,"Фото","http://agroopt-market.ru/collection/krasnyy-1501426353/product/admiro-f1-semena-tomata-indeterminantnogo-krasnogo-de-ruiter-seeds-de-royter-sids",152249710]
["Семена томата индет. Азов F1, 1000 шт., Гавриш",5300,null,0,"Фото","http://agroopt-market.ru/collection/krasnyy-1501426353/product/semena-tomata-indeterminantnogo-azov-f1-gavrish",158071143]
["Семена томата индет. Аламина F1, 1000 шт., Rijk Zwaan",5140,null,0,"Фото","http://agroopt-market.ru/collection/krasnyy-1501426353/product/alamina-f1-semena-tomata-indeterminantnogo-krasnogo-rijk-zwaan-rayk-tsvaan",148315157]
["Семена томата индет. Алези F1, 250 шт., Vilmorin",1736,null,0,"Фото","http://agroopt-market.ru/collection/rozovyy-2/product/alezi-f1-semena-tomata-indeterminantnogo-rozovogo-vilmorin-vilmorin",148315158]
["Семена томата индет. Алмеида F1, 1000 шт., Vilmorin",6840,null,0,"Фото","http://agroopt-market.ru/collection/krasnyy-1501426353/product/almeida-f1-semena-tomata-indeterminantnogo-krasnogo-vilmorin-vilmorin",148315159]
["Семена томата индет. Альгамбра F1, 1000 шт., Гавриш",5300,null,0,"Фото","http://agroopt-market.ru/collection/krasnyy-1501426353/product/semena-tomata-indeterminantnogo-algambra-f1-gavrish",158071131]
["Семена томата индет. Алькасар F1, 1000 шт., Гавриш",8950,null,0,"Фото","http://agroopt-market.ru/collection/krasnyy-1501426353/product/semena-tomata-indeterminantnogo-alkasar-f1-gavrish",158071127]
["Семена томата индет. Америго F1, 500 шт., Sakata",2750,null,0,"Фото","http://agroopt-market.ru/collection/krasnyy-1501426353/product/amerigo-f1-semena-tomata-indeterminantnogo-krasnogo-sakata-sakata",148315162]
["Семена томата индет. Аморе F1, 1000 шт., Гавриш",19000,null,0,"Фото","http://agroopt-market.ru/collection/krasnyy-1501426353/product/semena-tomata-indeterminantnogo-amore-f1-gavrish",158071162]
["Семена томата индет. Аморозо F1, 100 шт., Rijk Zwaan (ЗГ)",9520,null,0,"Фото","http://agroopt-market.ru/collection/krasnyy-1501426353/product/amorozo-f1-semena-tomata-indeterminantnogo-krasnogo-rijk-zwaan-rayk-tsvaan",148315164]
["Семена томата индет. Аморозо F1, 1000 шт., Rijk Zwaan (ЗГ)",95220,null,0,"Фото","http://agroopt-market.ru/collection/krasnyy-1501426353/product/amorozo-f1-semena-tomata-indeterminantnogo-krasnogo-rijk-zwaan-rayk-tsvaan",148315165]
["Семена томата индет. Арлетта F1, 500 шт., Seminis",2138,null,0,"Фото","http://agroopt-market.ru/collection/krasnyy-1501426353/product/arletta-f1-semena-tomata-indeterminantnogo-krasnogo-seminis-seminis",148315166]
["Семена томата индет. Аттия F1, 1000 шт., Rijk Zwaan",5140,null,0,"Фото","http://agroopt-market.ru/collection/krasnyy-1501426353/product/attiya-f1-semena-tomata-indeterminantnogo-krasnogo-rijk-zwaan-rayk-tsvaan",148315169]
["Семена томата индет. Афен F1, 250 шт., Tezier",1746,null,0,"Фото","http://agroopt-market.ru/collection/rozovyy-2/product/afen-f1-semena-tomata-indeterminantnogo-rozovogo-tezier-tizer",148315170]
["Семена томата индет. Барибине F1, 500 шт., Syngenta","по запросу",null,null,"Фото","http://agroopt-market.ru/collection/aysberg/product/chellendzh-semena-salata-aysberg-kochannyy-syngenta-singenta",148874736]
["Семена томата индет. Бейсужок F1, 1000 шт., Гавриш",5700,null,0,"Фото","http://agroopt-market.ru/collection/krasnyy-1501426353/product/semena-tomata-indeterminantnogo-beysuzhok-f1-gavrish",158071135]
["Семена томата индет. Белле F1, 500 шт., Enza Zaden",2300,null,0,"Фото","http://agroopt-market.ru/collection/krasnyy-1501426353/product/belle-f1-semena-tomata-indeterminantnogo-krasnogo-enza-zaden-enza-zaden",148315175]
["Семена томата индет. Белфаст F1, 500 шт., Enza Zaden",2520,null,0,"Фото","http://agroopt-market.ru/collection/krasnyy-1501426353/product/belfast-f1-semena-tomata-indeterminantnogo-krasnogo-enza-zaden-enza-zaden",148315176]
["Семена томата индет. Белфорт F1, 500 шт., Enza Zaden",2300,null,0,"Фото","http://agroopt-market.ru/collection/krasnyy-1501426353/product/belfort-f1-semena-tomata-indeterminantnogo-krasnogo-enza-zaden-enza-zaden",148315177]
["Семена томата индет. Бельканто F1, 1000 шт., Гавриш",6500,null,0,"Фото","http://agroopt-market.ru/collection/krasnyy-1501426353/product/semena-tomata-indeterminantnogo-belkanto-f1-gavrish",158071134]
["Семена томата индет. Берберана F1, 500 шт., Enza Zaden",3080,null,0,"Фото","http://agroopt-market.ru/collection/krasnyy-1501426353/product/berberana-f1-semena-tomata-indeterminantnogo-krasnogo-enza-zaden-enza-zaden",148315179]
["Семена томата индет. Биг Биф F1, 500 шт., Seminis",2182,null,0,"Фото","http://agroopt-market.ru/collection/krasnyy-1501426353/product/big-bif-f1-semena-tomata-indeterminantnogo-krasnogo-seminis-seminis",148315181]
["Семена томата индет. Биоранж F1, 1000 шт., De Ruiter Seeds",56962,null,0,"Фото","http://agroopt-market.ru/collection/krasnyy-1501426353/product/bioranzh-f1-semena-tomata-indeterminantnogo-krasnogo-de-ruiter-seeds-de-royter-sids",148315182]
["Семена томата индет. Бонапарт F1, 250 шт., Vilmorin",2177,null,0,"Фото","http://agroopt-market.ru/collection/rozovyy-2/product/bonapart-f1-semena-tomata-indeterminantnogo-rozovogo-vilmorin-vilmorin",148315188]
["Семена томата индет. Бостина F1, 500 шт., Syngenta",3361,null,0,"Фото","http://agroopt-market.ru/collection/krasnyy-1501426353/product/bostina-f1-semena-tomata-indeterminantnogo-krasnogo-syngenta-singenta",148315189]
["Семена томата индет. Брайтина F1, 500 шт., Syngenta","по запросу",null,null,"Фото","http://agroopt-market.ru/collection/selderey/product/semena-seldereya-chereshkovogo-prints-nunhems-nyunems",158071070]
["Семена томата индет. Буран F1, 500 шт., Enza Zaden",3080,null,0,"Фото","http://agroopt-market.ru/collection/krasnyy-1501426353/product/buran-f1-semena-tomata-indeterminantnogo-krasnogo-enza-zaden-enza-zaden",148315191]
["Семена томата индет. Виагра, 1000 шт., Гавриш",6100,null,0,"Фото","http://agroopt-market.ru/collection/krasnyy-1501426353/product/semena-tomata-indeterminantnogo-viagra-gavrish",158071172]
["Семена томата индет. Гайана F1, 100 шт., Rijk Zwaan (ЗГ)",2360,null,0,"Фото","http://agroopt-market.ru/collection/krasnyy-1501426353/product/gayana-f1-semena-tomata-indeterminantnogo-krasnogo-rijk-zwaan-rayk-tsvaan",148315196]
["Семена томата индет. Гайана F1, 1000 шт., Rijk Zwaan (ЗГ)",23570,null,0,"Фото","http://agroopt-market.ru/collection/krasnyy-1501426353/product/gayana-f1-semena-tomata-indeterminantnogo-krasnogo-rijk-zwaan-rayk-tsvaan",148315197]
["Семена томата индет. Гранадеро F1, 250 шт., Enza Zaden",1260,null,0,"Фото","http://agroopt-market.ru/collection/krasnyy-1501426353/product/granadero-f1-semena-tomata-indeterminantnogo-krasnogo-enza-zaden-enza-zaden",148315202]
["Семена томата индет. Гродена F1, 500 шт., Syngenta","по запросу",null,null,"Фото","http://agroopt-market.ru/collection/krasnyy-1501426346/product/namib-f1-semena-tomata-determinantnogo-krasnogo-syngenta-singenta",148315289]
["Семена томата индет. Гуальдино F1, 250 шт., Enza Zaden",1650,null,0,"Фото","http://agroopt-market.ru/collection/zheltyy-3/product/gualdino-f1-semena-tomata-indeterminantnogo-zheltogo-enza-zaden-enza-zaden",148315205]
["Семена томата индет. Дашер F1, 1000 шт., De Ruiter Seeds",24060,null,0,"Фото","http://agroopt-market.ru/collection/krasnyy-1501426353/product/dasher-f1-semena-tomata-indeterminantnogo-krasnogo-de-ruiter-seeds-de-royter-sids",148315207]
["Семена томата индет. Джалила F1, 1000 шт., Sakata",6000,null,0,"Фото","http://agroopt-market.ru/collection/krasnyy-1501426353/product/dzhalila-f1-semena-tomata-indeterminantnogo-krasnogo-sakata-sakata",148315210]
["Семена томата индет. Джалила F1, 500 шт., Sakata",3000,null,0,"Фото","http://agroopt-market.ru/collection/krasnyy-1501426353/product/dzhalila-f1-semena-tomata-indeterminantnogo-krasnogo-sakata-sakata",148315209]
["Семена томата индет. Джиоличе F1, 500 шт., Vilmorin",7660,null,0,"Фото","http://agroopt-market.ru/collection/krasnyy-1501426353/product/dzhioliche-f1-semena-tomata-indeterminantnogo-krasnogo-vilmorin-vilmorin",148315212]
["Семена томата индет. Димероза F1, 500 шт., Enza Zaden",2910,null,0,"Фото","http://agroopt-market.ru/collection/rozovyy-2/product/dimeroza-f1-semena-tomata-indeterminantnogo-rozovogo-enza-zaden-enza-zaden",148315215]
["Семена томата индет. Дирк F1, 500 шт., Enza Zaden",4470,null,0,"Фото","http://agroopt-market.ru/collection/krasnyy-1501426353/product/dirk-f1-semena-tomata-indeterminantnogo-krasnogo-enza-zaden-enza-zaden",148315216]
["Семена томата индет. Добрунь F1, 1000 шт., Гавриш",6900,null,0,"Фото","http://agroopt-market.ru/collection/krasnyy-1501426353/product/semena-tomata-indeterminantnogo-dobrun-f1-gavrish",158071132]
["Семена томата индет. Донателло F1, 1000 шт., Vilmorin",7052,null,0,"Фото","http://agroopt-market.ru/collection/rozovyy-2/product/donatello-f1-semena-tomata-indeterminantnogo-rozovogo-vilmorin-vilmorin",148315218]
["Семена томата индет. Донателло F1, 250 шт., Vilmorin",1763,null,0,"Фото","http://agroopt-market.ru/collection/rozovyy-2/product/donatello-f1-semena-tomata-indeterminantnogo-rozovogo-vilmorin-vilmorin",148315217]
["Семена томата индет. ДР 9544 ТЧ F1, 1000 шт., De Ruiter Seeds",35204,null,0,"Фото","http://agroopt-market.ru/collection/krasnyy-1501426353/product/dr-9544-tch-f1-semena-tomata-indeterminantnogo-krasnogo-de-ruiter-seeds-de-royter-sids",148315219]
["Семена томата индет. ДРК 936 F1, 1000 шт., De Ruiter Seeds",43256,null,{"$f":"B1915*C1915","v":0},"Фото","http://agroopt-market.ru/collection/rozovyy-2/product/drk-936-f1-semena-tomata-indeterminantnogo-rozovogo-de-ruiter-seeds-de-royter-sids",148315220]
["Семена томата индет. Евпатор F1, 1000 шт., Гавриш",5300,null,0,{"$f":"HYPERLINK(F1916,\"Фото\")","v":"Фото"},"http://agroopt-market.ru/collection/krasnyy-1501426353/product/semena-tomata-indeterminantnogo-evpator-f1-gavrish",158071141]
["Семена томата индет. Жадело F1, 1000 шт., Vilmorin",4156,null,0,"Фото","http://agroopt-market.ru/collection/krasnyy-1501426353/product/zhadelo-f1-semena-tomata-indeterminantnogo-krasnogo-vilmorin-vilmorin",148315223]
["Семена томата индет. Женарос F1, 500 шт., De Ruiter Seeds",4523,null,0,"Фото","http://agroopt-market.ru/collection/krasnyy-1501426353/product/zhenaros-f1-semena-tomata-indeterminantnogo-krasnogo-de-ruiter-seeds-de-royter-sids",148315224]
["Семена томата индет. Женарос F1, 500 шт., Seminis",4523,null,0,"Фото","http://agroopt-market.ru/collection/krasnyy-1501426353/product/zhenaros-f1-semena-tomata-indeterminantnogo-krasnogo-de-ruiter-seeds-de-royter-sids",148315224]
["Семена томата индет. Жеронимо F1, 1000 шт., De Ruiter Seeds",21576,null,0,"Фото","http://agroopt-market.ru/collection/krasnyy-1501426353/product/zheronimo-f1-semena-tomata-indeterminantnogo-krasnogo-de-ruiter-seeds-de-royter-sids",148315226]
["Семена томата индет. Задурелла F1, 250 шт., Vilmorin",1674,null,0,"Фото","http://agroopt-market.ru/collection/krasnyy-1501426353/product/zadurella-f1-semena-tomata-indeterminantnogo-krasnogo-vilmorin-vilmorin",148315227]
["Семена томата индет. Ивановец F1, 1000 шт., Гавриш",5700,null,0,"Фото","http://agroopt-market.ru/collection/krasnyy-1501426353/product/semena-tomata-indeterminantnogo-ivanovets-f1-gavrish",158071140]
["Семена томата индет. Игидо F1, 500 шт., Seminis",3643,null,0,"Фото","http://agroopt-market.ru/collection/krasnyy-1501426353/product/igido-f1-semena-tomata-indeterminantnogo-krasnogo-seminis-seminis",148315229]
["Семена томата индет. Идолини F1, 100 шт., Rijk Zwaan (ЗГ)","под заказ",null,null,"Фото","http://agroopt-market.ru/collection/krasnyy-1501426353/product/idolini-f1-semena-tomata-indeterminantnogo-krasnogo-rijk-zwaan-rayk-tsvaan",148315230]
["Семена томата индет. Идолини F1, 1000 шт., Rijk Zwaan (ЗГ)","под заказ",null,null,"Фото","http://agroopt-market.ru/collection/krasnyy-1501426353/product/idolini-f1-semena-tomata-indeterminantnogo-krasnogo-rijk-zwaan-rayk-tsvaan",148315231]
["Семена томата индет. Изабель F1, 1000 шт., Гавриш",4100,null,0,"Фото","http://agroopt-market.ru/collection/krasnyy-1501426353/product/semena-tomata-indeterminantnogo-izabel-f1-gavrish",158071119]
["Семена томата индет. Имитатор F1, 1000 шт., Гавриш",20500,null,0,"Фото","http://agroopt-market.ru/collection/krasnyy-1501426353/product/semena-tomata-indeterminantnogo-imitator-f1-gavrish",158071164]
["Семена томата индет. Канна 218 F1, 500 шт., Seminis",3855,null,0,"Фото","http://agroopt-market.ru/collection/rozovyy-2/product/kanna-218-f1-semena-tomata-indeterminantnogo-rozovogo-seminis-seminis",148315237]
["Семена томата индет. Каприз F1, 1000 шт., De Ruiter Seeds",79102,null,0,"Фото","http://agroopt-market.ru/collection/krasnyy-1501426353/product/kapriz-f1-semena-tomata-indeterminantnogo-krasnogo-de-ruiter-seeds-de-royter-sids",148315240]
["Семена томата индет. Киерано F1, 1000 шт., De Ruiter Seeds",52164,null,0,"Фото","http://agroopt-market.ru/collection/krasnyy-1501426353/product/kierano-f1-semena-tomata-indeterminantnogo-krasnogo-de-ruiter-seeds-de-royter-sids",148315243]
["Семена томата индет. Клаверо F1, 500 шт., Syngenta","по запросу",null,null,"Фото","http://agroopt-market.ru/collection/krasnyy-1501426346/product/shiva-f1-semena-tomata-determinantnogo-krasnogo-syngenta-singenta",148315408]
["Семена томата индет. Колибри F1, 250 шт., Clause",1845,null,0,"Фото","http://agroopt-market.ru/collection/krasnyy-1501426353/product/kolibri-f1-semena-tomata-indeterminantnogo-krasnogo-clause-klos",148315245]
["Семена томата индет. Комит F1, 1000 шт., De Ruiter Seeds",24842,null,0,"Фото","http://agroopt-market.ru/collection/krasnyy-1501426353/product/komit-f1-semena-tomata-indeterminantnogo-krasnogo-de-ruiter-seeds-de-royter-sids",148315246]
["Семена томата индет. Конфетто F1, 100 шт., Rijk Zwaan (ЗГ)","под заказ",null,null,"Фото","http://agroopt-market.ru/collection/krasnyy-1501426353/product/konfetto-f1-semena-tomata-indeterminantnogo-krasnogo-rijk-zwaan-rayk-tsvaan",148315248]
["Семена томата индет. Конфетто F1, 1000 шт., Rijk Zwaan (ЗГ)","под заказ",null,null,"Фото","http://agroopt-market.ru/collection/krasnyy-1501426353/product/konfetto-f1-semena-tomata-indeterminantnogo-krasnogo-rijk-zwaan-rayk-tsvaan",148315249]
["Семена томата индет. Кончита F1, 1000 шт., De Ruiter Seeds",36176,null,0,"Фото","http://agroopt-market.ru/collection/krasnyy-1501426353/product/konchita-f1-semena-tomata-indeterminantnogo-krasnogo-de-ruiter-seeds-de-royter-sids",148315250]
["Семена томата индет. Корлеоне F1, 250 шт., Enza Zaden",1650,null,0,"Фото","http://agroopt-market.ru/collection/krasnyy-1501426353/product/semena-tomata-indeterminantnogo-korleone-f1-enza-zaden-enza-zaden",158070873]
["Семена томата индет. Корнабель F1, 250 шт., Vilmorin",2329,null,0,"Фото","http://agroopt-market.ru/collection/krasnyy-1501426353/product/kornabel-f1-semena-tomata-indeterminantnogo-krasnogo-vilmorin-vilmorin",148315252]
["Семена томата индет. Кэнди F1, 1000 шт., Гавриш",20500,null,0,"Фото","http://agroopt-market.ru/collection/krasnyy-1501426353/product/semena-tomata-indeterminantnogo-kendi-f1-gavrish",158071166]
["Семена томата индет. Лагенда F1, 500 шт., Syngenta","по запросу",null,null,"Фото","http://agroopt-market.ru/collection/krasnyy-1501426353/product/baribine-f1-semena-tomata-indeterminantnogo-krasnogo-syngenta-singenta",148315173]
["Семена томата индет. Ладога F1, 100 шт., Rijk Zwaan (ЗГ)",2360,null,0,"Фото","http://agroopt-market.ru/collection/krasnyy-1501426353/product/ladoga-f1-semena-tomata-indeterminantnogo-krasnogo-rijk-zwaan-rayk-tsvaan",148315254]
["Семена томата индет. Ладога F1, 1000 шт., Rijk Zwaan (ЗГ)",23570,null,0,"Фото","http://agroopt-market.ru/collection/krasnyy-1501426353/product/ladoga-f1-semena-tomata-indeterminantnogo-krasnogo-rijk-zwaan-rayk-tsvaan",148315255]
["Семена томата индет. Лезгинка F1, 1000 шт., Гавриш",7300,null,0,"Фото","http://agroopt-market.ru/collection/krasnyy-1501426353/product/semena-tomata-indeterminantnogo-lezginka-f1-gavrish",158071170]
["Семена томата индет. Лилос F1, 1000 шт., Rijk Zwaan",4410,null,0,"Фото","http://agroopt-market.ru/collection/krasnyy-1501426353/product/lilos-f1-semena-tomata-indeterminantnogo-krasnogo-rijk-zwaan-rayk-tsvaan",148315258]
["Семена томата индет. Майдан F1, 1000 шт., Гавриш",5300,null,0,"Фото","http://agroopt-market.ru/collection/krasnyy-1501426353/product/semena-tomata-indeterminantnogo-maydan-f1-gavrish",158071142]
["Семена томата индет. Макарена F1, 500 шт., Syngenta",13021,null,0,"Фото","http://agroopt-market.ru/collection/krasnyy-1501426353/product/makarena-f1-semena-tomata-indeterminantnogo-krasnogo-syngenta-singenta",148315264]
["Семена томата индет. Мамба F1, 1000 шт., Гавриш",7000,null,0,"Фото","http://agroopt-market.ru/collection/rozovyy-2/product/semena-tomata-indeterminantnogo-mamba-f1-gavrish",158071153]
["Семена томата индет. Манагуа F1, 100 шт., Rijk Zwaan (ЗГ)",2360,null,0,"Фото","http://agroopt-market.ru/collection/krasnyy-1501426353/product/managua-f1-semena-tomata-indeterminantnogo-krasnogo-rijk-zwaan-rayk-tsvaan",148315267]
["Семена томата индет. Манагуа F1, 1000 шт., Rijk Zwaan (ЗГ)",23570,null,0,"Фото","http://agroopt-market.ru/collection/krasnyy-1501426353/product/managua-f1-semena-tomata-indeterminantnogo-krasnogo-rijk-zwaan-rayk-tsvaan",148315268]
["Семена томата индет. Марисса F1, 500 шт., Seminis",2480,null,0,"Фото","http://agroopt-market.ru/collection/krasnyy-1501426353/product/marissa-f1-semena-tomata-indeterminantnogo-krasnogo-seminis-seminis",148315270]
["Семена томата индет. Мартэз F1, 500 шт., De Ruiter Seeds","по запросу",null,null,"-",{"$error":"#N/A"},148315271]
["Семена томата индет. Матиас F1, 500 шт., De Ruiter Seeds","по запросу",null,null,"-",{"$error":"#N/A"},148315273]
["Семена томата индет. Матиас F1, 500 шт., Seminis",3670,null,0,"-",{"$error":"#N/A"},148315273]
["Семена томата индет. Махитос F1, 1000 шт., Rijk Zwaan",5140,null,0,"Фото","http://agroopt-market.ru/collection/krasnyy-1501426353/product/mahitos-f1-semena-tomata-indeterminantnogo-krasnogo-rijk-zwaan-rayk-tsvaan",148315277]
["Семена томата индет. Мелодия F1, 500 шт., Seminis",3395,null,0,"Фото","http://agroopt-market.ru/collection/krasnyy-1501426353/product/melodiya-f1-semena-tomata-indeterminantnogo-krasnogo-seminis-seminis",148315279]
["Семена томата индет. Мерлис F1, 1000 шт., De Ruiter Seeds",39412,null,0,"Фото","http://agroopt-market.ru/collection/krasnyy-1501426353/product/merlis-f1-semena-tomata-indeterminantnogo-krasnogo-de-ruiter-seeds-de-royter-sids",148315281]
["Семена томата индет. Министар F1, 500 шт., Sakata",18900,null,0,"Фото","http://agroopt-market.ru/collection/krasnyy-1501426353/product/ministar-f1-semena-tomata-indeterminantnogo-krasnogo-sakata-sakata",148315283]
["Семена томата индет. Митридат F1, 1000 шт., Гавриш",9350,null,0,"Фото","http://agroopt-market.ru/collection/krasnyy-1501426353/product/semena-tomata-indeterminantnogo-mitridat-f1-gavrish",158071122]
["Семена томата индет. Мондиал F1, 500 шт., Enza Zaden",2790,null,0,"Фото","http://agroopt-market.ru/collection/krasnyy-1501426353/product/mondial-f1-semena-tomata-indeterminantnogo-krasnogo-enza-zaden-enza-zaden",148315286]
["Семена томата индет. Мопс F1, 1000 шт., Гавриш",26500,null,0,"Фото","http://agroopt-market.ru/collection/krasnyy-1501426353/product/semena-tomata-indeterminantnogo-mops-f1-gavrish",158071161]
["Семена томата индет. Наоми F1, 1000 шт., Гавриш",9350,null,0,"Фото","http://agroopt-market.ru/collection/krasnyy-1501426353/product/semena-tomata-indeterminantnogo-naomi-f1-gavrish",158071171]
["Семена томата индет. Органза F1, 1000 шт., De Ruiter Seeds",44056,null,0,"Фото","http://agroopt-market.ru/collection/zheltyy-3/product/organza-f1-semena-tomata-indeterminantnogo-zheltogo-de-ruiter-seeds-de-royter-sids",148315292]
["Семена томата индет. Ордынка F1, 1000 шт., Гавриш",20300,null,0,"Фото","http://agroopt-market.ru/collection/krasnyy-1501426353/product/semena-tomata-indeterminantnogo-ordynka-f1-gavrish",158071107]
["Семена томата индет. Оригами F1, 1000 шт., Гавриш",20500,null,0,"Фото","http://agroopt-market.ru/collection/krasnyy-1501426353/product/semena-tomata-indeterminantnogo-origami-f1-gavrish",158071165]
["Семена томата индет. Остоженка F1, 1000 шт., Гавриш",8950,null,0,"Фото","http://agroopt-market.ru/collection/krasnyy-1501426353/product/semena-tomata-indeterminantnogo-ostozhenka-f1-gavrish",158071112]
["Семена томата индет. Пандароза F1, 500 шт., Seminis",3917,null,0,"Фото","http://agroopt-market.ru/collection/rozovyy-2/product/pandaroza-f1-semena-tomata-indeterminantnogo-rozovogo-seminis-seminis",148315293]
["Семена томата индет. Панекра F1, 500 шт., Syngenta",4043,null,0,"Фото","http://agroopt-market.ru/collection/krasnyy-1501426353/product/panekra-f1-semena-tomata-indeterminantnogo-krasnogo-syngenta-singenta",148315294]
["Семена томата индет. Парезо F1, 100 шт., Rijk Zwaan (ЗГ)",3920,null,0,"Фото","http://agroopt-market.ru/collection/krasnyy-1501426353/product/parezo-f1-semena-tomata-indeterminantnogo-krasnogo-rijk-zwaan-rayk-tsvaan",148315295]
["Семена томата индет. Парезо F1, 1000 шт., Rijk Zwaan (ЗГ)",39150,null,0,"Фото","http://agroopt-market.ru/collection/krasnyy-1501426353/product/parezo-f1-semena-tomata-indeterminantnogo-krasnogo-rijk-zwaan-rayk-tsvaan",148315296]
["Семена томата индет. Пейнтбол F1, 1000 шт., Гавриш",20500,null,0,"Фото","http://agroopt-market.ru/collection/krasnyy-1501426353/product/semena-tomata-indeterminantnogo-peyntbol-f1-gavrish",158071168]
["Семена томата индет. Пиколино F1, 1000 шт., De Ruiter Seeds",34838,null,0,"Фото","http://agroopt-market.ru/collection/krasnyy-1501426353/product/pikolino-f1-semena-tomata-indeterminantnogo-krasnogo-de-ruiter-seeds-de-royter-sids",148315300]
["Семена томата индет. Пинк 10740 F1, 500 шт., Sakata",3900,null,0,"Фото","http://agroopt-market.ru/collection/rozovyy-2/product/pink-10740-f1-semena-tomata-indeterminantnogo-rozovogo-sakata-sakata",148315301]
["Семена томата индет. Пинк Импрэшн F1, 1000 шт., Sakata",8400,null,0,"Фото","http://agroopt-market.ru/collection/rozovyy-2/product/pink-impreshn-f1-semena-tomata-indeterminantnogo-rozovogo-sakata-sakata",148315305]
["Семена томата индет. Пинк Импрэшн F1, 500 шт., Sakata",4200,null,0,"Фото","http://agroopt-market.ru/collection/rozovyy-2/product/pink-impreshn-f1-semena-tomata-indeterminantnogo-rozovogo-sakata-sakata",148315304]
["Семена томата индет. Пинк Клейр F1, 500 шт., Hazera",3250,null,0,"Фото","http://agroopt-market.ru/collection/rozovyy-2/product/pink-kleyr-f1-semena-tomata-indeterminantnogo-rozovogo-hazera-hazera",148315306]
["Семена томата индет. Пинк Мун F1, 500 шт., Sakata",3600,null,0,"Фото","http://agroopt-market.ru/collection/rozovyy-2/product/pink-mun-f1-semena-tomata-indeterminantnogo-rozovogo-sakata-sakata",148315307]
["Семена томата индет. Пинк Парадайз F1, 500 шт., Sakata",3200,null,0,"Фото","http://agroopt-market.ru/collection/rozovyy-2/product/pink-paradayz-f1-semena-tomata-indeterminantnogo-rozovogo-sakata-sakata",148315309]
["Семена томата индет. Пинк Пионер F1, 500 шт., Sakata",3200,null,0,"Фото","http://agroopt-market.ru/collection/rozovyy-2/product/pink-pioner-f1-semena-tomata-indeterminantnogo-rozovogo-sakata-sakata",148315310]
["Семена томата индет. Пинк Трит F1, 500 шт., Takii",3450,null,{"$f":"B1979*C1979","v":0},"Фото","http://agroopt-market.ru/collection/rozovyy-2/product/pink-trit-f1-semena-tomata-indeterminantnogo-rozovogo-takii-taki",148315311]
["Семена томата индет. Пинк Уникум F1, 500 шт., Seminis",3917,null,0,{"$f":"HYPERLINK(F1980,\"Фото\")","v":"Фото"},"http://agroopt-market.ru/collection/rozovyy-2/product/pink-unikum-f1-semena-tomata-indeterminantnogo-rozovogo-seminis-seminis",148315312]
["Семена томата индет. Пинк Шайн F1, 500 шт., Enza Zaden",2910,null,0,"Фото","http://agroopt-market.ru/collection/rozovyy-2/product/pink-shayn-f1-semena-tomata-indeterminantnogo-rozovogo-enza-zaden-enza-zaden",148315314]
["Семена томата индет. Поззано F1, 250 шт., Enza Zaden",1420,null,0,"Фото","http://agroopt-market.ru/collection/krasnyy-1501426353/product/pozzano-f1-semena-tomata-indeterminantnogo-krasnogo-enza-zaden-enza-zaden",148315316]
["Семена томата индет. Портос F1, 1000 шт., Гавриш",6100,null,0,"Фото","http://agroopt-market.ru/collection/krasnyy-1501426353/product/semena-tomata-indeterminantnogo-portos-f1-gavrish",158071114]
["Семена томата индет. Прунус F1, 1000 шт., De Ruiter Seeds",29474,null,0,"Фото","http://agroopt-market.ru/collection/krasnyy-1501426353/product/prunus-f1-semena-tomata-indeterminantnogo-krasnogo-de-ruiter-seeds-de-royter-sids",148315323]
["Семена томата индет. Раиса F1, 500 шт., Syngenta",8610,null,0,"Фото","http://agroopt-market.ru/collection/krasnyy-1501426353/product/raisa-f1-semena-tomata-indeterminantnogo-krasnogo-syngenta-singenta",148315324]
["Семена томата индет. Ралли F1, 500 шт., Enza Zaden",3080,null,0,"Фото","http://agroopt-market.ru/collection/krasnyy-1501426353/product/ralli-f1-semena-tomata-indeterminantnogo-krasnogo-enza-zaden-enza-zaden",148315325]
["Семена томата индет. Ребелион F1, 500 шт., Vilmorin",4567,null,0,"Фото","http://agroopt-market.ru/collection/krasnyy-1501426353/product/rebelion-f1-semena-tomata-indeterminantnogo-krasnogo-vilmorin-vilmorin",148315326]
["Семена томата индет. Розалетта F1, 1000 шт., Гавриш",11700,null,0,"Фото","http://agroopt-market.ru/collection/rozovyy-2/product/semena-tomata-indeterminantnogo-rozaletta-f1-gavrish",158071155]
["Семена томата индет. Розарио F1, 1000 шт., Гавриш",5300,null,0,"Фото","http://agroopt-market.ru/collection/rozovyy-2/product/semena-tomata-indeterminantnogo-rozario-f1-gavrish",158071156]
["Семена томата индет. Розмакс F1, 1000 шт., Гавриш",4100,null,0,"Фото","http://agroopt-market.ru/collection/rozovyy-2/product/semena-tomata-indeterminantnogo-rozmaks-f1-gavrish",158071159]
["Семена томата индет. Ролекс F1, 1000 шт., Гавриш",4100,null,0,"Фото","http://agroopt-market.ru/collection/rozovyy-2/product/semena-tomata-indeterminantnogo-roleks-f1-gavrish",158071157]
["Семена томата индет. Романа F1, 1000 шт., De Ruiter Seeds",27558,null,0,"Фото","http://agroopt-market.ru/collection/krasnyy-1501426353/product/romana-f1-semena-tomata-indeterminantnogo-krasnogo-de-ruiter-seeds-de-royter-sids",148315331]
["Семена томата индет. Ругантино F1, 100 шт., Rijk Zwaan",1530,null,0,"Фото","http://agroopt-market.ru/collection/krasnyy-1501426353/product/semena-tomata-indeterminantnogo-rugantino-f1-rijk-zwaan-rayk-tsvaan",158070874]
["Семена томата индет. Ругантино F1, 1000 шт., Rijk Zwaan",15350,null,0,"Фото","http://agroopt-market.ru/collection/krasnyy-1501426353/product/rugantino-f1-semena-tomata-indeterminantnogo-krasnogo-rijk-zwaan-rayk-tsvaan",148315333]
["Семена томата индет. Сакура F1, 250 шт., Enza Zaden",3030,null,0,"Фото","http://agroopt-market.ru/collection/krasnyy-1501426353/product/sakura-f1-semena-tomata-indeterminantnogo-krasnogo-enza-zaden-enza-zaden",148315337]
["Семена томата индет. Самба F1, 1000 шт., Гавриш",7000,null,0,"Фото","http://agroopt-market.ru/collection/rozovyy-2/product/semena-tomata-indeterminantnogo-samba-f1-gavrish",158071147]
["Семена томата индет. Саппоро F1, 1000 шт., Гавриш",20500,null,0,"Фото","http://agroopt-market.ru/collection/krasnyy-1501426353/product/semena-tomata-indeterminantnogo-sapporo-f1-gavrish",158071167]
["Семена томата индет. СВ 0948 ТС F1, 1000 шт., De Ruiter Seeds",41908,null,0,"Фото","http://agroopt-market.ru/collection/zheltyy-3/product/sv-0948-ts-f1-semena-tomata-indeterminantnogo-zheltogo-de-ruiter-seeds-de-royter-sids",148315340]
["Семена томата индет. Сенкара F1, 500 шт., Vilmorin",3978,null,0,"Фото","http://agroopt-market.ru/collection/rozovyy-2/product/senkara-f1-semena-tomata-indeterminantnogo-rozovogo-vilmorin-vilmorin",148315343]
["Семена томата индет. Сеньор F1, 1000 шт., Гавриш",6100,null,0,"Фото","http://agroopt-market.ru/collection/krasnyy-1501426353/product/semena-tomata-indeterminantnogo-senor-f1-gavrish",158071117]
["Семена томата индет. Сиде F1, 1000 шт., Sakata",4200,null,0,"Фото","http://agroopt-market.ru/collection/krasnyy-1501426353/product/side-f1-semena-tomata-indeterminantnogo-krasnogo-sakata-sakata",148315345]
["Семена томата индет. Скляри F1, 250 шт., Vilmorin",3996,null,0,"Фото","http://agroopt-market.ru/collection/krasnyy-1501426353/product/sklyari-f1-semena-tomata-indeterminantnogo-krasnogo-vilmorin-vilmorin",148315347]
["Семена томата индет. Соларино F1, 100 шт., Rijk Zwaan (ЗГ)","под заказ",null,null,"Фото","http://agroopt-market.ru/collection/krasnyy-1501426353/product/solarino-f1-semena-tomata-indeterminantnogo-krasnogo-rijk-zwaan-rayk-tsvaan",148315348]
["Семена томата индет. Соларино F1, 1000 шт., Rijk Zwaan (ЗГ)","под заказ",null,null,"Фото","http://agroopt-market.ru/collection/krasnyy-1501426353/product/solarino-f1-semena-tomata-indeterminantnogo-krasnogo-rijk-zwaan-rayk-tsvaan",148315349]
["Семена томата индет. Старбак F1, 1000 шт., De Ruiter Seeds",26772,null,0,"Фото","http://agroopt-market.ru/collection/krasnyy-1501426353/product/starbak-f1-semena-tomata-indeterminantnogo-krasnogo-de-ruiter-seeds-de-royter-sids",148315350]
["Семена томата индет. Т34 F1, 1000 шт., Гавриш",26000,null,0,"Фото","http://agroopt-market.ru/collection/krasnyy-1501426353/product/semena-tomata-indeterminantnogo-t34-f1-gavrish",158071163]
["Семена томата индет. Таганка F1, 1000 шт., Гавриш",24300,null,0,"Фото","http://agroopt-market.ru/collection/krasnyy-1501426353/product/semena-tomata-indeterminantnogo-taganka-f1-gavrish",158071106]
["Семена томата индет. Таймыр F1, 100 шт., Rijk Zwaan (ЗГ)",2830,null,0,"Фото","http://agroopt-market.ru/collection/krasnyy-1501426353/product/taymyr-f1-semena-tomata-indeterminantnogo-krasnogo-rijk-zwaan-rayk-tsvaan",148315355]
["Семена томата индет. Таймыр F1, 1000 шт., Rijk Zwaan (ЗГ)",28350,null,0,"Фото","http://agroopt-market.ru/collection/krasnyy-1501426353/product/taymyr-f1-semena-tomata-indeterminantnogo-krasnogo-rijk-zwaan-rayk-tsvaan",148315356]
["Семена томата индет. Тестери F1, 100 шт., Rijk Zwaan (ЗГ)",4550,null,0,"Фото","http://agroopt-market.ru/collection/krasnyy-1501426353/product/testeri-f1-semena-tomata-indeterminantnogo-krasnogo-rijk-zwaan-rayk-tsvaan",148315360]
["Семена томата индет. Тестери F1, 1000 шт., Rijk Zwaan (ЗГ)",45540,null,0,"Фото","http://agroopt-market.ru/collection/krasnyy-1501426353/product/testeri-f1-semena-tomata-indeterminantnogo-krasnogo-rijk-zwaan-rayk-tsvaan",148315361]
["Семена томата индет. Тивай 12 F1, 100 шт., Rijk Zwaan",840,null,0,"Фото","http://agroopt-market.ru/collection/rozovyy-2/product/tivay-12-f1-semena-tomata-indeterminantnogo-rozovogo-rijk-zwaan-rayk-tsvaan",148315362]
["Семена томата индет. Тивай 12 F1, 1000 шт., Rijk Zwaan",8390,null,0,"Фото","http://agroopt-market.ru/collection/rozovyy-2/product/tivay-12-f1-semena-tomata-indeterminantnogo-rozovogo-rijk-zwaan-rayk-tsvaan",148315363]
["Семена томата индет. Тобольск F1, 1000 шт., Bejo",3600,null,0,"Фото","http://agroopt-market.ru/collection/krasnyy-1501426353/product/tobolsk-f1-semena-tomata-indeterminantnogo-krasnogo-bejo-beyo",148315367]
["Семена томата индет. Тойво F1, 1000 шт., Bejo",4200,null,0,"Фото","http://agroopt-market.ru/collection/krasnyy-1501426353/product/toyvo-f1-semena-tomata-indeterminantnogo-krasnogo-bejo-beyo",148315368]
["Семена томата индет. Толстой F1, 5 гр, Bejo",1050,null,0,"Фото","http://agroopt-market.ru/collection/krasnyy-1501426353/product/tolstoy-f1-semena-tomata-indeterminantnogo-krasnogo-bejo-beyo",148315369]
["Семена томата индет. Томимару Мучо F1, 1000 шт., De Ruiter Seeds",13846,null,0,"Фото","http://agroopt-market.ru/collection/krasnyy-1501426353/product/tomimaru-mucho-f1-semena-tomata-indeterminantnogo-krasnogo-de-ruiter-seeds-de-royter-sids",148315370]
["Семена томата индет. Томимару Мучо F1, 500 шт., De Ruiter Seeds",27692,null,0,"-",{"$error":"#N/A"},152250772]
["Семена томата индет. Томимару Мучо F1, 500 шт., De Ruiter Seeds",13846,null,0,"-",{"$error":"#N/A"},152250772]
["Семена томата индет. Тореро F1, 1000 шт., De Ruiter Seeds",34928,null,0,"Фото","http://agroopt-market.ru/collection/krasnyy-1501426353/product/torero-f1-semena-tomata-indeterminantnogo-krasnogo-de-ruiter-seeds-de-royter-sids",148315377]
["Семена томата индет. Требус F1, 250 шт., Enza Zaden",2910,null,0,"Фото","http://agroopt-market.ru/collection/krasnyy-1501426353/product/trebus-f1-semena-tomata-indeterminantnogo-krasnogo-enza-zaden-enza-zaden",148315379]
["Семена томата индет. Умагна F1, 1000 шт., Rijk Zwaan",6200,null,0,"Фото","http://agroopt-market.ru/collection/krasnyy-1501426353/product/umagna-f1-semena-tomata-indeterminantnogo-krasnogo-rijk-zwaan-rayk-tsvaan",148315383]
["Семена томата индет. Фаворита F1, 1000 шт., De Ruiter Seeds",22364,null,0,"Фото","http://agroopt-market.ru/collection/krasnyy-1501426353/product/favorita-f1-semena-tomata-indeterminantnogo-krasnogo-de-ruiter-seeds-de-royter-sids",148315385]
["Семена томата индет. Фантастина F1, 500 шт., Syngenta",3675,null,0,"Фото","http://agroopt-market.ru/collection/krasnyy-1501426353/product/fantastina-f1-semena-tomata-indeterminantnogo-krasnogo-syngenta-singenta",148315386]
["Семена томата индет. Фенда F1, 250 шт., Clause",1746,null,0,"Фото","http://agroopt-market.ru/collection/rozovyy-2/product/fenda-f1-semena-tomata-indeterminantnogo-rozovogo-clause-klos",148315387]
["Семена томата индет. Форонти F1, 1000 шт., De Ruiter Seeds",34240,null,0,"Фото","http://agroopt-market.ru/collection/krasnyy-1501426353/product/foronti-f1-semena-tomata-indeterminantnogo-krasnogo-de-ruiter-seeds-de-royter-sids",148315393]
["Семена томата индет. Хуанита F1, 1000 шт., De Ruiter Seeds",32976,null,0,"Фото","http://agroopt-market.ru/collection/krasnyy-1501426353/product/huanita-f1-semena-tomata-indeterminantnogo-krasnogo-de-ruiter-seeds-de-royter-sids",148315397]
["Семена томата индет. Цинто F1, 1000 шт., Rijk Zwaan",5350,null,0,"Фото","http://agroopt-market.ru/collection/krasnyy-1501426353/product/tsinto-f1-semena-tomata-indeterminantnogo-krasnogo-rijk-zwaan-rayk-tsvaan",148315400]
["Семена томата индет. Шерами F1, 100 шт., Rijk Zwaan (ЗГ)",3760,null,0,"Фото","http://agroopt-market.ru/collection/krasnyy-1501426353/product/sherami-f1-semena-tomata-indeterminantnogo-krasnogo-rijk-zwaan-rayk-tsvaan",148315406]
["Семена томата индет. Шерами F1, 1000 шт., Rijk Zwaan (ЗГ)",37580,null,0,"Фото","http://agroopt-market.ru/collection/krasnyy-1501426353/product/sherami-f1-semena-tomata-indeterminantnogo-krasnogo-rijk-zwaan-rayk-tsvaan",148315407]
["Семена томата индет. Эйджен F1, 500 шт., Enza Zaden",3080,null,0,"Фото","http://agroopt-market.ru/collection/krasnyy-1501426353/product/semena-tomata-indeterminantnogo-eydzhen-f1-enza-zaden-enza-zaden",158070871]
["Семена томата индет. Эндевер F1, 100 шт., Rijk Zwaan (ЗГ)",3920,null,0,"Фото","http://agroopt-market.ru/collection/krasnyy-1501426353/product/endever-f1-semena-tomata-indeterminantnogo-krasnogo-rijk-zwaan-rayk-tsvaan",148315412]
["Семена томата индет. Эндевер F1, 1000 шт., Rijk Zwaan (ЗГ)",39150,null,0,"Фото","http://agroopt-market.ru/collection/krasnyy-1501426353/product/endever-f1-semena-tomata-indeterminantnogo-krasnogo-rijk-zwaan-rayk-tsvaan",148315413]
["Семена томата индет. Энигма F1, 500 шт., Seminis",3643,null,0,"Фото","http://agroopt-market.ru/collection/krasnyy-1501426353/product/enigma-f1-semena-tomata-indeterminantnogo-krasnogo-seminis-seminis",148315414]
["Семена томата индет. Эсмира F1, 1000 шт., Rijk Zwaan",6420,null,0,"Фото","http://agroopt-market.ru/collection/rozovyy-2/product/esmira-f1-semena-tomata-indeterminantnogo-rozovogo-rijk-zwaan-rayk-tsvaan",148315417]
["Семена томата индет. Ягуар F1, 500 шт., Seminis",2930,null,0,"Фото","http://agroopt-market.ru/collection/krasnyy-1501426353/product/yaguar-f1-semena-tomata-indeterminantnogo-krasnogo-seminis-seminis",148315418]
["Семена томата индет. Якиманка F1, 1000 шт., Гавриш",16200,null,0,"Фото","http://agroopt-market.ru/collection/krasnyy-1501426353/product/semena-tomata-indeterminantnogo-yakimanka-f1-gavrish",158071111]
["Семена томата Индио F1, 500 шт, Sakata",650,null,0,"Фото","-","ПРН"]
["Семена томата полудет. Берсола F1, 500 шт., Enza Zaden",2460,null,0,"Фото","http://agroopt-market.ru/collection/krasnyy-1501426358/product/semena-tomata-poludet-bersola-f1-enza-zaden-enza-zaden",158070876]
["Семена томата полудет. Велоз F1, 1000 шт., Seminis",835,null,0,"Фото","http://agroopt-market.ru/collection/krasnyy-1501426358/product/veloz-f1-semena-tomata-poludeterminantnogo-krasnogo-seminis-seminis",148315194]
["Семена томата полудет. Гравитет F1, 500 шт., Syngenta",3781,null,0,"Фото","http://agroopt-market.ru/collection/krasnyy-1501426358/product/gravitet-f1-semena-tomata-poludeterminantnogo-krasnogo-syngenta-singenta",148315200]
["Семена томата полудет. Квалитет F1, 500 шт., Syngenta",3781,null,0,"Фото","http://agroopt-market.ru/collection/krasnyy-1501426358/product/kvalitet-f1-semena-tomata-poludeterminantnogo-krasnogo-syngenta-singenta",148315242]
["Семена томата полудет. Компак F1, 500 шт., Seminis",3132,null,{"$f":"B2043*C2043","v":0},"Фото","http://agroopt-market.ru/collection/krasnyy-1501426358/product/kompak-f1-semena-tomata-poludeterminantnogo-krasnogo-seminis-seminis",148315247]
["Семена томата полудет. Корвинус F1, 500 шт., Seminis",3751,null,0,{"$f":"HYPERLINK(F2044,\"Фото\")","v":"Фото"},"http://agroopt-market.ru/collection/krasnyy-1501426358/product/korvinus-f1-semena-tomata-poludeterminantnogo-krasnogo-seminis-seminis",148315251]
["Семена томата полудет. Магнус F1, 500 шт., Seminis",3536,null,0,"Фото","http://agroopt-market.ru/collection/krasnyy-1501426358/product/magnus-f1-semena-tomata-poludeterminantnogo-krasnogo-seminis-seminis",148315262]
["Семена томата полудет. Мартэз F1, 500 шт., Seminis",3544,null,0,"-",{"$error":"#N/A"},148315271]
["Семена томата полудет. Минарет F1, 500 шт., Syngenta",3346,null,0,"Фото","http://agroopt-market.ru/collection/krasnyy-1501426358/product/minaret-f1-semena-tomata-poludeterminantnogo-krasnogo-syngenta-singenta",148315282]
["Семена томата полудет. Монсан F1, 500 шт., Enza Zaden",2460,null,0,"Фото","http://agroopt-market.ru/collection/krasnyy-1501426358/product/semena-tomata-poludet-monsan-f1-enza-zaden-enza-zaden",158070877]
["Семена томата полудет. Президент F1, 500 шт., Seminis",2140,null,0,"Фото","http://agroopt-market.ru/collection/krasnyy-1501426358/product/prezident-f1-semena-tomata-poludeterminantnogo-krasnogo-seminis-seminis",148315321]
["Семена томата полудет. Силуэт F1, 500 шт., Syngenta",3781,null,0,"Фото","http://agroopt-market.ru/collection/krasnyy-1501426358/product/siluet-f1-semena-tomata-poludeterminantnogo-krasnogo-syngenta-singenta",148315346]
["Семена томата полудет. ТО 1435 F1, 1000 шт., Seminis",1103,null,0,"Фото","http://agroopt-market.ru/collection/krasnyy-1501426358/product/to-1435-f1-semena-tomata-poludeterminantnogo-krasnogo-seminis-seminis",148315366]
["Семена томата полудет. Тривет F1, 500 шт., Syngenta",3962,null,0,"Фото","http://agroopt-market.ru/collection/krasnyy-1501426358/product/trivet-f1-semena-tomata-poludeterminantnogo-krasnogo-syngenta-singenta",148315380]
["Семена томата процесс. B 355 F1, 250 шт., Vilmorin",4132,null,0,"Фото","http://agroopt-market.ru/collection/krasnyy-1501426353/product/v-355-f1-semena-tomata-indeterminantnogo-krasnogo-vilmorin-vilmorin",148315151]
["Семена томата процесс. Аксиома F1, 500 шт., Nunhems",3987,null,0,"Фото","http://agroopt-market.ru/collection/krasnyy-1501426362/product/semena-tomata-protsessingovogo-aksioma-f1-nunhems-nyunems",158071174]
["Семена томата процесс. Алигриция F1, 250 шт., Vilmorin",2849,null,0,"Фото","http://agroopt-market.ru/collection/krasnyy-1501426362/product/semena-tomata-protsessingovogo-aligritsiya-f1-vilmorin-vilmorin",158070880]
["Семена томата процесс. Астерикс F1, 2500 шт., Syngenta","по запросу",null,null,"Фото","http://agroopt-market.ru/collection/krasnyy-1501426353/product/braytina-f1-semena-tomata-indeterminantnogo-krasnogo-syngenta-singenta",148315190]
["Семена томата процесс. Дональд F1, 1000 шт., Nunhems",723,null,0,"Фото","http://agroopt-market.ru/collection/krasnyy-1501426362/product/semena-tomata-protsessingovogo-donald-f1-nunhems-nyunems",158071175]
["Семена томата процесс. Инкас F1, 1000 шт., Nunhems",645,null,0,"Фото","http://agroopt-market.ru/collection/krasnyy-1501426362/product/semena-tomata-protsessingovogo-inkas-f1-nunhems-nyunems",158071176]
["Семена томата процесс. Классик F1, 1000 шт., Nunhems",596,null,0,"Фото","http://agroopt-market.ru/collection/krasnyy-1501426362/product/semena-tomata-protsessingovogo-klassik-f1-nunhems-nyunems",158071178]
["Семена томата процесс. Ламантин F1, 1000 шт., Nunhems",1589,null,0,"Фото","http://agroopt-market.ru/collection/krasnyy-1501426362/product/semena-tomata-protsessingovogo-lamantin-f1-nunhems-nyunems",158071180]
["Семена томата процесс. Лампо F1, 1000 шт., Nunhems",684,null,0,"Фото","http://agroopt-market.ru/collection/krasnyy-1501426362/product/semena-tomata-protsessingovogo-lampo-f1-nunhems-nyunems",158071181]
["Семена томата процесс. Платинум F1, 1000 шт., Nunhems",2071,null,0,"Фото","http://agroopt-market.ru/collection/krasnyy-1501426362/product/semena-tomata-protsessingovogo-platinum-f1-nunhems-nyunems",158071183]
["Семена томата процесс. Скиф F1, 1000 шт., Nunhems",1422,null,0,"Фото","http://agroopt-market.ru/collection/krasnyy-1501426362/product/semena-tomata-protsessingovogo-skif-f1-nunhems-nyunems",158071184]
["Семена томата процесс. Солероссо F1, 1000 шт., Nunhems",608,null,0,"Фото","http://agroopt-market.ru/collection/krasnyy-1501426362/product/semena-tomata-protsessingovogo-solerosso-f1-nunhems-nyunems",158071185]
["Семена томата процесс. Сомма F1, 1000 шт., Nunhems",1370,null,0,"Фото","http://agroopt-market.ru/collection/krasnyy-1501426362/product/semena-tomata-protsessingovogo-somma-f1-nunhems-nyunems",158071186]
["Семена томата процесс. Сэр Элиан F1, 250 шт., Vilmorin",3681,null,0,"Фото","http://agroopt-market.ru/collection/krasnyy-1501426362/product/semena-tomata-protsessingovogo-ser-elian-f1-vilmorin-vilmorin",158070882]
["Семена томата процесс. Тарпан F1, 1000 шт., Nunhems",2564,null,0,"Фото","http://agroopt-market.ru/collection/rozovyy-1508876767/product/semena-tomata-protsessingovogo-tarpan-f1-nunhems-nyunems",158071187]
["Семена томата процесс. Улиссе F1, 2500 шт., Syngenta",1817,null,0,"Фото","http://agroopt-market.ru/collection/krasnyy-1501426362/product/ulisse-f1-semena-tomata-protsessingovogo-krasnogo-syngenta-singenta",148315381]
["Семена томата процесс. Фрамбо, 1000 шт., Hazera",25000,null,0,"Фото","http://agroopt-market.ru/collection/krasnyy-1501426362/product/semena-tomata-protsessingovogo-frambo-hazera-hazera",158070879]
["Семена томата процесс. Фрамбо, 500 шт., Hazera",12500,null,0,"Фото","http://agroopt-market.ru/collection/krasnyy-1501426362/product/semena-tomata-protsessingovogo-frambo-hazera-hazera",158070878]
["Семена томата процесс. Чибли F1, 2500 шт., Syngenta",1321,null,0,"Фото","http://agroopt-market.ru/collection/krasnyy-1501426362/product/chibli-f1-semena-tomata-protsessingovogo-krasnogo-syngenta-singenta",148315404]
["Семена томата процесс. Шеди Леди F1, 1000 шт., Nunhems",1045,null,0,"Фото","http://agroopt-market.ru/collection/krasnyy-1501426362/product/semena-tomata-protsessingovogo-shedi-ledi-f1-nunhems-nyunems",158071189]
["Семена томата процесс. Эрколь F1, 2500 шт., Syngenta",1982,null,0,"Фото","http://agroopt-market.ru/collection/krasnyy-1501426362/product/erkol-f1-semena-tomata-protsessingovogo-krasnogo-syngenta-singenta",148315415]
["Семена томата Рапануи F1, 500шт, Hazera",12500,null,0,"Фото","-","ПРН"]
["Семена томата Рианна F1, 500 шт, Sakata",4500,null,0,"Фото","-","ПРН"]
["Семена томата Феномена F1, 250 шт, Vilmorin",220,null,0,"Фото","-","ПРН"]
["Семена томата Эволюшен F1, 500 шт, Syngenta",10231,null,0,"Фото","-","ПРН"]
["Тыква","@",null,"@","@"]
["Семена тыквы  Муск Де Прованс, 100 гр, Enza Zaden",740,null,0,"Фото","http://agroopt-market.ru/collection/muskatnaya-tykva/product/musk-de-provans-semena-tykvy-muskatnaya-tykva-enza-zaden-enza-zaden",148670115]
["Семена тыквы  Мускатная прованская, 500 шт., Tezier",4397,null,0,"Фото","http://agroopt-market.ru/collection/muskatnaya-tykva/product/muskatnaya-provanskaya-semena-tykvy-muskatnaya-tykva-clause-klos",148670119]
["Семена тыквы  Руж Виф Детамп, 100 гр, Tezier",1005,null,0,"Фото","http://agroopt-market.ru/collection/krupnoplodnaya/product/ruzh-vif-semena-tykvy-krupnoplodnaya-clause-klos",148670124]
["Семена тыквы  Ушики Кури, 500 шт., Takii",2275,null,0,"Фото","http://agroopt-market.ru/collection/uchiki-kuri/product/uchiki-kuri-semena-tykvy-uchiki-kuri-takii-taki",148670138]
["Семена тыквы баттернат Ариэль F1, 1000 шт., Sakata",6750,null,0,"Фото","http://agroopt-market.ru/collection/batternat/product/ariel-f1-semena-tykvy-batternat-sakata-sakata",148670100]
["Семена тыквы баттернат Атлас F1, 1000 шт., Sakata",3600,null,0,"Фото","http://agroopt-market.ru/collection/batternat/product/atlas-f1-semena-tykvy-batternat-sakata-sakata",148670104]
["Семена тыквы баттернат Барбара F1, 1000 шт., Sakata",4200,null,0,"Фото","http://agroopt-market.ru/collection/batternat/product/barbara-f1-semena-tykvy-batternat-sakata-sakata",148670105]
["Семена тыквы баттернат Матильда F1, 500 шт., Enza Zaden",1940,null,0,"Фото","http://agroopt-market.ru/collection/batternat/product/matilda-f1-semena-tykvy-batternat-enza-zaden-enza-zaden",148670114]
["Семена тыквы баттернат Плуто F1, 1000 шт., Sakata",6750,null,0,"Фото","http://agroopt-market.ru/collection/batternat/product/pluto-f1-semena-tykvy-batternat-sakata-sakata",148670123]
["Семена тыквы баттернат Тиана F1, 500 шт., Enza Zaden",1940,null,0,"Фото","http://agroopt-market.ru/collection/batternat/product/tiana-f1-semena-tykvy-batternat-enza-zaden-enza-zaden",148670135]
["Семена тыквы баттернат Хавана F1, 500 шт., Enza Zaden",1940,null,0,"Фото","http://agroopt-market.ru/collection/batternat/product/havana-f1-semena-tykvy-batternat-enza-zaden-enza-zaden",148670139]
["Семена тыквы кабоча Делика F1, 500 шт., Takii",3950,null,0,"Фото","http://agroopt-market.ru/collection/kabocha/product/delika-f1-semena-tykvy-kabocha-takii-taki",148670108]
["Семена тыквы кабоча Констанза F1, 500 шт., Takii",4250,null,0,"Фото","http://agroopt-market.ru/collection/kabocha/product/konstanza-f1-semena-tykvy-kabocha-takii-taki",148670110]
["Семена тыквы кабоча Свит Мама F1, 500 шт., Takii",3950,null,0,"Фото","http://agroopt-market.ru/collection/kabocha/product/svit-mama-f1-semena-tykvy-kabocha-takii-taki",148670130]
["Семена тыквы Керлинг, 1 кг, Гавриш",7050,null,0,"Фото","http://agroopt-market.ru/collection/uchiki-kuri/product/semena-tykvy-kerling-gavrish",158071192]
["Семена тыквы Оранж Саммер F1, 500 шт., Enza Zaden",3250,null,0,"Фото","http://agroopt-market.ru/collection/uchiki-kuri/product/oranzh-sammer-f1-semena-tykvy-uchiki-kuri-enza-zaden-enza-zaden",148670121]
["Семена тыквы серой Краун Принц F1, 1000 шт., Sakata",6700,null,0,"Фото","http://agroopt-market.ru/collection/seraya-tykva/product/kraun-prints-f1-semena-tykvy-seraya-tykva-sakata-sakata",148670111]
["Семена тыквы серой Сампсон F1, 500 шт., Enza Zaden",1820,null,0,"Фото","http://agroopt-market.ru/collection/seraya-tykva/product/sampson-f1-semena-tykvy-seraya-tykva-enza-zaden-enza-zaden",148670128]
["Семена тыквы Страдивари, 1 кг, Гавриш",5900,null,0,"Фото","http://agroopt-market.ru/collection/batternat/product/semena-tykvy-stradivari-gavrish",158071191]
["Укроп","@",null,"@","@"]
["Семена укропа Аллигатор, 1 кг (калибр.), Гавриш",2450,null,0,"Фото","http://agroopt-market.ru/collection/ukrop/product/semena-ukropa-alligator-gavrish",158071193]
["Семена укропа Аллигатор, 1 кг, Гавриш",2050,null,0,"Фото","http://agroopt-market.ru/collection/ukrop/product/semena-ukropa-alligator-gavrish-2",158071194]
["Семена укропа Алмаз, 1 кг, Гавриш",2050,null,0,"Фото","http://agroopt-market.ru/collection/ukrop/product/semena-ukropa-almaz-gavrish",158071204]
["Семена укропа Амазон, 1 кг, Гавриш",2050,null,0,"Фото","http://agroopt-market.ru/collection/ukrop/product/semena-ukropa-amazon-gavrish",158071201]
["Семена укропа Голдкрон, 250 гр, Enza Zaden",790,null,0,"Фото","http://agroopt-market.ru/collection/ukrop/product/goldkron-semena-ukropa-enza-zaden-enza-zaden",148769394]
["Семена укропа Гренадер, 1 кг, Гавриш",1650,null,0,"Фото","http://agroopt-market.ru/collection/ukrop/product/semena-ukropa-grenader-gavrish",158071198]
["Семена укропа Грин сливз, 250 гр, Enza Zaden",740,null,0,"Фото","http://agroopt-market.ru/collection/ukrop/product/grin-slivz-semena-ukropa-enza-zaden-enza-zaden",148769396]
["Семена укропа Дилл, 50 гр, Clause",123,null,0,"Фото","http://agroopt-market.ru/collection/ukrop/product/dill-semena-ukropa-clause-klos",148769390]
["Семена укропа Иней, 1 кг, Гавриш",1100,null,0,"Фото","http://agroopt-market.ru/collection/ukrop/product/semena-ukropa-iney-gavrish",158071195]
["Семена укропа Кутузовский, 1 кг, Гавриш",1650,null,0,"Фото","http://agroopt-market.ru/collection/ukrop/product/semena-ukropa-kutuzovskiy-gavrish",158071197]
["Семена укропа Макс, 1 кг, Гавриш",850,null,{"$f":"B2109*C2109","v":0},"Фото","http://agroopt-market.ru/collection/ukrop/product/semena-ukropa-maks-gavrish",158071202]
["Семена укропа Преображенский, 1 кг, Гавриш",1250,null,0,{"$f":"HYPERLINK(F2110,\"Фото\")","v":"Фото"},"http://agroopt-market.ru/collection/ukrop/product/semena-ukropa-preobrazhenskiy-gavrish",158071203]
["Фасоль","@",null,"@","@"]
["Семена фасоли Серенгети, 1 кг, Syngenta",1400,null,0,"Фото","http://agroopt-market.ru/collection/fasol/product/serengeti-semena-fasoli-syngenta-singenta",148674243]
["Семена фасоли Серенгети, 100 тыс. шт., Syngenta",12422,null,0,"Фото","http://agroopt-market.ru/collection/fasol/product/serengeti-semena-fasoli-syngenta-singenta",148670142]
["Фехель","@",null,"@","@"]
["Семена фенхеля Лидер, 1 кг, Гавриш",2900,null,0,"Фото","http://agroopt-market.ru/collection/fenhel/product/semena-fenhelya-lider-gavrish",158071221]
["Семена фенхеля Прелюдио F1, 10 тыс. шт., Enza Zaden",4500,null,0,"Фото","http://agroopt-market.ru/collection/fenhel/product/prelyudio-f1-semena-fenhelya-enza-zaden-enza-zaden",148769403]
["Семена фенхеля Рондо F1, 2500 шт., Bejo",1120,null,0,"Фото","http://agroopt-market.ru/collection/fenhel/product/rondo-f1-semena-fenhelya-bejo-beyo",148769400]
["Цикорий","@",null,"@","@"]
["Семена цикория Васари F1, 5000 шт., Bejo",8170,null,0,"Фото","http://agroopt-market.ru/collection/tsikoriy/product/vasari-f1-semena-tsikoriya-bejo-beyo",148769406]
["Семена цикория Индиго F1, 5000 шт., Bejo",7650,null,0,"Фото","http://agroopt-market.ru/collection/tsikoriy/product/indigo-f1-semena-tsikoriya-bejo-beyo",148769409]
["Семена цикория Леонардо F1, 5000 шт., Bejo",7650,null,0,"Фото","http://agroopt-market.ru/collection/tsikoriy/product/leonardo-f1-semena-tsikoriya-bejo-beyo",148769411]
["Семена цикория Раффаэлло F1, 5000 шт., Bejo",8170,null,0,"Фото","http://agroopt-market.ru/collection/tsikoriy/product/raffaello-f1-semena-tsikoriya-bejo-beyo",148769416]
["Семена цикория Россини F1, 5000 шт., Bejo",8170,null,0,"Фото","http://agroopt-market.ru/collection/tsikoriy/product/rossini-f1-semena-tsikoriya-bejo-beyo",148769420]
["Шпинат","@",null,"@","@"]
["Семена шпината Аполло, 500 гр, Sakata",1500,null,0,"Фото","http://agroopt-market.ru/collection/shpinat/product/apollo-f1-semena-shpinata-sakata-sakata",148769472]
["Семена шпината Боа F1, 100 тыс. шт., Rijk Zwaan",1500,null,0,"Фото","http://agroopt-market.ru/collection/shpinat/product/semena-shpinata-boa-f1-rijk-zwaan-rayk-tsvaan",158070887]
["Семена шпината Боа F1, 25 тыс. шт., Rijk Zwaan",380,null,0,"Фото","http://agroopt-market.ru/collection/shpinat/product/boa-f1-semena-shpinata-rijk-zwaan-rayk-tsvaan",148769446]
["Семена шпината Долфин F1, 100 тыс. шт., Rijk Zwaan",1500,null,0,"Фото","http://agroopt-market.ru/collection/shpinat/product/semena-shpinata-dolfin-f1-rijk-zwaan-rayk-tsvaan",158070884]
["Семена шпината Долфин F1, 25 тыс. шт., Rijk Zwaan",380,null,0,"Фото","http://agroopt-market.ru/collection/shpinat/product/semena-shpinata-dolfin-f1-rijk-zwaan-rayk-tsvaan",158070883]
["Семена шпината Дольфин F1, 100 тыс. шт., Rijk Zwaan","под заказ",null,null,"Фото","http://agroopt-market.ru/collection/shpinat/product/dolfin-rz-f1-semena-shpinata-rijk-zwaan-rayk-tsvaan",148769449]
["Семена шпината Зебу F1, 100 тыс. шт., Rijk Zwaan",1580,null,0,"Фото","http://agroopt-market.ru/collection/shpinat/product/semena-shpinata-zebu-f1-rijk-zwaan-rayk-tsvaan",158070888]
["Семена шпината Зебу F1, 25 тыс. шт., Rijk Zwaan",390,null,0,"Фото","http://agroopt-market.ru/collection/shpinat/product/zebu-f1-semena-shpinata-rijk-zwaan-rayk-tsvaan",148769454]
["Семена шпината Корвер F1, 100 тыс. шт., Enza Zaden",2290,null,0,"Фото","http://agroopt-market.ru/collection/shpinat/product/korver-f1-semena-shpinata-enza-zaden-enza-zaden",148769437]
["Семена шпината Кугар F1, 100 тыс. шт., Enza Zaden",2290,null,0,"Фото","http://agroopt-market.ru/collection/shpinat/product/kugar-f1-semena-shpinata-enza-zaden-enza-zaden",148769440]
["Семена шпината Матадор, 1 кг, Гавриш",1650,null,0,"Фото","http://agroopt-market.ru/collection/shpinat/product/semena-shpinata-matador-gavrish",158071222]
["Семена шпината Меркат F1, 100 тыс. шт., Rijk Zwaan",1670,null,0,"Фото","http://agroopt-market.ru/collection/shpinat/product/merkat-f1-semena-shpinata-rijk-zwaan-rayk-tsvaan",148769457]
["Семена шпината Муфлон F1, 100 тыс. шт., Rijk Zwaan",1610,null,0,"Фото","http://agroopt-market.ru/collection/shpinat/product/muflon-f1-semena-shpinata-rijk-zwaan-rayk-tsvaan",148769463]
["Семена шпината Пума F1, 100 тыс. шт., Rijk Zwaan",1500,null,0,"Фото","http://agroopt-market.ru/collection/shpinat/product/puma-f1-semena-shpinata-rijk-zwaan-rayk-tsvaan",148769468]
["Семена шпината Рембор F1, 50 тыс. шт. (калибр.), Bejo",990,null,0,"Фото","http://agroopt-market.ru/collection/shpinat/product/rembor-f1-semena-shpinata-bejo-beyo",148769423]
["Семена шпината Рембрандт F1, 50 тыс. шт. (калибр.), Bejo",990,null,0,"Фото","http://agroopt-market.ru/collection/shpinat/product/rembrandt-f1-semena-shpinata-bejo-beyo",148769426]
["Семена шпината Рэм F1, 100 тыс. шт., Enza Zaden",2290,null,0,"Фото","http://agroopt-market.ru/collection/shpinat/product/rem-f1-semena-shpinata-enza-zaden-enza-zaden",148769443]
["Семена шпината Спейс F1, 50 тыс. шт. (калибр.), Bejo",990,null,0,"Фото","http://agroopt-market.ru/collection/shpinat/product/speys-f1-semena-shpinata-bejo-beyo",148769429]
["Семена шпината Спокейн F1, 50 тыс. шт. (калибр.), Bejo",990,null,0,"Фото","http://agroopt-market.ru/collection/shpinat/product/spokeyn-f1-semena-shpinata-bejo-beyo",148769432]
["Щавель","@",null,"@","@"]
["Семена щавеля Беллевилль, 100 гр, Enza Zaden",485,null,0,"Фото","http://agroopt-market.ru/collection/schavel/product/bellevill-semena-schavelya-enza-zaden-enza-zaden",148769474]
["Семена щавеля Гринго, 1 кг, Гавриш",4000,null,0,"Фото","http://agroopt-market.ru/collection/schavel/product/semena-schavelya-gringo-gavrish",158071223]
["Семена щавеля Широколистный, 1 кг, Гавриш",4000,null,0,"Фото","http://agroopt-market.ru/collection/schavel/product/semena-schavelya-shirokolistnyy-gavrish",158071224]
["Эндивий","@",null,"@","@"]
["Семена эндивия Бекеле, 5000 шт., Enza Zaden",5860,null,0,"Фото","http://agroopt-market.ru/collection/endiviy/product/bekele-semena-endiviya-enza-zaden-enza-zaden",148769483]
["Семена эндивия Джиове F1, 5000 шт., Enza Zaden",6420,null,0,"Фото","http://agroopt-market.ru/collection/endiviy/product/dzhiove-f1-semena-endiviya-enza-zaden-enza-zaden",148769489]
["Семена эндивия Домари, 5000 шт., Enza Zaden",5860,null,0,"Фото","http://agroopt-market.ru/collection/endiviy/product/domari-semena-endiviya-enza-zaden-enza-zaden",148769491]
["Семена эндивия Матари, 5000 шт., Enza Zaden",5860,null,0,"Фото","http://agroopt-market.ru/collection/endiviy/product/semena-endiviya-matari-enza-zaden-enza-zaden",158070889]
["Семена эндивия Миледи, 5000 шт., Vilmorin",8850,null,0,"Фото","http://agroopt-market.ru/collection/endiviy/product/miledi-semena-endiviya-vilmorin-vilmorin",148769507]
["Семена эндивия Мирна, 5000 шт., Enza Zaden",5570,null,0,"Фото","http://agroopt-market.ru/collection/endiviy/product/mirna-semena-endiviya-enza-zaden-enza-zaden",148769495]
["Семена эндивия Монако, 1000 шт. (драже), Rijk Zwaan",1170,null,0,"Фото","http://agroopt-market.ru/collection/endiviy/product/monako-semena-endiviya-rijk-zwaan-rayk-tsvaan",148769498]
["Семена эндивия Монако, 5000 шт. (драже), Rijk Zwaan",5830,null,0,"Фото","http://agroopt-market.ru/collection/endiviy/product/monako-semena-endiviya-rijk-zwaan-rayk-tsvaan",148769500]
["Семена эндивия Родос F1, 5000 шт., Bejo",4720,null,0,"Фото","http://agroopt-market.ru/collection/endiviy/product/rodos-f1-semena-endiviya-bejo-beyo",148769477]
["Семена эндивия Сигал, 1000 шт. (драже), Rijk Zwaan",1320,null,0,"Фото","http://agroopt-market.ru/collection/endiviy/product/sigal-semena-endiviya-rijk-zwaan-rayk-tsvaan",148769503]
["Семена эндивия Сигал, 5000 шт. (драже), Rijk Zwaan",6580,null,0,"Фото","http://agroopt-market.ru/collection/endiviy/product/sigal-semena-endiviya-rijk-zwaan-rayk-tsvaan",148769504]
[null,null,"Сумма",{"$f":"SUBTOTAL(9,D3:D2159)","v":0},{"$f":"IF(D2160<10000,\"Не менее 10 т.р.\",\"\")","v":"Не менее 10 т.р."}]